Workbook

Sheet Intro
B5: Choosing the college that is right for you is one of the biggest decisions you'll make in the next four years: which college you choose has a huge impact on how successful your college experience is! We've learned from the experience of KIPPsters who have climbed the mountain before you, and hope it can help you find your college match.
B7: Tab | C7: Odds of Admission | E7: Description
B8: Wish List and Search | C8: Varied | D8: List of colleges you've selected from all four categories and ability to search for schools by name | H8: To help you find colleges that will be a good match for you, enter your numbers here:
C11: 80% to 100% + High Grad Rate | D11: Colleges where your ACT/SAT and GPA are above the average freshman range AND the college has a high graduation rate
B12: Likely+
H13: Unweighted GPA:
C14: 80% to 100% | D14: Colleges where your ACT/SAT and GPA are above the average freshman range | H14: ACT:
B15: Likely | H15: SAT (EBRW+M):
C17: 50% to 79% | D17: Colleges where your ACT/SAT and GPA are within the average freshman range | G17: Annual Family Income for Net Cost:
B18: Target | I18: $0-30,000
C20: 15% to 49% | D20: Colleges where your ACT/SAT and GPA are below the average freshman range
B21: Reach
B24: The filters on this sheet are used to store the Workbook-level filter values and are updated by a macro from either the Likely, Match or Reach sheets. These rows will be hidden.
D25: Min Distance from Central Location: | E25: Any | H25: Annual Family Income for Net Cost
D26: Max Distance from Central Location: | E26: Any | H26: Average Income
D27: Min # of undergraduates | E27: Any | H27: $0-30,000
D28: Max # of undergraduates | E28: Any | H28: $30,000-48,000
D29: Cost: | E29: Any | H29: $48,000-75,000
D30: # of KIPP alumni attending: | E30: Any
D31: State: | E31: =VLOOKUP('Lat and Long'!B4,'Lat and Long'!$E$6:$F$45,2,FALSE) -> NJ
D32: School Type: | E32: Any

Sheet Likely+ (hidden)
E4: Unweighted GPA: | F4: =IF(GPA=0,"Enter GPA",GPA) -> Enter GPA | J4: ACT (SAT converted): | K4: =IF(MaxACT=0,"Enter ACT",MaxACT) -> Enter ACT
D10: Select one or more filters, then click UPDATE
D11: ="Min Distance from "&'Lat and Long'!$B$4&":" -> Min Distance from Newark: | E11: Any | M11: Net Cost based on family income: | N11: Any | Q11: =IF(OR(E11="Any",E12="Any"),"",IF(VLOOKUP(E12,Lookups!$A$2:$B$7,2,FALSE)<=VLOOKUP(E11,Lookups!$C$2:$D$7,2,FALSE),"ERROR: Max Distance is <= Min Distance","")) -> 
D12: ="Max Distance from "&'Lat and Long'!$B$4&":" -> Max Distance from Newark: | E12: Any | N12: Any | Q12: =IF(OR(E13="Any",E14="Any"),"",IF(VLOOKUP(E14,Lookups!$F$2:$G$7,2,FALSE)<=VLOOKUP(E13,Lookups!$H$2:$I$7,2,FALSE),"ERROR: Max # of Undergrads <= Min # of Undergrads","")) -> 
D13: Min # of Undergrads: | E13: Any | M13: Type: | N13: Any
D14: Max # of Undergrads: | E14: Any
N15: =IFERROR(SUM(A17:A216),0) -> 0 | Q15: =IF(N15=0,"No Colleges match Filters and GPA/ACT","") -> No Colleges match Filters and GPA/ACT
B16: =NumLikelyPlus -> 0 | C16: Add to Wish List | D16: College (click name to open the school's website) | I16: pub/out-of-state | J16: State | K16: Odds of Admission | L16: Very Likely | M16: 6 Year Grad Rate (AA & Latino) | N16: # of Undergrads | O16: HBCU | P16: ="Net Cost "&CHAR(10)&"("&Intro!$I$18&")" -> Net Cost ($0-30,000) | T16: Avg. KIPP Financial Aid Package (Scholarships + Loans+ Work Study) | U16: PartnerIndex
A17: =IF((ROW()-ROW($B$16))<=$B$16,ROW()-ROW($B$16),"") ->  | B17: =IF(ISNUMBER(A17),MATCH(A17,LikelyPlusIndex,0),"") ->  | D17: =IFERROR(IF(ISNUMBER($A17),HYPERLINK("http://"&INDEX(Website_Index,$B17,0),INDEX(AllColleges,$B17,2)),""), "") ->  | I17: =IF(ISNUMBER(A17),IF(J17<>FilterState,1,0)+IF((INDEX(Public_Index,$B17,33)=1), 1, 0),"") ->  | J17: =IFERROR(INDEX(State_Index,$B17,0),"") ->  | K17: =IFERROR(IF(ISNUMBER($A17),INDEX(OddsIndex,$B17,0)/100,""),"N/A") ->  | L17: =IFERROR(IF(AND(K17>=95%,K17<>""),"Y",""),"") ->  | M17: =IFERROR(INDEX(GradRate6yrAAH_Index,$B17,0)/100,"") ->  | N17: =IFERROR(INDEX(NumUndergrads_Index,$B17,0),"") ->  | O17: =IFERROR(INDEX(HBCU_Index,$B17,0),"") ->  | P17: =IFERROR(INDEX(Net_Cost_Input_Index,$B17,0),"") ->  | T17: =IFERROR(IF(ISNUMBER($A17),IF(INDEX(KIPPFinAidAvg_Index,$B17,0)="","",INDEX(KIPPFinAidAvg_Index,$B17,0)),""),"") ->  | U17: =IF(ISNUMBER($A17),INDEX(PartnerIndex,$B17,0),"") -> 
A18: =IF((ROW()-ROW($B$16))<=$B$16,ROW()-ROW($B$16),"") ->  | L18: =IFERROR(IF(AND(K18>=95%,K18<>""),"Y",""),"") -> 
D49: =IFERROR(IF(ISNUMBER($A49),HYPERLINK("http://"&INDEX(Website_Index,$B49,0),INDEX(AllColleges,$B49,2)),""), "") ->  | I49: =IF(ISNUMBER(A49),IF(J49<>FilterState,1,0)+IF((INDEX(Public_Index,$B49,33)=1), 1, 0),"") ->  | J49: =IFERROR(INDEX(State_Index,$B49,0),"") ->  | M49: =IFERROR(INDEX(GradRate6yrAAH_Index,$B49,0)/100,"") ->  | N49: =IFERROR(INDEX(NumUndergrads_Index,$B49,0),"") ->  | O49: =IFERROR(INDEX(HBCU_Index,$B49,0),"") ->  | P49: =IFERROR(INDEX(Net_Cost_Input_Index,$B49,0),"") ->  | T49: =IFERROR(IF(ISNUMBER($A49),IF(INDEX(KIPPFinAidAvg_Index,$B49,0)="","",INDEX(KIPPFinAidAvg_Index,$B49,0)),""),"") -> 
B81: =IF(ISNUMBER(A81),MATCH(A81,LikelyPlusIndex,0),"") ->  | D81: =IFERROR(IF(ISNUMBER($A81),HYPERLINK("http://"&INDEX(Website_Index,$B81,0),INDEX(AllColleges,$B81,2)),""), "") ->  | I81: =IF(ISNUMBER(A81),IF(J81<>FilterState,1,0)+IF((INDEX(Public_Index,$B81,33)=1), 1, 0),"") ->  | J81: =IFERROR(INDEX(State_Index,$B81,0),"") ->  | K81: =IFERROR(IF(ISNUMBER($A81),INDEX(OddsIndex,$B81,0)/100,""),"N/A") ->  | M81: =IFERROR(INDEX(GradRate6yrAAH_Index,$B81,0)/100,"") ->  | N81: =IFERROR(INDEX(NumUndergrads_Index,$B81,0),"") ->  | O81: =IFERROR(INDEX(HBCU_Index,$B81,0),"") ->  | P81: =IFERROR(INDEX(Net_Cost_Input_Index,$B81,0),"") ->  | T81: =IFERROR(IF(ISNUMBER($A81),IF(INDEX(KIPPFinAidAvg_Index,$B81,0)="","",INDEX(KIPPFinAidAvg_Index,$B81,0)),""),"") ->  | U81: =IF(ISNUMBER($A81),INDEX(PartnerIndex,$B81,0),"") -> 
A82: =IF((ROW()-ROW($B$16))<=$B$16,ROW()-ROW($B$16),"") ->  | L82: =IFERROR(IF(AND(K82>=95%,K82<>""),"Y",""),"") -> 

Sheet Likely (hidden)
E4: Unweighted GPA: | F4: =IF(GPA=0,"Enter GPA",GPA) -> Enter GPA | J4: ACT (SAT converted): | K4: =IF(MaxACT=0,"Enter ACT",MaxACT) -> Enter ACT
D10: Select one or more filters, then click UPDATE
D11: ="Min Distance from "&'Lat and Long'!$B$4&":" -> Min Distance from Newark: | E11: Any | M11: Net Cost based on family income: | N11: Any | Q11: =IF(OR(E11="Any",E12="Any"),"",IF(VLOOKUP(E12,Lookups!$A$2:$B$7,2,FALSE)<=VLOOKUP(E11,Lookups!$C$2:$D$7,2,FALSE),"ERROR: Max Distance is <= Min Distance","")) -> 
D12: ="Max Distance from "&'Lat and Long'!$B$4&":" -> Max Distance from Newark: | E12: Any | N12: Any | Q12: =IF(OR(E13="Any",E14="Any"),"",IF(VLOOKUP(E14,Lookups!$F$2:$G$7,2,FALSE)<=VLOOKUP(E13,Lookups!$H$2:$I$7,2,FALSE),"ERROR: Max # of Undergrads <= Min # of Undergrads","")) -> 
D13: Min # of Undergrads: | E13: Any | M13: Type: | N13: Any
D14: Max # of Undergrads: | E14: Any
N15: =IFERROR(SUM(A17:A216),0) -> 0 | Q15: =IF(N15=0,"No Colleges match Filters and GPA/ACT","") -> No Colleges match Filters and GPA/ACT
B16: =NumLikely -> 0 | C16: Add to Wish List | D16: College (click name to open the school's website) | I16: pub/out-of-state | J16: State | K16: Odds of Admission | L16: Very Likely | M16: 6 Year Grad Rate (AA & Latino) | N16: # of Undergrads | O16: HBCU | P16: ="Net Cost "&CHAR(10)&"("&Intro!$I$18&")" -> Net Cost ($0-30,000) | T16: Avg. KIPP Financial Aid Package (Scholarships + Loans+ Work Study) | U16: PartnerIndex
A17: =IF((ROW()-ROW($B$16))<=$B$16,ROW()-ROW($B$16),"") ->  | B17: =IF(ISNUMBER(A17),MATCH(A17,LikelyIndex,0),"") ->  | D17: =IFERROR(IF(ISNUMBER($A17),HYPERLINK("http://"&INDEX(Website_Index,$B17,0),INDEX(AllColleges,$B17,2)),""), "") ->  | I17: =IF(ISNUMBER(A17),IF(J17<>FilterState,1,0)+IF((INDEX(Public_Index,$B17,33)=1), 1, 0),"") ->  | J17: =IFERROR(INDEX(State_Index,$B17,0),"") ->  | K17: =IFERROR(IF(ISNUMBER($A17),INDEX(OddsIndex,$B17,0)/100,""),"N/A") ->  | L17: =IFERROR(IF(AND(K17>=95%,K17<>""),"Y",""),"") ->  | M17: =IFERROR(INDEX(GradRate6yrAAH_Index,$B17,0)/100,"") ->  | N17: =IFERROR(INDEX(NumUndergrads_Index,$B17,0),"") ->  | O17: =IFERROR(INDEX(HBCU_Index,$B17,0),"") ->  | P17: =IFERROR(INDEX(Net_Cost_Input_Index,$B17,0),"") ->  | T17: =IFERROR(IF(ISNUMBER($A17),IF(INDEX(KIPPFinAidAvg_Index,$B17,0)="","",INDEX(KIPPFinAidAvg_Index,$B17,0)),""),"") ->  | U17: =IF(ISNUMBER($A17),INDEX(PartnerIndex,$B17,0),"") -> 
A18: =IF((ROW()-ROW($B$16))<=$B$16,ROW()-ROW($B$16),"") ->  | L18: =IFERROR(IF(AND(K18>=95%,K18<>""),"Y",""),"") ->  | U18: =IF(ISNUMBER($A18),INDEX(PartnerIndex,$B18,0),"") -> 
D49: =IFERROR(IF(ISNUMBER($A49),HYPERLINK("http://"&INDEX(Website_Index,$B49,0),INDEX(AllColleges,$B49,2)),""), "") ->  | I49: =IF(ISNUMBER(A49),IF(J49<>FilterState,1,0)+IF((INDEX(Public_Index,$B49,33)=1), 1, 0),"") ->  | J49: =IFERROR(INDEX(State_Index,$B49,0),"") ->  | M49: =IFERROR(INDEX(GradRate6yrAAH_Index,$B49,0)/100,"") ->  | N49: =IFERROR(INDEX(NumUndergrads_Index,$B49,0),"") ->  | O49: =IFERROR(INDEX(HBCU_Index,$B49,0),"") ->  | P49: =IFERROR(INDEX(Net_Cost_Input_Index,$B49,0),"") ->  | T49: =IFERROR(IF(ISNUMBER($A49),IF(INDEX(KIPPFinAidAvg_Index,$B49,0)="","",INDEX(KIPPFinAidAvg_Index,$B49,0)),""),"") -> 
B81: =IF(ISNUMBER(A81),MATCH(A81,LikelyIndex,0),"") ->  | D81: =IFERROR(IF(ISNUMBER($A81),HYPERLINK("http://"&INDEX(Website_Index,$B81,0),INDEX(AllColleges,$B81,2)),""), "") ->  | I81: =IF(ISNUMBER(A81),IF(J81<>FilterState,1,0)+IF((INDEX(Public_Index,$B81,33)=1), 1, 0),"") ->  | J81: =IFERROR(INDEX(State_Index,$B81,0),"") ->  | K81: =IFERROR(IF(ISNUMBER($A81),INDEX(OddsIndex,$B81,0)/100,""),"N/A") ->  | M81: =IFERROR(INDEX(GradRate6yrAAH_Index,$B81,0)/100,"") ->  | N81: =IFERROR(INDEX(NumUndergrads_Index,$B81,0),"") ->  | O81: =IFERROR(INDEX(HBCU_Index,$B81,0),"") ->  | P81: =IFERROR(INDEX(Net_Cost_Input_Index,$B81,0),"") ->  | T81: =IFERROR(IF(ISNUMBER($A81),IF(INDEX(KIPPFinAidAvg_Index,$B81,0)="","",INDEX(KIPPFinAidAvg_Index,$B81,0)),""),"") ->  | U81: =IF(ISNUMBER($A81),INDEX(PartnerIndex,$B81,0),"") -> 
A82: =IF((ROW()-ROW($B$16))<=$B$16,ROW()-ROW($B$16),"") ->  | L82: =IFERROR(IF(AND(K82>=95%,K82<>""),"Y",""),"") -> 

Sheet Target (hidden)
E4: Unweighted GPA: | F4: =IF(GPA=0,"Enter GPA",GPA) -> Enter GPA | J4: ACT (SAT converted): | K4: =IF(MaxACT=0,"Enter ACT",MaxACT) -> Enter ACT
D10: Select one or more filters, then click UPDATE
D11: ="Min Distance from "&'Lat and Long'!$B$4&":" -> Min Distance from Newark: | E11: Any | M11: Net Cost based on family income: | N11: Any | Q11: =IF(OR(E11="Any",E12="Any"),"",IF(VLOOKUP(E12,Lookups!$A$2:$B$7,2,FALSE)<=VLOOKUP(E11,Lookups!$C$2:$D$7,2,FALSE),"ERROR: Max Distance is <= Min Distance","")) -> 
D12: ="Max Distance from "&'Lat and Long'!$B$4&":" -> Max Distance from Newark: | E12: Any | N12: Any | Q12: =IF(OR(E13="Any",E14="Any"),"",IF(VLOOKUP(E14,Lookups!$F$2:$G$7,2,FALSE)<=VLOOKUP(E13,Lookups!$H$2:$I$7,2,FALSE),"ERROR: Max # of Undergrads <= Min # of Undergrads","")) -> 
D13: Min # of Undergrads: | E13: Any | M13: Type: | N13: Any
D14: Max # of Undergrads: | E14: Any
N15: =SUM(A17:A216) -> 0 | Q15: =IF(N15=0,"No Colleges match Filters and GPA/ACT","") -> No Colleges match Filters and GPA/ACT
B16: =NumMatch -> 0 | C16: Add to Wish List | D16: College (click name to open the school's website) | J16: State | K16: Odds of Admission | L16: Blank | M16: 6 Year Grad Rate (AA & Latino) | N16: # of Undergrads | O16: HBCU | P16: ="Net Cost "&CHAR(10)&"("&Intro!$I$18&")" -> Net Cost ($0-30,000) | T16: Avg. KIPP Financial Aid Package (Scholarships + Loans+ Work Study) | U16: PartnerIndex
A17: =IF((ROW()-ROW($B$16))<=$B$16,ROW()-ROW($B$16),"") ->  | B17: =IF(ISNUMBER(A17),MATCH(A17,MatchIndex,0),"") ->  | D17: =IFERROR(IF(ISNUMBER($A17),HYPERLINK("http://"&INDEX(Website_Index,$B17,0),INDEX(AllColleges,$B17,2)),""), "") ->  | I17: =IF(ISNUMBER(A17),IF(J17<>FilterState,1,0)+IF((INDEX(Public_Index,$B17,33)=1), 1, 0),"") ->  | J17: =IFERROR(INDEX(State_Index,$B17,0),"") ->  | K17: =IFERROR(IF(ISNUMBER($A17),INDEX(OddsIndex,$B17,0)/100,""),"N/A") ->  | M17: =IFERROR(INDEX(GradRate6yrAAH_Index,$B17,0)/100,"") ->  | N17: =IFERROR(INDEX(NumUndergrads_Index,$B17,0),"") ->  | O17: =IFERROR(INDEX(HBCU_Index,$B17,0),"") ->  | P17: =IFERROR(INDEX(Net_Cost_Input_Index,$B17,0),"") ->  | T17: =IFERROR(IF(ISNUMBER($A17),IF(INDEX(KIPPFinAidAvg_Index,$B17,0)="","",INDEX(KIPPFinAidAvg_Index,$B17,0)),""),"") ->  | U17: =IF(ISNUMBER($A17),INDEX(PartnerIndex,$B17,0),"") -> 
A18: =IF((ROW()-ROW($B$16))<=$B$16,ROW()-ROW($B$16),"") -> 
B49: =IF(ISNUMBER(A49),MATCH(A49,MatchIndex,0),"") ->  | D49: =IFERROR(IF(ISNUMBER($A49),HYPERLINK("http://"&INDEX(Website_Index,$B49,0),INDEX(AllColleges,$B49,2)),""), "") ->  | I49: =IF(ISNUMBER(A49),IF(J49<>FilterState,1,0)+IF((INDEX(Public_Index,$B49,33)=1), 1, 0),"") ->  | J49: =IFERROR(INDEX(State_Index,$B49,0),"") ->  | M49: =IFERROR(INDEX(GradRate6yrAAH_Index,$B49,0)/100,"") ->  | N49: =IFERROR(INDEX(NumUndergrads_Index,$B49,0),"") ->  | O49: =IFERROR(INDEX(HBCU_Index,$B49,0),"") ->  | P49: =IFERROR(INDEX(Net_Cost_Input_Index,$B49,0),"") ->  | T49: =IFERROR(IF(ISNUMBER($A49),IF(INDEX(KIPPFinAidAvg_Index,$B49,0)="","",INDEX(KIPPFinAidAvg_Index,$B49,0)),""),"") ->  | U49: =IF(ISNUMBER($A49),INDEX(PartnerIndex,$B49,0),"") -> 
B81: =IF(ISNUMBER(A81),MATCH(A81,MatchIndex,0),"") ->  | D81: =IFERROR(IF(ISNUMBER($A81),HYPERLINK("http://"&INDEX(Website_Index,$B81,0),INDEX(AllColleges,$B81,2)),""), "") ->  | I81: =IF(ISNUMBER(A81),IF(J81<>FilterState,1,0)+IF((INDEX(Public_Index,$B81,33)=1), 1, 0),"") ->  | J81: =IFERROR(INDEX(State_Index,$B81,0),"") ->  | K81: =IFERROR(IF(ISNUMBER($A81),INDEX(OddsIndex,$B81,0)/100,""),"N/A") ->  | M81: =IFERROR(INDEX(GradRate6yrAAH_Index,$B81,0)/100,"") ->  | N81: =IFERROR(INDEX(NumUndergrads_Index,$B81,0),"") ->  | O81: =IFERROR(INDEX(HBCU_Index,$B81,0),"") ->  | P81: =IFERROR(INDEX(Net_Cost_Input_Index,$B81,0),"") ->  | T81: =IFERROR(IF(ISNUMBER($A81),IF(INDEX(KIPPFinAidAvg_Index,$B81,0)="","",INDEX(KIPPFinAidAvg_Index,$B81,0)),""),"") ->  | U81: =IF(ISNUMBER($A81),INDEX(PartnerIndex,$B81,0),"") -> 
A82: =IF((ROW()-ROW($B$16))<=$B$16,ROW()-ROW($B$16),"") -> 

Sheet Reach (hidden)
E4: Unweighted GPA: | F4: =IF(GPA=0,"Enter GPA",GPA) -> Enter GPA | J4: ACT (SAT converted): | K4: =IF(MaxACT=0,"Enter ACT",MaxACT) -> Enter ACT
D10: Select one or more filters, then click UPDATE
D11: ="Min Distance from "&'Lat and Long'!$B$4&":" -> Min Distance from Newark: | E11: Any | M11: Net Cost based on family income: | N11: Any | Q11: =IF(OR(E11="Any",E12="Any"),"",IF(VLOOKUP(E12,Lookups!$A$2:$B$7,2,FALSE)<=VLOOKUP(E11,Lookups!$C$2:$D$7,2,FALSE),"ERROR: Max Distance is <= Min Distance","")) -> 
D12: ="Max Distance from "&'Lat and Long'!$B$4&":" -> Max Distance from Newark: | E12: Any | N12: Any | Q12: =IF(OR(E13="Any",E14="Any"),"",IF(VLOOKUP(E14,Lookups!$F$2:$G$7,2,FALSE)<=VLOOKUP(E13,Lookups!$H$2:$I$7,2,FALSE),"ERROR: Max # of Undergrads <= Min # of Undergrads","")) -> 
D13: Min # of Undergrads: | E13: Any | M13: Type: | N13: Any
D14: Max # of Undergrads: | E14: Any
N15: =SUM(A17:A216) -> 0 | Q15: =IF(N15=0,"No Colleges match Filters and GPA/ACT","") -> No Colleges match Filters and GPA/ACT
B16: =NumReach -> 0 | C16: Add to Wish List | D16: College (click name to open the school's website) | I16: Blank | J16: State | K16: Odds of Admission | L16: Blank | M16: 6 Year Grad Rate (AA & Latino) | N16: # of Undergrads | O16: HBCU | P16: ="Net Cost "&CHAR(10)&"("&Intro!$I$18&")" -> Net Cost ($0-30,000) | T16: Avg. KIPP Financial Aid Package (Scholarships + Loans+ Work Study) | U16: PartnerIndex
A17: =IF((ROW()-ROW($B$16))<=$B$16,ROW()-ROW($B$16),"") ->  | B17: =IF(ISNUMBER(A17),MATCH(A17,ReachIndex,0),"") ->  | D17: =IFERROR(IF(ISNUMBER($A17),HYPERLINK("http://"&INDEX(Website_Index,$B17,0),INDEX(AllColleges,$B17,2)),""), "") ->  | I17: =IF(J17<>FilterState,1,0)+IF((INDEX(Public_Index,$B17,33)=1), 1, 0) ->  | J17: =IFERROR(INDEX(State_Index,$B17,0),"") ->  | K17: =IFERROR(IF(ISNUMBER($A17),INDEX(OddsIndex,$B17,0)/100,""),"N/A") ->  | M17: =IFERROR(INDEX(GradRate6yrAAH_Index,$B17,0)/100,"") ->  | N17: =IFERROR(INDEX(NumUndergrads_Index,$B17,0),"") ->  | O17: =IFERROR(INDEX(HBCU_Index,$B17,0),"") ->  | P17: =IFERROR(INDEX(Net_Cost_Input_Index,$B17,0),"") ->  | T17: =IFERROR(IF(ISNUMBER($A17),IF(INDEX(KIPPFinAidAvg_Index,$B17,0)="","",INDEX(KIPPFinAidAvg_Index,$B17,0)),""),"") ->  | U17: =IF(ISNUMBER($A17),INDEX(PartnerIndex,$B17,0),"") -> 
A18: =IF((ROW()-ROW($B$16))<=$B$16,ROW()-ROW($B$16),"") ->  | B18: =IF(ISNUMBER(A18),MATCH(A18,ReachIndex,0),"") -> 
D49: =IFERROR(IF(ISNUMBER($A49),HYPERLINK("http://"&INDEX(Website_Index,$B49,0),INDEX(AllColleges,$B49,2)),""), "") ->  | I49: =IF(J49<>FilterState,1,0)+IF((INDEX(Public_Index,$B49,33)=1), 1, 0) ->  | J49: =IFERROR(INDEX(State_Index,$B49,0),"") ->  | K49: =IFERROR(IF(ISNUMBER($A49),INDEX(OddsIndex,$B49,0)/100,""),"N/A") ->  | M49: =IFERROR(INDEX(GradRate6yrAAH_Index,$B49,0)/100,"") ->  | N49: =IFERROR(INDEX(NumUndergrads_Index,$B49,0),"") ->  | O49: =IFERROR(INDEX(HBCU_Index,$B49,0),"") ->  | P49: =IFERROR(INDEX(Net_Cost_Input_Index,$B49,0),"") ->  | T49: =IFERROR(IF(ISNUMBER($A49),IF(INDEX(KIPPFinAidAvg_Index,$B49,0)="","",INDEX(KIPPFinAidAvg_Index,$B49,0)),""),"") -> 
D81: =IFERROR(IF(ISNUMBER($A81),HYPERLINK("http://"&INDEX(Website_Index,$B81,0),INDEX(AllColleges,$B81,2)),""), "") ->  | I81: =IF(J81<>FilterState,1,0)+IF((INDEX(Public_Index,$B81,33)=1), 1, 0) ->  | J81: =IFERROR(INDEX(State_Index,$B81,0),"") ->  | K81: =IFERROR(IF(ISNUMBER($A81),INDEX(OddsIndex,$B81,0)/100,""),"N/A") ->  | M81: =IFERROR(INDEX(GradRate6yrAAH_Index,$B81,0)/100,"") ->  | N81: =IFERROR(INDEX(NumUndergrads_Index,$B81,0),"") ->  | O81: =IFERROR(INDEX(HBCU_Index,$B81,0),"") ->  | P81: =IFERROR(INDEX(Net_Cost_Input_Index,$B81,0),"") ->  | T81: =IFERROR(IF(ISNUMBER($A81),IF(INDEX(KIPPFinAidAvg_Index,$B81,0)="","",INDEX(KIPPFinAidAvg_Index,$B81,0)),""),"") ->  | U81: =IF(ISNUMBER($A81),INDEX(PartnerIndex,$B81,0),"") -> 
A82: =IF((ROW()-ROW($B$16))<=$B$16,ROW()-ROW($B$16),"") ->  | B82: =IF(ISNUMBER(A82),MATCH(A82,ReachIndex,0),"") -> 

Sheet Wish List and Search (hidden)
C3: Unweighted GPA: | E3: =IF(GPA=0,"Enter GPA",GPA) -> Enter GPA | G3: ACT (SAT converted): | H3: =IF(MaxACT=0,"Enter ACT",MaxACT) -> Enter ACT
A15: Number | B15: Row Match | C15: College | D15: pub/out-of-state | E15: State | F15: Match Type | G15: Odds of Admission | H15: 6 Year Grad Rate (AA & Latino) | K15: Distance from Home | L15: # of Undergrads | M15: HBCU | N15: ="Net Cost "&CHAR(10)&"("&Intro!$I$18&")" -> Net Cost ($0-30,000) | P15: Avg. KIPP Financial Aid Package (Scholarships + Loans+ Work Study) | Q15: Level of Interest (1-Low to 5-High) | R15: PartnerIndex | S15: High Unmet Need
A16: =IF(C16<>"",ROW()-ROW($C$15),"") ->  | B16: =IF(ISNUMBER(A16),MATCH(C16,AllColleges!$AS$4:$AS$1902,0),"") ->  | D16: =IF(ISNUMBER(A16),IF(E16<>FilterState,1,0)+IF((INDEX(Public_Index,$B16,33)=1), 1, 0),"") ->  | E16: =IFERROR(IF(ISNUMBER($A16),INDEX(State_Index,$B16,0),""),"") ->  | F16: =IFERROR(IF(ISNUMBER($A16),INDEX(MatchType_Index,$B16,0),""),"") ->  | G16: =IFERROR(IF(ISNUMBER($A16),IFERROR(INDEX(OddsIndex,$B16,0)/100,""),""),"N/A") ->  | H16: =IFERROR(IF(ISNUMBER($A16),INDEX(GradRate6yrAAH_Index,$B16,0)/100,""), "") ->  | K16: =IFERROR(IF(ISNUMBER($A16),INDEX(Distance_Index,$B16,0),""), "") ->  | L16: =IFERROR(IF(ISNUMBER($A16),INDEX(NumUndergrads_Index,$B16,0),""), "") ->  | M16: =IFERROR(IF(ISNUMBER($A16),INDEX(HBCU_Index,$B16,0),""),"") ->  | N16: =IFERROR(IF(ISNUMBER($A16),INDEX(Net_Cost_Input_Index,$B16,0),""), "") ->  | P16: =IFERROR(IF(ISNUMBER($A16),IF(INDEX(KIPPFinAidAvg_Index,$B16,0)="","",INDEX(KIPPFinAidAvg_Index,$B16,0)),""),"") ->  | R16: =IF(ISNUMBER($A16),INDEX(PartnerIndex,$B16,0),"") ->  | S16: =IFERROR(IF(ISNUMBER($A16),IF(INDEX(Unmet_Index,$B16,0)="","",INDEX(Unmet_Index,$B16,0)),""),"") -> 
A17: =IF(C17<>"",ROW()-ROW($C$15),"") ->  | B17: =IF(ISNUMBER(A17),MATCH(C17,AllColleges!$AS$4:$AS$1902,0),"") ->  | D17: =IF(ISNUMBER(A17),IF(E17<>FilterState,1,0)+IF((INDEX(Public_Index,$B17,33)=1), 1, 0),"") ->  | E17: =IFERROR(IF(ISNUMBER($A17),INDEX(State_Index,$B17,0),""),"") ->  | F17: =IFERROR(IF(ISNUMBER($A17),INDEX(MatchType_Index,$B17,0),""),"") ->  | G17: =IFERROR(IF(ISNUMBER($A17),IFERROR(INDEX(OddsIndex,$B17,0)/100,""),""),"N/A") ->  | H17: =IFERROR(IF(ISNUMBER($A17),INDEX(GradRate6yrAAH_Index,$B17,0)/100,""), "") ->  | K17: =IFERROR(IF(ISNUMBER($A17),INDEX(Distance_Index,$B17,0),""), "") ->  | L17: =IFERROR(IF(ISNUMBER($A17),INDEX(NumUndergrads_Index,$B17,0),""), "") ->  | M17: =IFERROR(IF(ISNUMBER($A17),INDEX(HBCU_Index,$B17,0),""),"") ->  | P17: =IFERROR(IF(ISNUMBER($A17),IF(INDEX(KIPPFinAidAvg_Index,$B17,0)="","",INDEX(KIPPFinAidAvg_Index,$B17,0)),""),"") ->  | R17: =IF(ISNUMBER($A17),INDEX(PartnerIndex,$B17,0),"") ->  | S17: =IFERROR(IF(ISNUMBER($A17),IF(INDEX(Unmet_Index,$B17,0)="","",INDEX(Unmet_Index,$B17,0)),""),"") -> 
A18: =IF(C18<>"",ROW()-ROW($C$15),"") ->  | B18: =IF(ISNUMBER(A18),MATCH(C18,AllColleges!$AS$4:$AS$1902,0),"") ->  | D18: =IF(ISNUMBER(A18),IF(E18<>FilterState,1,0)+IF((INDEX(Public_Index,$B18,33)=1), 1, 0),"") ->  | E18: =IFERROR(IF(ISNUMBER($A18),INDEX(State_Index,$B18,0),""),"") ->  | F18: =IFERROR(IF(ISNUMBER($A18),INDEX(MatchType_Index,$B18,0),""),"") ->  | G18: =IFERROR(IF(ISNUMBER($A18),IFERROR(INDEX(OddsIndex,$B18,0)/100,""),""),"N/A") ->  | H18: =IFERROR(IF(ISNUMBER($A18),INDEX(GradRate6yrAAH_Index,$B18,0)/100,""), "") ->  | K18: =IFERROR(IF(ISNUMBER($A18),INDEX(Distance_Index,$B18,0),""), "") ->  | L18: =IFERROR(IF(ISNUMBER($A18),INDEX(NumUndergrads_Index,$B18,0),""), "") ->  | M18: =IFERROR(IF(ISNUMBER($A18),INDEX(HBCU_Index,$B18,0),""),"") ->  | P18: =IFERROR(IF(ISNUMBER($A18),IF(INDEX(KIPPFinAidAvg_Index,$B18,0)="","",INDEX(KIPPFinAidAvg_Index,$B18,0)),""),"") ->  | R18: =IF(ISNUMBER($A18),INDEX(PartnerIndex,$B18,0),"") ->  | S18: =IFERROR(IF(ISNUMBER($A18),IF(INDEX(Unmet_Index,$B18,0)="","",INDEX(Unmet_Index,$B18,0)),""),"") -> 
A19: =IF(C19<>"",ROW()-ROW($C$15),"") ->  | B19: =IF(ISNUMBER(A19),MATCH(C19,AllColleges!$AS$4:$AS$1902,0),"") ->  | E19: =IFERROR(IF(ISNUMBER($A19),INDEX(State_Index,$B19,0),""),"") ->  | F19: =IFERROR(IF(ISNUMBER($A19),INDEX(MatchType_Index,$B19,0),""),"") ->  | G19: =IFERROR(IF(ISNUMBER($A19),IFERROR(INDEX(OddsIndex,$B19,0)/100,""),""),"N/A") ->  | H19: =IFERROR(IF(ISNUMBER($A19),INDEX(GradRate6yrAAH_Index,$B19,0)/100,""), "") ->  | K19: =IFERROR(IF(ISNUMBER($A19),INDEX(Distance_Index,$B19,0),""), "") ->  | L19: =IFERROR(IF(ISNUMBER($A19),INDEX(NumUndergrads_Index,$B19,0),""), "") ->  | M19: =IFERROR(IF(ISNUMBER($A19),INDEX(HBCU_Index,$B19,0),""),"") ->  | P19: =IFERROR(IF(ISNUMBER($A19),IF(INDEX(KIPPFinAidAvg_Index,$B19,0)="","",INDEX(KIPPFinAidAvg_Index,$B19,0)),""),"") ->  | R19: =IF(ISNUMBER($A19),INDEX(PartnerIndex,$B19,0),"") -> 
A20: =IF(C20<>"",ROW()-ROW($C$15),"") ->  | B20: =IF(ISNUMBER(A20),MATCH(C20,AllColleges!$AS$4:$AS$1902,0),"") ->  | E20: =IFERROR(IF(ISNUMBER($A20),INDEX(State_Index,$B20,0),""),"") ->  | F20: =IFERROR(IF(ISNUMBER($A20),INDEX(MatchType_Index,$B20,0),""),"") ->  | G20: =IFERROR(IF(ISNUMBER($A20),IFERROR(INDEX(OddsIndex,$B20,0)/100,""),""),"N/A") ->  | H20: =IFERROR(IF(ISNUMBER($A20),INDEX(GradRate6yrAAH_Index,$B20,0)/100,""), "") ->  | K20: =IFERROR(IF(ISNUMBER($A20),INDEX(Distance_Index,$B20,0),""), "") ->  | L20: =IFERROR(IF(ISNUMBER($A20),INDEX(NumUndergrads_Index,$B20,0),""), "") ->  | M20: =IFERROR(IF(ISNUMBER($A20),INDEX(HBCU_Index,$B20,0),""),"") ->  | P20: =IFERROR(IF(ISNUMBER($A20),IF(INDEX(KIPPFinAidAvg_Index,$B20,0)="","",INDEX(KIPPFinAidAvg_Index,$B20,0)),""),"") ->  | R20: =IF(ISNUMBER($A20),INDEX(PartnerIndex,$B20,0),"") -> 
B21: =IF(ISNUMBER(A21),MATCH(C21,AllColleges!$AS$4:$AS$1902,0),"") -> 
B22: =IF(ISNUMBER(A22),MATCH(C22,AllColleges!$AS$4:$AS$1902,0),"") -> 
B23: =IF(ISNUMBER(A23),MATCH(C23,AllColleges!$AS$4:$AS$1902,0),"") -> 
A24: =IF(C24<>"",ROW()-ROW($C$15),"") ->  | B24: =IF(ISNUMBER(A24),MATCH(C24,AllColleges!$AS$4:$AS$1902,0),"") ->  | E24: =IFERROR(IF(ISNUMBER($A24),INDEX(State_Index,$B24,0),""),"") ->  | F24: =IFERROR(IF(ISNUMBER($A24),INDEX(MatchType_Index,$B24,0),""),"") ->  | H24: =IFERROR(IF(ISNUMBER($A24),INDEX(GradRate6yrAAH_Index,$B24,0)/100,""), "") ->  | K24: =IFERROR(IF(ISNUMBER($A24),INDEX(Distance_Index,$B24,0),""), "") ->  | L24: =IFERROR(IF(ISNUMBER($A24),INDEX(NumUndergrads_Index,$B24,0),""), "") ->  | M24: =IFERROR(IF(ISNUMBER($A24),INDEX(HBCU_Index,$B24,0),""),"") ->  | P24: =IFERROR(IF(ISNUMBER($A24),IF(INDEX(KIPPFinAidAvg_Index,$B24,0)="","",INDEX(KIPPFinAidAvg_Index,$B24,0)),""),"") ->  | R24: =IF(ISNUMBER($A24),INDEX(PartnerIndex,$B24,0),"") -> 
B25: =IF(ISNUMBER(A25),MATCH(C25,AllColleges!$AS$4:$AS$1902,0),"") -> 
B26: =IF(ISNUMBER(A26),MATCH(C26,AllColleges!$AS$4:$AS$1902,0),"") -> 
B27: =IF(ISNUMBER(A27),MATCH(C27,AllColleges!$AS$4:$AS$1902,0),"") -> 
B28: =IF(ISNUMBER(A28),MATCH(C28,AllColleges!$AS$4:$AS$1902,0),"") ->  | G28: =IFERROR(IF(ISNUMBER($A28),IFERROR(INDEX(OddsIndex,$B28,0)/100,""),""),"N/A") -> 
B29: =IF(ISNUMBER(A29),MATCH(C29,AllColleges!$AS$4:$AS$1902,0),"") -> 
B30: =IF(ISNUMBER(A30),MATCH(C30,AllColleges!$AS$4:$AS$1902,0),"") -> 
A31: =IF(C31<>"",ROW()-ROW($C$15),"") ->  | B31: =IF(ISNUMBER(A31),MATCH(C31,AllColleges!$AS$4:$AS$1902,0),"") ->  | R31: =IF(ISNUMBER($A31),INDEX(PartnerIndex,$B31,0),"") -> 
B32: =IF(ISNUMBER(A32),MATCH(C32,AllColleges!$AS$4:$AS$1902,0),"") -> 
B33: =IF(ISNUMBER(A33),MATCH(C33,AllColleges!$AS$4:$AS$1902,0),"") -> 
B34: =IF(ISNUMBER(A34),MATCH(C34,AllColleges!$AS$4:$AS$1902,0),"") -> 
B35: =IF(ISNUMBER(A35),MATCH(C35,AllColleges!$AS$4:$AS$1902,0),"") -> 
B36: =IF(ISNUMBER(A36),MATCH(C36,AllColleges!$AS$4:$AS$1902,0),"") -> 
B37: =IF(ISNUMBER(A37),MATCH(C37,AllColleges!$AS$4:$AS$1902,0),"") -> 
B38: =IF(ISNUMBER(A38),MATCH(C38,AllColleges!$AS$4:$AS$1902,0),"") -> 
B39: =IF(ISNUMBER(A39),MATCH(C39,AllColleges!$AS$4:$AS$1902,0),"") -> 
B40: =IF(ISNUMBER(A40),MATCH(C40,AllColleges!$AS$4:$AS$1902,0),"") -> 
B41: =IF(ISNUMBER(A41),MATCH(C41,AllColleges!$AS$4:$AS$1902,0),"") -> 
B42: =IF(ISNUMBER(A42),MATCH(C42,AllColleges!$AS$4:$AS$1902,0),"") -> 
B43: =IF(ISNUMBER(A43),MATCH(C43,AllColleges!$AS$4:$AS$1902,0),"") -> 
B44: =IF(ISNUMBER(A44),MATCH(C44,AllColleges!$AS$4:$AS$1902,0),"") -> 
B45: =IF(ISNUMBER(A45),MATCH(C45,AllColleges!$AS$4:$AS$1902,0),"") -> 

Sheet Glossary (hidden)
B6: Distance from <city> | D6: Students can filter their lists by the distance between their city and the given college. | J6: • Likely+ : A student has a 50-80% chance of being granted admission and the college has a high 6-year AA/Latino graduation rate. The cut-off to be included as a Likely Plus school is differentiated based on the student's ACT score and each college’s grad rate.
D10: Historically Black Colleges or Universities found their origins in the time when African-American students were systematically denied access to most other colleges and universities. Often, these schools receive extra funding to help African Americans enter disciplines in which they have been traditionally underrepresented. In general, HBCUs can be excellent institutions for African American students to gain an affordable, highly respectable education while also exploring their cultural heritage.
K11: Likely Plus Criteria
K12: ACT Score | L12: 6-yr minority grad rate
B13: HBCU | H13: School Match Type
K14: ≤ 15 | L14: 35% +
K15: 16–18 | L15: 40% +
K16: 19–23 | L16: 55% +
K17: 24+ | L17: 75% +
D19: This is the average 6-year graduation rate for all African American and Hispanic/Latino students for that college, based on the Integrated Postsecondary Education Data System (IPEDS). This is not KIPP-specific data. | J19: • Likely: A student has an 80+% chance of being granted admission.
B20: 6-Year Grad Rate | J20: • Target: A student has a 50-80% chance of being granted admission.
J21: • Reach: A student has a 15-50% chance of being granted admission.
J22: • Far Reach: A student has a >15% chance of being granted admission.
D24: This is a nationally recognized measure of annual tuition based on the family income selected on the Intro tab. This cost accounts for grants, scholarships, and other "free money", but does not account for loans. This data is aggregated by and released by the Integrated Postsecondary Education Data System (IPEDS). It does not reflect grants or scholarships received through KIPP Partnerships, and reflects the cost of Public Schools for in-state students only.
H25: # of Undergrads | J25: The number of undergraduate students enrolled, based on the Integrated Postsecondary Education Data System (IPEDS).
B27: Net Cost

Sheet AllColleges (hidden)
A1: Updated: | B1: 2018-09-11 | I1: Count: | J1: =IFERROR(SUM(J4:J2000),0) -> 0 | K1: =IFERROR(SUM(K4:K2000),0) -> 0 | L1: 0 | M1: 0 | N1: 1310 | O1: OddsB (calculated directly for school) | T1: OddsA (calculated for all schools of same selectivity) | Z1: Filters | AE1: Include( Edit Column) | AO1: Manual College Search | AR1: =A1 -> Updated: | AS1: =B1 -> 2018-09-11 | BH1: Data removed | BI1: Data removed | BL1: Data removed | BM1: Data removed | BR1: Regional Office: | BS1: =VLOOKUP('Lat and Long'!$B$4,'Lat and Long'!$E$7:$I$45,5,FALSE) -> -74.1690009 | BT1: =VLOOKUP('Lat and Long'!$B$4,'Lat and Long'!$E$7:$I$45,4,FALSE) -> 40.7383481
A3: =AR3&" (Copy)" -> UNITID (Copy) | B3: =AS3&" (Copy)" -> Name (Copy) | C3: Match Type | D3: LikelyPlusIndex | E3: LikelyIndex | F3: TargetIndex | G3: ReachIndex | H3: FarReachIndex | I3: Likely+ (Manual Override, 1 = Likely+) | J3: IsLikelyPlus? | K3: IsLikely? | L3: IsTarget? | M3: IsReach? | N3: IsFarReach? | O3: GPAcoefB | P3: ACTcoefB | Q3: InterceptB | R3: LogitB | S3: WeightOfB | T3: GPAcoef | U3: ACT-coef | V3: Intercept | W3: Logit | X3: FinalLogit | Y3: Odds | Z3: Distance | AA3: Students | AB3: NetPrice | AC3: SchoolType | AD3: KIPP | AE3: Include (Manual Override, 1 = include) | AF3: Dist | AG3: Public | AH3: ="NetPrice"&Intro!I18 -> NetPrice$0-30,000 | AI3: Money | AJ3: AVG GPA | AK3: AVG ACT | AL3: Low | AM3: High | AN3: Low to High | AO3: Match1 | AP3: Match Order1 | AQ3: Display1 | AR3: UNITID | AS3: Name | AT3: City | AU3: State | AV3: Type | AW3: Barrons | AX3: NetPriceAverage Income | AY3: NetPrice$0-30,000 | AZ3: NetPrice$30,000-48,000 | BA3: NetPrice$48,000-75,000 | BB3: %Male | BC3: Adj_6yr | BD3: Adj_6yr_AAH | BE3: Retention | BF3: AdjACT | BG3: Website | BH3: KIPP Acceptance | BI3: # KIPP Apps | BJ3: Campus_Locale__c | BK3: # Undergrads | BL3: KIPP_Alumni | BM3: Partner | BN3: Match Code | BO3: GPA | BP3: ACT | BQ3: Match_Int | BR3: HBCU | BS3: LONG | BT3: LAT
A4: =AR4 -> 130794 | B4: =AS4 -> Yale University | C4: =IF(ISERROR(Y4),"No Data",IF(Y4<15,"Far Reach",IF(Y4<50,"Reach",IF(Y4<80,"Target",IF(Y4>=80,IF(BD4="NULL","Likely",IF(StudentTargets!$AC$11<=AllColleges!BD4/100,"Likely+","Likely")),""))))) -> Far Reach | D4: =IF(J4=1,1,0) ->  | E4: =IF(K4=1,1,0) ->  | F4: =IF(L4=1,1,0) -> 0 | G4: =IF(M4=1,1,0) -> 0 | H4: =IF(N4=1,1,0) -> 1 | J4: =IF(ISERROR(Y4),0,IF(AND(I4=1,Y4>=80),1,IF(OR(ISERROR(Y4),BD4="NULL"),0,IF(AND(Y4>=80,BN4>=(StudentTargets!$W$15-1),StudentTargets!$AC$11<=AllColleges!BD4/100),1,0)*AE4))) ->  | K4: =IF(ISERROR(Y4),0,IF(AND(I4=1,Y4>=80),0,IF(ISERROR(Y4),0,IF(AND(Y4>=80,BN4>=(StudentTargets!$W$15-1)),IF(ISERROR(StudentTargets!$AC$11>(BD4/100)),1,IF(StudentTargets!$AC$11>(BD4/100),1,0)),0))*AE4)) ->  | L4: =IF(ISERROR(Y4),0,IF(AND(I4=1,Y4>=80),0,IF(ISERROR(Y4),0,IF(AND(Y4>=50,Y4<80),1,0)*AE4))) -> 0 | M4: =IF(ISERROR(Y4),0,IF(AND(I4=1,Y4>=80),0,IF(ISERROR(Y4),0,IF(AND(Y4>=15,Y4<50),1,0)*AE4))) -> 0 | N4: =IF(ISERROR(Y4),0,IF(AND(Y4<15),1,0)*AE4) -> 1 | R4: =IF(AND(O4=1,P4=1,Q4=1),100,O4*GPA+MaxACT*P4+Q4) -> 0 | S4: 0 | T4: =BO4 -> 4.2009 | U4: =BP4 -> 0.2751 | V4: =BQ4 -> -17.92 | W4: =IF(AND(T4=1,U4=1),100,IF(T4=0,1/0,T4*GPA+(MaxACT-BF4)*U4+V4)) -> -26.7232 | X4: =IF(S4=1,R4,W4) -> -26.7232 | Y4: =EXP(X4)/(1+EXP(X4))*100 -> 2.478915376e-10 | Z4: =IF(FilterDistMin="Any",IF(FilterDistMax="Any",1,IF(FilterDistMaxValue>=AF4,1,0)),IF(FilterDistMinValue<=AF4,IF(FilterDistMax="Any",1,IF(FilterDistMaxValue>=AF4,1,0)),0)) -> 1 | AA4: =IF(FilterStudentsMin="Any",IF(FilterStudentsMax="Any",1,IF(FilterStudentsMaxValue>=BK4,1,0)),IF(FilterStudentsMinValue<=BK4,IF(FilterStudentsMax="Any",1,IF(FilterStudentsMaxValue>=BK4,1,0)),0)) -> 1 | AB4: =IF(FilterNetPrice="Any",1,IF(FilterNetPriceMax>=AH4,1,0)) -> 1 | AC4: =IF(FilterSchoolType="Any",1,IF(AND(FilterSchoolType=Lookups!$S$5,FilterState=AU4),1,IF(AND(FilterSchoolType=Lookups!$S$3,FilterState=AU4,LEFT(AV4,3)="Pub"),1,IF(AND(FilterSchoolType=Lookups!$S$4,LEFT(AV4,3)="Pub"),1,0)))) -> 1 | AD4: =IF(FilterKIPP="Any",1,IF(AND(FilterKIPPMin<=BL4,FilterKIPPMax>=BL4),1,0)) -> 1 | AE4: =PRODUCT(Z4:AD4) -> 1 | AF4: =IF(ISERROR(ACOS(COS(RADIANS(90-$BT$1))*COS(RADIANS(90-$BT4))+SIN(RADIANS(90-$BT$1))*SIN(RADIANS(90-BT4))*COS(RADIANS($BS$1-BS4)))*3958.756),"",ACOS(COS(RADIANS(90-$BT$1))*COS(RADIANS(90-$BT4))+SIN(RADIANS(90-$BT$1))*SIN(RADIANS(90-BT4))*COS(RADIANS($BS$1-BS4)))*3958.756) -> 75.89294676 | AG4: =IF(LEFT(AV4, 3)="Pub", 1, 0) -> 0 | AH4: =IF(ISBLANK(HLOOKUP(AH$3,$AX$3:$BA$3000,ROW()-ROW(AH$3)+1,FALSE)),"",HLOOKUP(AH$3,$AX$3:$BA$3000,ROW()-ROW(AH$3)+1,FALSE)) -> 5171 | AI4: =IFERROR(VLOOKUP(AR4, 'KIPP$$'!A:G, 7, 0), "") ->  | AJ4: =IF(OR(BO4="NULL",BO4="",BF4="NULL",BF4=""),#N/A,BO4) -> 4.2009 | AK4: =IF(OR(BO4="NULL",BO4="",BF4="NULL",BF4=""),#N/A,BF4) -> 32 | AL4: =IFERROR(VLOOKUP($AR4,School_View8[[NCSE_ID]:[Max_Unmet_Need]],3,FALSE),"") ->  | AM4: =IFERROR(VLOOKUP($AR4,School_View8[[NCSE_ID]:[Max_Unmet_Need]],4,FALSE),"") ->  | AN4: =IF(OR(AL4="",AM4=""),"",TEXT(AL4,"$#,##0")&" to "&TEXT(AM4,"$#,##0")) ->  | AO4: =--ISNUMBER(IFERROR(SEARCH('Wish List and Search'!$H$12,$AS4,1),"")) -> 1 | AP4: =IF(AO4=1,COUNTIF($AO$4:AO4,1),"") -> 1 | AQ4: =IFERROR(INDEX($AS$4:$AS$3000,MATCH(ROWS($AP$4:AP4),$AP$4:$AP$3000,0)),"") -> Yale University | AR4: 130794 | AS4: Yale University | AT4: New Haven | AU4: CT | AV4: Private 4 yr | AW4: Most Competitive+ | AX4: 18319 | AY4: 5171 | AZ4: 7929 | BA4: 6551 | BB4: 51 | BC4: 98 | BD4: 98 | BE4: 99 | BF4: 32 | BG4: www.yale.edu | BJ4: City: Midsize | BK4: 5472 | BN4: 7 | BO4: 4.2009 | BP4: 0.2751 | BQ4: -17.92 | BR4: 0 | BS4: -72.9267 | BT4: 41.3112
A5: 121345 | B5: Pomona College | C5: =IF(ISERROR(Y5),"No Data",IF(Y5<15,"Far Reach",IF(Y5<50,"Reach",IF(Y5<80,"Target",IF(Y5>=80,IF(BD5="NULL","Likely",IF(StudentTargets!$AC$11<=AllColleges!BD5/100,"Likely+","Likely")),""))))) -> Far Reach | D5: =D4+J5 ->  | E5: =E4+K5 ->  | F5: =F4+L5 -> 0 | G5: =G4+M5 -> 0 | H5: =H4+N5 -> 2 | J5: =IF(ISERROR(Y5),0,IF(AND(I5=1,Y5>=80),1,IF(OR(ISERROR(Y5),BD5="NULL"),0,IF(AND(Y5>=80,BN5>=(StudentTargets!$W$15-1),StudentTargets!$AC$11<=AllColleges!BD5/100),1,0)*AE5))) ->  | K5: =IF(ISERROR(Y5),0,IF(AND(I5=1,Y5>=80),0,IF(ISERROR(Y5),0,IF(AND(Y5>=80,BN5>=(StudentTargets!$W$15-1)),IF(ISERROR(StudentTargets!$AC$11>(BD5/100)),1,IF(StudentTargets!$AC$11>(BD5/100),1,0)),0))*AE5)) ->  | L5: 0 | M5: 0 | N5: 1 | R5: 0 | S5: 0 | T5: =BO5 -> 4.2009 | U5: =BP5 -> 0.2751 | V5: =BQ5 -> -17.92 | W5: -26.4481 | X5: -26.4481 | Y5: =EXP(X5)/(1+EXP(X5))*100 -> 3.263894505e-10 | Z5: 1 | AA5: 1 | AB5: 1 | AC5: =IF(FilterSchoolType="Any",1,IF(AND(FilterSchoolType=Lookups!$S$5,FilterState=AU5),1,IF(AND(FilterSchoolType=Lookups!$S$3,FilterState=AU5,LEFT(AV5,3)="Pub"),1,IF(AND(FilterSchoolType=Lookups!$S$4,LEFT(AV5,3)="Pub"),1,0)))) -> 1 | AD5: 1 | AE5: 1 | AF5: 2407.845901 | AG5: 0 | AH5: =IF(ISBLANK(HLOOKUP(AH$3,$AX$3:$BA$3000,ROW()-ROW(AH$3)+1,FALSE)),"",HLOOKUP(AH$3,$AX$3:$BA$3000,ROW()-ROW(AH$3)+1,FALSE)) -> 5739 | AI5: =IFERROR(VLOOKUP(AR5, 'KIPP$$'!A:G, 7, 0), "") ->  | AJ5: 4.2009 | AK5: 31 | AL5: =IFERROR(VLOOKUP($AR5,School_View8[[NCSE_ID]:[Max_Unmet_Need]],3,FALSE),"") ->  | AM5: =IFERROR(VLOOKUP($AR5,School_View8[[NCSE_ID]:[Max_Unmet_Need]],4,FALSE),"") ->  | AN5: =IF(OR(AL5="",AM5=""),"",TEXT(AL5,"$#,##0")&" to "&TEXT(AM5,"$#,##0")) ->  | AO5: =--ISNUMBER(IFERROR(SEARCH('Wish List and Search'!$H$12,$AS5,1),"")) -> 1 | AP5: =IF(AO5=1,COUNTIF($AO$4:AO5,1),"") -> 2 | AQ5: =IFERROR(INDEX($AS$4:$AS$3000,MATCH(ROWS($AP$4:AP5),$AP$4:$AP$3000,0)),"") -> Pomona College | AR5: 121345 | AS5: Pomona College | AT5: Claremont | AU5: CA | AV5: Private 4 yr | AW5: Most Competitive+ | AX5: 18140 | AY5: 5739 | AZ5: 3432 | BA5: 6975 | BB5: 50 | BC5: 97 | BD5: 96.1 | BE5: 97 | BF5: 31 | BG5: www.pomona.edu | BJ5: Suburb: Large | BK5: 1563 | BN5: 7 | BO5: 4.2009 | BP5: 0.2751 | BQ5: -17.92 | BR5: 0 | BS5: -117.712 | BT5: 34.0983
A6: 186131 | B6: Princeton University | C6: =IF(ISERROR(Y6),"No Data",IF(Y6<15,"Far Reach",IF(Y6<50,"Reach",IF(Y6<80,"Target",IF(Y6>=80,IF(BD6="NULL","Likely",IF(StudentTargets!$AC$11<=AllColleges!BD6/100,"Likely+","Likely")),""))))) -> Far Reach | F6: 0 | G6: 0 | H6: 3 | J6: =IF(ISERROR(Y6),0,IF(AND(I6=1,Y6>=80),1,IF(OR(ISERROR(Y6),BD6="NULL"),0,IF(AND(Y6>=80,BN6>=(StudentTargets!$W$15-1),StudentTargets!$AC$11<=AllColleges!BD6/100),1,0)*AE6))) ->  | K6: =IF(ISERROR(Y6),0,IF(AND(I6=1,Y6>=80),0,IF(ISERROR(Y6),0,IF(AND(Y6>=80,BN6>=(StudentTargets!$W$15-1)),IF(ISERROR(StudentTargets!$AC$11>(BD6/100)),1,IF(StudentTargets!$AC$11>(BD6/100),1,0)),0))*AE6)) ->  | L6: 0 | M6: 0 | N6: 1 | R6: 0 | S6: 0 | T6: 4.2009 | U6: 0.2751 | V6: -17.92 | W6: -26.7232 | X6: -26.7232 | Y6: 2.478915376e-10 | Z6: 1 | AA6: 1 | AB6: 1 | AC6: =IF(FilterSchoolType="Any",1,IF(AND(FilterSchoolType=Lookups!$S$5,FilterState=AU6),1,IF(AND(FilterSchoolType=Lookups!$S$3,FilterState=AU6,LEFT(AV6,3)="Pub"),1,IF(AND(FilterSchoolType=Lookups!$S$4,LEFT(AV6,3)="Pub"),1,0)))) -> 1 | AD6: 1 | AE6: 1 | AF6: 37.25273017 | AG6: 0 | AH6: 2469 | AI6: =IFERROR(VLOOKUP(AR6, 'KIPP$$'!A:G, 7, 0), "") ->  | AJ6: 4.2009 | AK6: 32 | AL6: =IFERROR(VLOOKUP($AR6,School_View8[[NCSE_ID]:[Max_Unmet_Need]],3,FALSE),"") ->  | AM6: =IFERROR(VLOOKUP($AR6,School_View8[[NCSE_ID]:[Max_Unmet_Need]],4,FALSE),"") ->  | AO6: =--ISNUMBER(IFERROR(SEARCH('Wish List and Search'!$H$12,$AS6,1),"")) -> 1 | AP6: =IF(AO6=1,COUNTIF($AO$4:AO6,1),"") -> 3 | AQ6: =IFERROR(INDEX($AS$4:$AS$3000,MATCH(ROWS($AP$4:AP6),$AP$4:$AP$3000,0)),"") -> Princeton University | AR6: 186131 | AS6: Princeton University | AT6: Princeton | AU6: NJ | AV6: Private 4 yr | AW6: Most Competitive+ | AX6: 17732 | AY6: 2469 | AZ6: 2705 | BA6: 4557 | BB6: 52 | BC6: 97.5 | BD6: 96 | BE6: 98 | BF6: 32 | BG6: www.princeton.edu | BJ6: Suburb: Large | BK6: 5400 | BN6: 7 | BO6: 4.2009 | BP6: 0.2751 | BQ6: -17.92 | BR6: 0 | BS6: -74.6594 | BT6: 40.3487
A7: 166027 | B7: Harvard University | C7: =IF(ISERROR(Y7),"No Data",IF(Y7<15,"Far Reach",IF(Y7<50,"Reach",IF(Y7<80,"Target",IF(Y7>=80,IF(BD7="NULL","Likely",IF(StudentTargets!$AC$11<=AllColleges!BD7/100,"Likely+","Likely")),""))))) -> Far Reach | F7: 0 | G7: 0 | H7: 4 | J7: =IF(ISERROR(Y7),0,IF(AND(I7=1,Y7>=80),1,IF(OR(ISERROR(Y7),BD7="NULL"),0,IF(AND(Y7>=80,BN7>=(StudentTargets!$W$15-1),StudentTargets!$AC$11<=AllColleges!BD7/100),1,0)*AE7))) ->  | K7: =IF(ISERROR(Y7),0,IF(AND(I7=1,Y7>=80),0,IF(ISERROR(Y7),0,IF(AND(Y7>=80,BN7>=(StudentTargets!$W$15-1)),IF(ISERROR(StudentTargets!$AC$11>(BD7/100)),1,IF(StudentTargets!$AC$11>(BD7/100),1,0)),0))*AE7)) ->  | L7: 0 | M7: 0 | N7: 1 | R7: 0 | S7: 0 | T7: 4.2009 | U7: 0.2751 | V7: -17.92 | W7: -26.7232 | X7: -26.7232 | Y7: 2.478915376e-10 | Z7: 1 | AA7: 1 | AB7: 1 | AC7: =IF(FilterSchoolType="Any",1,IF(AND(FilterSchoolType=Lookups!$S$5,FilterState=AU7),1,IF(AND(FilterSchoolType=Lookups!$S$3,FilterState=AU7,LEFT(AV7,3)="Pub"),1,IF(AND(FilterSchoolType=Lookups!$S$4,LEFT(AV7,3)="Pub"),1,0)))) -> 1 | AD7: 1 | AE7: 1 | AF7: 194.0361245 | AG7: 0 | AH7: 3294 | AI7: =IFERROR(VLOOKUP(AR7, 'KIPP$$'!A:G, 7, 0), "") ->  | AJ7: 4.2009 | AK7: 32 | AL7: =IFERROR(VLOOKUP($AR7,School_View8[[NCSE_ID]:[Max_Unmet_Need]],3,FALSE),"") ->  | AM7: =IFERROR(VLOOKUP($AR7,School_View8[[NCSE_ID]:[Max_Unmet_Need]],4,FALSE),"") ->  | AO7: =--ISNUMBER(IFERROR(SEARCH('Wish List and Search'!$H$12,$AS7,1),"")) -> 1 | AP7: =IF(AO7=1,COUNTIF($AO$4:AO7,1),"") -> 4 | AQ7: =IFERROR(INDEX($AS$4:$AS$3000,MATCH(ROWS($AP$4:AP7),$AP$4:$AP$3000,0)),"") -> Harvard University | AR7: 166027 | AS7: Harvard University | AT7: Cambridge | AU7: MA | AV7: Private 4 yr | AW7: Most Competitive+ | AX7: 16205 | AY7: 3294 | AZ7: 1665 | BA7: 6577 | BB7: 52 | BC7: 97.2 | BD7: 95.9 | BE7: 97 | BF7: 32 | BG7: www.harvard.edu | BJ7: City: Midsize | BK7: 9915 | BN7: 7 | BO7: 4.2009 | BP7: 0.2751 | BQ7: -17.92 | BR7: 0 | BS7: -71.1183 | BT7: 42.3745
A8: 182670 | B8: Dartmouth College | C8: =IF(ISERROR(Y8),"No Data",IF(Y8<15,"Far Reach",IF(Y8<50,"Reach",IF(Y8<80,"Target",IF(Y8>=80,IF(BD8="NULL","Likely",IF(StudentTargets!$AC$11<=AllColleges!BD8/100,"Likely+","Likely")),""))))) -> Far Reach | F8: 0 | G8: 0 | H8: 5 | J8: =IF(ISERROR(Y8),0,IF(AND(I8=1,Y8>=80),1,IF(OR(ISERROR(Y8),BD8="NULL"),0,IF(AND(Y8>=80,BN8>=(StudentTargets!$W$15-1),StudentTargets!$AC$11<=AllColleges!BD8/100),1,0)*AE8))) ->  | K8: =IF(ISERROR(Y8),0,IF(AND(I8=1,Y8>=80),0,IF(ISERROR(Y8),0,IF(AND(Y8>=80,BN8>=(StudentTargets!$W$15-1)),IF(ISERROR(StudentTargets!$AC$11>(BD8/100)),1,IF(StudentTargets!$AC$11>(BD8/100),1,0)),0))*AE8)) ->  | L8: 0 | M8: 0 | N8: 1 | R8: 0 | S8: 0 | T8: 4.2009 | U8: 0.2751 | V8: -17.92 | W8: -26.173 | X8: -26.173 | Y8: 4.297446959e-10 | Z8: 1 | AA8: 1 | AB8: 1 | AC8: =IF(FilterSchoolType="Any",1,IF(AND(FilterSchoolType=Lookups!$S$5,FilterState=AU8),1,IF(AND(FilterSchoolType=Lookups!$S$3,FilterState=AU8,LEFT(AV8,3)="Pub"),1,IF(AND(FilterSchoolType=Lookups!$S$4,LEFT(AV8,3)="Pub"),1,0)))) -> 1 | AD8: 1 | AE8: 1 | AF8: 226.3330874 | AG8: 0 | AH8: 7847 | AI8: =IFERROR(VLOOKUP(AR8, 'KIPP$$'!A:G, 7, 0), "") ->  | AJ8: 4.2009 | AK8: 30 | AL8: =IFERROR(VLOOKUP($AR8,School_View8[[NCSE_ID]:[Max_Unmet_Need]],3,FALSE),"") ->  | AM8: =IFERROR(VLOOKUP($AR8,School_View8[[NCSE_ID]:[Max_Unmet_Need]],4,FALSE),"") ->  | AO8: =--ISNUMBER(IFERROR(SEARCH('Wish List and Search'!$H$12,$AS8,1),"")) -> 1 | AP8: =IF(AO8=1,COUNTIF($AO$4:AO8,1),"") -> 5 | AQ8: =IFERROR(INDEX($AS$4:$AS$3000,MATCH(ROWS($AP$4:AP8),$AP$4:$AP$3000,0)),"") -> Dartmouth College | AR8: 182670 | AS8: Dartmouth College | AT8: Hanover | AU8: NH | AV8: Private 4 yr | AW8: Most Competitive+ | AX8: 21177 | AY8: 7847 | AZ8: 6468 | BA8: 10048 | BB8: 50 | BC8: 96.6 | BD8: 95.7 | BE8: 96 | BF8: 30 | BG8: www.dartmouth.edu | BJ8: Town: Remote | BK8: 4310 | BN8: 7 | BO8: 4.2009 | BP8: 0.2751 | BQ8: -17.92 | BR8: 0 | BS8: -72.2899 | BT8: 43.7041
A9: 198419 | B9: Duke University | C9: =IF(ISERROR(Y9),"No Data",IF(Y9<15,"Far Reach",IF(Y9<50,"Reach",IF(Y9<80,"Target",IF(Y9>=80,IF(BD9="NULL","Likely",IF(StudentTargets!$AC$11<=AllColleges!BD9/100,"Likely+","Likely")),""))))) -> Far Reach | F9: 0 | G9: 0 | H9: 6 | J9: =IF(ISERROR(Y9),0,IF(AND(I9=1,Y9>=80),1,IF(OR(ISERROR(Y9),BD9="NULL"),0,IF(AND(Y9>=80,BN9>=(StudentTargets!$W$15-1),StudentTargets!$AC$11<=AllColleges!BD9/100),1,0)*AE9))) ->  | K9: =IF(ISERROR(Y9),0,IF(AND(I9=1,Y9>=80),0,IF(ISERROR(Y9),0,IF(AND(Y9>=80,BN9>=(StudentTargets!$W$15-1)),IF(ISERROR(StudentTargets!$AC$11>(BD9/100)),1,IF(StudentTargets!$AC$11>(BD9/100),1,0)),0))*AE9)) ->  | L9: 0 | M9: 0 | N9: 1 | R9: 0 | S9: 0 | T9: 4.2009 | U9: 0.2751 | V9: -17.92 | W9: -26.4481 | X9: -26.4481 | Y9: 3.263894505e-10 | Z9: 1 | AA9: 1 | AB9: 1 | AC9: =IF(FilterSchoolType="Any",1,IF(AND(FilterSchoolType=Lookups!$S$5,FilterState=AU9),1,IF(AND(FilterSchoolType=Lookups!$S$3,FilterState=AU9,LEFT(AV9,3)="Pub"),1,IF(AND(FilterSchoolType=Lookups!$S$4,LEFT(AV9,3)="Pub"),1,0)))) -> 1 | AD9: 1 | AE9: 1 | AF9: 416.817911 | AG9: 0 | AH9: 4728 | AI9: =IFERROR(VLOOKUP(AR9, 'KIPP$$'!A:G, 7, 0), "") ->  | AJ9: 4.2009 | AK9: 31 | AL9: =IFERROR(VLOOKUP($AR9,School_View8[[NCSE_ID]:[Max_Unmet_Need]],3,FALSE),"") ->  | AM9: =IFERROR(VLOOKUP($AR9,School_View8[[NCSE_ID]:[Max_Unmet_Need]],4,FALSE),"") ->  | AO9: =--ISNUMBER(IFERROR(SEARCH('Wish List and Search'!$H$12,$AS9,1),"")) -> 1 | AP9: =IF(AO9=1,COUNTIF($AO$4:AO9,1),"") -> 6 | AQ9: =IFERROR(INDEX($AS$4:$AS$3000,MATCH(ROWS($AP$4:AP9),$AP$4:$AP$3000,0)),"") -> Duke University | AR9: 198419 | AS9: Duke University | AT9: Durham | AU9: NC | AV9: Private 4 yr | AW9: Most Competitive+ | AX9: 19950 | AY9: 4728 | AZ9: 1302 | BA9: 7880 | BB9: 50 | BC9: 95.3 | BD9: 95.3 | BE9: 97 | BF9: 31 | BG9: WWW.DUKE.EDU | BJ9: City: Large | BK9: 6609 | BN9: 7 | BO9: 4.2009 | BP9: 0.2751 | BQ9: -17.92 | BR9: 0 | BS9: -78.9376 | BT9: 36.0011
A10: 152080 | B10: University of Notre Dame | C10: =IF(ISERROR(Y10),"No Data",IF(Y10<15,"Far Reach",IF(Y10<50,"Reach",IF(Y10<80,"Target",IF(Y10>=80,IF(BD10="NULL","Likely",IF(StudentTargets!$AC$11<=AllColleges!BD10/100,"Likely+","Likely")),""))))) -> Far Reach | F10: 0 | G10: 0 | H10: 7 | J10: =IF(ISERROR(Y10),0,IF(AND(I10=1,Y10>=80),1,IF(OR(ISERROR(Y10),BD10="NULL"),0,IF(AND(Y10>=80,BN10>=(StudentTargets!$W$15-1),StudentTargets!$AC$11<=AllColleges!BD10/100),1,0)*AE10))) ->  | K10: =IF(ISERROR(Y10),0,IF(AND(I10=1,Y10>=80),0,IF(ISERROR(Y10),0,IF(AND(Y10>=80,BN10>=(StudentTargets!$W$15-1)),IF(ISERROR(StudentTargets!$AC$11>(BD10/100)),1,IF(StudentTargets!$AC$11>(BD10/100),1,0)),0))*AE10)) ->  | L10: 0 | M10: 0 | N10: 1 | R10: 0 | S10: 0 | T10: 4.2009 | U10: 0.2751 | V10: -17.92 | W10: -26.7232 | X10: -26.7232 | Y10: 2.478915376e-10 | Z10: 1 | AA10: 1 | AB10: 1 | AC10: =IF(FilterSchoolType="Any",1,IF(AND(FilterSchoolType=Lookups!$S$5,FilterState=AU10),1,IF(AND(FilterSchoolType=Lookups!$S$3,FilterState=AU10,LEFT(AV10,3)="Pub"),1,IF(AND(FilterSchoolType=Lookups!$S$4,LEFT(AV10,3)="Pub"),1,0)))) -> 1 | AD10: 1 | AE10: 1 | AF10: 630.2878988 | AG10: 0 | AH10: 9478 | AI10: =IFERROR(VLOOKUP(AR10, 'KIPP$$'!A:G, 7, 0), "") ->  | AJ10: 4.2009 | AK10: 32 | AL10: =IFERROR(VLOOKUP($AR10,School_View8[[NCSE_ID]:[Max_Unmet_Need]],3,FALSE),"") ->  | AM10: =IFERROR(VLOOKUP($AR10,School_View8[[NCSE_ID]:[Max_Unmet_Need]],4,FALSE),"") ->  | AO10: =--ISNUMBER(IFERROR(SEARCH('Wish List and Search'!$H$12,$AS10,1),"")) -> 1 | AP10: =IF(AO10=1,COUNTIF($AO$4:AO10,1),"") -> 7 | AQ10: =IFERROR(INDEX($AS$4:$AS$3000,MATCH(ROWS($AP$4:AP10),$AP$4:$AP$3000,0)),"") -> University of Notre Dame | AR10: 152080 | AS10: University of Notre Dame | AT10: Notre Dame | AU10: IN | AV10: Private 4 yr | AW10: Most Competitive+ | AX10: 26683 | AY10: 9478 | AZ10: 10141 | BA10: 14893 | BB10: 53 | BC10: 95.1 | BD10: 94.4 | BE10: 98 | BF10: 32 | BG10: www.nd.edu | BJ10: Suburb: Large | BK10: 8530 | BN10: 7 | BO10: 4.2009 | BP10: 0.2751 | BQ10: -17.92 | BR10: 0 | BS10: -86.239 | BT10: 41.7031
A11: 234207 | B11: Washington and Lee University | C11: =IF(ISERROR(Y11),"No Data",IF(Y11<15,"Far Reach",IF(Y11<50,"Reach",IF(Y11<80,"Target",IF(Y11>=80,IF(BD11="NULL","Likely",IF(StudentTargets!$AC$11<=AllColleges!BD11/100,"Likely+","Likely")),""))))) -> Far Reach | F11: 0 | G11: 0 | H11: 8 | J11: =IF(ISERROR(Y11),0,IF(AND(I11=1,Y11>=80),1,IF(OR(ISERROR(Y11),BD11="NULL"),0,IF(AND(Y11>=80,BN11>=(StudentTargets!$W$15-1),StudentTargets!$AC$11<=AllColleges!BD11/100),1,0)*AE11))) ->  | K11: =IF(ISERROR(Y11),0,IF(AND(I11=1,Y11>=80),0,IF(ISERROR(Y11),0,IF(AND(Y11>=80,BN11>=(StudentTargets!$W$15-1)),IF(ISERROR(StudentTargets!$AC$11>(BD11/100)),1,IF(StudentTargets!$AC$11>(BD11/100),1,0)),0))*AE11)) ->  | L11: 0 | M11: 0 | N11: 1 | R11: 0 | S11: 0 | T11: 4.2009 | U11: 0.2751 | V11: -17.92 | W11: -26.173 | X11: -26.173 | Y11: 4.297446959e-10 | Z11: 1 | AA11: 1 | AB11: 1 | AC11: =IF(FilterSchoolType="Any",1,IF(AND(FilterSchoolType=Lookups!$S$5,FilterState=AU11),1,IF(AND(FilterSchoolType=Lookups!$S$3,FilterState=AU11,LEFT(AV11,3)="Pub"),1,IF(AND(FilterSchoolType=Lookups!$S$4,LEFT(AV11,3)="Pub"),1,0)))) -> 1 | AD11: 1 | AE11: 1 | AF11: 347.9260943 | AG11: 0 | AH11: 920 | AI11: =IFERROR(VLOOKUP(AR11, 'KIPP$$'!A:G, 7, 0), "") ->  | AJ11: 4.2009 | AK11: 30 | AL11: =IFERROR(VLOOKUP($AR11,School_View8[[NCSE_ID]:[Max_Unmet_Need]],3,FALSE),"") ->  | AM11: =IFERROR(VLOOKUP($AR11,School_View8[[NCSE_ID]:[Max_Unmet_Need]],4,FALSE),"") ->  | AO11: =--ISNUMBER(IFERROR(SEARCH('Wish List and Search'!$H$12,$AS11,1),"")) -> 1 | AP11: =IF(AO11=1,COUNTIF($AO$4:AO11,1),"") -> 8 | AQ11: =IFERROR(INDEX($AS$4:$AS$3000,MATCH(ROWS($AP$4:AP11),$AP$4:$AP$3000,0)),"") -> Washington and Lee University | AR11: 234207 | AS11: Washington and Lee University | AT11: Lexington | AU11: VA | AV11: Private 4 yr | AW11: Most Competitive+ | AX11: 23867 | AY11: 920 | AZ11: 1789 | BA11: 8962 | BB11: 52 | BC11: 94.1 | BD11: 94.1 | BE11: 95 | BF11: 30 | BG11: www.wlu.edu/ | BJ11: Town: Distant | BK11: 1830 | BN11: 7 | BO11: 4.2009 | BP11: 0.2751 | BQ11: -17.92 | BR11: 0 | BS11: -79.443 | BT11: 37.7889
A12: 217156 | B12: Brown University | C12: =IF(ISERROR(Y12),"No Data",IF(Y12<15,"Far Reach",IF(Y12<50,"Reach",IF(Y12<80,"Target",IF(Y12>=80,IF(BD12="NULL","Likely",IF(StudentTargets!$AC$11<=AllColleges!BD12/100,"Likely+","Likely")),""))))) -> Far Reach | F12: 0 | G12: 0 | H12: 9 | J12: =IF(ISERROR(Y12),0,IF(AND(I12=1,Y12>=80),1,IF(OR(ISERROR(Y12),BD12="NULL"),0,IF(AND(Y12>=80,BN12>=(StudentTargets!$W$15-1),StudentTargets!$AC$11<=AllColleges!BD12/100),1,0)*AE12))) ->  | K12: =IF(ISERROR(Y12),0,IF(AND(I12=1,Y12>=80),0,IF(ISERROR(Y12),0,IF(AND(Y12>=80,BN12>=(StudentTargets!$W$15-1)),IF(ISERROR(StudentTargets!$AC$11>(BD12/100)),1,IF(StudentTargets!$AC$11>(BD12/100),1,0)),0))*AE12)) ->  | L12: 0 | M12: 0 | N12: 1 | R12: 0 | S12: 0 | T12: 4.2009 | U12: 0.2751 | V12: -17.92 | W12: -26.4481 | X12: -26.4481 | Y12: 3.263894505e-10 | Z12: 1 | AA12: 1 | AB12: 1 | AC12: =IF(FilterSchoolType="Any",1,IF(AND(FilterSchoolType=Lookups!$S$5,FilterState=AU12),1,IF(AND(FilterSchoolType=Lookups!$S$3,FilterState=AU12,LEFT(AV12,3)="Pub"),1,IF(AND(FilterSchoolType=Lookups!$S$4,LEFT(AV12,3)="Pub"),1,0)))) -> 1 | AD12: 1 | AE12: 1 | AF12: 162.0416902 | AG12: 0 | AH12: 5849 | AI12: =IFERROR(VLOOKUP(AR12, 'KIPP$$'!A:G, 7, 0), "") ->  | AJ12: 4.2009 | AK12: 31 | AL12: =IFERROR(VLOOKUP($AR12,School_View8[[NCSE_ID]:[Max_Unmet_Need]],3,FALSE),"") ->  | AM12: =IFERROR(VLOOKUP($AR12,School_View8[[NCSE_ID]:[Max_Unmet_Need]],4,FALSE),"") ->  | AO12: =--ISNUMBER(IFERROR(SEARCH('Wish List and Search'!$H$12,$AS12,1),"")) -> 1 | AP12: =IF(AO12=1,COUNTIF($AO$4:AO12,1),"") -> 9 | AQ12: =IFERROR(INDEX($AS$4:$AS$3000,MATCH(ROWS($AP$4:AP12),$AP$4:$AP$3000,0)),"") -> Brown University | AR12: 217156 | AS12: Brown University | AT12: Providence | AU12: RI | AV12: Private 4 yr | AW12: Most Competitive+ | AX12: 25264 | AY12: 5849 | AZ12: 7164 | BA12: 12697 | BB12: 47 | BC12: 95.5 | BD12: 93.9 | BE12: 98 | BF12: 31 | BG12: www.brown.edu | BJ12: City: Midsize | BK12: 6926 | BN12: 7 | BO12: 4.2009 | BP12: 0.2751 | BQ12: -17.92 | BR12: 0 | BS12: -71.4039 | BT12: 41.8262
A13: 179867 | B13: Washington University in St Louis | C13: =IF(ISERROR(Y13),"No Data",IF(Y13<15,"Far Reach",IF(Y13<50,"Reach",IF(Y13<80,"Target",IF(Y13>=80,IF(BD13="NULL","Likely",IF(StudentTargets!$AC$11<=AllColleges!BD13/100,"Likely+","Likely")),""))))) -> Far Reach | F13: 0 | G13: 0 | H13: 10 | J13: =IF(ISERROR(Y13),0,IF(AND(I13=1,Y13>=80),1,IF(OR(ISERROR(Y13),BD13="NULL"),0,IF(AND(Y13>=80,BN13>=(StudentTargets!$W$15-1),StudentTargets!$AC$11<=AllColleges!BD13/100),1,0)*AE13))) ->  | K13: =IF(ISERROR(Y13),0,IF(AND(I13=1,Y13>=80),0,IF(ISERROR(Y13),0,IF(AND(Y13>=80,BN13>=(StudentTargets!$W$15-1)),IF(ISERROR(StudentTargets!$AC$11>(BD13/100)),1,IF(StudentTargets!$AC$11>(BD13/100),1,0)),0))*AE13)) ->  | L13: 0 | M13: 0 | N13: 1 | R13: 0 | S13: 0 | T13: 4.2009 | U13: 0.2751 | V13: -17.92 | W13: -26.7232 | X13: -26.7232 | Y13: 2.478915376e-10 | Z13: 1 | AA13: 1 | AB13: 1 | AC13: =IF(FilterSchoolType="Any",1,IF(AND(FilterSchoolType=Lookups!$S$5,FilterState=AU13),1,IF(AND(FilterSchoolType=Lookups!$S$3,FilterState=AU13,LEFT(AV13,3)="Pub"),1,IF(AND(FilterSchoolType=Lookups!$S$4,LEFT(AV13,3)="Pub"),1,0)))) -> 1 | AD13: 1 | AE13: 1 | AF13: 868.9580603 | AG13: 0 | AH13: 10518 | AI13: =IFERROR(VLOOKUP(AR13, 'KIPP$$'!A:G, 7, 0), "") ->  | AJ13: 4.2009 | AK13: 32 | AL13: =IFERROR(VLOOKUP($AR13,School_View8[[NCSE_ID]:[Max_Unmet_Need]],3,FALSE),"") ->  | AM13: =IFERROR(VLOOKUP($AR13,School_View8[[NCSE_ID]:[Max_Unmet_Need]],4,FALSE),"") ->  | AO13: =--ISNUMBER(IFERROR(SEARCH('Wish List and Search'!$H$12,$AS13,1),"")) -> 1 | AP13: =IF(AO13=1,COUNTIF($AO$4:AO13,1),"") -> 10 | AQ13: =IFERROR(INDEX($AS$4:$AS$3000,MATCH(ROWS($AP$4:AP13),$AP$4:$AP$3000,0)),"") -> Washington University in St Louis | AR13: 179867 | AS13: Washington University in St Louis | AT13: Saint Louis | AU13: MO | AV13: Private 4 yr | AW13: Most Competitive+ | AX13: 28824 | AY13: 10518 | AZ13: 9025 | BA13: 13208 | BB13: 47 | BC13: 94 | BD13: 93.9 | BE13: 96 | BF13: 32 | BG13: www.wustl.edu | BJ13: Suburb: Large | BK13: 7555 | BN13: 7 | BO13: 4.2009 | BP13: 0.2751 | BQ13: -17.92 | BR13: 0 | BS13: -90.3106 | BT13: 38.6479
A14: 215062 | B14: University of Pennsylvania | C14: =IF(ISERROR(Y14),"No Data",IF(Y14<15,"Far Reach",IF(Y14<50,"Reach",IF(Y14<80,"Target",IF(Y14>=80,IF(BD14="NULL","Likely",IF(StudentTargets!$AC$11<=AllColleges!BD14/100,"Likely+","Likely")),""))))) -> Far Reach | F14: 0 | G14: 0 | H14: 11 | J14: =IF(ISERROR(Y14),0,IF(AND(I14=1,Y14>=80),1,IF(OR(ISERROR(Y14),BD14="NULL"),0,IF(AND(Y14>=80,BN14>=(StudentTargets!$W$15-1),StudentTargets!$AC$11<=AllColleges!BD14/100),1,0)*AE14))) ->  | K14: =IF(ISERROR(Y14),0,IF(AND(I14=1,Y14>=80),0,IF(ISERROR(Y14),0,IF(AND(Y14>=80,BN14>=(StudentTargets!$W$15-1)),IF(ISERROR(StudentTargets!$AC$11>(BD14/100)),1,IF(StudentTargets!$AC$11>(BD14/100),1,0)),0))*AE14)) ->  | L14: 0 | M14: 0 | N14: 1 | R14: 0 | S14: 0 | T14: 4.2009 | U14: 0.2751 | V14: -17.92 | W14: -26.7232 | X14: -26.7232 | Y14: 2.478915376e-10 | Z14: 1 | AA14: 1 | AB14: 1 | AC14: =IF(FilterSchoolType="Any",1,IF(AND(FilterSchoolType=Lookups!$S$5,FilterState=AU14),1,IF(AND(FilterSchoolType=Lookups!$S$3,FilterState=AU14,LEFT(AV14,3)="Pub"),1,IF(AND(FilterSchoolType=Lookups!$S$4,LEFT(AV14,3)="Pub"),1,0)))) -> 1 | AD14: 1 | AE14: 1 | AF14: 76.63504104 | AG14: 0 | AH14: 4939 | AI14: =IFERROR(VLOOKUP(AR14, 'KIPP$$'!A:G, 7, 0), "") ->  | AJ14: 4.2009 | AK14: 32 | AL14: =IFERROR(VLOOKUP($AR14,School_View8[[NCSE_ID]:[Max_Unmet_Need]],3,FALSE),"") ->  | AM14: =IFERROR(VLOOKUP($AR14,School_View8[[NCSE_ID]:[Max_Unmet_Need]],4,FALSE),"") ->  | AO14: =--ISNUMBER(IFERROR(SEARCH('Wish List and Search'!$H$12,$AS14,1),"")) -> 1 | AP14: =IF(AO14=1,COUNTIF($AO$4:AO14,1),"") -> 11 | AQ14: =IFERROR(INDEX($AS$4:$AS$3000,MATCH(ROWS($AP$4:AP14),$AP$4:$AP$3000,0)),"") -> University of Pennsylvania | AR14: 215062 | AS14: University of Pennsylvania | AT14: Philadelphia | AU14: PA | AV14: Private 4 yr | AW14: Most Competitive+ | AX14: 22944 | AY14: 4939 | AZ14: 5263 | BA14: 12322 | BB14: 48 | BC14: 95.3 | BD14: 93.4 | BE14: 98 | BF14: 32 | BG14: www.upenn.edu | BJ14: City: Large | BK14: 11716 | BN14: 7 | BO14: 4.2009 | BP14: 0.2751 | BQ14: -17.92 | BR14: 0 | BS14: -75.1939 | BT14: 39.9509
A15: 243744 | B15: Stanford University | C15: =IF(ISERROR(Y15),"No Data",IF(Y15<15,"Far Reach",IF(Y15<50,"Reach",IF(Y15<80,"Target",IF(Y15>=80,IF(BD15="NULL","Likely",IF(StudentTargets!$AC$11<=AllColleges!BD15/100,"Likely+","Likely")),""))))) -> Far Reach | F15: 0 | G15: 0 | H15: 12 | J15: =IF(ISERROR(Y15),0,IF(AND(I15=1,Y15>=80),1,IF(OR(ISERROR(Y15),BD15="NULL"),0,IF(AND(Y15>=80,BN15>=(StudentTargets!$W$15-1),StudentTargets!$AC$11<=AllColleges!BD15/100),1,0)*AE15))) ->  | K15: =IF(ISERROR(Y15),0,IF(AND(I15=1,Y15>=80),0,IF(ISERROR(Y15),0,IF(AND(Y15>=80,BN15>=(StudentTargets!$W$15-1)),IF(ISERROR(StudentTargets!$AC$11>(BD15/100)),1,IF(StudentTargets!$AC$11>(BD15/100),1,0)),0))*AE15)) ->  | L15: 0 | M15: 0 | N15: 1 | R15: 0 | S15: 0 | T15: 4.2009 | U15: 0.2751 | V15: -17.92 | W15: -26.4481 | X15: -26.4481 | Y15: 3.263894505e-10 | Z15: 1 | AA15: 1 | AB15: 1 | AC15: =IF(FilterSchoolType="Any",1,IF(AND(FilterSchoolType=Lookups!$S$5,FilterState=AU15),1,IF(AND(FilterSchoolType=Lookups!$S$3,FilterState=AU15,LEFT(AV15,3)="Pub"),1,IF(AND(FilterSchoolType=Lookups!$S$4,LEFT(AV15,3)="Pub"),1,0)))) -> 1 | AD15: 1 | AE15: 1 | AF15: 2552.135307 | AG15: 0 | AH15: 1630 | AI15: =IFERROR(VLOOKUP(AR15, 'KIPP$$'!A:G, 7, 0), "") ->  | AJ15: 4.2009 | AK15: 31 | AL15: =IFERROR(VLOOKUP($AR15,School_View8[[NCSE_ID]:[Max_Unmet_Need]],3,FALSE),"") ->  | AM15: =IFERROR(VLOOKUP($AR15,School_View8[[NCSE_ID]:[Max_Unmet_Need]],4,FALSE),"") ->  | AO15: =--ISNUMBER(IFERROR(SEARCH('Wish List and Search'!$H$12,$AS15,1),"")) -> 1 | AP15: =IF(AO15=1,COUNTIF($AO$4:AO15,1),"") -> 12 | AQ15: =IFERROR(INDEX($AS$4:$AS$3000,MATCH(ROWS($AP$4:AP15),$AP$4:$AP$3000,0)),"") -> Stanford University | AR15: 243744 | AS15: Stanford University | AT15: Stanford | AU15: CA | AV15: Private 4 yr | AW15: Most Competitive+ | AX15: 16695 | AY15: 1630 | AZ15: 4035 | BA15: 4061 | BB15: 51 | BC15: 93.9 | BD15: 93.2 | BE15: 98 | BF15: 31 | BG15: www.stanford.edu/ | BJ15: Suburb: Large | BK15: 7034 | BN15: 7 | BO15: 4.2009 | BP15: 0.2751 | BQ15: -17.92 | BR15: 0 | BS15: -122.164 | BT15: 37.4295
A16: 121257 | B16: Pitzer College | C16: =IF(ISERROR(Y16),"No Data",IF(Y16<15,"Far Reach",IF(Y16<50,"Reach",IF(Y16<80,"Target",IF(Y16>=80,IF(BD16="NULL","Likely",IF(StudentTargets!$AC$11<=AllColleges!BD16/100,"Likely+","Likely")),""))))) -> Far Reach | F16: 0 | G16: 0 | H16: 13 | J16: =IF(ISERROR(Y16),0,IF(AND(I16=1,Y16>=80),1,IF(OR(ISERROR(Y16),BD16="NULL"),0,IF(AND(Y16>=80,BN16>=(StudentTargets!$W$15-1),StudentTargets!$AC$11<=AllColleges!BD16/100),1,0)*AE16))) ->  | K16: =IF(ISERROR(Y16),0,IF(AND(I16=1,Y16>=80),0,IF(ISERROR(Y16),0,IF(AND(Y16>=80,BN16>=(StudentTargets!$W$15-1)),IF(ISERROR(StudentTargets!$AC$11>(BD16/100)),1,IF(StudentTargets!$AC$11>(BD16/100),1,0)),0))*AE16)) ->  | L16: 0 | M16: 0 | N16: 1 | R16: 0 | S16: 0 | T16: 4.2009 | U16: 0.2751 | V16: -17.92 | W16: -25.0726 | X16: -25.0726 | Y16: 1.291540927e-09 | Z16: 1 | AA16: 1 | AB16: 1 | AC16: =IF(FilterSchoolType="Any",1,IF(AND(FilterSchoolType=Lookups!$S$5,FilterState=AU16),1,IF(AND(FilterSchoolType=Lookups!$S$3,FilterState=AU16,LEFT(AV16,3)="Pub"),1,IF(AND(FilterSchoolType=Lookups!$S$4,LEFT(AV16,3)="Pub"),1,0)))) -> 1 | AD16: 1 | AE16: 1 | AF16: 2407.388958 | AG16: 0 | AH16: 11553 | AI16: =IFERROR(VLOOKUP(AR16, 'KIPP$$'!A:G, 7, 0), "") ->  | AJ16: 4.2009 | AK16: 26 | AL16: =IFERROR(VLOOKUP($AR16,School_View8[[NCSE_ID]:[Max_Unmet_Need]],3,FALSE),"") ->  | AM16: =IFERROR(VLOOKUP($AR16,School_View8[[NCSE_ID]:[Max_Unmet_Need]],4,FALSE),"") ->  | AO16: =--ISNUMBER(IFERROR(SEARCH('Wish List and Search'!$H$12,$AS16,1),"")) -> 1 | AP16: =IF(AO16=1,COUNTIF($AO$4:AO16,1),"") -> 13 | AQ16: =IFERROR(INDEX($AS$4:$AS$3000,MATCH(ROWS($AP$4:AP16),$AP$4:$AP$3000,0)),"") -> Pitzer College | AR16: 121257 | AS16: Pitzer College | AT16: Claremont | AU16: CA | AV16: Private 4 yr | AW16: Most Competitive+ | AX16: 25521 | AY16: 11553 | AZ16: 11849 | BA16: 14904 | BB16: 45 | BC16: 93.1 | BD16: 93.1 | BE16: 94 | BF16: 26 | BG16: www.pitzer.edu | BJ16: Suburb: Large | BK16: 1062 | BN16: 7 | BO16: 4.2009 | BP16: 0.2751 | BQ16: -17.92 | BR16: 0 | BS16: -117.706 | BT16: 34.1034
A17: 131496 | B17: Georgetown University | C17: =IF(ISERROR(Y17),"No Data",IF(Y17<15,"Far Reach",IF(Y17<50,"Reach",IF(Y17<80,"Target",IF(Y17>=80,IF(BD17="NULL","Likely",IF(StudentTargets!$AC$11<=AllColleges!BD17/100,"Likely+","Likely")),""))))) -> Far Reach | F17: 0 | G17: 0 | H17: 14 | J17: =IF(ISERROR(Y17),0,IF(AND(I17=1,Y17>=80),1,IF(OR(ISERROR(Y17),BD17="NULL"),0,IF(AND(Y17>=80,BN17>=(StudentTargets!$W$15-1),StudentTargets!$AC$11<=AllColleges!BD17/100),1,0)*AE17))) ->  | K17: =IF(ISERROR(Y17),0,IF(AND(I17=1,Y17>=80),0,IF(ISERROR(Y17),0,IF(AND(Y17>=80,BN17>=(StudentTargets!$W$15-1)),IF(ISERROR(StudentTargets!$AC$11>(BD17/100)),1,IF(StudentTargets!$AC$11>(BD17/100),1,0)),0))*AE17)) ->  | L17: 0 | M17: 0 | N17: 1 | R17: 0 | S17: 0 | T17: 4.2009 | U17: 0.2751 | V17: -17.92 | W17: -26.173 | X17: -26.173 | Y17: 4.297446959e-10 | Z17: 1 | AA17: 1 | AB17: 1 | AC17: =IF(FilterSchoolType="Any",1,IF(AND(FilterSchoolType=Lookups!$S$5,FilterState=AU17),1,IF(AND(FilterSchoolType=Lookups!$S$3,FilterState=AU17,LEFT(AV17,3)="Pub"),1,IF(AND(FilterSchoolType=Lookups!$S$4,LEFT(AV17,3)="Pub"),1,0)))) -> 1 | AD17: 1 | AE17: 1 | AF17: 199.3146396 | AG17: 0 | AH17: 6112 | AI17: =IFERROR(VLOOKUP(AR17, 'KIPP$$'!A:G, 7, 0), "") ->  | AJ17: 4.2009 | AK17: 30 | AL17: =IFERROR(VLOOKUP($AR17,School_View8[[NCSE_ID]:[Max_Unmet_Need]],3,FALSE),"") ->  | AM17: =IFERROR(VLOOKUP($AR17,School_View8[[NCSE_ID]:[Max_Unmet_Need]],4,FALSE),"") ->  | AO17: =--ISNUMBER(IFERROR(SEARCH('Wish List and Search'!$H$12,$AS17,1),"")) -> 1 | AP17: =IF(AO17=1,COUNTIF($AO$4:AO17,1),"") -> 14 | AQ17: =IFERROR(INDEX($AS$4:$AS$3000,MATCH(ROWS($AP$4:AP17),$AP$4:$AP$3000,0)),"") -> Georgetown University | AR17: 131496 | AS17: Georgetown University | AT17: Washington | AU17: DC | AV17: Private 4 yr | AW17: Most Competitive+ | AX17: 26625 | AY17: 6112 | AZ17: 8637 | BA17: 15540 | BB17: 44 | BC17: 94.3 | BD17: 93 | BE17: 96 | BF17: 30 | BG17: www.georgetown.edu | BJ17: City: Large | BK17: 7453 | BN17: 7 | BO17: 4.2009 | BP17: 0.2751 | BQ17: -17.92 | BR17: 0 | BS17: -77.0735 | BT17: 38.9088
A18: 168342 | B18: Williams College | C18: =IF(ISERROR(Y18),"No Data",IF(Y18<15,"Far Reach",IF(Y18<50,"Reach",IF(Y18<80,"Target",IF(Y18>=80,IF(BD18="NULL","Likely",IF(StudentTargets!$AC$11<=AllColleges!BD18/100,"Likely+","Likely")),""))))) -> Far Reach | F18: 0 | G18: 0 | H18: 15 | J18: =IF(ISERROR(Y18),0,IF(AND(I18=1,Y18>=80),1,IF(OR(ISERROR(Y18),BD18="NULL"),0,IF(AND(Y18>=80,BN18>=(StudentTargets!$W$15-1),StudentTargets!$AC$11<=AllColleges!BD18/100),1,0)*AE18))) ->  | K18: =IF(ISERROR(Y18),0,IF(AND(I18=1,Y18>=80),0,IF(ISERROR(Y18),0,IF(AND(Y18>=80,BN18>=(StudentTargets!$W$15-1)),IF(ISERROR(StudentTargets!$AC$11>(BD18/100)),1,IF(StudentTargets!$AC$11>(BD18/100),1,0)),0))*AE18)) ->  | L18: 0 | M18: 0 | N18: 1 | R18: 0 | S18: 0 | T18: 4.2009 | U18: 0.2751 | V18: -17.92 | W18: -26.4481 | X18: -26.4481 | Y18: 3.263894505e-10 | Z18: 1 | AA18: 1 | AB18: 1 | AC18: =IF(FilterSchoolType="Any",1,IF(AND(FilterSchoolType=Lookups!$S$5,FilterState=AU18),1,IF(AND(FilterSchoolType=Lookups!$S$3,FilterState=AU18,LEFT(AV18,3)="Pub"),1,IF(AND(FilterSchoolType=Lookups!$S$4,LEFT(AV18,3)="Pub"),1,0)))) -> 1 | AD18: 1 | AE18: 1 | AF18: 145.2204875 | AG18: 0 | AH18: 1910 | AI18: =IFERROR(VLOOKUP(AR18, 'KIPP$$'!A:G, 7, 0), "") ->  | AJ18: 4.2009 | AK18: 31 | AL18: =IFERROR(VLOOKUP($AR18,School_View8[[NCSE_ID]:[Max_Unmet_Need]],3,FALSE),"") ->  | AM18: =IFERROR(VLOOKUP($AR18,School_View8[[NCSE_ID]:[Max_Unmet_Need]],4,FALSE),"") ->  | AO18: =--ISNUMBER(IFERROR(SEARCH('Wish List and Search'!$H$12,$AS18,1),"")) -> 1 | AP18: =IF(AO18=1,COUNTIF($AO$4:AO18,1),"") -> 15 | AQ18: =IFERROR(INDEX($AS$4:$AS$3000,MATCH(ROWS($AP$4:AP18),$AP$4:$AP$3000,0)),"") -> Williams College | AR18: 168342 | AS18: Williams College | AT18: Williamstown | AU18: MA | AV18: Private 4 yr | AW18: Most Competitive+ | AX18: 18167 | AY18: 1910 | AZ18: 3871 | BA18: 10448 | BB18: 51 | BC18: 94 | BD18: 92.9 | BE18: 97 | BF18: 31 | BG18: www.williams.edu | BJ18: Town: Fringe | BK18: 2093 | BN18: 7 | BO18: 4.2009 | BP18: 0.2751 | BQ18: -17.92 | BR18: 0 | BS18: -73.2031 | BT18: 42.7127
A19: 198385 | B19: Davidson College | C19: =IF(ISERROR(Y19),"No Data",IF(Y19<15,"Far Reach",IF(Y19<50,"Reach",IF(Y19<80,"Target",IF(Y19>=80,IF(BD19="NULL","Likely",IF(StudentTargets!$AC$11<=AllColleges!BD19/100,"Likely+","Likely")),""))))) -> Far Reach | F19: 0 | G19: 0 | H19: 16 | J19: =IF(ISERROR(Y19),0,IF(AND(I19=1,Y19>=80),1,IF(OR(ISERROR(Y19),BD19="NULL"),0,IF(AND(Y19>=80,BN19>=(StudentTargets!$W$15-1),StudentTargets!$AC$11<=AllColleges!BD19/100),1,0)*AE19))) ->  | K19: =IF(ISERROR(Y19),0,IF(AND(I19=1,Y19>=80),0,IF(ISERROR(Y19),0,IF(AND(Y19>=80,BN19>=(StudentTargets!$W$15-1)),IF(ISERROR(StudentTargets!$AC$11>(BD19/100)),1,IF(StudentTargets!$AC$11>(BD19/100),1,0)),0))*AE19)) ->  | L19: 0 | M19: 0 | N19: 1 | R19: 0 | S19: 0 | T19: 4.7749 | U19: 0.322 | V19: -17.95 | W19: -26.966 | X19: -26.966 | Y19: 1.944531581e-10 | Z19: 1 | AA19: 1 | AB19: 1 | AC19: =IF(FilterSchoolType="Any",1,IF(AND(FilterSchoolType=Lookups!$S$5,FilterState=AU19),1,IF(AND(FilterSchoolType=Lookups!$S$3,FilterState=AU19,LEFT(AV19,3)="Pub"),1,IF(AND(FilterSchoolType=Lookups!$S$4,LEFT(AV19,3)="Pub"),1,0)))) -> 1 | AD19: 1 | AE19: 1 | AF19: 512.2276179 | AG19: 0 | AH19: 8163 | AI19: =IFERROR(VLOOKUP(AR19, 'KIPP$$'!A:G, 7, 0), "") ->  | AJ19: 4.7749 | AK19: 28 | AL19: =IFERROR(VLOOKUP($AR19,School_View8[[NCSE_ID]:[Max_Unmet_Need]],3,FALSE),"") ->  | AM19: =IFERROR(VLOOKUP($AR19,School_View8[[NCSE_ID]:[Max_Unmet_Need]],4,FALSE),"") ->  | AO19: =--ISNUMBER(IFERROR(SEARCH('Wish List and Search'!$H$12,$AS19,1),"")) -> 1 | AP19: =IF(AO19=1,COUNTIF($AO$4:AO19,1),"") -> 16 | AQ19: =IFERROR(INDEX($AS$4:$AS$3000,MATCH(ROWS($AP$4:AP19),$AP$4:$AP$3000,0)),"") -> Davidson College | AR19: 198385 | AS19: Davidson College | AT19: Davidson | AU19: NC | AV19: Private 4 yr | AW19: Most Competitive | AX19: 27897 | AY19: 8163 | AZ19: 9010 | BA19: 11982 | BB19: 51 | BC19: 94.8 | BD19: 92.8 | BE19: 94 | BF19: 28 | BG19: www.davidson.edu/ | BJ19: Suburb: Large | BK19: 1796 | BN19: 6 | BO19: 4.7749 | BP19: 0.322 | BQ19: -17.95 | BR19: 0 | BS19: -80.8452 | BT19: 35.5
A20: 123165 | B20: Scripps College | C20: =IF(ISERROR(Y20),"No Data",IF(Y20<15,"Far Reach",IF(Y20<50,"Reach",IF(Y20<80,"Target",IF(Y20>=80,IF(BD20="NULL","Likely",IF(StudentTargets!$AC$11<=AllColleges!BD20/100,"Likely+","Likely")),""))))) -> Far Reach | F20: 0 | G20: 0 | H20: 17 | J20: =IF(ISERROR(Y20),0,IF(AND(I20=1,Y20>=80),1,IF(OR(ISERROR(Y20),BD20="NULL"),0,IF(AND(Y20>=80,BN20>=(StudentTargets!$W$15-1),StudentTargets!$AC$11<=AllColleges!BD20/100),1,0)*AE20))) ->  | K20: =IF(ISERROR(Y20),0,IF(AND(I20=1,Y20>=80),0,IF(ISERROR(Y20),0,IF(AND(Y20>=80,BN20>=(StudentTargets!$W$15-1)),IF(ISERROR(StudentTargets!$AC$11>(BD20/100)),1,IF(StudentTargets!$AC$11>(BD20/100),1,0)),0))*AE20)) ->  | L20: 0 | M20: 0 | N20: 1 | R20: 0 | S20: 0 | T20: 2.8488 | U20: 0.32 | V20: -9.05 | W20: -18.01 | X20: -18.01 | Y20: 1.507843869e-06 | Z20: 1 | AA20: 1 | AB20: 1 | AC20: =IF(FilterSchoolType="Any",1,IF(AND(FilterSchoolType=Lookups!$S$5,FilterState=AU20),1,IF(AND(FilterSchoolType=Lookups!$S$3,FilterState=AU20,LEFT(AV20,3)="Pub"),1,IF(AND(FilterSchoolType=Lookups!$S$4,LEFT(AV20,3)="Pub"),1,0)))) -> 1 | AD20: 1 | AE20: 1 | AF20: 2407.641846 | AG20: 0 | AH20: 13233 | AI20: =IFERROR(VLOOKUP(AR20, 'KIPP$$'!A:G, 7, 0), "") ->  | AJ20: 2.8488 | AK20: 28 | AL20: =IFERROR(VLOOKUP($AR20,School_View8[[NCSE_ID]:[Max_Unmet_Need]],3,FALSE),"") ->  | AM20: =IFERROR(VLOOKUP($AR20,School_View8[[NCSE_ID]:[Max_Unmet_Need]],4,FALSE),"") ->  | AO20: =--ISNUMBER(IFERROR(SEARCH('Wish List and Search'!$H$12,$AS20,1),"")) -> 1 | AP20: =IF(AO20=1,COUNTIF($AO$4:AO20,1),"") -> 17 | AQ20: =IFERROR(INDEX($AS$4:$AS$3000,MATCH(ROWS($AP$4:AP20),$AP$4:$AP$3000,0)),"") -> Scripps College | AR20: 123165 | AS20: Scripps College | AT20: Claremont | AU20: CA | AV20: Private 4 yr | AW20: Highly Competitive | AX20: 37860 | AY20: 13233 | AZ20: 3243 | BA20: 22738 | BB20: 0 | BC20: 84 | BD20: 92.4 | BE20: 92 | BF20: 28 | BG20: www.scrippscollege.edu | BJ20: Suburb: Large | BK20: 1039 | BN20: 5 | BO20: 2.8488 | BP20: 0.32 | BQ20: -9.05 | BR20: 0 | BS20: -117.711 | BT20: 34.1037
A21: 190150 | B21: Columbia University in the City of New York | C21: =IF(ISERROR(Y21),"No Data",IF(Y21<15,"Far Reach",IF(Y21<50,"Reach",IF(Y21<80,"Target",IF(Y21>=80,IF(BD21="NULL","Likely",IF(StudentTargets!$AC$11<=AllColleges!BD21/100,"Likely+","Likely")),""))))) -> Far Reach | F21: 0 | G21: 0 | H21: 18 | J21: =IF(ISERROR(Y21),0,IF(AND(I21=1,Y21>=80),1,IF(OR(ISERROR(Y21),BD21="NULL"),0,IF(AND(Y21>=80,BN21>=(StudentTargets!$W$15-1),StudentTargets!$AC$11<=AllColleges!BD21/100),1,0)*AE21))) ->  | K21: =IF(ISERROR(Y21),0,IF(AND(I21=1,Y21>=80),0,IF(ISERROR(Y21),0,IF(AND(Y21>=80,BN21>=(StudentTargets!$W$15-1)),IF(ISERROR(StudentTargets!$AC$11>(BD21/100)),1,IF(StudentTargets!$AC$11>(BD21/100),1,0)),0))*AE21)) ->  | L21: 0 | M21: 0 | N21: 1 | R21: 0 | S21: 0 | T21: 4.2009 | U21: 0.2751 | V21: -17.92 | W21: -26.7232 | X21: -26.7232 | Y21: 2.478915376e-10 | Z21: 1 | AA21: 1 | AB21: 1 | AC21: =IF(FilterSchoolType="Any",1,IF(AND(FilterSchoolType=Lookups!$S$5,FilterState=AU21),1,IF(AND(FilterSchoolType=Lookups!$S$3,FilterState=AU21,LEFT(AV21,3)="Pub"),1,IF(AND(FilterSchoolType=Lookups!$S$4,LEFT(AV21,3)="Pub"),1,0)))) -> 1 | AD21: 1 | AE21: 1 | AF21: 11.86539834 | AG21: 0 | AH21: 9481 | AI21: =IFERROR(VLOOKUP(AR21, 'KIPP$$'!A:G, 7, 0), "") ->  | AJ21: 4.2009 | AK21: 32 | AL21: =IFERROR(VLOOKUP($AR21,School_View8[[NCSE_ID]:[Max_Unmet_Need]],3,FALSE),"") ->  | AM21: =IFERROR(VLOOKUP($AR21,School_View8[[NCSE_ID]:[Max_Unmet_Need]],4,FALSE),"") ->  | AO21: =--ISNUMBER(IFERROR(SEARCH('Wish List and Search'!$H$12,$AS21,1),"")) -> 1 | AP21: =IF(AO21=1,COUNTIF($AO$4:AO21,1),"") -> 18 | AQ21: =IFERROR(INDEX($AS$4:$AS$3000,MATCH(ROWS($AP$4:AP21),$AP$4:$AP$3000,0)),"") -> Columbia University in the City of New York | AR21: 190150 | AS21: Columbia University in the City of New York | AT21: New York | AU21: NY | AV21: Private 4 yr | AW21: Most Competitive+ | AX21: 22973 | AY21: 9481 | AZ21: 5251 | BA21: 6592 | BB21: 54 | BC21: 94.1 | BD21: 92.1 | BE21: 97 | BF21: 32 | BG21: www.columbia.edu | BJ21: City: Large | BK21: 8124 | BN21: 7 | BO21: 4.2009 | BP21: 0.2751 | BQ21: -17.92 | BR21: 0 | BS21: -73.9619 | BT21: 40.8083
A22: 190415 | B22: Cornell University | C22: =IF(ISERROR(Y22),"No Data",IF(Y22<15,"Far Reach",IF(Y22<50,"Reach",IF(Y22<80,"Target",IF(Y22>=80,IF(BD22="NULL","Likely",IF(StudentTargets!$AC$11<=AllColleges!BD22/100,"Likely+","Likely")),""))))) -> Far Reach | F22: 0 | G22: 0 | H22: 19 | J22: =IF(ISERROR(Y22),0,IF(AND(I22=1,Y22>=80),1,IF(OR(ISERROR(Y22),BD22="NULL"),0,IF(AND(Y22>=80,BN22>=(StudentTargets!$W$15-1),StudentTargets!$AC$11<=AllColleges!BD22/100),1,0)*AE22))) ->  | K22: =IF(ISERROR(Y22),0,IF(AND(I22=1,Y22>=80),0,IF(ISERROR(Y22),0,IF(AND(Y22>=80,BN22>=(StudentTargets!$W$15-1)),IF(ISERROR(StudentTargets!$AC$11>(BD22/100)),1,IF(StudentTargets!$AC$11>(BD22/100),1,0)),0))*AE22)) ->  | L22: 0 | M22: 0 | N22: 1 | R22: 0 | S22: 0 | T22: 4.2009 | U22: 0.2751 | V22: -17.92 | W22: -26.4481 | X22: -26.4481 | Y22: 3.263894505e-10 | Z22: 1 | AA22: 1 | AB22: 1 | AC22: =IF(FilterSchoolType="Any",1,IF(AND(FilterSchoolType=Lookups!$S$5,FilterState=AU22),1,IF(AND(FilterSchoolType=Lookups!$S$3,FilterState=AU22,LEFT(AV22,3)="Pub"),1,IF(AND(FilterSchoolType=Lookups!$S$4,LEFT(AV22,3)="Pub"),1,0)))) -> 1 | AD22: 1 | AE22: 1 | AF22: 168.032872 | AG22: 0 | AH22: 16751 | AI22: =IFERROR(VLOOKUP(AR22, 'KIPP$$'!A:G, 7, 0), "") ->  | AJ22: 4.2009 | AK22: 31 | AL22: =IFERROR(VLOOKUP($AR22,School_View8[[NCSE_ID]:[Max_Unmet_Need]],3,FALSE),"") ->  | AM22: =IFERROR(VLOOKUP($AR22,School_View8[[NCSE_ID]:[Max_Unmet_Need]],4,FALSE),"") ->  | AO22: =--ISNUMBER(IFERROR(SEARCH('Wish List and Search'!$H$12,$AS22,1),"")) -> 1 | AP22: =IF(AO22=1,COUNTIF($AO$4:AO22,1),"") -> 19 | AQ22: =IFERROR(INDEX($AS$4:$AS$3000,MATCH(ROWS($AP$4:AP22),$AP$4:$AP$3000,0)),"") -> Cornell University | AR22: 190415 | AS22: Cornell University | AT22: Ithaca | AU22: NY | AV22: Private 4 yr | AW22: Most Competitive+ | AX22: 30014 | AY22: 16751 | AZ22: 12382 | BA22: 15456 | BB22: 48 | BC22: 93.9 | BD22: 92.1 | BE22: 97 | BF22: 31 | BG22: www.cornell.edu | BJ22: City: Small | BK22: 14566 | BN22: 7 | BO22: 4.2009 | BP22: 0.2751 | BQ22: -17.92 | BR22: 0 | BS22: -76.4831 | BT22: 42.4472
A23: 126678 | B23: Colorado College | C23: =IF(ISERROR(Y23),"No Data",IF(Y23<15,"Far Reach",IF(Y23<50,"Reach",IF(Y23<80,"Target",IF(Y23>=80,IF(BD23="NULL","Likely",IF(StudentTargets!$AC$11<=AllColleges!BD23/100,"Likely+","Likely")),""))))) -> Far Reach | F23: 0 | G23: 0 | H23: 20 | J23: =IF(ISERROR(Y23),0,IF(AND(I23=1,Y23>=80),1,IF(OR(ISERROR(Y23),BD23="NULL"),0,IF(AND(Y23>=80,BN23>=(StudentTargets!$W$15-1),StudentTargets!$AC$11<=AllColleges!BD23/100),1,0)*AE23))) ->  | K23: =IF(ISERROR(Y23),0,IF(AND(I23=1,Y23>=80),0,IF(ISERROR(Y23),0,IF(AND(Y23>=80,BN23>=(StudentTargets!$W$15-1)),IF(ISERROR(StudentTargets!$AC$11>(BD23/100)),1,IF(StudentTargets!$AC$11>(BD23/100),1,0)),0))*AE23)) ->  | L23: 0 | M23: 0 | N23: 1 | R23: 0 | S23: 0 | T23: 4.2009 | U23: 0.2751 | V23: -17.92 | W23: -25.3477 | X23: -25.3477 | Y23: 9.809203876e-10 | Z23: 1 | AA23: 1 | AB23: 1 | AC23: =IF(FilterSchoolType="Any",1,IF(AND(FilterSchoolType=Lookups!$S$5,FilterState=AU23),1,IF(AND(FilterSchoolType=Lookups!$S$3,FilterState=AU23,LEFT(AV23,3)="Pub"),1,IF(AND(FilterSchoolType=Lookups!$S$4,LEFT(AV23,3)="Pub"),1,0)))) -> 1 | AD23: 1 | AE23: 1 | AF23: 1624.316851 | AG23: 0 | AH23: -1068 | AI23: =IFERROR(VLOOKUP(AR23, 'KIPP$$'!A:G, 7, 0), "") ->  | AJ23: 4.2009 | AK23: 27 | AL23: =IFERROR(VLOOKUP($AR23,School_View8[[NCSE_ID]:[Max_Unmet_Need]],3,FALSE),"") ->  | AM23: =IFERROR(VLOOKUP($AR23,School_View8[[NCSE_ID]:[Max_Unmet_Need]],4,FALSE),"") ->  | AO23: =--ISNUMBER(IFERROR(SEARCH('Wish List and Search'!$H$12,$AS23,1),"")) -> 1 | AP23: =IF(AO23=1,COUNTIF($AO$4:AO23,1),"") -> 20 | AQ23: =IFERROR(INDEX($AS$4:$AS$3000,MATCH(ROWS($AP$4:AP23),$AP$4:$AP$3000,0)),"") -> Colorado College | AR23: 126678 | AS23: Colorado College | AT23: Colorado Springs | AU23: CO | AV23: Private 4 yr | AW23: Most Competitive+ | AX23: 23812 | AY23: -1068 | AZ23: 5523 | BA23: 4349 | BB23: 46 | BC23: 91.9 | BD23: 91.9 | BE23: 96 | BF23: 27 | BG23: www.coloradocollege.edu | BJ23: City: Large | BK23: 2101 | BN23: 7 | BO23: 4.2009 | BP23: 0.2751 | BQ23: -17.92 | BR23: 0 | BS23: -104.823 | BT23: 38.8489
A24: 164580 | B24: Babson College | C24: =IF(ISERROR(Y24),"No Data",IF(Y24<15,"Far Reach",IF(Y24<50,"Reach",IF(Y24<80,"Target",IF(Y24>=80,IF(BD24="NULL","Likely",IF(StudentTargets!$AC$11<=AllColleges!BD24/100,"Likely+","Likely")),""))))) -> Far Reach | F24: 0 | G24: 0 | H24: 21 | J24: =IF(ISERROR(Y24),0,IF(AND(I24=1,Y24>=80),1,IF(OR(ISERROR(Y24),BD24="NULL"),0,IF(AND(Y24>=80,BN24>=(StudentTargets!$W$15-1),StudentTargets!$AC$11<=AllColleges!BD24/100),1,0)*AE24))) ->  | K24: =IF(ISERROR(Y24),0,IF(AND(I24=1,Y24>=80),0,IF(ISERROR(Y24),0,IF(AND(Y24>=80,BN24>=(StudentTargets!$W$15-1)),IF(ISERROR(StudentTargets!$AC$11>(BD24/100)),1,IF(StudentTargets!$AC$11>(BD24/100),1,0)),0))*AE24)) ->  | L24: 0 | M24: 0 | N24: 1 | R24: 0 | S24: 0 | T24: 2.8488 | U24: 0.32 | V24: -9.05 | W24: -17.69 | X24: -17.69 | Y24: 2.076493644e-06 | Z24: 1 | AA24: 1 | AB24: 1 | AC24: =IF(FilterSchoolType="Any",1,IF(AND(FilterSchoolType=Lookups!$S$5,FilterState=AU24),1,IF(AND(FilterSchoolType=Lookups!$S$3,FilterState=AU24,LEFT(AV24,3)="Pub"),1,IF(AND(FilterSchoolType=Lookups!$S$4,LEFT(AV24,3)="Pub"),1,0)))) -> 1 | AD24: 1 | AE24: 1 | AF24: 184.9206862 | AG24: 0 | AH24: 18195 | AI24: =IFERROR(VLOOKUP(AR24, 'KIPP$$'!A:G, 7, 0), "") ->  | AJ24: 2.8488 | AK24: 27 | AL24: =IFERROR(VLOOKUP($AR24,School_View8[[NCSE_ID]:[Max_Unmet_Need]],3,FALSE),"") ->  | AM24: =IFERROR(VLOOKUP($AR24,School_View8[[NCSE_ID]:[Max_Unmet_Need]],4,FALSE),"") ->  | AO24: =--ISNUMBER(IFERROR(SEARCH('Wish List and Search'!$H$12,$AS24,1),"")) -> 1 | AP24: =IF(AO24=1,COUNTIF($AO$4:AO24,1),"") -> 21 | AQ24: =IFERROR(INDEX($AS$4:$AS$3000,MATCH(ROWS($AP$4:AP24),$AP$4:$AP$3000,0)),"") -> Babson College | AR24: 164580 | AS24: Babson College | AT24: Wellesley | AU24: MA | AV24: Private 4 yr | AW24: Highly Competitive | AX24: 27453 | AY24: 18195 | AZ24: 15553 | BA24: 20315 | BB24: 52 | BC24: 91.9 | BD24: 91.9 | BE24: 95 | BF24: 27 | BG24: www.babson.edu | BJ24: Suburb: Large | BK24: 2283 | BN24: 5 | BO24: 2.8488 | BP24: 0.32 | BQ24: -9.05 | BR24: 0 | BS24: -71.2656 | BT24: 42.3
A25: 189097 | B25: Barnard College | C25: =IF(ISERROR(Y25),"No Data",IF(Y25<15,"Far Reach",IF(Y25<50,"Reach",IF(Y25<80,"Target",IF(Y25>=80,IF(BD25="NULL","Likely",IF(StudentTargets!$AC$11<=AllColleges!BD25/100,"Likely+","Likely")),""))))) -> Far Reach | F25: 0 | G25: 0 | H25: 22 | J25: =IF(ISERROR(Y25),0,IF(AND(I25=1,Y25>=80),1,IF(OR(ISERROR(Y25),BD25="NULL"),0,IF(AND(Y25>=80,BN25>=(StudentTargets!$W$15-1),StudentTargets!$AC$11<=AllColleges!BD25/100),1,0)*AE25))) ->  | K25: =IF(ISERROR(Y25),0,IF(AND(I25=1,Y25>=80),0,IF(ISERROR(Y25),0,IF(AND(Y25>=80,BN25>=(StudentTargets!$W$15-1)),IF(ISERROR(StudentTargets!$AC$11>(BD25/100)),1,IF(StudentTargets!$AC$11>(BD25/100),1,0)),0))*AE25)) ->  | L25: 0 | M25: 0 | N25: 1 | R25: 0 | S25: 0 | T25: 4.2009 | U25: 0.2751 | V25: -17.92 | W25: -25.8979 | X25: -25.8979 | Y25: 5.658286546e-10 | Z25: 1 | AA25: 1 | AB25: 1 | AC25: =IF(FilterSchoolType="Any",1,IF(AND(FilterSchoolType=Lookups!$S$5,FilterState=AU25),1,IF(AND(FilterSchoolType=Lookups!$S$3,FilterState=AU25,LEFT(AV25,3)="Pub"),1,IF(AND(FilterSchoolType=Lookups!$S$4,LEFT(AV25,3)="Pub"),1,0)))) -> 1 | AD25: 1 | AE25: 1 | AF25: 11.78788777 | AG25: 0 | AH25: 7335 | AI25: =IFERROR(VLOOKUP(AR25, 'KIPP$$'!A:G, 7, 0), "") ->  | AJ25: 4.2009 | AK25: 29 | AL25: =IFERROR(VLOOKUP($AR25,School_View8[[NCSE_ID]:[Max_Unmet_Need]],3,FALSE),"") ->  | AM25: =IFERROR(VLOOKUP($AR25,School_View8[[NCSE_ID]:[Max_Unmet_Need]],4,FALSE),"") ->  | AO25: =--ISNUMBER(IFERROR(SEARCH('Wish List and Search'!$H$12,$AS25,1),"")) -> 1 | AP25: =IF(AO25=1,COUNTIF($AO$4:AO25,1),"") -> 22 | AQ25: =IFERROR(INDEX($AS$4:$AS$3000,MATCH(ROWS($AP$4:AP25),$AP$4:$AP$3000,0)),"") -> Barnard College | AR25: 189097 | AS25: Barnard College | AT25: New York | AU25: NY | AV25: Private 4 yr | AW25: Most Competitive+ | AX25: 22815 | AY25: 7335 | AZ25: 8569 | BA25: 16092 | BB25: 0 | BC25: 91.8 | BD25: 91.8 | BE25: 96 | BF25: 29 | BG25: www.barnard.edu | BJ25: City: Large | BK25: 2510 | BN25: 7 | BO25: 4.2009 | BP25: 0.2751 | BQ25: -17.92 | BR25: 0 | BS25: -73.964 | BT25: 40.8091
A26: 234076 | B26: University of Virginia-Main Campus | C26: =IF(ISERROR(Y26),"No Data",IF(Y26<15,"Far Reach",IF(Y26<50,"Reach",IF(Y26<80,"Target",IF(Y26>=80,IF(BD26="NULL","Likely",IF(StudentTargets!$AC$11<=AllColleges!BD26/100,"Likely+","Likely")),""))))) -> Far Reach | F26: 0 | G26: 0 | H26: 23 | J26: =IF(ISERROR(Y26),0,IF(AND(I26=1,Y26>=80),1,IF(OR(ISERROR(Y26),BD26="NULL"),0,IF(AND(Y26>=80,BN26>=(StudentTargets!$W$15-1),StudentTargets!$AC$11<=AllColleges!BD26/100),1,0)*AE26))) ->  | K26: =IF(ISERROR(Y26),0,IF(AND(I26=1,Y26>=80),0,IF(ISERROR(Y26),0,IF(AND(Y26>=80,BN26>=(StudentTargets!$W$15-1)),IF(ISERROR(StudentTargets!$AC$11>(BD26/100)),1,IF(StudentTargets!$AC$11>(BD26/100),1,0)),0))*AE26)) ->  | L26: 0 | M26: 0 | N26: 1 | R26: 0 | S26: 0 | T26: 4.7749 | U26: 0.322 | V26: -17.95 | W26: -27.288 | X26: -27.288 | Y26: 1.409198518e-10 | Z26: 1 | AA26: 1 | AB26: 1 | AC26: =IF(FilterSchoolType="Any",1,IF(AND(FilterSchoolType=Lookups!$S$5,FilterState=AU26),1,IF(AND(FilterSchoolType=Lookups!$S$3,FilterState=AU26,LEFT(AV26,3)="Pub"),1,IF(AND(FilterSchoolType=Lookups!$S$4,LEFT(AV26,3)="Pub"),1,0)))) -> 1 | AD26: 1 | AE26: 1 | AF26: 297.3268534 | AG26: 1 | AH26: 9463 | AI26: =IFERROR(VLOOKUP(AR26, 'KIPP$$'!A:G, 7, 0), "") ->  | AJ26: 4.7749 | AK26: 29 | AL26: =IFERROR(VLOOKUP($AR26,School_View8[[NCSE_ID]:[Max_Unmet_Need]],3,FALSE),"") ->  | AM26: =IFERROR(VLOOKUP($AR26,School_View8[[NCSE_ID]:[Max_Unmet_Need]],4,FALSE),"") ->  | AO26: =--ISNUMBER(IFERROR(SEARCH('Wish List and Search'!$H$12,$AS26,1),"")) -> 1 | AP26: =IF(AO26=1,COUNTIF($AO$4:AO26,1),"") -> 23 | AQ26: =IFERROR(INDEX($AS$4:$AS$3000,MATCH(ROWS($AP$4:AP26),$AP$4:$AP$3000,0)),"") -> University of Virginia-Main Campus | AR26: 234076 | AS26: University of Virginia-Main Campus | AT26: Charlottesville | AU26: VA | AV26: Public 4 yr | AW26: Most Competitive | AX26: 15945 | AY26: 9463 | AZ26: 10684 | BA26: 14374 | BB26: 45 | BC26: 94.2 | BD26: 91.7 | BE26: 96 | BF26: 29 | BG26: www.virginia.edu/ | BJ26: Suburb: Small | BK26: 16331 | BN26: 6 | BO26: 4.7749 | BP26: 0.322 | BQ26: -17.95 | BR26: 0 | BS26: -78.5034 | BT26: 38.0357
A27: 230959 | B27: Middlebury College | C27: =IF(ISERROR(Y27),"No Data",IF(Y27<15,"Far Reach",IF(Y27<50,"Reach",IF(Y27<80,"Target",IF(Y27>=80,IF(BD27="NULL","Likely",IF(StudentTargets!$AC$11<=AllColleges!BD27/100,"Likely+","Likely")),""))))) -> Far Reach | F27: 0 | G27: 0 | H27: 24 | J27: =IF(ISERROR(Y27),0,IF(AND(I27=1,Y27>=80),1,IF(OR(ISERROR(Y27),BD27="NULL"),0,IF(AND(Y27>=80,BN27>=(StudentTargets!$W$15-1),StudentTargets!$AC$11<=AllColleges!BD27/100),1,0)*AE27))) ->  | K27: =IF(ISERROR(Y27),0,IF(AND(I27=1,Y27>=80),0,IF(ISERROR(Y27),0,IF(AND(Y27>=80,BN27>=(StudentTargets!$W$15-1)),IF(ISERROR(StudentTargets!$AC$11>(BD27/100)),1,IF(StudentTargets!$AC$11>(BD27/100),1,0)),0))*AE27)) ->  | L27: 0 | M27: 0 | N27: 1 | R27: 0 | S27: 0 | T27: 4.2009 | U27: 0.2751 | V27: -17.92 | W27: -26.173 | X27: -26.173 | Y27: 4.297446959e-10 | Z27: 1 | AA27: 1 | AB27: 1 | AC27: =IF(FilterSchoolType="Any",1,IF(AND(FilterSchoolType=Lookups!$S$5,FilterState=AU27),1,IF(AND(FilterSchoolType=Lookups!$S$3,FilterState=AU27,LEFT(AV27,3)="Pub"),1,IF(AND(FilterSchoolType=Lookups!$S$4,LEFT(AV27,3)="Pub"),1,0)))) -> 1 | AD27: 1 | AE27: 1 | AF27: 231.5951447 | AG27: 0 | AH27: 5788 | AI27: =IFERROR(VLOOKUP(AR27, 'KIPP$$'!A:G, 7, 0), "") ->  | AJ27: 4.2009 | AK27: 30 | AL27: =IFERROR(VLOOKUP($AR27,School_View8[[NCSE_ID]:[Max_Unmet_Need]],3,FALSE),"") ->  | AM27: =IFERROR(VLOOKUP($AR27,School_View8[[NCSE_ID]:[Max_Unmet_Need]],4,FALSE),"") ->  | AO27: =--ISNUMBER(IFERROR(SEARCH('Wish List and Search'!$H$12,$AS27,1),"")) -> 1 | AP27: =IF(AO27=1,COUNTIF($AO$4:AO27,1),"") -> 24 | AQ27: =IFERROR(INDEX($AS$4:$AS$3000,MATCH(ROWS($AP$4:AP27),$AP$4:$AP$3000,0)),"") -> Middlebury College | AR27: 230959 | AS27: Middlebury College | AT27: Middlebury | AU27: VT | AV27: Private 4 yr | AW27: Most Competitive+ | AX27: 21437 | AY27: 5788 | AZ27: 6985 | BA27: 13966 | BB27: 48 | BC27: 93.4 | BD27: 91.6 | BE27: 94 | BF27: 30 | BG27: www.middlebury.edu | BJ27: Town: Distant | BK27: 2523 | BN27: 7 | BO27: 4.2009 | BP27: 0.2751 | BQ27: -17.92 | BR27: 0 | BS27: -73.1761 | BT27: 44.0091
A28: 112260 | B28: Claremont McKenna College | C28: =IF(ISERROR(Y28),"No Data",IF(Y28<15,"Far Reach",IF(Y28<50,"Reach",IF(Y28<80,"Target",IF(Y28>=80,IF(BD28="NULL","Likely",IF(StudentTargets!$AC$11<=AllColleges!BD28/100,"Likely+","Likely")),""))))) -> Far Reach | F28: 0 | G28: 0 | H28: 25 | J28: =IF(ISERROR(Y28),0,IF(AND(I28=1,Y28>=80),1,IF(OR(ISERROR(Y28),BD28="NULL"),0,IF(AND(Y28>=80,BN28>=(StudentTargets!$W$15-1),StudentTargets!$AC$11<=AllColleges!BD28/100),1,0)*AE28))) ->  | K28: =IF(ISERROR(Y28),0,IF(AND(I28=1,Y28>=80),0,IF(ISERROR(Y28),0,IF(AND(Y28>=80,BN28>=(StudentTargets!$W$15-1)),IF(ISERROR(StudentTargets!$AC$11>(BD28/100)),1,IF(StudentTargets!$AC$11>(BD28/100),1,0)),0))*AE28)) ->  | L28: 0 | M28: 0 | N28: 1 | R28: 0 | S28: 0 | T28: 4.2009 | U28: 0.2751 | V28: -17.92 | W28: -26.4481 | X28: -26.4481 | Y28: 3.263894505e-10 | Z28: 1 | AA28: 1 | AB28: 1 | AC28: =IF(FilterSchoolType="Any",1,IF(AND(FilterSchoolType=Lookups!$S$5,FilterState=AU28),1,IF(AND(FilterSchoolType=Lookups!$S$3,FilterState=AU28,LEFT(AV28,3)="Pub"),1,IF(AND(FilterSchoolType=Lookups!$S$4,LEFT(AV28,3)="Pub"),1,0)))) -> 1 | AD28: 1 | AE28: 1 | AF28: 2407.472139 | AG28: 0 | AH28: 11499 | AI28: =IFERROR(VLOOKUP(AR28, 'KIPP$$'!A:G, 7, 0), "") ->  | AJ28: 4.2009 | AK28: 31 | AL28: =IFERROR(VLOOKUP($AR28,School_View8[[NCSE_ID]:[Max_Unmet_Need]],3,FALSE),"") ->  | AM28: =IFERROR(VLOOKUP($AR28,School_View8[[NCSE_ID]:[Max_Unmet_Need]],4,FALSE),"") ->  | AO28: =--ISNUMBER(IFERROR(SEARCH('Wish List and Search'!$H$12,$AS28,1),"")) -> 1 | AP28: =IF(AO28=1,COUNTIF($AO$4:AO28,1),"") -> 25 | AQ28: =IFERROR(INDEX($AS$4:$AS$3000,MATCH(ROWS($AP$4:AP28),$AP$4:$AP$3000,0)),"") -> Claremont McKenna College | AR28: 112260 | AS28: Claremont McKenna College | AT28: Claremont | AU28: CA | AV28: Private 4 yr | AW28: Most Competitive+ | AX28: 30527 | AY28: 11499 | AZ28: 17173 | BA28: 18096 | BB28: 51 | BC28: 92.7 | BD28: 91.2 | BE28: 93 | BF28: 31 | BG28: www.cmc.edu | BJ28: Suburb: Large | BK28: 1347 | BN28: 7 | BO28: 4.2009 | BP28: 0.2751 | BQ28: -17.92 | BR28: 0 | BS28: -117.707 | BT28: 34.1023
A29: 152318 | B29: Rose-Hulman Institute of Technology | C29: =IF(ISERROR(Y29),"No Data",IF(Y29<15,"Far Reach",IF(Y29<50,"Reach",IF(Y29<80,"Target",IF(Y29>=80,IF(BD29="NULL","Likely",IF(StudentTargets!$AC$11<=AllColleges!BD29/100,"Likely+","Likely")),""))))) -> Far Reach | F29: 0 | G29: 0 | H29: 26 | J29: =IF(ISERROR(Y29),0,IF(AND(I29=1,Y29>=80),1,IF(OR(ISERROR(Y29),BD29="NULL"),0,IF(AND(Y29>=80,BN29>=(StudentTargets!$W$15-1),StudentTargets!$AC$11<=AllColleges!BD29/100),1,0)*AE29))) ->  | K29: =IF(ISERROR(Y29),0,IF(AND(I29=1,Y29>=80),0,IF(ISERROR(Y29),0,IF(AND(Y29>=80,BN29>=(StudentTargets!$W$15-1)),IF(ISERROR(StudentTargets!$AC$11>(BD29/100)),1,IF(StudentTargets!$AC$11>(BD29/100),1,0)),0))*AE29)) ->  | L29: 0 | M29: 0 | N29: 1 | R29: 0 | S29: 0 | T29: 4.7749 | U29: 0.322 | V29: -17.95 | W29: -26.644 | X29: -26.644 | Y29: 2.683229526e-10 | Z29: 1 | AA29: 1 | AB29: 1 | AC29: =IF(FilterSchoolType="Any",1,IF(AND(FilterSchoolType=Lookups!$S$5,FilterState=AU29),1,IF(AND(FilterSchoolType=Lookups!$S$3,FilterState=AU29,LEFT(AV29,3)="Pub"),1,IF(AND(FilterSchoolType=Lookups!$S$4,LEFT(AV29,3)="Pub"),1,0)))) -> 1 | AD29: 1 | AE29: 1 | AF29: 699.9947822 | AG29: 0 | AH29: 33899 | AI29: =IFERROR(VLOOKUP(AR29, 'KIPP$$'!A:G, 7, 0), "") ->  | AJ29: 4.7749 | AK29: 27 | AL29: =IFERROR(VLOOKUP($AR29,School_View8[[NCSE_ID]:[Max_Unmet_Need]],3,FALSE),"") ->  | AM29: =IFERROR(VLOOKUP($AR29,School_View8[[NCSE_ID]:[Max_Unmet_Need]],4,FALSE),"") ->  | AO29: =--ISNUMBER(IFERROR(SEARCH('Wish List and Search'!$H$12,$AS29,1),"")) -> 1 | AP29: =IF(AO29=1,COUNTIF($AO$4:AO29,1),"") -> 26 | AQ29: =IFERROR(INDEX($AS$4:$AS$3000,MATCH(ROWS($AP$4:AP29),$AP$4:$AP$3000,0)),"") -> Rose-Hulman Institute of Technology | AR29: 152318 | AS29: Rose-Hulman Institute of Technology | AT29: Terre Haute | AU29: IN | AV29: Private 4 yr | AW29: Most Competitive | AX29: 41691 | AY29: 33899 | AZ29: 33887 | BA29: 36064 | BB29: 75 | BC29: 91.2 | BD29: 91.2 | BE29: 94 | BF29: 27 | BG29: www.rose-hulman.edu | BJ29: City: Small | BK29: 2202 | BN29: 6 | BO29: 4.7749 | BP29: 0.322 | BQ29: -17.95 | BR29: 0 | BS29: -87.3267 | BT29: 39.4836
A30: 147767 | B30: Northwestern University | C30: =IF(ISERROR(Y30),"No Data",IF(Y30<15,"Far Reach",IF(Y30<50,"Reach",IF(Y30<80,"Target",IF(Y30>=80,IF(BD30="NULL","Likely",IF(StudentTargets!$AC$11<=AllColleges!BD30/100,"Likely+","Likely")),""))))) -> Far Reach | F30: 0 | G30: 0 | H30: 27 | J30: =IF(ISERROR(Y30),0,IF(AND(I30=1,Y30>=80),1,IF(OR(ISERROR(Y30),BD30="NULL"),0,IF(AND(Y30>=80,BN30>=(StudentTargets!$W$15-1),StudentTargets!$AC$11<=AllColleges!BD30/100),1,0)*AE30))) ->  | K30: =IF(ISERROR(Y30),0,IF(AND(I30=1,Y30>=80),0,IF(ISERROR(Y30),0,IF(AND(Y30>=80,BN30>=(StudentTargets!$W$15-1)),IF(ISERROR(StudentTargets!$AC$11>(BD30/100)),1,IF(StudentTargets!$AC$11>(BD30/100),1,0)),0))*AE30)) ->  | L30: 0 | M30: 0 | N30: 1 | R30: 0 | S30: 0 | T30: 4.2009 | U30: 0.2751 | V30: -17.92 | W30: -26.7232 | X30: -26.7232 | Y30: 2.478915376e-10 | Z30: 1 | AA30: 1 | AB30: 1 | AC30: =IF(FilterSchoolType="Any",1,IF(AND(FilterSchoolType=Lookups!$S$5,FilterState=AU30),1,IF(AND(FilterSchoolType=Lookups!$S$3,FilterState=AU30,LEFT(AV30,3)="Pub"),1,IF(AND(FilterSchoolType=Lookups!$S$4,LEFT(AV30,3)="Pub"),1,0)))) -> 1 | AD30: 1 | AE30: 1 | AF30: 705.3861028 | AG30: 0 | AH30: 9339 | AI30: =IFERROR(VLOOKUP(AR30, 'KIPP$$'!A:G, 7, 0), "") ->  | AJ30: 4.2009 | AK30: 32 | AL30: =IFERROR(VLOOKUP($AR30,School_View8[[NCSE_ID]:[Max_Unmet_Need]],3,FALSE),"") ->  | AM30: =IFERROR(VLOOKUP($AR30,School_View8[[NCSE_ID]:[Max_Unmet_Need]],4,FALSE),"") ->  | AO30: =--ISNUMBER(IFERROR(SEARCH('Wish List and Search'!$H$12,$AS30,1),"")) -> 1 | AP30: =IF(AO30=1,COUNTIF($AO$4:AO30,1),"") -> 27 | AQ30: =IFERROR(INDEX($AS$4:$AS$3000,MATCH(ROWS($AP$4:AP30),$AP$4:$AP$3000,0)),"") -> Northwestern University | AR30: 147767 | AS30: Northwestern University | AT30: Evanston | AU30: IL | AV30: Private 4 yr | AW30: Most Competitive+ | AX30: 29326 | AY30: 9339 | AZ30: 7150 | BA30: 12763 | BB30: 50 | BC30: 93.5 | BD30: 90.9 | BE30: 98 | BF30: 32 | BG30: www.northwestern.edu | BJ30: City: Small | BK30: 8791 | BN30: 7 | BO30: 4.2009 | BP30: 0.2751 | BQ30: -17.92 | BR30: 0 | BS30: -87.6799 | BT30: 42.0504
A31: 216287 | B31: Swarthmore College | C31: =IF(ISERROR(Y31),"No Data",IF(Y31<15,"Far Reach",IF(Y31<50,"Reach",IF(Y31<80,"Target",IF(Y31>=80,IF(BD31="NULL","Likely",IF(StudentTargets!$AC$11<=AllColleges!BD31/100,"Likely+","Likely")),""))))) -> Far Reach | F31: 0 | G31: 0 | H31: 28 | J31: =IF(ISERROR(Y31),0,IF(AND(I31=1,Y31>=80),1,IF(OR(ISERROR(Y31),BD31="NULL"),0,IF(AND(Y31>=80,BN31>=(StudentTargets!$W$15-1),StudentTargets!$AC$11<=AllColleges!BD31/100),1,0)*AE31))) ->  | K31: =IF(ISERROR(Y31),0,IF(AND(I31=1,Y31>=80),0,IF(ISERROR(Y31),0,IF(AND(Y31>=80,BN31>=(StudentTargets!$W$15-1)),IF(ISERROR(StudentTargets!$AC$11>(BD31/100)),1,IF(StudentTargets!$AC$11>(BD31/100),1,0)),0))*AE31)) ->  | L31: 0 | M31: 0 | N31: 1 | R31: 0 | S31: 0 | T31: 4.2009 | U31: 0.2751 | V31: -17.92 | W31: -26.173 | X31: -26.173 | Y31: 4.297446959e-10 | Z31: 1 | AA31: 1 | AB31: 1 | AC31: =IF(FilterSchoolType="Any",1,IF(AND(FilterSchoolType=Lookups!$S$5,FilterState=AU31),1,IF(AND(FilterSchoolType=Lookups!$S$3,FilterState=AU31,LEFT(AV31,3)="Pub"),1,IF(AND(FilterSchoolType=Lookups!$S$4,LEFT(AV31,3)="Pub"),1,0)))) -> 1 | AD31: 1 | AE31: 1 | AF31: 84.9243659 | AG31: 0 | AH31: 8038 | AI31: =IFERROR(VLOOKUP(AR31, 'KIPP$$'!A:G, 7, 0), "") ->  | AJ31: 4.2009 | AK31: 30 | AL31: =IFERROR(VLOOKUP($AR31,School_View8[[NCSE_ID]:[Max_Unmet_Need]],3,FALSE),"") ->  | AM31: =IFERROR(VLOOKUP($AR31,School_View8[[NCSE_ID]:[Max_Unmet_Need]],4,FALSE),"") ->  | AO31: =--ISNUMBER(IFERROR(SEARCH('Wish List and Search'!$H$12,$AS31,1),"")) -> 1 | AP31: =IF(AO31=1,COUNTIF($AO$4:AO31,1),"") -> 28 | AQ31: =IFERROR(INDEX($AS$4:$AS$3000,MATCH(ROWS($AP$4:AP31),$AP$4:$AP$3000,0)),"") -> Swarthmore College | AR31: 216287 | AS31: Swarthmore College | AT31: Swarthmore | AU31: PA | AV31: Private 4 yr | AW31: Most Competitive+ | AX31: 19641 | AY31: 8038 | AZ31: 6165 | BA31: 12638 | BB31: 50 | BC31: 94.1 | BD31: 90.8 | BE31: 98 | BF31: 30 | BG31: www.swarthmore.edu | BJ31: Suburb: Large | BK31: 1543 | BN31: 7 | BO31: 4.2009 | BP31: 0.2751 | BQ31: -17.92 | BR31: 0 | BS31: -75.3543 | BT31: 39.9052
A32: 130697 | B32: Wesleyan University | C32: =IF(ISERROR(Y32),"No Data",IF(Y32<15,"Far Reach",IF(Y32<50,"Reach",IF(Y32<80,"Target",IF(Y32>=80,IF(BD32="NULL","Likely",IF(StudentTargets!$AC$11<=AllColleges!BD32/100,"Likely+","Likely")),""))))) -> Far Reach | F32: 0 | G32: 0 | H32: 29 | J32: =IF(ISERROR(Y32),0,IF(AND(I32=1,Y32>=80),1,IF(OR(ISERROR(Y32),BD32="NULL"),0,IF(AND(Y32>=80,BN32>=(StudentTargets!$W$15-1),StudentTargets!$AC$11<=AllColleges!BD32/100),1,0)*AE32))) ->  | K32: =IF(ISERROR(Y32),0,IF(AND(I32=1,Y32>=80),0,IF(ISERROR(Y32),0,IF(AND(Y32>=80,BN32>=(StudentTargets!$W$15-1)),IF(ISERROR(StudentTargets!$AC$11>(BD32/100)),1,IF(StudentTargets!$AC$11>(BD32/100),1,0)),0))*AE32)) ->  | L32: 0 | M32: 0 | N32: 1 | R32: 0 | S32: 0 | T32: 4.2009 | U32: 0.2751 | V32: -17.92 | W32: -25.8979 | X32: -25.8979 | Y32: 5.658286546e-10 | Z32: 1 | AA32: 1 | AB32: 1 | AC32: =IF(FilterSchoolType="Any",1,IF(AND(FilterSchoolType=Lookups!$S$5,FilterState=AU32),1,IF(AND(FilterSchoolType=Lookups!$S$3,FilterState=AU32,LEFT(AV32,3)="Pub"),1,IF(AND(FilterSchoolType=Lookups!$S$4,LEFT(AV32,3)="Pub"),1,0)))) -> 1 | AD32: 1 | AE32: 1 | AF32: 96.88911264 | AG32: 0 | AH32: 5647 | AI32: =IFERROR(VLOOKUP(AR32, 'KIPP$$'!A:G, 7, 0), "") ->  | AJ32: 4.2009 | AK32: 29 | AL32: =IFERROR(VLOOKUP($AR32,School_View8[[NCSE_ID]:[Max_Unmet_Need]],3,FALSE),"") ->  | AM32: =IFERROR(VLOOKUP($AR32,School_View8[[NCSE_ID]:[Max_Unmet_Need]],4,FALSE),"") ->  | AO32: =--ISNUMBER(IFERROR(SEARCH('Wish List and Search'!$H$12,$AS32,1),"")) -> 1 | AP32: =IF(AO32=1,COUNTIF($AO$4:AO32,1),"") -> 29 | AQ32: =IFERROR(INDEX($AS$4:$AS$3000,MATCH(ROWS($AP$4:AP32),$AP$4:$AP$3000,0)),"") -> Wesleyan University | AR32: 130697 | AS32: Wesleyan University | AT32: Middletown | AU32: CT | AV32: Private 4 yr | AW32: Most Competitive+ | AX32: 20490 | AY32: 5647 | AZ32: 9805 | BA32: 11996 | BB32: 46 | BC32: 91.4 | BD32: 90.7 | BE32: 94 | BF32: 29 | BG32: www.wesleyan.edu | BJ32: City: Small | BK32: 2971 | BN32: 7 | BO32: 4.2009 | BP32: 0.2751 | BQ32: -17.92 | BR32: 0 | BS32: -72.6568 | BT32: 41.5568
A33: 162928 | B33: Johns Hopkins University | C33: =IF(ISERROR(Y33),"No Data",IF(Y33<15,"Far Reach",IF(Y33<50,"Reach",IF(Y33<80,"Target",IF(Y33>=80,IF(BD33="NULL","Likely",IF(StudentTargets!$AC$11<=AllColleges!BD33/100,"Likely+","Likely")),""))))) -> Far Reach | F33: 0 | G33: 0 | H33: 30 | J33: =IF(ISERROR(Y33),0,IF(AND(I33=1,Y33>=80),1,IF(OR(ISERROR(Y33),BD33="NULL"),0,IF(AND(Y33>=80,BN33>=(StudentTargets!$W$15-1),StudentTargets!$AC$11<=AllColleges!BD33/100),1,0)*AE33))) ->  | K33: =IF(ISERROR(Y33),0,IF(AND(I33=1,Y33>=80),0,IF(ISERROR(Y33),0,IF(AND(Y33>=80,BN33>=(StudentTargets!$W$15-1)),IF(ISERROR(StudentTargets!$AC$11>(BD33/100)),1,IF(StudentTargets!$AC$11>(BD33/100),1,0)),0))*AE33)) ->  | L33: 0 | M33: 0 | N33: 1 | R33: 0 | S33: 0 | T33: 4.2009 | U33: 0.2751 | V33: -17.92 | W33: -26.7232 | X33: -26.7232 | Y33: 2.478915376e-10 | Z33: 1 | AA33: 1 | AB33: 1 | AC33: =IF(FilterSchoolType="Any",1,IF(AND(FilterSchoolType=Lookups!$S$5,FilterState=AU33),1,IF(AND(FilterSchoolType=Lookups!$S$3,FilterState=AU33,LEFT(AV33,3)="Pub"),1,IF(AND(FilterSchoolType=Lookups!$S$4,LEFT(AV33,3)="Pub"),1,0)))) -> 1 | AD33: 1 | AE33: 1 | AF33: 162.213299 | AG33: 0 | AH33: 12297 | AI33: =IFERROR(VLOOKUP(AR33, 'KIPP$$'!A:G, 7, 0), "") ->  | AJ33: 4.2009 | AK33: 32 | AL33: =IFERROR(VLOOKUP($AR33,School_View8[[NCSE_ID]:[Max_Unmet_Need]],3,FALSE),"") ->  | AM33: =IFERROR(VLOOKUP($AR33,School_View8[[NCSE_ID]:[Max_Unmet_Need]],4,FALSE),"") ->  | AO33: =--ISNUMBER(IFERROR(SEARCH('Wish List and Search'!$H$12,$AS33,1),"")) -> 1 | AP33: =IF(AO33=1,COUNTIF($AO$4:AO33,1),"") -> 30 | AQ33: =IFERROR(INDEX($AS$4:$AS$3000,MATCH(ROWS($AP$4:AP33),$AP$4:$AP$3000,0)),"") -> Johns Hopkins University | AR33: 162928 | AS33: Johns Hopkins University | AT33: Baltimore | AU33: MD | AV33: Private 4 yr | AW33: Most Competitive+ | AX33: 27352 | AY33: 12297 | AZ33: 7096 | BA33: 14488 | BB33: 48 | BC33: 92.4 | BD33: 90.7 | BE33: 96 | BF33: 32 | BG33: www.jhu.edu | BJ33: City: Large | BK33: 6042 | BN33: 7 | BO33: 4.2009 | BP33: 0.2751 | BQ33: -17.92 | BR33: 0 | BS33: -76.6216 | BT33: 39.329
A34: 216597 | B34: Villanova University | C34: =IF(ISERROR(Y34),"No Data",IF(Y34<15,"Far Reach",IF(Y34<50,"Reach",IF(Y34<80,"Target",IF(Y34>=80,IF(BD34="NULL","Likely",IF(StudentTargets!$AC$11<=AllColleges!BD34/100,"Likely+","Likely")),""))))) -> Far Reach | F34: 0 | G34: 0 | H34: 31 | J34: =IF(ISERROR(Y34),0,IF(AND(I34=1,Y34>=80),1,IF(OR(ISERROR(Y34),BD34="NULL"),0,IF(AND(Y34>=80,BN34>=(StudentTargets!$W$15-1),StudentTargets!$AC$11<=AllColleges!BD34/100),1,0)*AE34))) ->  | K34: =IF(ISERROR(Y34),0,IF(AND(I34=1,Y34>=80),0,IF(ISERROR(Y34),0,IF(AND(Y34>=80,BN34>=(StudentTargets!$W$15-1)),IF(ISERROR(StudentTargets!$AC$11>(BD34/100)),1,IF(StudentTargets!$AC$11>(BD34/100),1,0)),0))*AE34)) ->  | L34: 0 | M34: 0 | N34: 1 | R34: 0 | S34: 0 | T34: 4.7749 | U34: 0.322 | V34: -17.95 | W34: -27.61 | X34: -27.61 | Y34: 1.021243616e-10 | Z34: 1 | AA34: 1 | AB34: 1 | AC34: =IF(FilterSchoolType="Any",1,IF(AND(FilterSchoolType=Lookups!$S$5,FilterState=AU34),1,IF(AND(FilterSchoolType=Lookups!$S$3,FilterState=AU34,LEFT(AV34,3)="Pub"),1,IF(AND(FilterSchoolType=Lookups!$S$4,LEFT(AV34,3)="Pub"),1,0)))) -> 1 | AD34: 1 | AE34: 1 | AF34: 78.51979103 | AG34: 0 | AH34: 19284 | AI34: =IFERROR(VLOOKUP(AR34, 'KIPP$$'!A:G, 7, 0), "") ->  | AJ34: 4.7749 | AK34: 30 | AL34: =IFERROR(VLOOKUP($AR34,School_View8[[NCSE_ID]:[Max_Unmet_Need]],3,FALSE),"") ->  | AM34: =IFERROR(VLOOKUP($AR34,School_View8[[NCSE_ID]:[Max_Unmet_Need]],4,FALSE),"") ->  | AO34: =--ISNUMBER(IFERROR(SEARCH('Wish List and Search'!$H$12,$AS34,1),"")) -> 1 | AP34: =IF(AO34=1,COUNTIF($AO$4:AO34,1),"") -> 31 | AQ34: =IFERROR(INDEX($AS$4:$AS$3000,MATCH(ROWS($AP$4:AP34),$AP$4:$AP$3000,0)),"") -> Villanova University | AR34: 216597 | AS34: Villanova University | AT34: Villanova | AU34: PA | AV34: Private 4 yr | AW34: Most Competitive | AX34: 33270 | AY34: 19284 | AZ34: 25649 | BA34: 29815 | BB34: 47 | BC34: 90.7 | BD34: 90.7 | BE34: 95 | BF34: 30 | BG34: www.villanova.edu | BJ34: Suburb: Large | BK34: 6999 | BN34: 6 | BO34: 4.7749 | BP34: 0.322 | BQ34: -17.95 | BR34: 0 | BS34: -75.3455 | BT34: 40.0394
A35: 164465 | B35: Amherst College | C35: =IF(ISERROR(Y35),"No Data",IF(Y35<15,"Far Reach",IF(Y35<50,"Reach",IF(Y35<80,"Target",IF(Y35>=80,IF(BD35="NULL","Likely",IF(StudentTargets!$AC$11<=AllColleges!BD35/100,"Likely+","Likely")),""))))) -> Far Reach | F35: 0 | G35: 0 | H35: 32 | J35: =IF(ISERROR(Y35),0,IF(AND(I35=1,Y35>=80),1,IF(OR(ISERROR(Y35),BD35="NULL"),0,IF(AND(Y35>=80,BN35>=(StudentTargets!$W$15-1),StudentTargets!$AC$11<=AllColleges!BD35/100),1,0)*AE35))) ->  | K35: =IF(ISERROR(Y35),0,IF(AND(I35=1,Y35>=80),0,IF(ISERROR(Y35),0,IF(AND(Y35>=80,BN35>=(StudentTargets!$W$15-1)),IF(ISERROR(StudentTargets!$AC$11>(BD35/100)),1,IF(StudentTargets!$AC$11>(BD35/100),1,0)),0))*AE35)) ->  | L35: 0 | M35: 0 | N35: 1 | R35: 0 | S35: 0 | T35: 4.2009 | U35: 0.2751 | V35: -17.92 | W35: -26.4481 | X35: -26.4481 | Y35: 3.263894505e-10 | Z35: 1 | AA35: 1 | AB35: 1 | AC35: =IF(FilterSchoolType="Any",1,IF(AND(FilterSchoolType=Lookups!$S$5,FilterState=AU35),1,IF(AND(FilterSchoolType=Lookups!$S$3,FilterState=AU35,LEFT(AV35,3)="Pub"),1,IF(AND(FilterSchoolType=Lookups!$S$4,LEFT(AV35,3)="Pub"),1,0)))) -> 1 | AD35: 1 | AE35: 1 | AF35: 141.5235585 | AG35: 0 | AH35: 6228 | AI35: =IFERROR(VLOOKUP(AR35, 'KIPP$$'!A:G, 7, 0), "") ->  | AJ35: 4.2009 | AK35: 31 | AL35: =IFERROR(VLOOKUP($AR35,School_View8[[NCSE_ID]:[Max_Unmet_Need]],3,FALSE),"") ->  | AM35: =IFERROR(VLOOKUP($AR35,School_View8[[NCSE_ID]:[Max_Unmet_Need]],4,FALSE),"") ->  | AO35: =--ISNUMBER(IFERROR(SEARCH('Wish List and Search'!$H$12,$AS35,1),"")) -> 1 | AP35: =IF(AO35=1,COUNTIF($AO$4:AO35,1),"") -> 32 | AQ35: =IFERROR(INDEX($AS$4:$AS$3000,MATCH(ROWS($AP$4:AP35),$AP$4:$AP$3000,0)),"") -> Amherst College | AR35: 164465 | AS35: Amherst College | AT35: Amherst | AU35: MA | AV35: Private 4 yr | AW35: Most Competitive+ | AX35: 19055 | AY35: 6228 | AZ35: 4764 | BA35: 13268 | BB35: 50 | BC35: 93.5 | BD35: 90.6 | BE35: 96 | BF35: 31 | BG35: www.amherst.edu | BJ35: Suburb: Large | BK35: 1849 | BN35: 7 | BO35: 4.2009 | BP35: 0.2751 | BQ35: -17.92 | BR35: 0 | BS35: -72.5185 | BT35: 42.3725
A36: 168148 | B36: Tufts University | C36: =IF(ISERROR(Y36),"No Data",IF(Y36<15,"Far Reach",IF(Y36<50,"Reach",IF(Y36<80,"Target",IF(Y36>=80,IF(BD36="NULL","Likely",IF(StudentTargets!$AC$11<=AllColleges!BD36/100,"Likely+","Likely")),""))))) -> Far Reach | F36: 0 | G36: 0 | H36: 33 | J36: =IF(ISERROR(Y36),0,IF(AND(I36=1,Y36>=80),1,IF(OR(ISERROR(Y36),BD36="NULL"),0,IF(AND(Y36>=80,BN36>=(StudentTargets!$W$15-1),StudentTargets!$AC$11<=AllColleges!BD36/100),1,0)*AE36))) ->  | K36: =IF(ISERROR(Y36),0,IF(AND(I36=1,Y36>=80),0,IF(ISERROR(Y36),0,IF(AND(Y36>=80,BN36>=(StudentTargets!$W$15-1)),IF(ISERROR(StudentTargets!$AC$11>(BD36/100)),1,IF(StudentTargets!$AC$11>(BD36/100),1,0)),0))*AE36)) ->  | L36: 0 | M36: 0 | N36: 1 | R36: 0 | S36: 0 | T36: 4.2009 | U36: 0.2751 | V36: -17.92 | W36: -26.4481 | X36: -26.4481 | Y36: 3.263894505e-10 | Z36: 1 | AA36: 1 | AB36: 1 | AC36: =IF(FilterSchoolType="Any",1,IF(AND(FilterSchoolType=Lookups!$S$5,FilterState=AU36),1,IF(AND(FilterSchoolType=Lookups!$S$3,FilterState=AU36,LEFT(AV36,3)="Pub"),1,IF(AND(FilterSchoolType=Lookups!$S$4,LEFT(AV36,3)="Pub"),1,0)))) -> 1 | AD36: 1 | AE36: 1 | AF36: 195.296607 | AG36: 0 | AH36: 9222 | AI36: =IFERROR(VLOOKUP(AR36, 'KIPP$$'!A:G, 7, 0), "") ->  | AJ36: 4.2009 | AK36: 31 | AL36: =IFERROR(VLOOKUP($AR36,School_View8[[NCSE_ID]:[Max_Unmet_Need]],3,FALSE),"") ->  | AM36: =IFERROR(VLOOKUP($AR36,School_View8[[NCSE_ID]:[Max_Unmet_Need]],4,FALSE),"") ->  | AO36: =--ISNUMBER(IFERROR(SEARCH('Wish List and Search'!$H$12,$AS36,1),"")) -> 1 | AP36: =IF(AO36=1,COUNTIF($AO$4:AO36,1),"") -> 33 | AQ36: =IFERROR(INDEX($AS$4:$AS$3000,MATCH(ROWS($AP$4:AP36),$AP$4:$AP$3000,0)),"") -> Tufts University | AR36: 168148 | AS36: Tufts University | AT36: Medford | AU36: MA | AV36: Private 4 yr | AW36: Most Competitive+ | AX36: 28076 | AY36: 9222 | AZ36: 10377 | BA36: 18872 | BB36: 50 | BC36: 92.1 | BD36: 90.3 | BE36: 96 | BF36: 31 | BG36: www.tufts.edu | BJ36: Suburb: Large | BK36: 5508 | BN36: 7 | BO36: 4.2009 | BP36: 0.2751 | BQ36: -17.92 | BR36: 0 | BS36: -71.1203 | BT36: 42.4085
A37: 168218 | B37: Wellesley College | C37: =IF(ISERROR(Y37),"No Data",IF(Y37<15,"Far Reach",IF(Y37<50,"Reach",IF(Y37<80,"Target",IF(Y37>=80,IF(BD37="NULL","Likely",IF(StudentTargets!$AC$11<=AllColleges!BD37/100,"Likely+","Likely")),""))))) -> Far Reach | F37: 0 | G37: 0 | H37: 34 | J37: =IF(ISERROR(Y37),0,IF(AND(I37=1,Y37>=80),1,IF(OR(ISERROR(Y37),BD37="NULL"),0,IF(AND(Y37>=80,BN37>=(StudentTargets!$W$15-1),StudentTargets!$AC$11<=AllColleges!BD37/100),1,0)*AE37))) ->  | K37: =IF(ISERROR(Y37),0,IF(AND(I37=1,Y37>=80),0,IF(ISERROR(Y37),0,IF(AND(Y37>=80,BN37>=(StudentTargets!$W$15-1)),IF(ISERROR(StudentTargets!$AC$11>(BD37/100)),1,IF(StudentTargets!$AC$11>(BD37/100),1,0)),0))*AE37)) ->  | L37: 0 | M37: 0 | N37: 1 | R37: 0 | S37: 0 | T37: 4.7749 | U37: 0.322 | V37: -17.95 | W37: -27.61 | X37: -27.61 | Y37: 1.021243616e-10 | Z37: 1 | AA37: 1 | AB37: 1 | AC37: =IF(FilterSchoolType="Any",1,IF(AND(FilterSchoolType=Lookups!$S$5,FilterState=AU37),1,IF(AND(FilterSchoolType=Lookups!$S$3,FilterState=AU37,LEFT(AV37,3)="Pub"),1,IF(AND(FilterSchoolType=Lookups!$S$4,LEFT(AV37,3)="Pub"),1,0)))) -> 1 | AD37: 1 | AE37: 1 | AF37: 182.8694446 | AG37: 0 | AH37: 8357 | AI37: =IFERROR(VLOOKUP(AR37, 'KIPP$$'!A:G, 7, 0), "") ->  | AJ37: 4.7749 | AK37: 30 | AL37: =IFERROR(VLOOKUP($AR37,School_View8[[NCSE_ID]:[Max_Unmet_Need]],3,FALSE),"") ->  | AM37: =IFERROR(VLOOKUP($AR37,School_View8[[NCSE_ID]:[Max_Unmet_Need]],4,FALSE),"") ->  | AO37: =--ISNUMBER(IFERROR(SEARCH('Wish List and Search'!$H$12,$AS37,1),"")) -> 1 | AP37: =IF(AO37=1,COUNTIF($AO$4:AO37,1),"") -> 34 | AQ37: =IFERROR(INDEX($AS$4:$AS$3000,MATCH(ROWS($AP$4:AP37),$AP$4:$AP$3000,0)),"") -> Wellesley College | AR37: 168218 | AS37: Wellesley College | AT37: Wellesley | AU37: MA | AV37: Private 4 yr | AW37: Most Competitive | AX37: 20013 | AY37: 8357 | AZ37: 9228 | BA37: 12581 | BB37: 2 | BC37: 91 | BD37: 90.3 | BE37: 96 | BF37: 30 | BG37: www.wellesley.edu | BJ37: Suburb: Large | BK37: 2482 | BN37: 6 | BO37: 4.7749 | BP37: 0.322 | BQ37: -17.95 | BR37: 0 | BS37: -71.3066 | BT37: 42.2916
A38: 197133 | B38: Vassar College | C38: =IF(ISERROR(Y38),"No Data",IF(Y38<15,"Far Reach",IF(Y38<50,"Reach",IF(Y38<80,"Target",IF(Y38>=80,IF(BD38="NULL","Likely",IF(StudentTargets!$AC$11<=AllColleges!BD38/100,"Likely+","Likely")),""))))) -> Far Reach | F38: 0 | G38: 0 | H38: 35 | J38: =IF(ISERROR(Y38),0,IF(AND(I38=1,Y38>=80),1,IF(OR(ISERROR(Y38),BD38="NULL"),0,IF(AND(Y38>=80,BN38>=(StudentTargets!$W$15-1),StudentTargets!$AC$11<=AllColleges!BD38/100),1,0)*AE38))) ->  | K38: =IF(ISERROR(Y38),0,IF(AND(I38=1,Y38>=80),0,IF(ISERROR(Y38),0,IF(AND(Y38>=80,BN38>=(StudentTargets!$W$15-1)),IF(ISERROR(StudentTargets!$AC$11>(BD38/100)),1,IF(StudentTargets!$AC$11>(BD38/100),1,0)),0))*AE38)) ->  | L38: 0 | M38: 0 | N38: 1 | R38: 0 | S38: 0 | T38: 4.2009 | U38: 0.2751 | V38: -17.92 | W38: -26.173 | X38: -26.173 | Y38: 4.297446959e-10 | Z38: 1 | AA38: 1 | AB38: 1 | AC38: =IF(FilterSchoolType="Any",1,IF(AND(FilterSchoolType=Lookups!$S$5,FilterState=AU38),1,IF(AND(FilterSchoolType=Lookups!$S$3,FilterState=AU38,LEFT(AV38,3)="Pub"),1,IF(AND(FilterSchoolType=Lookups!$S$4,LEFT(AV38,3)="Pub"),1,0)))) -> 1 | AD38: 1 | AE38: 1 | AF38: 66.95428459 | AG38: 0 | AH38: 5585 | AI38: =IFERROR(VLOOKUP(AR38, 'KIPP$$'!A:G, 7, 0), "") ->  | AJ38: 4.2009 | AK38: 30 | AL38: =IFERROR(VLOOKUP($AR38,School_View8[[NCSE_ID]:[Max_Unmet_Need]],3,FALSE),"") ->  | AM38: =IFERROR(VLOOKUP($AR38,School_View8[[NCSE_ID]:[Max_Unmet_Need]],4,FALSE),"") ->  | AO38: =--ISNUMBER(IFERROR(SEARCH('Wish List and Search'!$H$12,$AS38,1),"")) -> 1 | AP38: =IF(AO38=1,COUNTIF($AO$4:AO38,1),"") -> 35 | AQ38: =IFERROR(INDEX($AS$4:$AS$3000,MATCH(ROWS($AP$4:AP38),$AP$4:$AP$3000,0)),"") -> Vassar College | AR38: 197133 | AS38: Vassar College | AT38: Poughkeepsie | AU38: NY | AV38: Private 4 yr | AW38: Most Competitive+ | AX38: 21933 | AY38: 5585 | AZ38: 4743 | BA38: 12188 | BB38: 43 | BC38: 91.1 | BD38: 90.1 | BE38: 96 | BF38: 30 | BG38: www.vassar.edu | BJ38: Suburb: Large | BK38: 2424 | BN38: 7 | BO38: 4.2009 | BP38: 0.2751 | BQ38: -17.92 | BR38: 0 | BS38: -73.8943 | BT38: 41.6851
A39: 227757 | B39: Rice University | C39: =IF(ISERROR(Y39),"No Data",IF(Y39<15,"Far Reach",IF(Y39<50,"Reach",IF(Y39<80,"Target",IF(Y39>=80,IF(BD39="NULL","Likely",IF(StudentTargets!$AC$11<=AllColleges!BD39/100,"Likely+","Likely")),""))))) -> Far Reach | F39: 0 | G39: 0 | H39: 36 | J39: =IF(ISERROR(Y39),0,IF(AND(I39=1,Y39>=80),1,IF(OR(ISERROR(Y39),BD39="NULL"),0,IF(AND(Y39>=80,BN39>=(StudentTargets!$W$15-1),StudentTargets!$AC$11<=AllColleges!BD39/100),1,0)*AE39))) ->  | K39: =IF(ISERROR(Y39),0,IF(AND(I39=1,Y39>=80),0,IF(ISERROR(Y39),0,IF(AND(Y39>=80,BN39>=(StudentTargets!$W$15-1)),IF(ISERROR(StudentTargets!$AC$11>(BD39/100)),1,IF(StudentTargets!$AC$11>(BD39/100),1,0)),0))*AE39)) ->  | L39: 0 | M39: 0 | N39: 1 | R39: 0 | S39: 0 | T39: 4.2009 | U39: 0.2751 | V39: -17.92 | W39: -26.7232 | X39: -26.7232 | Y39: 2.478915376e-10 | Z39: 1 | AA39: 1 | AB39: 1 | AC39: =IF(FilterSchoolType="Any",1,IF(AND(FilterSchoolType=Lookups!$S$5,FilterState=AU39),1,IF(AND(FilterSchoolType=Lookups!$S$3,FilterState=AU39,LEFT(AV39,3)="Pub"),1,IF(AND(FilterSchoolType=Lookups!$S$4,LEFT(AV39,3)="Pub"),1,0)))) -> 1 | AD39: 1 | AE39: 1 | AF39: 1413.971277 | AG39: 0 | AH39: 5398 | AI39: =IFERROR(VLOOKUP(AR39, 'KIPP$$'!A:G, 7, 0), "") ->  | AJ39: 4.2009 | AK39: 32 | AL39: =IFERROR(VLOOKUP($AR39,School_View8[[NCSE_ID]:[Max_Unmet_Need]],3,FALSE),"") ->  | AM39: =IFERROR(VLOOKUP($AR39,School_View8[[NCSE_ID]:[Max_Unmet_Need]],4,FALSE),"") ->  | AO39: =--ISNUMBER(IFERROR(SEARCH('Wish List and Search'!$H$12,$AS39,1),"")) -> 1 | AP39: =IF(AO39=1,COUNTIF($AO$4:AO39,1),"") -> 36 | AQ39: =IFERROR(INDEX($AS$4:$AS$3000,MATCH(ROWS($AP$4:AP39),$AP$4:$AP$3000,0)),"") -> Rice University | AR39: 227757 | AS39: Rice University | AT39: Houston | AU39: TX | AV39: Private 4 yr | AW39: Most Competitive+ | AX39: 22061 | AY39: 5398 | AZ39: 6293 | BA39: 10080 | BB39: 52 | BC39: 93.1 | BD39: 90.1 | BE39: 96 | BF39: 32 | BG39: www.rice.edu | BJ39: City: Large | BK39: 3893 | BN39: 7 | BO39: 4.2009 | BP39: 0.2751 | BQ39: -17.92 | BR39: 0 | BS39: -95.402 | BT39: 29.7179
A40: 164924 | B40: Boston College | C40: =IF(ISERROR(Y40),"No Data",IF(Y40<15,"Far Reach",IF(Y40<50,"Reach",IF(Y40<80,"Target",IF(Y40>=80,IF(BD40="NULL","Likely",IF(StudentTargets!$AC$11<=AllColleges!BD40/100,"Likely+","Likely")),""))))) -> Far Reach | F40: 0 | G40: 0 | H40: 37 | J40: =IF(ISERROR(Y40),0,IF(AND(I40=1,Y40>=80),1,IF(OR(ISERROR(Y40),BD40="NULL"),0,IF(AND(Y40>=80,BN40>=(StudentTargets!$W$15-1),StudentTargets!$AC$11<=AllColleges!BD40/100),1,0)*AE40))) ->  | K40: =IF(ISERROR(Y40),0,IF(AND(I40=1,Y40>=80),0,IF(ISERROR(Y40),0,IF(AND(Y40>=80,BN40>=(StudentTargets!$W$15-1)),IF(ISERROR(StudentTargets!$AC$11>(BD40/100)),1,IF(StudentTargets!$AC$11>(BD40/100),1,0)),0))*AE40)) ->  | L40: 0 | M40: 0 | N40: 1 | R40: 0 | S40: 0 | T40: 4.7749 | U40: 0.322 | V40: -17.95 | W40: -27.61 | X40: -27.61 | Y40: 1.021243616e-10 | Z40: 1 | AA40: 1 | AB40: 1 | AC40: =IF(FilterSchoolType="Any",1,IF(AND(FilterSchoolType=Lookups!$S$5,FilterState=AU40),1,IF(AND(FilterSchoolType=Lookups!$S$3,FilterState=AU40,LEFT(AV40,3)="Pub"),1,IF(AND(FilterSchoolType=Lookups!$S$4,LEFT(AV40,3)="Pub"),1,0)))) -> 1 | AD40: 1 | AE40: 1 | AF40: 190.3569505 | AG40: 0 | AH40: 5549 | AI40: =IFERROR(VLOOKUP(AR40, 'KIPP$$'!A:G, 7, 0), "") ->  | AJ40: 4.7749 | AK40: 30 | AL40: =IFERROR(VLOOKUP($AR40,School_View8[[NCSE_ID]:[Max_Unmet_Need]],3,FALSE),"") ->  | AM40: =IFERROR(VLOOKUP($AR40,School_View8[[NCSE_ID]:[Max_Unmet_Need]],4,FALSE),"") ->  | AO40: =--ISNUMBER(IFERROR(SEARCH('Wish List and Search'!$H$12,$AS40,1),"")) -> 1 | AP40: =IF(AO40=1,COUNTIF($AO$4:AO40,1),"") -> 37 | AQ40: =IFERROR(INDEX($AS$4:$AS$3000,MATCH(ROWS($AP$4:AP40),$AP$4:$AP$3000,0)),"") -> Boston College | AR40: 164924 | AS40: Boston College | AT40: Chestnut Hill | AU40: MA | AV40: Private 4 yr | AW40: Most Competitive | AX40: 27167 | AY40: 5549 | AZ40: 9179 | BA40: 15827 | BB40: 46 | BC40: 92.5 | BD40: 89.9 | BE40: 95 | BF40: 30 | BG40: www.bc.edu | BJ40: City: Small | BK40: 9870 | BN40: 6 | BO40: 4.7749 | BP40: 0.322 | BQ40: -17.95 | BR40: 0 | BS40: -71.1715 | BT40: 42.3377
A41: 231624 | B41: College of William and Mary | C41: =IF(ISERROR(Y41),"No Data",IF(Y41<15,"Far Reach",IF(Y41<50,"Reach",IF(Y41<80,"Target",IF(Y41>=80,IF(BD41="NULL","Likely",IF(StudentTargets!$AC$11<=AllColleges!BD41/100,"Likely+","Likely")),""))))) -> Far Reach | F41: 0 | G41: 0 | H41: 38 | J41: =IF(ISERROR(Y41),0,IF(AND(I41=1,Y41>=80),1,IF(OR(ISERROR(Y41),BD41="NULL"),0,IF(AND(Y41>=80,BN41>=(StudentTargets!$W$15-1),StudentTargets!$AC$11<=AllColleges!BD41/100),1,0)*AE41))) ->  | K41: =IF(ISERROR(Y41),0,IF(AND(I41=1,Y41>=80),0,IF(ISERROR(Y41),0,IF(AND(Y41>=80,BN41>=(StudentTargets!$W$15-1)),IF(ISERROR(StudentTargets!$AC$11>(BD41/100)),1,IF(StudentTargets!$AC$11>(BD41/100),1,0)),0))*AE41)) ->  | L41: 0 | M41: 0 | N41: 1 | R41: 0 | S41: 0 | T41: 4.7749 | U41: 0.322 | V41: -17.95 | W41: -26.966 | X41: -26.966 | Y41: 1.944531581e-10 | Z41: 1 | AA41: 1 | AB41: 1 | AC41: =IF(FilterSchoolType="Any",1,IF(AND(FilterSchoolType=Lookups!$S$5,FilterState=AU41),1,IF(AND(FilterSchoolType=Lookups!$S$3,FilterState=AU41,LEFT(AV41,3)="Pub"),1,IF(AND(FilterSchoolType=Lookups!$S$4,LEFT(AV41,3)="Pub"),1,0)))) -> 1 | AD41: 1 | AE41: 1 | AF41: 275.7050305 | AG41: 1 | AH41: 4459 | AI41: =IFERROR(VLOOKUP(AR41, 'KIPP$$'!A:G, 7, 0), "") ->  | AJ41: 4.7749 | AK41: 28 | AL41: =IFERROR(VLOOKUP($AR41,School_View8[[NCSE_ID]:[Max_Unmet_Need]],3,FALSE),"") ->  | AM41: =IFERROR(VLOOKUP($AR41,School_View8[[NCSE_ID]:[Max_Unmet_Need]],4,FALSE),"") ->  | AO41: =--ISNUMBER(IFERROR(SEARCH('Wish List and Search'!$H$12,$AS41,1),"")) -> 1 | AP41: =IF(AO41=1,COUNTIF($AO$4:AO41,1),"") -> 38 | AQ41: =IFERROR(INDEX($AS$4:$AS$3000,MATCH(ROWS($AP$4:AP41),$AP$4:$AP$3000,0)),"") -> College of William and Mary | AR41: 231624 | AS41: College of William and Mary | AT41: Williamsburg | AU41: VA | AV41: Public 4 yr | AW41: Most Competitive | AX41: 16734 | AY41: 4459 | AZ41: 5682 | BA41: 10238 | BB41: 42 | BC41: 91.5 | BD41: 89.9 | BE41: 95 | BF41: 28 | BG41: www.wm.edu | BJ41: Suburb: Small | BK41: 6276 | BN41: 6 | BO41: 4.7749 | BP41: 0.322 | BQ41: -17.95 | BR41: 0 | BS41: -76.7082 | BT41: 37.2695
A42: 166124 | B42: College of the Holy Cross | C42: =IF(ISERROR(Y42),"No Data",IF(Y42<15,"Far Reach",IF(Y42<50,"Reach",IF(Y42<80,"Target",IF(Y42>=80,IF(BD42="NULL","Likely",IF(StudentTargets!$AC$11<=AllColleges!BD42/100,"Likely+","Likely")),""))))) -> Far Reach | F42: 0 | G42: 0 | H42: 39 | J42: =IF(ISERROR(Y42),0,IF(AND(I42=1,Y42>=80),1,IF(OR(ISERROR(Y42),BD42="NULL"),0,IF(AND(Y42>=80,BN42>=(StudentTargets!$W$15-1),StudentTargets!$AC$11<=AllColleges!BD42/100),1,0)*AE42))) ->  | K42: =IF(ISERROR(Y42),0,IF(AND(I42=1,Y42>=80),0,IF(ISERROR(Y42),0,IF(AND(Y42>=80,BN42>=(StudentTargets!$W$15-1)),IF(ISERROR(StudentTargets!$AC$11>(BD42/100)),1,IF(StudentTargets!$AC$11>(BD42/100),1,0)),0))*AE42)) ->  | L42: 0 | M42: 0 | N42: 1 | R42: 0 | S42: 0 | T42: 4.7749 | U42: 0.322 | V42: -17.95 | W42: -26.966 | X42: -26.966 | Y42: 1.944531581e-10 | Z42: 1 | AA42: 1 | AB42: 1 | AC42: =IF(FilterSchoolType="Any",1,IF(AND(FilterSchoolType=Lookups!$S$5,FilterState=AU42),1,IF(AND(FilterSchoolType=Lookups!$S$3,FilterState=AU42,LEFT(AV42,3)="Pub"),1,IF(AND(FilterSchoolType=Lookups!$S$4,LEFT(AV42,3)="Pub"),1,0)))) -> 1 | AD42: 1 | AE42: 1 | AF42: 160.2191432 | AG42: 0 | AH42: 9169 | AI42: =IFERROR(VLOOKUP(AR42, 'KIPP$$'!A:G, 7, 0), "") ->  | AJ42: 4.7749 | AK42: 28 | AL42: =IFERROR(VLOOKUP($AR42,School_View8[[NCSE_ID]:[Max_Unmet_Need]],3,FALSE),"") ->  | AM42: =IFERROR(VLOOKUP($AR42,School_View8[[NCSE_ID]:[Max_Unmet_Need]],4,FALSE),"") ->  | AO42: =--ISNUMBER(IFERROR(SEARCH('Wish List and Search'!$H$12,$AS42,1),"")) -> 1 | AP42: =IF(AO42=1,COUNTIF($AO$4:AO42,1),"") -> 39 | AQ42: =IFERROR(INDEX($AS$4:$AS$3000,MATCH(ROWS($AP$4:AP42),$AP$4:$AP$3000,0)),"") -> College of the Holy Cross | AR42: 166124 | AS42: College of the Holy Cross | AT42: Worcester | AU42: MA | AV42: Private 4 yr | AW42: Most Competitive | AX42: 26965 | AY42: 9169 | AZ42: 13953 | BA42: 17426 | BB42: 49 | BC42: 91.6 | BD42: 89.7 | BE42: 96 | BF42: 28 | BG42: www.holycross.edu | BJ42: City: Midsize | BK42: 2720 | BN42: 6 | BO42: 4.7749 | BP42: 0.322 | BQ42: -17.95 | BR42: 0 | BS42: -71.8086 | BT42: 42.2389
A43: 221999 | B43: Vanderbilt University | C43: =IF(ISERROR(Y43),"No Data",IF(Y43<15,"Far Reach",IF(Y43<50,"Reach",IF(Y43<80,"Target",IF(Y43>=80,IF(BD43="NULL","Likely",IF(StudentTargets!$AC$11<=AllColleges!BD43/100,"Likely+","Likely")),""))))) -> Far Reach | F43: 0 | G43: 0 | H43: 40 | J43: =IF(ISERROR(Y43),0,IF(AND(I43=1,Y43>=80),1,IF(OR(ISERROR(Y43),BD43="NULL"),0,IF(AND(Y43>=80,BN43>=(StudentTargets!$W$15-1),StudentTargets!$AC$11<=AllColleges!BD43/100),1,0)*AE43))) ->  | K43: =IF(ISERROR(Y43),0,IF(AND(I43=1,Y43>=80),0,IF(ISERROR(Y43),0,IF(AND(Y43>=80,BN43>=(StudentTargets!$W$15-1)),IF(ISERROR(StudentTargets!$AC$11>(BD43/100)),1,IF(StudentTargets!$AC$11>(BD43/100),1,0)),0))*AE43)) ->  | L43: 0 | M43: 0 | N43: 1 | R43: 0 | S43: 0 | T43: 4.2009 | U43: 0.2751 | V43: -17.92 | W43: -26.7232 | X43: -26.7232 | Y43: 2.478915376e-10 | Z43: 1 | AA43: 1 | AB43: 1 | AC43: =IF(FilterSchoolType="Any",1,IF(AND(FilterSchoolType=Lookups!$S$5,FilterState=AU43),1,IF(AND(FilterSchoolType=Lookups!$S$3,FilterState=AU43,LEFT(AV43,3)="Pub"),1,IF(AND(FilterSchoolType=Lookups!$S$4,LEFT(AV43,3)="Pub"),1,0)))) -> 1 | AD43: 1 | AE43: 1 | AF43: 752.7787585 | AG43: 0 | AH43: 3482 | AI43: =IFERROR(VLOOKUP(AR43, 'KIPP$$'!A:G, 7, 0), "") ->  | AJ43: 4.2009 | AK43: 32 | AL43: =IFERROR(VLOOKUP($AR43,School_View8[[NCSE_ID]:[Max_Unmet_Need]],3,FALSE),"") ->  | AM43: =IFERROR(VLOOKUP($AR43,School_View8[[NCSE_ID]:[Max_Unmet_Need]],4,FALSE),"") ->  | AO43: =--ISNUMBER(IFERROR(SEARCH('Wish List and Search'!$H$12,$AS43,1),"")) -> 1 | AP43: =IF(AO43=1,COUNTIF($AO$4:AO43,1),"") -> 40 | AQ43: =IFERROR(INDEX($AS$4:$AS$3000,MATCH(ROWS($AP$4:AP43),$AP$4:$AP$3000,0)),"") -> Vanderbilt University | AR43: 221999 | AS43: Vanderbilt University | AT43: Nashville | AU43: TN | AV43: Private 4 yr | AW43: Most Competitive+ | AX43: 23150 | AY43: 3482 | AZ43: 4750 | BA43: 8451 | BB43: 49 | BC43: 92.4 | BD43: 89.6 | BE43: 97 | BF43: 32 | BG43: www.vanderbilt.edu | BJ43: City: Large | BK43: 6871 | BN43: 7 | BO43: 4.2009 | BP43: 0.2751 | BQ43: -17.92 | BR43: 0 | BS43: -86.8034 | BT43: 36.1466
A44: 190099 | B44: Colgate University | C44: =IF(ISERROR(Y44),"No Data",IF(Y44<15,"Far Reach",IF(Y44<50,"Reach",IF(Y44<80,"Target",IF(Y44>=80,IF(BD44="NULL","Likely",IF(StudentTargets!$AC$11<=AllColleges!BD44/100,"Likely+","Likely")),""))))) -> Far Reach | F44: 0 | G44: 0 | H44: 41 | J44: =IF(ISERROR(Y44),0,IF(AND(I44=1,Y44>=80),1,IF(OR(ISERROR(Y44),BD44="NULL"),0,IF(AND(Y44>=80,BN44>=(StudentTargets!$W$15-1),StudentTargets!$AC$11<=AllColleges!BD44/100),1,0)*AE44))) ->  | K44: =IF(ISERROR(Y44),0,IF(AND(I44=1,Y44>=80),0,IF(ISERROR(Y44),0,IF(AND(Y44>=80,BN44>=(StudentTargets!$W$15-1)),IF(ISERROR(StudentTargets!$AC$11>(BD44/100)),1,IF(StudentTargets!$AC$11>(BD44/100),1,0)),0))*AE44)) ->  | L44: 0 | M44: 0 | N44: 1 | R44: 0 | S44: 0 | T44: 4.7749 | U44: 0.322 | V44: -17.95 | W44: -27.61 | X44: -27.61 | Y44: 1.021243616e-10 | Z44: 1 | AA44: 1 | AB44: 1 | AC44: =IF(FilterSchoolType="Any",1,IF(AND(FilterSchoolType=Lookups!$S$5,FilterState=AU44),1,IF(AND(FilterSchoolType=Lookups!$S$3,FilterState=AU44,LEFT(AV44,3)="Pub"),1,IF(AND(FilterSchoolType=Lookups!$S$4,LEFT(AV44,3)="Pub"),1,0)))) -> 1 | AD44: 1 | AE44: 1 | AF44: 160.0452515 | AG44: 0 | AH44: 6892 | AI44: =IFERROR(VLOOKUP(AR44, 'KIPP$$'!A:G, 7, 0), "") ->  | AJ44: 4.7749 | AK44: 30 | AL44: =IFERROR(VLOOKUP($AR44,School_View8[[NCSE_ID]:[Max_Unmet_Need]],3,FALSE),"") ->  | AM44: =IFERROR(VLOOKUP($AR44,School_View8[[NCSE_ID]:[Max_Unmet_Need]],4,FALSE),"") ->  | AO44: =--ISNUMBER(IFERROR(SEARCH('Wish List and Search'!$H$12,$AS44,1),"")) -> 1 | AP44: =IF(AO44=1,COUNTIF($AO$4:AO44,1),"") -> 41 | AQ44: =IFERROR(INDEX($AS$4:$AS$3000,MATCH(ROWS($AP$4:AP44),$AP$4:$AP$3000,0)),"") -> Colgate University | AR44: 190099 | AS44: Colgate University | AT44: Hamilton | AU44: NY | AV44: Private 4 yr | AW44: Most Competitive | AX44: 22463 | AY44: 6892 | AZ44: 6086 | BA44: 17589 | BB44: 45 | BC44: 89.9 | BD44: 89.5 | BE44: 94 | BF44: 30 | BG44: www.colgate.edu | BJ44: Town: Distant | BK44: 2882 | BN44: 6 | BO44: 4.7749 | BP44: 0.322 | BQ44: -17.95 | BR44: 0 | BS44: -75.535 | BT44: 42.8188
A45: 161004 | B45: Bowdoin College | C45: =IF(ISERROR(Y45),"No Data",IF(Y45<15,"Far Reach",IF(Y45<50,"Reach",IF(Y45<80,"Target",IF(Y45>=80,IF(BD45="NULL","Likely",IF(StudentTargets!$AC$11<=AllColleges!BD45/100,"Likely+","Likely")),""))))) -> Far Reach | F45: 0 | G45: 0 | H45: 42 | J45: =IF(ISERROR(Y45),0,IF(AND(I45=1,Y45>=80),1,IF(OR(ISERROR(Y45),BD45="NULL"),0,IF(AND(Y45>=80,BN45>=(StudentTargets!$W$15-1),StudentTargets!$AC$11<=AllColleges!BD45/100),1,0)*AE45))) ->  | K45: =IF(ISERROR(Y45),0,IF(AND(I45=1,Y45>=80),0,IF(ISERROR(Y45),0,IF(AND(Y45>=80,BN45>=(StudentTargets!$W$15-1)),IF(ISERROR(StudentTargets!$AC$11>(BD45/100)),1,IF(StudentTargets!$AC$11>(BD45/100),1,0)),0))*AE45)) ->  | L45: 0 | M45: 0 | N45: 1 | R45: 0 | S45: 0 | T45: 4.2009 | U45: 0.2751 | V45: -17.92 | W45: -26.173 | X45: -26.173 | Y45: 4.297446959e-10 | Z45: 1 | AA45: 1 | AB45: 1 | AC45: =IF(FilterSchoolType="Any",1,IF(AND(FilterSchoolType=Lookups!$S$5,FilterState=AU45),1,IF(AND(FilterSchoolType=Lookups!$S$3,FilterState=AU45,LEFT(AV45,3)="Pub"),1,IF(AND(FilterSchoolType=Lookups!$S$4,LEFT(AV45,3)="Pub"),1,0)))) -> 1 | AD45: 1 | AE45: 1 | AF45: 306.6446599 | AG45: 0 | AH45: 6822 | AI45: =IFERROR(VLOOKUP(AR45, 'KIPP$$'!A:G, 7, 0), "") ->  | AJ45: 4.2009 | AK45: 30 | AL45: =IFERROR(VLOOKUP($AR45,School_View8[[NCSE_ID]:[Max_Unmet_Need]],3,FALSE),"") ->  | AM45: =IFERROR(VLOOKUP($AR45,School_View8[[NCSE_ID]:[Max_Unmet_Need]],4,FALSE),"") ->  | AO45: =--ISNUMBER(IFERROR(SEARCH('Wish List and Search'!$H$12,$AS45,1),"")) -> 1 | AP45: =IF(AO45=1,COUNTIF($AO$4:AO45,1),"") -> 42 | AQ45: =IFERROR(INDEX($AS$4:$AS$3000,MATCH(ROWS($AP$4:AP45),$AP$4:$AP$3000,0)),"") -> Bowdoin College | AR45: 161004 | AS45: Bowdoin College | AT45: Brunswick | AU45: ME | AV45: Private 4 yr | AW45: Most Competitive+ | AX45: 24888 | AY45: 6822 | AZ45: 8525 | BA45: 11057 | BB45: 50 | BC45: 94.5 | BD45: 89.4 | BE45: 94 | BF45: 30 | BG45: www.bowdoin.edu/ | BJ45: Town: Fringe | BK45: 1806 | BN45: 7 | BO45: 4.2009 | BP45: 0.2751 | BQ45: -17.92 | BR45: 0 | BS45: -69.9639 | BT45: 43.9071
A46: 166683 | B46: Massachusetts Institute of Technology | C46: =IF(ISERROR(Y46),"No Data",IF(Y46<15,"Far Reach",IF(Y46<50,"Reach",IF(Y46<80,"Target",IF(Y46>=80,IF(BD46="NULL","Likely",IF(StudentTargets!$AC$11<=AllColleges!BD46/100,"Likely+","Likely")),""))))) -> Far Reach | F46: 0 | G46: 0 | H46: 43 | J46: =IF(ISERROR(Y46),0,IF(AND(I46=1,Y46>=80),1,IF(OR(ISERROR(Y46),BD46="NULL"),0,IF(AND(Y46>=80,BN46>=(StudentTargets!$W$15-1),StudentTargets!$AC$11<=AllColleges!BD46/100),1,0)*AE46))) ->  | K46: =IF(ISERROR(Y46),0,IF(AND(I46=1,Y46>=80),0,IF(ISERROR(Y46),0,IF(AND(Y46>=80,BN46>=(StudentTargets!$W$15-1)),IF(ISERROR(StudentTargets!$AC$11>(BD46/100)),1,IF(StudentTargets!$AC$11>(BD46/100),1,0)),0))*AE46)) ->  | L46: 0 | M46: 0 | N46: 1 | R46: 0 | S46: 0 | T46: 4.2009 | U46: 0.2751 | V46: -17.92 | W46: -26.9983 | X46: -26.9983 | Y46: 1.882726733e-10 | Z46: 1 | AA46: 1 | AB46: 1 | AC46: =IF(FilterSchoolType="Any",1,IF(AND(FilterSchoolType=Lookups!$S$5,FilterState=AU46),1,IF(AND(FilterSchoolType=Lookups!$S$3,FilterState=AU46,LEFT(AV46,3)="Pub"),1,IF(AND(FilterSchoolType=Lookups!$S$4,LEFT(AV46,3)="Pub"),1,0)))) -> 1 | AD46: 1 | AE46: 1 | AF46: 194.5784379 | AG46: 0 | AH46: 5968 | AI46: =IFERROR(VLOOKUP(AR46, 'KIPP$$'!A:G, 7, 0), "") ->  | AJ46: 4.2009 | AK46: 33 | AL46: =IFERROR(VLOOKUP($AR46,School_View8[[NCSE_ID]:[Max_Unmet_Need]],3,FALSE),"") ->  | AM46: =IFERROR(VLOOKUP($AR46,School_View8[[NCSE_ID]:[Max_Unmet_Need]],4,FALSE),"") ->  | AO46: =--ISNUMBER(IFERROR(SEARCH('Wish List and Search'!$H$12,$AS46,1),"")) -> 1 | AP46: =IF(AO46=1,COUNTIF($AO$4:AO46,1),"") -> 43 | AQ46: =IFERROR(INDEX($AS$4:$AS$3000,MATCH(ROWS($AP$4:AP46),$AP$4:$AP$3000,0)),"") -> Massachusetts Institute of Technology | AR46: 166683 | AS46: Massachusetts Institute of Technology | AT46: Cambridge | AU46: MA | AV46: Private 4 yr | AW46: Most Competitive+ | AX46: 21576 | AY46: 5968 | AZ46: 3029 | BA46: 8633 | BB46: 54 | BC46: 92.8 | BD46: 89.4 | BE46: 98 | BF46: 33 | BG46: web.mit.edu/student/ | BJ46: City: Midsize | BK46: 4524 | BN46: 7 | BO46: 4.2009 | BP46: 0.2751 | BQ46: -17.92 | BR46: 0 | BS46: -71.0921 | BT46: 42.3601
A47: 195526 | B47: Skidmore College | C47: =IF(ISERROR(Y47),"No Data",IF(Y47<15,"Far Reach",IF(Y47<50,"Reach",IF(Y47<80,"Target",IF(Y47>=80,IF(BD47="NULL","Likely",IF(StudentTargets!$AC$11<=AllColleges!BD47/100,"Likely+","Likely")),""))))) -> Far Reach | F47: 0 | G47: 0 | H47: 44 | J47: =IF(ISERROR(Y47),0,IF(AND(I47=1,Y47>=80),1,IF(OR(ISERROR(Y47),BD47="NULL"),0,IF(AND(Y47>=80,BN47>=(StudentTargets!$W$15-1),StudentTargets!$AC$11<=AllColleges!BD47/100),1,0)*AE47))) ->  | K47: =IF(ISERROR(Y47),0,IF(AND(I47=1,Y47>=80),0,IF(ISERROR(Y47),0,IF(AND(Y47>=80,BN47>=(StudentTargets!$W$15-1)),IF(ISERROR(StudentTargets!$AC$11>(BD47/100)),1,IF(StudentTargets!$AC$11>(BD47/100),1,0)),0))*AE47)) ->  | L47: 0 | M47: 0 | N47: 1 | R47: 0 | S47: 0 | T47: 4.7749 | U47: 0.322 | V47: -17.95 | W47: -26.322 | X47: -26.322 | Y47: 3.702547573e-10 | Z47: 1 | AA47: 1 | AB47: 1 | AC47: =IF(FilterSchoolType="Any",1,IF(AND(FilterSchoolType=Lookups!$S$5,FilterState=AU47),1,IF(AND(FilterSchoolType=Lookups!$S$3,FilterState=AU47,LEFT(AV47,3)="Pub"),1,IF(AND(FilterSchoolType=Lookups!$S$4,LEFT(AV47,3)="Pub"),1,0)))) -> 1 | AD47: 1 | AE47: 1 | AF47: 164.1561691 | AG47: 0 | AH47: 11071 | AI47: =IFERROR(VLOOKUP(AR47, 'KIPP$$'!A:G, 7, 0), "") ->  | AJ47: 4.7749 | AK47: 26 | AL47: =IFERROR(VLOOKUP($AR47,School_View8[[NCSE_ID]:[Max_Unmet_Need]],3,FALSE),"") ->  | AM47: =IFERROR(VLOOKUP($AR47,School_View8[[NCSE_ID]:[Max_Unmet_Need]],4,FALSE),"") ->  | AO47: =--ISNUMBER(IFERROR(SEARCH('Wish List and Search'!$H$12,$AS47,1),"")) -> 1 | AP47: =IF(AO47=1,COUNTIF($AO$4:AO47,1),"") -> 44 | AQ47: =IFERROR(INDEX($AS$4:$AS$3000,MATCH(ROWS($AP$4:AP47),$AP$4:$AP$3000,0)),"") -> Skidmore College | AR47: 195526 | AS47: Skidmore College | AT47: Saratoga Springs | AU47: NY | AV47: Private 4 yr | AW47: Most Competitive | AX47: 23941 | AY47: 11071 | AZ47: 16012 | BA47: 15261 | BB47: 40 | BC47: 89.1 | BD47: 89.4 | BE47: 91 | BF47: 26 | BG47: www.skidmore.edu/ | BJ47: Suburb: Small | BK47: 2680 | BN47: 6 | BO47: 4.7749 | BP47: 0.322 | BQ47: -17.95 | BR47: 0 | BS47: -73.7853 | BT47: 43.097
A48: 123961 | B48: University of Southern California | C48: =IF(ISERROR(Y48),"No Data",IF(Y48<15,"Far Reach",IF(Y48<50,"Reach",IF(Y48<80,"Target",IF(Y48>=80,IF(BD48="NULL","Likely",IF(StudentTargets!$AC$11<=AllColleges!BD48/100,"Likely+","Likely")),""))))) -> Far Reach | F48: 0 | G48: 0 | H48: 45 | J48: =IF(ISERROR(Y48),0,IF(AND(I48=1,Y48>=80),1,IF(OR(ISERROR(Y48),BD48="NULL"),0,IF(AND(Y48>=80,BN48>=(StudentTargets!$W$15-1),StudentTargets!$AC$11<=AllColleges!BD48/100),1,0)*AE48))) ->  | K48: =IF(ISERROR(Y48),0,IF(AND(I48=1,Y48>=80),0,IF(ISERROR(Y48),0,IF(AND(Y48>=80,BN48>=(StudentTargets!$W$15-1)),IF(ISERROR(StudentTargets!$AC$11>(BD48/100)),1,IF(StudentTargets!$AC$11>(BD48/100),1,0)),0))*AE48)) ->  | L48: 0 | M48: 0 | N48: 1 | R48: 0 | S48: 0 | T48: 4.2009 | U48: 0.2751 | V48: -17.92 | W48: -26.173 | X48: -26.173 | Y48: 4.297446959e-10 | Z48: 1 | AA48: 1 | AB48: 1 | AC48: =IF(FilterSchoolType="Any",1,IF(AND(FilterSchoolType=Lookups!$S$5,FilterState=AU48),1,IF(AND(FilterSchoolType=Lookups!$S$3,FilterState=AU48,LEFT(AV48,3)="Pub"),1,IF(AND(FilterSchoolType=Lookups!$S$4,LEFT(AV48,3)="Pub"),1,0)))) -> 1 | AD48: 1 | AE48: 1 | AF48: 2439.908592 | AG48: 0 | AH48: 16002 | AI48: =IFERROR(VLOOKUP(AR48, 'KIPP$$'!A:G, 7, 0), "") ->  | AJ48: 4.2009 | AK48: 30 | AL48: =IFERROR(VLOOKUP($AR48,School_View8[[NCSE_ID]:[Max_Unmet_Need]],3,FALSE),"") ->  | AM48: =IFERROR(VLOOKUP($AR48,School_View8[[NCSE_ID]:[Max_Unmet_Need]],4,FALSE),"") ->  | AO48: =--ISNUMBER(IFERROR(SEARCH('Wish List and Search'!$H$12,$AS48,1),"")) -> 1 | AP48: =IF(AO48=1,COUNTIF($AO$4:AO48,1),"") -> 45 | AQ48: =IFERROR(INDEX($AS$4:$AS$3000,MATCH(ROWS($AP$4:AP48),$AP$4:$AP$3000,0)),"") -> University of Southern California | AR48: 123961 | AS48: University of Southern California | AT48: Los Angeles | AU48: CA | AV48: Private 4 yr | AW48: Most Competitive+ | AX48: 32932 | AY48: 16002 | AZ48: 16941 | BA48: 21751 | BB48: 48 | BC48: 92 | BD48: 89.3 | BE48: 96 | BF48: 30 | BG48: www.usc.edu/ | BJ48: City: Large | BK48: 18794 | BN48: 7 | BO48: 4.2009 | BP48: 0.2751 | BQ48: -17.92 | BR48: 0 | BS48: -118.284 | BT48: 34.0213
A49: 173258 | B49: Carleton College | C49: =IF(ISERROR(Y49),"No Data",IF(Y49<15,"Far Reach",IF(Y49<50,"Reach",IF(Y49<80,"Target",IF(Y49>=80,IF(BD49="NULL","Likely",IF(StudentTargets!$AC$11<=AllColleges!BD49/100,"Likely+","Likely")),""))))) -> Far Reach | F49: 0 | G49: 0 | H49: 46 | J49: =IF(ISERROR(Y49),0,IF(AND(I49=1,Y49>=80),1,IF(OR(ISERROR(Y49),BD49="NULL"),0,IF(AND(Y49>=80,BN49>=(StudentTargets!$W$15-1),StudentTargets!$AC$11<=AllColleges!BD49/100),1,0)*AE49))) ->  | K49: =IF(ISERROR(Y49),0,IF(AND(I49=1,Y49>=80),0,IF(ISERROR(Y49),0,IF(AND(Y49>=80,BN49>=(StudentTargets!$W$15-1)),IF(ISERROR(StudentTargets!$AC$11>(BD49/100)),1,IF(StudentTargets!$AC$11>(BD49/100),1,0)),0))*AE49)) ->  | L49: 0 | M49: 0 | N49: 1 | R49: 0 | S49: 0 | T49: 4.2009 | U49: 0.2751 | V49: -17.92 | W49: -26.173 | X49: -26.173 | Y49: 4.297446959e-10 | Z49: 1 | AA49: 1 | AB49: 1 | AC49: =IF(FilterSchoolType="Any",1,IF(AND(FilterSchoolType=Lookups!$S$5,FilterState=AU49),1,IF(AND(FilterSchoolType=Lookups!$S$3,FilterState=AU49,LEFT(AV49,3)="Pub"),1,IF(AND(FilterSchoolType=Lookups!$S$4,LEFT(AV49,3)="Pub"),1,0)))) -> 1 | AD49: 1 | AE49: 1 | AF49: 996.7412678 | AG49: 0 | AH49: 12207 | AI49: =IFERROR(VLOOKUP(AR49, 'KIPP$$'!A:G, 7, 0), "") ->  | AJ49: 4.2009 | AK49: 30 | AL49: =IFERROR(VLOOKUP($AR49,School_View8[[NCSE_ID]:[Max_Unmet_Need]],3,FALSE),"") ->  | AM49: =IFERROR(VLOOKUP($AR49,School_View8[[NCSE_ID]:[Max_Unmet_Need]],4,FALSE),"") ->  | AO49: =--ISNUMBER(IFERROR(SEARCH('Wish List and Search'!$H$12,$AS49,1),"")) -> 1 | AP49: =IF(AO49=1,COUNTIF($AO$4:AO49,1),"") -> 46 | AQ49: =IFERROR(INDEX($AS$4:$AS$3000,MATCH(ROWS($AP$4:AP49),$AP$4:$AP$3000,0)),"") -> Carleton College | AR49: 173258 | AS49: Carleton College | AT49: Northfield | AU49: MN | AV49: Private 4 yr | AW49: Most Competitive+ | AX49: 28587 | AY49: 12207 | AZ49: 13473 | BA49: 14682 | BB49: 49 | BC49: 92.2 | BD49: 89 | BE49: 96 | BF49: 30 | BG49: www.carleton.edu | BJ49: Town: Distant | BK49: 2105 | BN49: 7 | BO49: 4.2009 | BP49: 0.2751 | BQ49: -17.92 | BR49: 0 | BS49: -93.1547 | BT49: 44.4623
A50: 149781 | B50: Wheaton College-IL | C50: =IF(ISERROR(Y50),"No Data",IF(Y50<15,"Far Reach",IF(Y50<50,"Reach",IF(Y50<80,"Target",IF(Y50>=80,IF(BD50="NULL","Likely",IF(StudentTargets!$AC$11<=AllColleges!BD50/100,"Likely+","Likely")),""))))) -> Far Reach | F50: 0 | G50: 0 | H50: 47 | J50: =IF(ISERROR(Y50),0,IF(AND(I50=1,Y50>=80),1,IF(OR(ISERROR(Y50),BD50="NULL"),0,IF(AND(Y50>=80,BN50>=(StudentTargets!$W$15-1),StudentTargets!$AC$11<=AllColleges!BD50/100),1,0)*AE50))) ->  | K50: =IF(ISERROR(Y50),0,IF(AND(I50=1,Y50>=80),0,IF(ISERROR(Y50),0,IF(AND(Y50>=80,BN50>=(StudentTargets!$W$15-1)),IF(ISERROR(StudentTargets!$AC$11>(BD50/100)),1,IF(StudentTargets!$AC$11>(BD50/100),1,0)),0))*AE50)) ->  | L50: 0 | M50: 0 | N50: 1 | R50: 0 | S50: 0 | T50: 4.7749 | U50: 0.322 | V50: -17.95 | W50: -26.644 | X50: -26.644 | Y50: 2.683229526e-10 | Z50: 1 | AA50: 1 | AB50: 1 | AC50: =IF(FilterSchoolType="Any",1,IF(AND(FilterSchoolType=Lookups!$S$5,FilterState=AU50),1,IF(AND(FilterSchoolType=Lookups!$S$3,FilterState=AU50,LEFT(AV50,3)="Pub"),1,IF(AND(FilterSchoolType=Lookups!$S$4,LEFT(AV50,3)="Pub"),1,0)))) -> 1 | AD50: 1 | AE50: 1 | AF50: 726.3145006 | AG50: 0 | AH50: 15190 | AI50: =IFERROR(VLOOKUP(AR50, 'KIPP$$'!A:G, 7, 0), "") ->  | AJ50: 4.7749 | AK50: 27 | AL50: =IFERROR(VLOOKUP($AR50,School_View8[[NCSE_ID]:[Max_Unmet_Need]],3,FALSE),"") ->  | AM50: =IFERROR(VLOOKUP($AR50,School_View8[[NCSE_ID]:[Max_Unmet_Need]],4,FALSE),"") ->  | AO50: =--ISNUMBER(IFERROR(SEARCH('Wish List and Search'!$H$12,$AS50,1),"")) -> 1 | AP50: =IF(AO50=1,COUNTIF($AO$4:AO50,1),"") -> 47 | AQ50: =IFERROR(INDEX($AS$4:$AS$3000,MATCH(ROWS($AP$4:AP50),$AP$4:$AP$3000,0)),"") -> Wheaton College-IL | AR50: 149781 | AS50: Wheaton College-IL | AT50: Wheaton | AU50: IL | AV50: Private 4 yr | AW50: Most Competitive | AX50: 27840 | AY50: 15190 | AZ50: 11927 | BA50: 19067 | BB50: 47 | BC50: 90.5 | BD50: 88.9 | BE50: 95 | BF50: 27 | BG50: www.wheaton.edu | BJ50: Suburb: Large | BK50: 2456 | BN50: 6 | BO50: 4.7749 | BP50: 0.322 | BQ50: -17.95 | BR50: 0 | BS50: -88.0968 | BT50: 41.8709
A51: 144050 | B51: University of Chicago | C51: =IF(ISERROR(Y51),"No Data",IF(Y51<15,"Far Reach",IF(Y51<50,"Reach",IF(Y51<80,"Target",IF(Y51>=80,IF(BD51="NULL","Likely",IF(StudentTargets!$AC$11<=AllColleges!BD51/100,"Likely+","Likely")),""))))) -> Far Reach | F51: 0 | G51: 0 | H51: 48 | J51: =IF(ISERROR(Y51),0,IF(AND(I51=1,Y51>=80),1,IF(OR(ISERROR(Y51),BD51="NULL"),0,IF(AND(Y51>=80,BN51>=(StudentTargets!$W$15-1),StudentTargets!$AC$11<=AllColleges!BD51/100),1,0)*AE51))) ->  | K51: =IF(ISERROR(Y51),0,IF(AND(I51=1,Y51>=80),0,IF(ISERROR(Y51),0,IF(AND(Y51>=80,BN51>=(StudentTargets!$W$15-1)),IF(ISERROR(StudentTargets!$AC$11>(BD51/100)),1,IF(StudentTargets!$AC$11>(BD51/100),1,0)),0))*AE51)) ->  | L51: 0 | M51: 0 | N51: 1 | R51: 0 | S51: 0 | T51: 4.2009 | U51: 0.2751 | V51: -17.92 | W51: -26.7232 | X51: -26.7232 | Y51: 2.478915376e-10 | Z51: 1 | AA51: 1 | AB51: 1 | AC51: =IF(FilterSchoolType="Any",1,IF(AND(FilterSchoolType=Lookups!$S$5,FilterState=AU51),1,IF(AND(FilterSchoolType=Lookups!$S$3,FilterState=AU51,LEFT(AV51,3)="Pub"),1,IF(AND(FilterSchoolType=Lookups!$S$4,LEFT(AV51,3)="Pub"),1,0)))) -> 1 | AD51: 1 | AE51: 1 | AF51: 700.659747 | AG51: 0 | AH51: 2551 | AI51: =IFERROR(VLOOKUP(AR51, 'KIPP$$'!A:G, 7, 0), "") ->  | AJ51: 4.2009 | AK51: 32 | AL51: =IFERROR(VLOOKUP($AR51,School_View8[[NCSE_ID]:[Max_Unmet_Need]],3,FALSE),"") ->  | AM51: =IFERROR(VLOOKUP($AR51,School_View8[[NCSE_ID]:[Max_Unmet_Need]],4,FALSE),"") ->  | AO51: =--ISNUMBER(IFERROR(SEARCH('Wish List and Search'!$H$12,$AS51,1),"")) -> 1 | AP51: =IF(AO51=1,COUNTIF($AO$4:AO51,1),"") -> 48 | AQ51: =IFERROR(INDEX($AS$4:$AS$3000,MATCH(ROWS($AP$4:AP51),$AP$4:$AP$3000,0)),"") -> University of Chicago | AR51: 144050 | AS51: University of Chicago | AT51: Chicago | AU51: IL | AV51: Private 4 yr | AW51: Most Competitive+ | AX51: 31068 | AY51: 2551 | AZ51: 2665 | BA51: 4536 | BB51: 51 | BC51: 94.2 | BD51: 88.8 | BE51: 99 | BF51: 32 | BG51: WWW.UCHICAGO.EDU | BJ51: City: Large | BK51: 6001 | BN51: 7 | BO51: 4.2009 | BP51: 0.2751 | BQ51: -17.92 | BR51: 0 | BS51: -87.6012 | BT51: 41.7892
A52: 196866 | B52: Union College | C52: =IF(ISERROR(Y52),"No Data",IF(Y52<15,"Far Reach",IF(Y52<50,"Reach",IF(Y52<80,"Target",IF(Y52>=80,IF(BD52="NULL","Likely",IF(StudentTargets!$AC$11<=AllColleges!BD52/100,"Likely+","Likely")),""))))) -> Far Reach | F52: 0 | G52: 0 | H52: 49 | J52: =IF(ISERROR(Y52),0,IF(AND(I52=1,Y52>=80),1,IF(OR(ISERROR(Y52),BD52="NULL"),0,IF(AND(Y52>=80,BN52>=(StudentTargets!$W$15-1),StudentTargets!$AC$11<=AllColleges!BD52/100),1,0)*AE52))) ->  | K52: =IF(ISERROR(Y52),0,IF(AND(I52=1,Y52>=80),0,IF(ISERROR(Y52),0,IF(AND(Y52>=80,BN52>=(StudentTargets!$W$15-1)),IF(ISERROR(StudentTargets!$AC$11>(BD52/100)),1,IF(StudentTargets!$AC$11>(BD52/100),1,0)),0))*AE52)) ->  | L52: 0 | M52: 0 | N52: 1 | R52: 0 | S52: 0 | T52: 4.7749 | U52: 0.322 | V52: -17.95 | W52: -26.966 | X52: -26.966 | Y52: 1.944531581e-10 | Z52: 1 | AA52: 1 | AB52: 1 | AC52: =IF(FilterSchoolType="Any",1,IF(AND(FilterSchoolType=Lookups!$S$5,FilterState=AU52),1,IF(AND(FilterSchoolType=Lookups!$S$3,FilterState=AU52,LEFT(AV52,3)="Pub"),1,IF(AND(FilterSchoolType=Lookups!$S$4,LEFT(AV52,3)="Pub"),1,0)))) -> 1 | AD52: 1 | AE52: 1 | AF52: 144.1956803 | AG52: 0 | AH52: 8133 | AI52: =IFERROR(VLOOKUP(AR52, 'KIPP$$'!A:G, 7, 0), "") ->  | AJ52: 4.7749 | AK52: 28 | AL52: =IFERROR(VLOOKUP($AR52,School_View8[[NCSE_ID]:[Max_Unmet_Need]],3,FALSE),"") ->  | AM52: =IFERROR(VLOOKUP($AR52,School_View8[[NCSE_ID]:[Max_Unmet_Need]],4,FALSE),"") ->  | AO52: =--ISNUMBER(IFERROR(SEARCH('Wish List and Search'!$H$12,$AS52,1),"")) -> 1 | AP52: =IF(AO52=1,COUNTIF($AO$4:AO52,1),"") -> 49 | AQ52: =IFERROR(INDEX($AS$4:$AS$3000,MATCH(ROWS($AP$4:AP52),$AP$4:$AP$3000,0)),"") -> Union College | AR52: 196866 | AS52: Union College | AT52: Schenectady | AU52: NY | AV52: Private 4 yr | AW52: Most Competitive | AX52: 38621 | AY52: 8133 | AZ52: 14372 | BA52: 20847 | BB52: 55 | BC52: 87 | BD52: 88.7 | BE52: 92 | BF52: 28 | BG52: www.union.edu/ | BJ52: City: Small | BK52: 2203 | BN52: 6 | BO52: 4.7749 | BP52: 0.322 | BQ52: -17.95 | BR52: 0 | BS52: -73.9285 | BT52: 42.8176
A53: 139658 | B53: Emory University | C53: =IF(ISERROR(Y53),"No Data",IF(Y53<15,"Far Reach",IF(Y53<50,"Reach",IF(Y53<80,"Target",IF(Y53>=80,IF(BD53="NULL","Likely",IF(StudentTargets!$AC$11<=AllColleges!BD53/100,"Likely+","Likely")),""))))) -> Far Reach | F53: 0 | G53: 0 | H53: 50 | J53: =IF(ISERROR(Y53),0,IF(AND(I53=1,Y53>=80),1,IF(OR(ISERROR(Y53),BD53="NULL"),0,IF(AND(Y53>=80,BN53>=(StudentTargets!$W$15-1),StudentTargets!$AC$11<=AllColleges!BD53/100),1,0)*AE53))) ->  | K53: =IF(ISERROR(Y53),0,IF(AND(I53=1,Y53>=80),0,IF(ISERROR(Y53),0,IF(AND(Y53>=80,BN53>=(StudentTargets!$W$15-1)),IF(ISERROR(StudentTargets!$AC$11>(BD53/100)),1,IF(StudentTargets!$AC$11>(BD53/100),1,0)),0))*AE53)) ->  | L53: 0 | M53: 0 | N53: 1 | R53: 0 | S53: 0 | T53: 4.7749 | U53: 0.322 | V53: -17.95 | W53: -27.61 | X53: -27.61 | Y53: 1.021243616e-10 | Z53: 1 | AA53: 1 | AB53: 1 | AC53: =IF(FilterSchoolType="Any",1,IF(AND(FilterSchoolType=Lookups!$S$5,FilterState=AU53),1,IF(AND(FilterSchoolType=Lookups!$S$3,FilterState=AU53,LEFT(AV53,3)="Pub"),1,IF(AND(FilterSchoolType=Lookups!$S$4,LEFT(AV53,3)="Pub"),1,0)))) -> 1 | AD53: 1 | AE53: 1 | AF53: 735.5453746 | AG53: 0 | AH53: 13812 | AI53: =IFERROR(VLOOKUP(AR53, 'KIPP$$'!A:G, 7, 0), "") ->  | AJ53: 4.7749 | AK53: 30 | AL53: =IFERROR(VLOOKUP($AR53,School_View8[[NCSE_ID]:[Max_Unmet_Need]],3,FALSE),"") ->  | AM53: =IFERROR(VLOOKUP($AR53,School_View8[[NCSE_ID]:[Max_Unmet_Need]],4,FALSE),"") ->  | AO53: =--ISNUMBER(IFERROR(SEARCH('Wish List and Search'!$H$12,$AS53,1),"")) -> 1 | AP53: =IF(AO53=1,COUNTIF($AO$4:AO53,1),"") -> 50 | AQ53: =IFERROR(INDEX($AS$4:$AS$3000,MATCH(ROWS($AP$4:AP53),$AP$4:$AP$3000,0)),"") -> Emory University | AR53: 139658 | AS53: Emory University | AT53: Atlanta | AU53: GA | AV53: Private 4 yr | AW53: Most Competitive | AX53: 24804 | AY53: 13812 | AZ53: 13406 | BA53: 19348 | BB53: 41 | BC53: 90.6 | BD53: 87.9 | BE53: 94 | BF53: 30 | BG53: www.emory.edu | BJ53: Suburb: Large | BK53: 6861 | BN53: 6 | BO53: 4.7749 | BP53: 0.322 | BQ53: -17.95 | BR53: 0 | BS53: -84.3255 | BT53: 33.7902
A54: 213385 | B54: Lafayette College | C54: =IF(ISERROR(Y54),"No Data",IF(Y54<15,"Far Reach",IF(Y54<50,"Reach",IF(Y54<80,"Target",IF(Y54>=80,IF(BD54="NULL","Likely",IF(StudentTargets!$AC$11<=AllColleges!BD54/100,"Likely+","Likely")),""))))) -> Far Reach | F54: 0 | G54: 0 | H54: 51 | J54: =IF(ISERROR(Y54),0,IF(AND(I54=1,Y54>=80),1,IF(OR(ISERROR(Y54),BD54="NULL"),0,IF(AND(Y54>=80,BN54>=(StudentTargets!$W$15-1),StudentTargets!$AC$11<=AllColleges!BD54/100),1,0)*AE54))) ->  | K54: =IF(ISERROR(Y54),0,IF(AND(I54=1,Y54>=80),0,IF(ISERROR(Y54),0,IF(AND(Y54>=80,BN54>=(StudentTargets!$W$15-1)),IF(ISERROR(StudentTargets!$AC$11>(BD54/100)),1,IF(StudentTargets!$AC$11>(BD54/100),1,0)),0))*AE54)) ->  | L54: 0 | M54: 0 | N54: 1 | R54: 0 | S54: 0 | T54: 4.7749 | U54: 0.322 | V54: -17.95 | W54: -26.644 | X54: -26.644 | Y54: 2.683229526e-10 | Z54: 1 | AA54: 1 | AB54: 1 | AC54: =IF(FilterSchoolType="Any",1,IF(AND(FilterSchoolType=Lookups!$S$5,FilterState=AU54),1,IF(AND(FilterSchoolType=Lookups!$S$3,FilterState=AU54,LEFT(AV54,3)="Pub"),1,IF(AND(FilterSchoolType=Lookups!$S$4,LEFT(AV54,3)="Pub"),1,0)))) -> 1 | AD54: 1 | AE54: 1 | AF54: 54.56902208 | AG54: 0 | AH54: 7353 | AI54: =IFERROR(VLOOKUP(AR54, 'KIPP$$'!A:G, 7, 0), "") ->  | AJ54: 4.7749 | AK54: 27 | AL54: =IFERROR(VLOOKUP($AR54,School_View8[[NCSE_ID]:[Max_Unmet_Need]],3,FALSE),"") ->  | AM54: =IFERROR(VLOOKUP($AR54,School_View8[[NCSE_ID]:[Max_Unmet_Need]],4,FALSE),"") ->  | AO54: =--ISNUMBER(IFERROR(SEARCH('Wish List and Search'!$H$12,$AS54,1),"")) -> 1 | AP54: =IF(AO54=1,COUNTIF($AO$4:AO54,1),"") -> 51 | AQ54: =IFERROR(INDEX($AS$4:$AS$3000,MATCH(ROWS($AP$4:AP54),$AP$4:$AP$3000,0)),"") -> Lafayette College | AR54: 213385 | AS54: Lafayette College | AT54: Easton | AU54: PA | AV54: Private 4 yr | AW54: Most Competitive | AX54: 26208 | AY54: 7353 | AZ54: 12372 | BA54: 21404 | BB54: 49 | BC54: 89 | BD54: 87.7 | BE54: 94 | BF54: 27 | BG54: https://www.lafayette.edu/ | BJ54: Suburb: Large | BK54: 2550 | BN54: 6 | BO54: 4.7749 | BP54: 0.322 | BQ54: -17.95 | BR54: 0 | BS54: -75.2098 | BT54: 40.6996
A55: 191515 | B55: Hamilton College | C55: =IF(ISERROR(Y55),"No Data",IF(Y55<15,"Far Reach",IF(Y55<50,"Reach",IF(Y55<80,"Target",IF(Y55>=80,IF(BD55="NULL","Likely",IF(StudentTargets!$AC$11<=AllColleges!BD55/100,"Likely+","Likely")),""))))) -> Far Reach | F55: 0 | G55: 0 | H55: 52 | J55: =IF(ISERROR(Y55),0,IF(AND(I55=1,Y55>=80),1,IF(OR(ISERROR(Y55),BD55="NULL"),0,IF(AND(Y55>=80,BN55>=(StudentTargets!$W$15-1),StudentTargets!$AC$11<=AllColleges!BD55/100),1,0)*AE55))) ->  | K55: =IF(ISERROR(Y55),0,IF(AND(I55=1,Y55>=80),0,IF(ISERROR(Y55),0,IF(AND(Y55>=80,BN55>=(StudentTargets!$W$15-1)),IF(ISERROR(StudentTargets!$AC$11>(BD55/100)),1,IF(StudentTargets!$AC$11>(BD55/100),1,0)),0))*AE55)) ->  | L55: 0 | M55: 0 | N55: 1 | R55: 0 | S55: 0 | T55: 4.7749 | U55: 0.322 | V55: -17.95 | W55: -27.932 | X55: -27.932 | Y55: 7.400934003e-11 | Z55: 1 | AA55: 1 | AB55: 1 | AC55: =IF(FilterSchoolType="Any",1,IF(AND(FilterSchoolType=Lookups!$S$5,FilterState=AU55),1,IF(AND(FilterSchoolType=Lookups!$S$3,FilterState=AU55,LEFT(AV55,3)="Pub"),1,IF(AND(FilterSchoolType=Lookups!$S$4,LEFT(AV55,3)="Pub"),1,0)))) -> 1 | AD55: 1 | AE55: 1 | AF55: 171.9734519 | AG55: 0 | AH55: 8631 | AI55: =IFERROR(VLOOKUP(AR55, 'KIPP$$'!A:G, 7, 0), "") ->  | AJ55: 4.7749 | AK55: 31 | AL55: =IFERROR(VLOOKUP($AR55,School_View8[[NCSE_ID]:[Max_Unmet_Need]],3,FALSE),"") ->  | AM55: =IFERROR(VLOOKUP($AR55,School_View8[[NCSE_ID]:[Max_Unmet_Need]],4,FALSE),"") ->  | AO55: =--ISNUMBER(IFERROR(SEARCH('Wish List and Search'!$H$12,$AS55,1),"")) -> 1 | AP55: =IF(AO55=1,COUNTIF($AO$4:AO55,1),"") -> 52 | AQ55: =IFERROR(INDEX($AS$4:$AS$3000,MATCH(ROWS($AP$4:AP55),$AP$4:$AP$3000,0)),"") -> Hamilton College | AR55: 191515 | AS55: Hamilton College | AT55: Clinton | AU55: NY | AV55: Private 4 yr | AW55: Most Competitive | AX55: 24397 | AY55: 8631 | AZ55: 10124 | BA55: 9788 | BB55: 49 | BC55: 91.6 | BD55: 87.6 | BE55: 94 | BF55: 31 | BG55: www.hamilton.edu | BJ55: Suburb: Midsize | BK55: 1883 | BN55: 6 | BO55: 4.7749 | BP55: 0.322 | BQ55: -17.95 | BR55: 0 | BS55: -75.4082 | BT55: 43.0502
A56: 199847 | B56: Wake Forest University | C56: =IF(ISERROR(Y56),"No Data",IF(Y56<15,"Far Reach",IF(Y56<50,"Reach",IF(Y56<80,"Target",IF(Y56>=80,IF(BD56="NULL","Likely",IF(StudentTargets!$AC$11<=AllColleges!BD56/100,"Likely+","Likely")),""))))) -> Far Reach | F56: 0 | G56: 0 | H56: 53 | J56: =IF(ISERROR(Y56),0,IF(AND(I56=1,Y56>=80),1,IF(OR(ISERROR(Y56),BD56="NULL"),0,IF(AND(Y56>=80,BN56>=(StudentTargets!$W$15-1),StudentTargets!$AC$11<=AllColleges!BD56/100),1,0)*AE56))) ->  | K56: =IF(ISERROR(Y56),0,IF(AND(I56=1,Y56>=80),0,IF(ISERROR(Y56),0,IF(AND(Y56>=80,BN56>=(StudentTargets!$W$15-1)),IF(ISERROR(StudentTargets!$AC$11>(BD56/100)),1,IF(StudentTargets!$AC$11>(BD56/100),1,0)),0))*AE56)) ->  | L56: 0 | M56: 0 | N56: 1 | R56: 0 | S56: 0 | T56: 4.7749 | U56: 0.322 | V56: -17.95 | W56: -26.966 | X56: -26.966 | Y56: 1.944531581e-10 | Z56: 1 | AA56: 1 | AB56: 1 | AC56: =IF(FilterSchoolType="Any",1,IF(AND(FilterSchoolType=Lookups!$S$5,FilterState=AU56),1,IF(AND(FilterSchoolType=Lookups!$S$3,FilterState=AU56,LEFT(AV56,3)="Pub"),1,IF(AND(FilterSchoolType=Lookups!$S$4,LEFT(AV56,3)="Pub"),1,0)))) -> 1 | AD56: 1 | AE56: 1 | AF56: 458.5909596 | AG56: 0 | AH56: 10818 | AI56: =IFERROR(VLOOKUP(AR56, 'KIPP$$'!A:G, 7, 0), "") ->  | AJ56: 4.7749 | AK56: 28 | AL56: =IFERROR(VLOOKUP($AR56,School_View8[[NCSE_ID]:[Max_Unmet_Need]],3,FALSE),"") ->  | AM56: =IFERROR(VLOOKUP($AR56,School_View8[[NCSE_ID]:[Max_Unmet_Need]],4,FALSE),"") ->  | AO56: =--ISNUMBER(IFERROR(SEARCH('Wish List and Search'!$H$12,$AS56,1),"")) -> 1 | AP56: =IF(AO56=1,COUNTIF($AO$4:AO56,1),"") -> 53 | AQ56: =IFERROR(INDEX($AS$4:$AS$3000,MATCH(ROWS($AP$4:AP56),$AP$4:$AP$3000,0)),"") -> Wake Forest University | AR56: 199847 | AS56: Wake Forest University | AT56: Winston-Salem | AU56: NC | AV56: Private 4 yr | AW56: Most Competitive | AX56: 23826 | AY56: 10818 | AZ56: 8392 | BA56: 13521 | BB56: 47 | BC56: 88.3 | BD56: 87.6 | BE56: 95 | BF56: 28 | BG56: www.wfu.edu | BJ56: City: Midsize | BK56: 4955 | BN56: 6 | BO56: 4.7749 | BP56: 0.322 | BQ56: -17.95 | BR56: 0 | BS56: -80.2774 | BT56: 36.1336
A57: 120254 | B57: Occidental College | C57: =IF(ISERROR(Y57),"No Data",IF(Y57<15,"Far Reach",IF(Y57<50,"Reach",IF(Y57<80,"Target",IF(Y57>=80,IF(BD57="NULL","Likely",IF(StudentTargets!$AC$11<=AllColleges!BD57/100,"Likely+","Likely")),""))))) -> Far Reach | F57: 0 | G57: 0 | H57: 54 | J57: =IF(ISERROR(Y57),0,IF(AND(I57=1,Y57>=80),1,IF(OR(ISERROR(Y57),BD57="NULL"),0,IF(AND(Y57>=80,BN57>=(StudentTargets!$W$15-1),StudentTargets!$AC$11<=AllColleges!BD57/100),1,0)*AE57))) ->  | K57: =IF(ISERROR(Y57),0,IF(AND(I57=1,Y57>=80),0,IF(ISERROR(Y57),0,IF(AND(Y57>=80,BN57>=(StudentTargets!$W$15-1)),IF(ISERROR(StudentTargets!$AC$11>(BD57/100)),1,IF(StudentTargets!$AC$11>(BD57/100),1,0)),0))*AE57)) ->  | L57: 0 | M57: 0 | N57: 1 | R57: 0 | S57: 0 | T57: 4.7749 | U57: 0.322 | V57: -17.95 | W57: -26.966 | X57: -26.966 | Y57: 1.944531581e-10 | Z57: 1 | AA57: 1 | AB57: 1 | AC57: =IF(FilterSchoolType="Any",1,IF(AND(FilterSchoolType=Lookups!$S$5,FilterState=AU57),1,IF(AND(FilterSchoolType=Lookups!$S$3,FilterState=AU57,LEFT(AV57,3)="Pub"),1,IF(AND(FilterSchoolType=Lookups!$S$4,LEFT(AV57,3)="Pub"),1,0)))) -> 1 | AD57: 1 | AE57: 1 | AF57: 2433.136705 | AG57: 0 | AH57: 11547 | AI57: =IFERROR(VLOOKUP(AR57, 'KIPP$$'!A:G, 7, 0), "") ->  | AJ57: 4.7749 | AK57: 28 | AL57: =IFERROR(VLOOKUP($AR57,School_View8[[NCSE_ID]:[Max_Unmet_Need]],3,FALSE),"") ->  | AM57: =IFERROR(VLOOKUP($AR57,School_View8[[NCSE_ID]:[Max_Unmet_Need]],4,FALSE),"") ->  | AO57: =--ISNUMBER(IFERROR(SEARCH('Wish List and Search'!$H$12,$AS57,1),"")) -> 1 | AP57: =IF(AO57=1,COUNTIF($AO$4:AO57,1),"") -> 54 | AQ57: =IFERROR(INDEX($AS$4:$AS$3000,MATCH(ROWS($AP$4:AP57),$AP$4:$AP$3000,0)),"") -> Occidental College | AR57: 120254 | AS57: Occidental College | AT57: Los Angeles | AU57: CA | AV57: Private 4 yr | AW57: Most Competitive | AX57: 31990 | AY57: 11547 | AZ57: 15258 | BA57: 17877 | BB57: 44 | BC57: 85.1 | BD57: 87.5 | BE57: 91 | BF57: 28 | BG57: www.oxy.edu | BJ57: City: Large | BK57: 1969 | BN57: 6 | BO57: 4.7749 | BP57: 0.322 | BQ57: -17.95 | BR57: 0 | BS57: -118.211 | BT57: 34.1262
A58: 160977 | B58: Bates College | C58: =IF(ISERROR(Y58),"No Data",IF(Y58<15,"Far Reach",IF(Y58<50,"Reach",IF(Y58<80,"Target",IF(Y58>=80,IF(BD58="NULL","Likely",IF(StudentTargets!$AC$11<=AllColleges!BD58/100,"Likely+","Likely")),""))))) -> Far Reach | F58: 0 | G58: 0 | H58: 55 | J58: =IF(ISERROR(Y58),0,IF(AND(I58=1,Y58>=80),1,IF(OR(ISERROR(Y58),BD58="NULL"),0,IF(AND(Y58>=80,BN58>=(StudentTargets!$W$15-1),StudentTargets!$AC$11<=AllColleges!BD58/100),1,0)*AE58))) ->  | K58: =IF(ISERROR(Y58),0,IF(AND(I58=1,Y58>=80),0,IF(ISERROR(Y58),0,IF(AND(Y58>=80,BN58>=(StudentTargets!$W$15-1)),IF(ISERROR(StudentTargets!$AC$11>(BD58/100)),1,IF(StudentTargets!$AC$11>(BD58/100),1,0)),0))*AE58)) ->  | L58: 0 | M58: 0 | N58: 1 | R58: 0 | S58: 0 | T58: 4.2009 | U58: 0.2751 | V58: -17.92 | W58: -25.8979 | X58: -25.8979 | Y58: 5.658286546e-10 | Z58: 1 | AA58: 1 | AB58: 1 | AC58: =IF(FilterSchoolType="Any",1,IF(AND(FilterSchoolType=Lookups!$S$5,FilterState=AU58),1,IF(AND(FilterSchoolType=Lookups!$S$3,FilterState=AU58,LEFT(AV58,3)="Pub"),1,IF(AND(FilterSchoolType=Lookups!$S$4,LEFT(AV58,3)="Pub"),1,0)))) -> 1 | AD58: 1 | AE58: 1 | AF58: 308.1923823 | AG58: 0 | AH58: 3497 | AI58: =IFERROR(VLOOKUP(AR58, 'KIPP$$'!A:G, 7, 0), "") ->  | AJ58: 4.2009 | AK58: 29 | AL58: =IFERROR(VLOOKUP($AR58,School_View8[[NCSE_ID]:[Max_Unmet_Need]],3,FALSE),"") ->  | AM58: =IFERROR(VLOOKUP($AR58,School_View8[[NCSE_ID]:[Max_Unmet_Need]],4,FALSE),"") ->  | AO58: =--ISNUMBER(IFERROR(SEARCH('Wish List and Search'!$H$12,$AS58,1),"")) -> 1 | AP58: =IF(AO58=1,COUNTIF($AO$4:AO58,1),"") -> 55 | AQ58: =IFERROR(INDEX($AS$4:$AS$3000,MATCH(ROWS($AP$4:AP58),$AP$4:$AP$3000,0)),"") -> Bates College | AR58: 160977 | AS58: Bates College | AT58: Lewiston | AU58: ME | AV58: Private 4 yr | AW58: Most Competitive+ | AX58: 24055 | AY58: 3497 | AZ58: 6819 | BA58: 12108 | BB58: 49 | BC58: 87.7 | BD58: 87.5 | BE58: 95 | BF58: 29 | BG58: www.bates.edu/ | BJ58: City: Small | BK58: 1780 | BN58: 7 | BO58: 4.2009 | BP58: 0.2751 | BQ58: -17.92 | BR58: 0 | BS58: -70.2033 | BT58: 44.1053
A59: 110662 | B59: University of California-Los Angeles | C59: =IF(ISERROR(Y59),"No Data",IF(Y59<15,"Far Reach",IF(Y59<50,"Reach",IF(Y59<80,"Target",IF(Y59>=80,IF(BD59="NULL","Likely",IF(StudentTargets!$AC$11<=AllColleges!BD59/100,"Likely+","Likely")),""))))) -> Far Reach | F59: 0 | G59: 0 | H59: 56 | J59: =IF(ISERROR(Y59),0,IF(AND(I59=1,Y59>=80),1,IF(OR(ISERROR(Y59),BD59="NULL"),0,IF(AND(Y59>=80,BN59>=(StudentTargets!$W$15-1),StudentTargets!$AC$11<=AllColleges!BD59/100),1,0)*AE59))) ->  | K59: =IF(ISERROR(Y59),0,IF(AND(I59=1,Y59>=80),0,IF(ISERROR(Y59),0,IF(AND(Y59>=80,BN59>=(StudentTargets!$W$15-1)),IF(ISERROR(StudentTargets!$AC$11>(BD59/100)),1,IF(StudentTargets!$AC$11>(BD59/100),1,0)),0))*AE59)) ->  | L59: 0 | M59: 0 | N59: 1 | R59: 0 | S59: 0 | T59: 4.2009 | U59: 0.2751 | V59: -17.92 | W59: -26.173 | X59: -26.173 | Y59: 4.297446959e-10 | Z59: 1 | AA59: 1 | AB59: 1 | AC59: =IF(FilterSchoolType="Any",1,IF(AND(FilterSchoolType=Lookups!$S$5,FilterState=AU59),1,IF(AND(FilterSchoolType=Lookups!$S$3,FilterState=AU59,LEFT(AV59,3)="Pub"),1,IF(AND(FilterSchoolType=Lookups!$S$4,LEFT(AV59,3)="Pub"),1,0)))) -> 1 | AD59: 1 | AE59: 1 | AF59: 2446.923671 | AG59: 1 | AH59: 7900 | AI59: =IFERROR(VLOOKUP(AR59, 'KIPP$$'!A:G, 7, 0), "") ->  | AJ59: 4.2009 | AK59: 30 | AL59: =IFERROR(VLOOKUP($AR59,School_View8[[NCSE_ID]:[Max_Unmet_Need]],3,FALSE),"") ->  | AM59: =IFERROR(VLOOKUP($AR59,School_View8[[NCSE_ID]:[Max_Unmet_Need]],4,FALSE),"") ->  | AO59: =--ISNUMBER(IFERROR(SEARCH('Wish List and Search'!$H$12,$AS59,1),"")) -> 1 | AP59: =IF(AO59=1,COUNTIF($AO$4:AO59,1),"") -> 56 | AQ59: =IFERROR(INDEX($AS$4:$AS$3000,MATCH(ROWS($AP$4:AP59),$AP$4:$AP$3000,0)),"") -> University of California-Los Angeles | AR59: 110662 | AS59: University of California-Los Angeles | AT59: Los Angeles | AU59: CA | AV59: Public 4 yr | AW59: Most Competitive+ | AX59: 14236 | AY59: 7900 | AZ59: 9093 | BA59: 12416 | BB59: 43 | BC59: 91.1 | BD59: 87.4 | BE59: 97 | BF59: 30 | BG59: www.ucla.edu/ | BJ59: City: Large | BK59: 30873 | BN59: 7 | BO59: 4.2009 | BP59: 0.2751 | BQ59: -17.92 | BR59: 0 | BS59: -118.444 | BT59: 34.0689
A60: 121150 | B60: Pepperdine University | C60: =IF(ISERROR(Y60),"No Data",IF(Y60<15,"Far Reach",IF(Y60<50,"Reach",IF(Y60<80,"Target",IF(Y60>=80,IF(BD60="NULL","Likely",IF(StudentTargets!$AC$11<=AllColleges!BD60/100,"Likely+","Likely")),""))))) -> Far Reach | F60: 0 | G60: 0 | H60: 57 | J60: =IF(ISERROR(Y60),0,IF(AND(I60=1,Y60>=80),1,IF(OR(ISERROR(Y60),BD60="NULL"),0,IF(AND(Y60>=80,BN60>=(StudentTargets!$W$15-1),StudentTargets!$AC$11<=AllColleges!BD60/100),1,0)*AE60))) ->  | K60: =IF(ISERROR(Y60),0,IF(AND(I60=1,Y60>=80),0,IF(ISERROR(Y60),0,IF(AND(Y60>=80,BN60>=(StudentTargets!$W$15-1)),IF(ISERROR(StudentTargets!$AC$11>(BD60/100)),1,IF(StudentTargets!$AC$11>(BD60/100),1,0)),0))*AE60)) ->  | L60: 0 | M60: 0 | N60: 1 | R60: 0 | S60: 0 | T60: 2.8488 | U60: 0.32 | V60: -9.05 | W60: -17.37 | X60: -17.37 | Y60: 2.859597027e-06 | Z60: 1 | AA60: 1 | AB60: 1 | AC60: =IF(FilterSchoolType="Any",1,IF(AND(FilterSchoolType=Lookups!$S$5,FilterState=AU60),1,IF(AND(FilterSchoolType=Lookups!$S$3,FilterState=AU60,LEFT(AV60,3)="Pub"),1,IF(AND(FilterSchoolType=Lookups!$S$4,LEFT(AV60,3)="Pub"),1,0)))) -> 1 | AD60: 1 | AE60: 1 | AF60: 2461.541423 | AG60: 0 | AH60: 21314 | AI60: =IFERROR(VLOOKUP(AR60, 'KIPP$$'!A:G, 7, 0), "") ->  | AJ60: 2.8488 | AK60: 26 | AL60: =IFERROR(VLOOKUP($AR60,School_View8[[NCSE_ID]:[Max_Unmet_Need]],3,FALSE),"") ->  | AM60: =IFERROR(VLOOKUP($AR60,School_View8[[NCSE_ID]:[Max_Unmet_Need]],4,FALSE),"") ->  | AO60: =--ISNUMBER(IFERROR(SEARCH('Wish List and Search'!$H$12,$AS60,1),"")) -> 1 | AP60: =IF(AO60=1,COUNTIF($AO$4:AO60,1),"") -> 57 | AQ60: =IFERROR(INDEX($AS$4:$AS$3000,MATCH(ROWS($AP$4:AP60),$AP$4:$AP$3000,0)),"") -> Pepperdine University | AR60: 121150 | AS60: Pepperdine University | AT60: Malibu | AU60: CA | AV60: Private 4 yr | AW60: Highly Competitive | AX60: 39637 | AY60: 21314 | AZ60: 28238 | BA60: 31258 | BB60: 41 | BC60: 87.4 | BD60: 87.4 | BE60: 90 | BF60: 26 | BG60: www.pepperdine.edu/ | BJ60: Suburb: Large | BK60: 3542 | BN60: 5 | BO60: 2.8488 | BP60: 0.32 | BQ60: -9.05 | BR60: 0 | BS60: -118.707 | BT60: 34.0378
A61: 130590 | B61: Trinity College | C61: =IF(ISERROR(Y61),"No Data",IF(Y61<15,"Far Reach",IF(Y61<50,"Reach",IF(Y61<80,"Target",IF(Y61>=80,IF(BD61="NULL","Likely",IF(StudentTargets!$AC$11<=AllColleges!BD61/100,"Likely+","Likely")),""))))) -> Far Reach | F61: 0 | G61: 0 | H61: 58 | J61: =IF(ISERROR(Y61),0,IF(AND(I61=1,Y61>=80),1,IF(OR(ISERROR(Y61),BD61="NULL"),0,IF(AND(Y61>=80,BN61>=(StudentTargets!$W$15-1),StudentTargets!$AC$11<=AllColleges!BD61/100),1,0)*AE61))) ->  | K61: =IF(ISERROR(Y61),0,IF(AND(I61=1,Y61>=80),0,IF(ISERROR(Y61),0,IF(AND(Y61>=80,BN61>=(StudentTargets!$W$15-1)),IF(ISERROR(StudentTargets!$AC$11>(BD61/100)),1,IF(StudentTargets!$AC$11>(BD61/100),1,0)),0))*AE61)) ->  | L61: 0 | M61: 0 | N61: 1 | R61: 0 | S61: 0 | T61: 4.7749 | U61: 0.322 | V61: -17.95 | W61: -26 | X61: -26 | Y61: 5.109089028e-10 | Z61: 1 | AA61: 1 | AB61: 1 | AC61: =IF(FilterSchoolType="Any",1,IF(AND(FilterSchoolType=Lookups!$S$5,FilterState=AU61),1,IF(AND(FilterSchoolType=Lookups!$S$3,FilterState=AU61,LEFT(AV61,3)="Pub"),1,IF(AND(FilterSchoolType=Lookups!$S$4,LEFT(AV61,3)="Pub"),1,0)))) -> 1 | AD61: 1 | AE61: 1 | AF61: 103.7683581 | AG61: 0 | AH61: 14221 | AI61: =IFERROR(VLOOKUP(AR61, 'KIPP$$'!A:G, 7, 0), "") ->  | AJ61: 4.7749 | AK61: 25 | AL61: =IFERROR(VLOOKUP($AR61,School_View8[[NCSE_ID]:[Max_Unmet_Need]],3,FALSE),"") ->  | AM61: =IFERROR(VLOOKUP($AR61,School_View8[[NCSE_ID]:[Max_Unmet_Need]],4,FALSE),"") ->  | AO61: =--ISNUMBER(IFERROR(SEARCH('Wish List and Search'!$H$12,$AS61,1),"")) -> 1 | AP61: =IF(AO61=1,COUNTIF($AO$4:AO61,1),"") -> 58 | AQ61: =IFERROR(INDEX($AS$4:$AS$3000,MATCH(ROWS($AP$4:AP61),$AP$4:$AP$3000,0)),"") -> Trinity College | AR61: 130590 | AS61: Trinity College | AT61: Hartford | AU61: CT | AV61: Private 4 yr | AW61: Highly Competitive | AX61: 23414 | AY61: 14221 | AZ61: 10803 | BA61: 14032 | BB61: 51 | BC61: 87.4 | BD61: 87.4 | BE61: 90 | BF61: 25 | BG61: www.trincoll.edu | BJ61: City: Midsize | BK61: 2259 | BN61: 5 | BO61: 4.7749 | BP61: 0.322 | BQ61: -17.95 | BR61: 0 | BS61: -72.6887 | BT61: 41.7467
A62: 161086 | B62: Colby College | C62: =IF(ISERROR(Y62),"No Data",IF(Y62<15,"Far Reach",IF(Y62<50,"Reach",IF(Y62<80,"Target",IF(Y62>=80,IF(BD62="NULL","Likely",IF(StudentTargets!$AC$11<=AllColleges!BD62/100,"Likely+","Likely")),""))))) -> Far Reach | F62: 0 | G62: 0 | H62: 59 | J62: =IF(ISERROR(Y62),0,IF(AND(I62=1,Y62>=80),1,IF(OR(ISERROR(Y62),BD62="NULL"),0,IF(AND(Y62>=80,BN62>=(StudentTargets!$W$15-1),StudentTargets!$AC$11<=AllColleges!BD62/100),1,0)*AE62))) ->  | K62: =IF(ISERROR(Y62),0,IF(AND(I62=1,Y62>=80),0,IF(ISERROR(Y62),0,IF(AND(Y62>=80,BN62>=(StudentTargets!$W$15-1)),IF(ISERROR(StudentTargets!$AC$11>(BD62/100)),1,IF(StudentTargets!$AC$11>(BD62/100),1,0)),0))*AE62)) ->  | L62: 0 | M62: 0 | N62: 1 | R62: 0 | S62: 0 | T62: 4.7749 | U62: 0.322 | V62: -17.95 | W62: -27.61 | X62: -27.61 | Y62: 1.021243616e-10 | Z62: 1 | AA62: 1 | AB62: 1 | AC62: =IF(FilterSchoolType="Any",1,IF(AND(FilterSchoolType=Lookups!$S$5,FilterState=AU62),1,IF(AND(FilterSchoolType=Lookups!$S$3,FilterState=AU62,LEFT(AV62,3)="Pub"),1,IF(AND(FilterSchoolType=Lookups!$S$4,LEFT(AV62,3)="Pub"),1,0)))) -> 1 | AD62: 1 | AE62: 1 | AF62: 349.5981416 | AG62: 0 | AH62: 6481 | AI62: =IFERROR(VLOOKUP(AR62, 'KIPP$$'!A:G, 7, 0), "") ->  | AJ62: 4.7749 | AK62: 30 | AL62: =IFERROR(VLOOKUP($AR62,School_View8[[NCSE_ID]:[Max_Unmet_Need]],3,FALSE),"") ->  | AM62: =IFERROR(VLOOKUP($AR62,School_View8[[NCSE_ID]:[Max_Unmet_Need]],4,FALSE),"") ->  | AO62: =--ISNUMBER(IFERROR(SEARCH('Wish List and Search'!$H$12,$AS62,1),"")) -> 1 | AP62: =IF(AO62=1,COUNTIF($AO$4:AO62,1),"") -> 59 | AQ62: =IFERROR(INDEX($AS$4:$AS$3000,MATCH(ROWS($AP$4:AP62),$AP$4:$AP$3000,0)),"") -> Colby College | AR62: 161086 | AS62: Colby College | AT62: Waterville | AU62: ME | AV62: Private 4 yr | AW62: Most Competitive | AX62: 21032 | AY62: 6481 | AZ62: 15007 | BA62: 17088 | BB62: 48 | BC62: 89 | BD62: 87.4 | BE62: 93 | BF62: 30 | BG62: www.colby.edu | BJ62: Town: Remote | BK62: 1879 | BN62: 6 | BO62: 4.7749 | BP62: 0.322 | BQ62: -17.95 | BR62: 0 | BS62: -69.6634 | BT62: 44.5642
A63: 110635 | B63: University of California-Berkeley | C63: =IF(ISERROR(Y63),"No Data",IF(Y63<15,"Far Reach",IF(Y63<50,"Reach",IF(Y63<80,"Target",IF(Y63>=80,IF(BD63="NULL","Likely",IF(StudentTargets!$AC$11<=AllColleges!BD63/100,"Likely+","Likely")),""))))) -> Far Reach | F63: 0 | G63: 0 | H63: 60 | J63: =IF(ISERROR(Y63),0,IF(AND(I63=1,Y63>=80),1,IF(OR(ISERROR(Y63),BD63="NULL"),0,IF(AND(Y63>=80,BN63>=(StudentTargets!$W$15-1),StudentTargets!$AC$11<=AllColleges!BD63/100),1,0)*AE63))) ->  | K63: =IF(ISERROR(Y63),0,IF(AND(I63=1,Y63>=80),0,IF(ISERROR(Y63),0,IF(AND(Y63>=80,BN63>=(StudentTargets!$W$15-1)),IF(ISERROR(StudentTargets!$AC$11>(BD63/100)),1,IF(StudentTargets!$AC$11>(BD63/100),1,0)),0))*AE63)) ->  | L63: 0 | M63: 0 | N63: 1 | R63: 0 | S63: 0 | T63: 4.2009 | U63: 0.2751 | V63: -17.92 | W63: -26.7232 | X63: -26.7232 | Y63: 2.478915376e-10 | Z63: 1 | AA63: 1 | AB63: 1 | AC63: =IF(FilterSchoolType="Any",1,IF(AND(FilterSchoolType=Lookups!$S$5,FilterState=AU63),1,IF(AND(FilterSchoolType=Lookups!$S$3,FilterState=AU63,LEFT(AV63,3)="Pub"),1,IF(AND(FilterSchoolType=Lookups!$S$4,LEFT(AV63,3)="Pub"),1,0)))) -> 1 | AD63: 1 | AE63: 1 | AF63: 2546.51179 | AG63: 1 | AH63: 8677 | AI63: =IFERROR(VLOOKUP(AR63, 'KIPP$$'!A:G, 7, 0), "") ->  | AJ63: 4.2009 | AK63: 32 | AL63: =IFERROR(VLOOKUP($AR63,School_View8[[NCSE_ID]:[Max_Unmet_Need]],3,FALSE),"") ->  | AM63: =IFERROR(VLOOKUP($AR63,School_View8[[NCSE_ID]:[Max_Unmet_Need]],4,FALSE),"") ->  | AO63: =--ISNUMBER(IFERROR(SEARCH('Wish List and Search'!$H$12,$AS63,1),"")) -> 1 | AP63: =IF(AO63=1,COUNTIF($AO$4:AO63,1),"") -> 60 | AQ63: =IFERROR(INDEX($AS$4:$AS$3000,MATCH(ROWS($AP$4:AP63),$AP$4:$AP$3000,0)),"") -> University of California-Berkeley | AR63: 110635 | AS63: University of California-Berkeley | AT63: Berkeley | AU63: CA | AV63: Public 4 yr | AW63: Most Competitive+ | AX63: 17160 | AY63: 8677 | AZ63: 9522 | BA63: 13920 | BB63: 48 | BC63: 91.7 | BD63: 87.2 | BE63: 97 | BF63: 32 | BG63: www.berkeley.edu | BJ63: City: Midsize | BK63: 29310 | BN63: 7 | BO63: 4.2009 | BP63: 0.2751 | BQ63: -17.92 | BR63: 0 | BS63: -122.26 | BT63: 37.8719
A64: 237057 | B64: Whitman College | C64: =IF(ISERROR(Y64),"No Data",IF(Y64<15,"Far Reach",IF(Y64<50,"Reach",IF(Y64<80,"Target",IF(Y64>=80,IF(BD64="NULL","Likely",IF(StudentTargets!$AC$11<=AllColleges!BD64/100,"Likely+","Likely")),""))))) -> Far Reach | F64: 0 | G64: 0 | H64: 61 | J64: =IF(ISERROR(Y64),0,IF(AND(I64=1,Y64>=80),1,IF(OR(ISERROR(Y64),BD64="NULL"),0,IF(AND(Y64>=80,BN64>=(StudentTargets!$W$15-1),StudentTargets!$AC$11<=AllColleges!BD64/100),1,0)*AE64))) ->  | K64: =IF(ISERROR(Y64),0,IF(AND(I64=1,Y64>=80),0,IF(ISERROR(Y64),0,IF(AND(Y64>=80,BN64>=(StudentTargets!$W$15-1)),IF(ISERROR(StudentTargets!$AC$11>(BD64/100)),1,IF(StudentTargets!$AC$11>(BD64/100),1,0)),0))*AE64)) ->  | L64: 0 | M64: 0 | N64: 1 | R64: 0 | S64: 0 | T64: 4.7749 | U64: 0.322 | V64: -17.95 | W64: -26.966 | X64: -26.966 | Y64: 1.944531581e-10 | Z64: 1 | AA64: 1 | AB64: 1 | AC64: =IF(FilterSchoolType="Any",1,IF(AND(FilterSchoolType=Lookups!$S$5,FilterState=AU64),1,IF(AND(FilterSchoolType=Lookups!$S$3,FilterState=AU64,LEFT(AV64,3)="Pub"),1,IF(AND(FilterSchoolType=Lookups!$S$4,LEFT(AV64,3)="Pub"),1,0)))) -> 1 | AD64: 1 | AE64: 1 | AF64: 2217.973876 | AG64: 0 | AH64: 15238 | AI64: =IFERROR(VLOOKUP(AR64, 'KIPP$$'!A:G, 7, 0), "") ->  | AJ64: 4.7749 | AK64: 28 | AL64: =IFERROR(VLOOKUP($AR64,School_View8[[NCSE_ID]:[Max_Unmet_Need]],3,FALSE),"") ->  | AM64: =IFERROR(VLOOKUP($AR64,School_View8[[NCSE_ID]:[Max_Unmet_Need]],4,FALSE),"") ->  | AO64: =--ISNUMBER(IFERROR(SEARCH('Wish List and Search'!$H$12,$AS64,1),"")) -> 1 | AP64: =IF(AO64=1,COUNTIF($AO$4:AO64,1),"") -> 61 | AQ64: =IFERROR(INDEX($AS$4:$AS$3000,MATCH(ROWS($AP$4:AP64),$AP$4:$AP$3000,0)),"") -> Whitman College | AR64: 237057 | AS64: Whitman College | AT64: Walla Walla | AU64: WA | AV64: Private 4 yr | AW64: Most Competitive | AX64: 34272 | AY64: 15238 | AZ64: 17942 | BA64: 21821 | BB64: 43 | BC64: 87.7 | BD64: 87.1 | BE64: 94 | BF64: 28 | BG64: www.whitman.edu | BJ64: City: Small | BK64: 1493 | BN64: 6 | BO64: 4.7749 | BP64: 0.322 | BQ64: -17.95 | BR64: 0 | BS64: -118.33 | BT64: 46.0714
A65: 173902 | B65: Macalester College | C65: =IF(ISERROR(Y65),"No Data",IF(Y65<15,"Far Reach",IF(Y65<50,"Reach",IF(Y65<80,"Target",IF(Y65>=80,IF(BD65="NULL","Likely",IF(StudentTargets!$AC$11<=AllColleges!BD65/100,"Likely+","Likely")),""))))) -> Far Reach | F65: 0 | G65: 0 | H65: 62 | J65: =IF(ISERROR(Y65),0,IF(AND(I65=1,Y65>=80),1,IF(OR(ISERROR(Y65),BD65="NULL"),0,IF(AND(Y65>=80,BN65>=(StudentTargets!$W$15-1),StudentTargets!$AC$11<=AllColleges!BD65/100),1,0)*AE65))) ->  | K65: =IF(ISERROR(Y65),0,IF(AND(I65=1,Y65>=80),0,IF(ISERROR(Y65),0,IF(AND(Y65>=80,BN65>=(StudentTargets!$W$15-1)),IF(ISERROR(StudentTargets!$AC$11>(BD65/100)),1,IF(StudentTargets!$AC$11>(BD65/100),1,0)),0))*AE65)) ->  | L65: 0 | M65: 0 | N65: 1 | R65: 0 | S65: 0 | T65: 4.7749 | U65: 0.322 | V65: -17.95 | W65: -27.288 | X65: -27.288 | Y65: 1.409198518e-10 | Z65: 1 | AA65: 1 | AB65: 1 | AC65: =IF(FilterSchoolType="Any",1,IF(AND(FilterSchoolType=Lookups!$S$5,FilterState=AU65),1,IF(AND(FilterSchoolType=Lookups!$S$3,FilterState=AU65,LEFT(AV65,3)="Pub"),1,IF(AND(FilterSchoolType=Lookups!$S$4,LEFT(AV65,3)="Pub"),1,0)))) -> 1 | AD65: 1 | AE65: 1 | AF65: 1002.73376 | AG65: 0 | AH65: 16848 | AI65: =IFERROR(VLOOKUP(AR65, 'KIPP$$'!A:G, 7, 0), "") ->  | AJ65: 4.7749 | AK65: 29 | AL65: =IFERROR(VLOOKUP($AR65,School_View8[[NCSE_ID]:[Max_Unmet_Need]],3,FALSE),"") ->  | AM65: =IFERROR(VLOOKUP($AR65,School_View8[[NCSE_ID]:[Max_Unmet_Need]],4,FALSE),"") ->  | AO65: =--ISNUMBER(IFERROR(SEARCH('Wish List and Search'!$H$12,$AS65,1),"")) -> 1 | AP65: =IF(AO65=1,COUNTIF($AO$4:AO65,1),"") -> 62 | AQ65: =IFERROR(INDEX($AS$4:$AS$3000,MATCH(ROWS($AP$4:AP65),$AP$4:$AP$3000,0)),"") -> Macalester College | AR65: 173902 | AS65: Macalester College | AT65: Saint Paul | AU65: MN | AV65: Private 4 yr | AW65: Most Competitive | AX65: 28528 | AY65: 16848 | AZ65: 14378 | BA65: 17423 | BB65: 40 | BC65: 88.2 | BD65: 87 | BE65: 93 | BF65: 29 | BG65: www.macalester.edu | BJ65: City: Large | BK65: 2146 | BN65: 6 | BO65: 4.7749 | BP65: 0.322 | BQ65: -17.95 | BR65: 0 | BS65: -93.1699 | BT65: 44.9367
A66: 167835 | B66: Smith College | C66: =IF(ISERROR(Y66),"No Data",IF(Y66<15,"Far Reach",IF(Y66<50,"Reach",IF(Y66<80,"Target",IF(Y66>=80,IF(BD66="NULL","Likely",IF(StudentTargets!$AC$11<=AllColleges!BD66/100,"Likely+","Likely")),""))))) -> Far Reach | F66: 0 | G66: 0 | H66: 63 | J66: =IF(ISERROR(Y66),0,IF(AND(I66=1,Y66>=80),1,IF(OR(ISERROR(Y66),BD66="NULL"),0,IF(AND(Y66>=80,BN66>=(StudentTargets!$W$15-1),StudentTargets!$AC$11<=AllColleges!BD66/100),1,0)*AE66))) ->  | K66: =IF(ISERROR(Y66),0,IF(AND(I66=1,Y66>=80),0,IF(ISERROR(Y66),0,IF(AND(Y66>=80,BN66>=(StudentTargets!$W$15-1)),IF(ISERROR(StudentTargets!$AC$11>(BD66/100)),1,IF(StudentTargets!$AC$11>(BD66/100),1,0)),0))*AE66)) ->  | L66: 0 | M66: 0 | N66: 1 | R66: 0 | S66: 0 | T66: 4.7749 | U66: 0.322 | V66: -17.95 | W66: -26.966 | X66: -26.966 | Y66: 1.944531581e-10 | Z66: 1 | AA66: 1 | AB66: 1 | AC66: =IF(FilterSchoolType="Any",1,IF(AND(FilterSchoolType=Lookups!$S$5,FilterState=AU66),1,IF(AND(FilterSchoolType=Lookups!$S$3,FilterState=AU66,LEFT(AV66,3)="Pub"),1,IF(AND(FilterSchoolType=Lookups!$S$4,LEFT(AV66,3)="Pub"),1,0)))) -> 1 | AD66: 1 | AE66: 1 | AF66: 134.8434738 | AG66: 0 | AH66: 9038 | AI66: =IFERROR(VLOOKUP(AR66, 'KIPP$$'!A:G, 7, 0), "") ->  | AJ66: 4.7749 | AK66: 28 | AL66: =IFERROR(VLOOKUP($AR66,School_View8[[NCSE_ID]:[Max_Unmet_Need]],3,FALSE),"") ->  | AM66: =IFERROR(VLOOKUP($AR66,School_View8[[NCSE_ID]:[Max_Unmet_Need]],4,FALSE),"") ->  | AO66: =--ISNUMBER(IFERROR(SEARCH('Wish List and Search'!$H$12,$AS66,1),"")) -> 1 | AP66: =IF(AO66=1,COUNTIF($AO$4:AO66,1),"") -> 63 | AQ66: =IFERROR(INDEX($AS$4:$AS$3000,MATCH(ROWS($AP$4:AP66),$AP$4:$AP$3000,0)),"") -> Smith College | AR66: 167835 | AS66: Smith College | AT66: Northampton | AU66: MA | AV66: Private 4 yr | AW66: Most Competitive | AX66: 24258 | AY66: 9038 | AZ66: 10277 | BA66: 17814 | BB66: 0 | BC66: 88.9 | BD66: 86.6 | BE66: 94 | BF66: 28 | BG66: www.smith.edu | BJ66: Suburb: Large | BK66: 2514 | BN66: 6 | BO66: 4.7749 | BP66: 0.322 | BQ66: -17.95 | BR66: 0 | BS66: -72.6381 | BT66: 42.3181
A67: 212911 | B67: Haverford College | C67: =IF(ISERROR(Y67),"No Data",IF(Y67<15,"Far Reach",IF(Y67<50,"Reach",IF(Y67<80,"Target",IF(Y67>=80,IF(BD67="NULL","Likely",IF(StudentTargets!$AC$11<=AllColleges!BD67/100,"Likely+","Likely")),""))))) -> Far Reach | F67: 0 | G67: 0 | H67: 64 | J67: =IF(ISERROR(Y67),0,IF(AND(I67=1,Y67>=80),1,IF(OR(ISERROR(Y67),BD67="NULL"),0,IF(AND(Y67>=80,BN67>=(StudentTargets!$W$15-1),StudentTargets!$AC$11<=AllColleges!BD67/100),1,0)*AE67))) ->  | K67: =IF(ISERROR(Y67),0,IF(AND(I67=1,Y67>=80),0,IF(ISERROR(Y67),0,IF(AND(Y67>=80,BN67>=(StudentTargets!$W$15-1)),IF(ISERROR(StudentTargets!$AC$11>(BD67/100)),1,IF(StudentTargets!$AC$11>(BD67/100),1,0)),0))*AE67)) ->  | L67: 0 | M67: 0 | N67: 1 | R67: 0 | S67: 0 | T67: 4.2009 | U67: 0.2751 | V67: -17.92 | W67: -26.4481 | X67: -26.4481 | Y67: 3.263894505e-10 | Z67: 1 | AA67: 1 | AB67: 1 | AC67: =IF(FilterSchoolType="Any",1,IF(AND(FilterSchoolType=Lookups!$S$5,FilterState=AU67),1,IF(AND(FilterSchoolType=Lookups!$S$3,FilterState=AU67,LEFT(AV67,3)="Pub"),1,IF(AND(FilterSchoolType=Lookups!$S$4,LEFT(AV67,3)="Pub"),1,0)))) -> 1 | AD67: 1 | AE67: 1 | AF67: 78.27307226 | AG67: 0 | AH67: 7236 | AI67: =IFERROR(VLOOKUP(AR67, 'KIPP$$'!A:G, 7, 0), "") ->  | AJ67: 4.2009 | AK67: 31 | AL67: =IFERROR(VLOOKUP($AR67,School_View8[[NCSE_ID]:[Max_Unmet_Need]],3,FALSE),"") ->  | AM67: =IFERROR(VLOOKUP($AR67,School_View8[[NCSE_ID]:[Max_Unmet_Need]],4,FALSE),"") ->  | AO67: =--ISNUMBER(IFERROR(SEARCH('Wish List and Search'!$H$12,$AS67,1),"")) -> 1 | AP67: =IF(AO67=1,COUNTIF($AO$4:AO67,1),"") -> 64 | AQ67: =IFERROR(INDEX($AS$4:$AS$3000,MATCH(ROWS($AP$4:AP67),$AP$4:$AP$3000,0)),"") -> Haverford College | AR67: 212911 | AS67: Haverford College | AT67: Haverford | AU67: PA | AV67: Private 4 yr | AW67: Most Competitive+ | AX67: 21144 | AY67: 7236 | AZ67: 12861 | BA67: 12110 | BB67: 48 | BC67: 90.5 | BD67: 86.6 | BE67: 97 | BF67: 31 | BG67: https://www.haverford.edu | BJ67: Suburb: Large | BK67: 1268 | BN67: 7 | BO67: 4.2009 | BP67: 0.2751 | BQ67: -17.92 | BR67: 0 | BS67: -75.3052 | BT67: 40.0075
A68: =AR68 -> 128902 | B68: =AS68 -> Connecticut College | C68: =IF(ISERROR(Y68),"No Data",IF(Y68<15,"Far Reach",IF(Y68<50,"Reach",IF(Y68<80,"Target",IF(Y68>=80,IF(BD68="NULL","Likely",IF(StudentTargets!$AC$11<=AllColleges!BD68/100,"Likely+","Likely")),""))))) -> Far Reach | F68: 0 | G68: 0 | H68: 65 | J68: =IF(ISERROR(Y68),0,IF(AND(I68=1,Y68>=80),1,IF(OR(ISERROR(Y68),BD68="NULL"),0,IF(AND(Y68>=80,BN68>=(StudentTargets!$W$15-1),StudentTargets!$AC$11<=AllColleges!BD68/100),1,0)*AE68))) ->  | K68: =IF(ISERROR(Y68),0,IF(AND(I68=1,Y68>=80),0,IF(ISERROR(Y68),0,IF(AND(Y68>=80,BN68>=(StudentTargets!$W$15-1)),IF(ISERROR(StudentTargets!$AC$11>(BD68/100)),1,IF(StudentTargets!$AC$11>(BD68/100),1,0)),0))*AE68)) ->  | L68: =IF(ISERROR(Y68),0,IF(AND(I68=1,Y68>=80),0,IF(ISERROR(Y68),0,IF(AND(Y68>=50,Y68<80),1,0)*AE68))) -> 0 | M68: =IF(ISERROR(Y68),0,IF(AND(I68=1,Y68>=80),0,IF(ISERROR(Y68),0,IF(AND(Y68>=15,Y68<50),1,0)*AE68))) -> 0 | N68: =IF(ISERROR(Y68),0,IF(AND(Y68<15),1,0)*AE68) -> 1 | R68: =IF(AND(O68=1,P68=1,Q68=1),100,O68*GPA+MaxACT*P68+Q68) -> 0 | S68: 0 | T68: 4.7749 | U68: 0.322 | V68: -17.95 | W68: =IF(AND(T68=1,U68=1),100,IF(T68=0,1/0,T68*GPA+(MaxACT-BF68)*U68+V68)) -> -26.966 | X68: =IF(S68=1,R68,W68) -> -26.966 | Y68: =EXP(X68)/(1+EXP(X68))*100 -> 1.944531581e-10 | Z68: =IF(FilterDistMin="Any",IF(FilterDistMax="Any",1,IF(FilterDistMaxValue>=AF68,1,0)),IF(FilterDistMinValue<=AF68,IF(FilterDistMax="Any",1,IF(FilterDistMaxValue>=AF68,1,0)),0)) -> 1 | AA68: =IF(FilterStudentsMin="Any",IF(FilterStudentsMax="Any",1,IF(FilterStudentsMaxValue>=BK68,1,0)),IF(FilterStudentsMinValue<=BK68,IF(FilterStudentsMax="Any",1,IF(FilterStudentsMaxValue>=BK68,1,0)),0)) -> 1 | AB68: =IF(FilterNetPrice="Any",1,IF(FilterNetPriceMax>=AH68,1,0)) -> 1 | AC68: =IF(FilterSchoolType="Any",1,IF(AND(FilterSchoolType=Lookups!$S$5,FilterState=AU68),1,IF(AND(FilterSchoolType=Lookups!$S$3,FilterState=AU68,LEFT(AV68,3)="Pub"),1,IF(AND(FilterSchoolType=Lookups!$S$4,LEFT(AV68,3)="Pub"),1,0)))) -> 1 | AD68: =IF(FilterKIPP="Any",1,IF(AND(FilterKIPPMin<=BL68,FilterKIPPMax>=BL68),1,0)) -> 1 | AE68: 1 | AF68: =IF(ISERROR(ACOS(COS(RADIANS(90-$BT$1))*COS(RADIANS(90-$BT68))+SIN(RADIANS(90-$BT$1))*SIN(RADIANS(90-BT68))*COS(RADIANS($BS$1-BS68)))*3958.756),"",ACOS(COS(RADIANS(90-$BT$1))*COS(RADIANS(90-$BT68))+SIN(RADIANS(90-$BT$1))*SIN(RADIANS(90-BT68))*COS(RADIANS($BS$1-BS68)))*3958.756) -> 116.1922042 | AG68: =IF(LEFT(AV68, 3)="Pub", 1, 0) -> 0 | AH68: 15498 | AI68: =IFERROR(VLOOKUP(AR68, 'KIPP$$'!A:G, 7, 0), "") ->  | AJ68: =IF(OR(BO68="NULL",BO68="",BF68="NULL",BF68=""),#N/A,BO68) -> 4.7749 | AK68: =IF(OR(BO68="NULL",BO68="",BF68="NULL",BF68=""),#N/A,BF68) -> 28 | AL68: =IFERROR(VLOOKUP($AR68,School_View8[[NCSE_ID]:[Max_Unmet_Need]],3,FALSE),"") ->  | AM68: =IFERROR(VLOOKUP($AR68,School_View8[[NCSE_ID]:[Max_Unmet_Need]],4,FALSE),"") ->  | AO68: =--ISNUMBER(IFERROR(SEARCH('Wish List and Search'!$H$12,$AS68,1),"")) -> 1 | AP68: =IF(AO68=1,COUNTIF($AO$4:AO68,1),"") -> 65 | AQ68: =IFERROR(INDEX($AS$4:$AS$3000,MATCH(ROWS($AP$4:AP68),$AP$4:$AP$3000,0)),"") -> Connecticut College | AR68: 128902 | AS68: Connecticut College | AT68: New London | AU68: CT | AV68: Private 4 yr | AW68: Most Competitive | AX68: 27790 | AY68: 15498 | AZ68: 12920 | BA68: 23651 | BB68: 37 | BC68: 86.5 | BD68: 86.5 | BE68: 89 | BF68: 28 | BG68: www.conncoll.edu | BJ68: City: Small | BK68: 1865 | BN68: 6 | BO68: 4.7749 | BP68: 0.322 | BQ68: -17.95 | BR68: 0 | BS68: -72.1073 | BT68: 41.3798
A69: 211291 | B69: Bucknell University | C69: =IF(ISERROR(Y69),"No Data",IF(Y69<15,"Far Reach",IF(Y69<50,"Reach",IF(Y69<80,"Target",IF(Y69>=80,IF(BD69="NULL","Likely",IF(StudentTargets!$AC$11<=AllColleges!BD69/100,"Likely+","Likely")),""))))) -> Far Reach | D69: =D68+J69 ->  | E69: =E68+K69 ->  | F69: =F68+L69 -> 0 | G69: =G68+M69 -> 0 | H69: =H68+N69 -> 66 | J69: =IF(ISERROR(Y69),0,IF(AND(I69=1,Y69>=80),1,IF(OR(ISERROR(Y69),BD69="NULL"),0,IF(AND(Y69>=80,BN69>=(StudentTargets!$W$15-1),StudentTargets!$AC$11<=AllColleges!BD69/100),1,0)*AE69))) ->  | K69: =IF(ISERROR(Y69),0,IF(AND(I69=1,Y69>=80),0,IF(ISERROR(Y69),0,IF(AND(Y69>=80,BN69>=(StudentTargets!$W$15-1)),IF(ISERROR(StudentTargets!$AC$11>(BD69/100)),1,IF(StudentTargets!$AC$11>(BD69/100),1,0)),0))*AE69)) ->  | L69: 0 | M69: 0 | N69: 1 | R69: 0 | S69: 0 | T69: =BO69 -> 4.7749 | U69: =BP69 -> 0.322 | V69: =BQ69 -> -17.95 | W69: -26.966 | X69: -26.966 | Y69: 1.944531581e-10 | Z69: 1 | AA69: 1 | AB69: 1 | AC69: =IF(FilterSchoolType="Any",1,IF(AND(FilterSchoolType=Lookups!$S$5,FilterState=AU69),1,IF(AND(FilterSchoolType=Lookups!$S$3,FilterState=AU69,LEFT(AV69,3)="Pub"),1,IF(AND(FilterSchoolType=Lookups!$S$4,LEFT(AV69,3)="Pub"),1,0)))) -> 1 | AD69: 1 | AE69: 1 | AF69: 142.6078846 | AG69: 0 | AH69: =IF(ISBLANK(HLOOKUP(AH$3,$AX$3:$BA$3000,ROW()-ROW(AH$3)+1,FALSE)),"",HLOOKUP(AH$3,$AX$3:$BA$3000,ROW()-ROW(AH$3)+1,FALSE)) -> 19257 | AI69: =IFERROR(VLOOKUP(AR69, 'KIPP$$'!A:G, 7, 0), "") ->  | AJ69: 4.7749 | AK69: 28 | AL69: =IFERROR(VLOOKUP($AR69,School_View8[[NCSE_ID]:[Max_Unmet_Need]],3,FALSE),"") ->  | AM69: =IFERROR(VLOOKUP($AR69,School_View8[[NCSE_ID]:[Max_Unmet_Need]],4,FALSE),"") ->  | AN69: =IF(OR(AL69="",AM69=""),"",TEXT(AL69,"$#,##0")&" to "&TEXT(AM69,"$#,##0")) ->  | AO69: =--ISNUMBER(IFERROR(SEARCH('Wish List and Search'!$H$12,$AS69,1),"")) -> 1 | AP69: =IF(AO69=1,COUNTIF($AO$4:AO69,1),"") -> 66 | AQ69: =IFERROR(INDEX($AS$4:$AS$3000,MATCH(ROWS($AP$4:AP69),$AP$4:$AP$3000,0)),"") -> Bucknell University | AR69: 211291 | AS69: Bucknell University | AT69: Lewisburg | AU69: PA | AV69: Private 4 yr | AW69: Most Competitive | AX69: 34339 | AY69: 19257 | AZ69: 18402 | BA69: 24514 | BB69: 49 | BC69: 88.2 | BD69: 86.5 | BE69: 92 | BF69: 28 | BG69: www.bucknell.edu | BJ69: Town: Distant | BK69: 3571 | BN69: 6 | BO69: 4.7749 | BP69: 0.322 | BQ69: -17.95 | BR69: 0 | BS69: -76.8826 | BT69: 40.9543
A70: 122931 | B70: Santa Clara University | C70: =IF(ISERROR(Y70),"No Data",IF(Y70<15,"Far Reach",IF(Y70<50,"Reach",IF(Y70<80,"Target",IF(Y70>=80,IF(BD70="NULL","Likely",IF(StudentTargets!$AC$11<=AllColleges!BD70/100,"Likely+","Likely")),""))))) -> Far Reach | F70: 0 | G70: 0 | H70: 67 | J70: =IF(ISERROR(Y70),0,IF(AND(I70=1,Y70>=80),1,IF(OR(ISERROR(Y70),BD70="NULL"),0,IF(AND(Y70>=80,BN70>=(StudentTargets!$W$15-1),StudentTargets!$AC$11<=AllColleges!BD70/100),1,0)*AE70))) ->  | K70: =IF(ISERROR(Y70),0,IF(AND(I70=1,Y70>=80),0,IF(ISERROR(Y70),0,IF(AND(Y70>=80,BN70>=(StudentTargets!$W$15-1)),IF(ISERROR(StudentTargets!$AC$11>(BD70/100)),1,IF(StudentTargets!$AC$11>(BD70/100),1,0)),0))*AE70)) ->  | L70: 0 | M70: 0 | N70: 1 | R70: 0 | S70: 0 | T70: 4.7749 | U70: 0.322 | V70: -17.95 | W70: -26.966 | X70: -26.966 | Y70: 1.944531581e-10 | Z70: 1 | AA70: 1 | AB70: 1 | AC70: =IF(FilterSchoolType="Any",1,IF(AND(FilterSchoolType=Lookups!$S$5,FilterState=AU70),1,IF(AND(FilterSchoolType=Lookups!$S$3,FilterState=AU70,LEFT(AV70,3)="Pub"),1,IF(AND(FilterSchoolType=Lookups!$S$4,LEFT(AV70,3)="Pub"),1,0)))) -> 1 | AD70: 1 | AE70: =PRODUCT(Z70:AD70) -> 1 | AF70: 2542.369863 | AG70: 0 | AH70: 16963 | AI70: =IFERROR(VLOOKUP(AR70, 'KIPP$$'!A:G, 7, 0), "") ->  | AJ70: 4.7749 | AK70: 28 | AL70: =IFERROR(VLOOKUP($AR70,School_View8[[NCSE_ID]:[Max_Unmet_Need]],3,FALSE),"") ->  | AM70: =IFERROR(VLOOKUP($AR70,School_View8[[NCSE_ID]:[Max_Unmet_Need]],4,FALSE),"") ->  | AO70: =--ISNUMBER(IFERROR(SEARCH('Wish List and Search'!$H$12,$AS70,1),"")) -> 1 | AP70: =IF(AO70=1,COUNTIF($AO$4:AO70,1),"") -> 67 | AQ70: =IFERROR(INDEX($AS$4:$AS$3000,MATCH(ROWS($AP$4:AP70),$AP$4:$AP$3000,0)),"") -> Santa Clara University | AR70: 122931 | AS70: Santa Clara University | AT70: Santa Clara | AU70: CA | AV70: Private 4 yr | AW70: Most Competitive | AX70: 37657 | AY70: 16963 | AZ70: 21359 | BA70: 21945 | BB70: 50 | BC70: 88.6 | BD70: 86.4 | BE70: 96 | BF70: 28 | BG70: www.scu.edu | BJ70: City: Midsize | BK70: 5438 | BN70: 6 | BO70: 4.7749 | BP70: 0.322 | BQ70: -17.95 | BR70: 0 | BS70: -121.938 | BT70: 37.3527
A71: 233374 | B71: University of Richmond | C71: =IF(ISERROR(Y71),"No Data",IF(Y71<15,"Far Reach",IF(Y71<50,"Reach",IF(Y71<80,"Target",IF(Y71>=80,IF(BD71="NULL","Likely",IF(StudentTargets!$AC$11<=AllColleges!BD71/100,"Likely+","Likely")),""))))) -> Far Reach | F71: 0 | G71: 0 | H71: 68 | J71: =IF(ISERROR(Y71),0,IF(AND(I71=1,Y71>=80),1,IF(OR(ISERROR(Y71),BD71="NULL"),0,IF(AND(Y71>=80,BN71>=(StudentTargets!$W$15-1),StudentTargets!$AC$11<=AllColleges!BD71/100),1,0)*AE71))) ->  | K71: =IF(ISERROR(Y71),0,IF(AND(I71=1,Y71>=80),0,IF(ISERROR(Y71),0,IF(AND(Y71>=80,BN71>=(StudentTargets!$W$15-1)),IF(ISERROR(StudentTargets!$AC$11>(BD71/100)),1,IF(StudentTargets!$AC$11>(BD71/100),1,0)),0))*AE71)) ->  | L71: 0 | M71: 0 | N71: 1 | R71: 0 | S71: 0 | T71: 4.7749 | U71: 0.322 | V71: -17.95 | W71: -27.288 | X71: -27.288 | Y71: 1.409198518e-10 | Z71: 1 | AA71: 1 | AB71: 1 | AC71: =IF(FilterSchoolType="Any",1,IF(AND(FilterSchoolType=Lookups!$S$5,FilterState=AU71),1,IF(AND(FilterSchoolType=Lookups!$S$3,FilterState=AU71,LEFT(AV71,3)="Pub"),1,IF(AND(FilterSchoolType=Lookups!$S$4,LEFT(AV71,3)="Pub"),1,0)))) -> 1 | AD71: 1 | AE71: 1 | AF71: 283.2958422 | AG71: 0 | AH71: 8681 | AI71: =IFERROR(VLOOKUP(AR71, 'KIPP$$'!A:G, 7, 0), "") ->  | AJ71: 4.7749 | AK71: 29 | AL71: =IFERROR(VLOOKUP($AR71,School_View8[[NCSE_ID]:[Max_Unmet_Need]],3,FALSE),"") ->  | AM71: =IFERROR(VLOOKUP($AR71,School_View8[[NCSE_ID]:[Max_Unmet_Need]],4,FALSE),"") ->  | AO71: =--ISNUMBER(IFERROR(SEARCH('Wish List and Search'!$H$12,$AS71,1),"")) -> 1 | AP71: =IF(AO71=1,COUNTIF($AO$4:AO71,1),"") -> 68 | AQ71: =IFERROR(INDEX($AS$4:$AS$3000,MATCH(ROWS($AP$4:AP71),$AP$4:$AP$3000,0)),"") -> University of Richmond | AR71: 233374 | AS71: University of Richmond | AT71: University of Richmond | AU71: VA | AV71: Private 4 yr | AW71: Most Competitive | AX71: 22400 | AY71: 8681 | AZ71: 11387 | BA71: 14515 | BB71: 47 | BC71: 88.2 | BD71: 86.4 | BE71: 93 | BF71: 29 | BG71: www.richmond.edu | BJ71: City: Midsize | BK71: 3326 | BN71: 6 | BO71: 4.7749 | BP71: 0.322 | BQ71: -17.95 | BR71: 0 | BS71: -77.5387 | BT71: 37.5776
A72: 195304 | B72: Sarah Lawrence College | C72: =IF(ISERROR(Y72),"No Data",IF(Y72<15,"Far Reach",IF(Y72<50,"Reach",IF(Y72<80,"Target",IF(Y72>=80,IF(BD72="NULL","Likely",IF(StudentTargets!$AC$11<=AllColleges!BD72/100,"Likely+","Likely")),""))))) -> Far Reach | F72: 0 | G72: 0 | H72: 69 | J72: =IF(ISERROR(Y72),0,IF(AND(I72=1,Y72>=80),1,IF(OR(ISERROR(Y72),BD72="NULL"),0,IF(AND(Y72>=80,BN72>=(StudentTargets!$W$15-1),StudentTargets!$AC$11<=AllColleges!BD72/100),1,0)*AE72))) ->  | K72: =IF(ISERROR(Y72),0,IF(AND(I72=1,Y72>=80),0,IF(ISERROR(Y72),0,IF(AND(Y72>=80,BN72>=(StudentTargets!$W$15-1)),IF(ISERROR(StudentTargets!$AC$11>(BD72/100)),1,IF(StudentTargets!$AC$11>(BD72/100),1,0)),0))*AE72)) ->  | L72: 0 | M72: 0 | N72: 1 | R72: 0 | S72: 0 | T72: 4.7749 | U72: 0.322 | V72: -17.95 | W72: -26.644 | X72: -26.644 | Y72: 2.683229526e-10 | Z72: 1 | AA72: 1 | AB72: 1 | AC72: =IF(FilterSchoolType="Any",1,IF(AND(FilterSchoolType=Lookups!$S$5,FilterState=AU72),1,IF(AND(FilterSchoolType=Lookups!$S$3,FilterState=AU72,LEFT(AV72,3)="Pub"),1,IF(AND(FilterSchoolType=Lookups!$S$4,LEFT(AV72,3)="Pub"),1,0)))) -> 1 | AD72: 1 | AE72: 1 | AF72: 21.72375485 | AG72: 0 | AH72: 18934 | AI72: =IFERROR(VLOOKUP(AR72, 'KIPP$$'!A:G, 7, 0), "") ->  | AJ72: 4.7749 | AK72: 27 | AL72: =IFERROR(VLOOKUP($AR72,School_View8[[NCSE_ID]:[Max_Unmet_Need]],3,FALSE),"") ->  | AM72: =IFERROR(VLOOKUP($AR72,School_View8[[NCSE_ID]:[Max_Unmet_Need]],4,FALSE),"") ->  | AO72: =--ISNUMBER(IFERROR(SEARCH('Wish List and Search'!$H$12,$AS72,1),"")) -> 1 | AP72: =IF(AO72=1,COUNTIF($AO$4:AO72,1),"") -> 69 | AQ72: =IFERROR(INDEX($AS$4:$AS$3000,MATCH(ROWS($AP$4:AP72),$AP$4:$AP$3000,0)),"") -> Sarah Lawrence College | AR72: 195304 | AS72: Sarah Lawrence College | AT72: Bronxville | AU72: NY | AV72: Private 4 yr | AW72: Most Competitive | AX72: 32897 | AY72: 18934 | AZ72: 20563 | BA72: 24363 | BB72: 28 | BC72: 85.9 | BD72: 85.9 | BE72: 89 | BF72: 27 | BG72: www.sarahlawrence.edu | BJ72: Suburb: Large | BK72: 1438 | BN72: 6 | BO72: 4.7749 | BP72: 0.322 | BQ72: -17.95 | BR72: 0 | BS72: -73.8438 | BT72: 40.9341
A73: 167358 | B73: Northeastern University | C73: =IF(ISERROR(Y73),"No Data",IF(Y73<15,"Far Reach",IF(Y73<50,"Reach",IF(Y73<80,"Target",IF(Y73>=80,IF(BD73="NULL","Likely",IF(StudentTargets!$AC$11<=AllColleges!BD73/100,"Likely+","Likely")),""))))) -> Far Reach | F73: 0 | G73: 0 | H73: 70 | J73: =IF(ISERROR(Y73),0,IF(AND(I73=1,Y73>=80),1,IF(OR(ISERROR(Y73),BD73="NULL"),0,IF(AND(Y73>=80,BN73>=(StudentTargets!$W$15-1),StudentTargets!$AC$11<=AllColleges!BD73/100),1,0)*AE73))) ->  | K73: =IF(ISERROR(Y73),0,IF(AND(I73=1,Y73>=80),0,IF(ISERROR(Y73),0,IF(AND(Y73>=80,BN73>=(StudentTargets!$W$15-1)),IF(ISERROR(StudentTargets!$AC$11>(BD73/100)),1,IF(StudentTargets!$AC$11>(BD73/100),1,0)),0))*AE73)) ->  | L73: 0 | M73: 0 | N73: 1 | R73: 0 | S73: 0 | T73: 4.7749 | U73: 0.322 | V73: -17.95 | W73: -27.932 | X73: -27.932 | Y73: 7.400934003e-11 | Z73: 1 | AA73: 1 | AB73: 1 | AC73: =IF(FilterSchoolType="Any",1,IF(AND(FilterSchoolType=Lookups!$S$5,FilterState=AU73),1,IF(AND(FilterSchoolType=Lookups!$S$3,FilterState=AU73,LEFT(AV73,3)="Pub"),1,IF(AND(FilterSchoolType=Lookups!$S$4,LEFT(AV73,3)="Pub"),1,0)))) -> 1 | AD73: 1 | AE73: 1 | AF73: 193.9427689 | AG73: 0 | AH73: 13047 | AI73: =IFERROR(VLOOKUP(AR73, 'KIPP$$'!A:G, 7, 0), "") ->  | AJ73: 4.7749 | AK73: 31 | AL73: =IFERROR(VLOOKUP($AR73,School_View8[[NCSE_ID]:[Max_Unmet_Need]],3,FALSE),"") ->  | AM73: =IFERROR(VLOOKUP($AR73,School_View8[[NCSE_ID]:[Max_Unmet_Need]],4,FALSE),"") ->  | AO73: =--ISNUMBER(IFERROR(SEARCH('Wish List and Search'!$H$12,$AS73,1),"")) -> 1 | AP73: =IF(AO73=1,COUNTIF($AO$4:AO73,1),"") -> 70 | AQ73: =IFERROR(INDEX($AS$4:$AS$3000,MATCH(ROWS($AP$4:AP73),$AP$4:$AP$3000,0)),"") -> Northeastern University | AR73: 167358 | AS73: Northeastern University | AT73: Boston | AU73: MA | AV73: Private 4 yr | AW73: Most Competitive | AX73: 29998 | AY73: 13047 | AZ73: 14879 | BA73: 17573 | BB73: 49 | BC73: 86.2 | BD73: 85.8 | BE73: 97 | BF73: 31 | BG73: www.northeastern.edu | BJ73: City: Large | BK73: 13473 | BN73: 6 | BO73: 4.7749 | BP73: 0.322 | BQ73: -17.95 | BR73: 0 | BS73: -71.0888 | BT73: 42.34
A74: 115409 | B74: Harvey Mudd College | C74: =IF(ISERROR(Y74),"No Data",IF(Y74<15,"Far Reach",IF(Y74<50,"Reach",IF(Y74<80,"Target",IF(Y74>=80,IF(BD74="NULL","Likely",IF(StudentTargets!$AC$11<=AllColleges!BD74/100,"Likely+","Likely")),""))))) -> Far Reach | F74: 0 | G74: 0 | H74: 71 | J74: =IF(ISERROR(Y74),0,IF(AND(I74=1,Y74>=80),1,IF(OR(ISERROR(Y74),BD74="NULL"),0,IF(AND(Y74>=80,BN74>=(StudentTargets!$W$15-1),StudentTargets!$AC$11<=AllColleges!BD74/100),1,0)*AE74))) ->  | K74: =IF(ISERROR(Y74),0,IF(AND(I74=1,Y74>=80),0,IF(ISERROR(Y74),0,IF(AND(Y74>=80,BN74>=(StudentTargets!$W$15-1)),IF(ISERROR(StudentTargets!$AC$11>(BD74/100)),1,IF(StudentTargets!$AC$11>(BD74/100),1,0)),0))*AE74)) ->  | L74: 0 | M74: 0 | N74: 1 | R74: 0 | S74: 0 | T74: 4.2009 | U74: 0.2751 | V74: -17.92 | W74: -26.7232 | X74: -26.7232 | Y74: 2.478915376e-10 | Z74: 1 | AA74: 1 | AB74: 1 | AC74: =IF(FilterSchoolType="Any",1,IF(AND(FilterSchoolType=Lookups!$S$5,FilterState=AU74),1,IF(AND(FilterSchoolType=Lookups!$S$3,FilterState=AU74,LEFT(AV74,3)="Pub"),1,IF(AND(FilterSchoolType=Lookups!$S$4,LEFT(AV74,3)="Pub"),1,0)))) -> 1 | AD74: 1 | AE74: 1 | AF74: 2407.574396 | AG74: 0 | AH74: 15762 | AI74: =IFERROR(VLOOKUP(AR74, 'KIPP$$'!A:G, 7, 0), "") ->  | AJ74: 4.2009 | AK74: 32 | AL74: =IFERROR(VLOOKUP($AR74,School_View8[[NCSE_ID]:[Max_Unmet_Need]],3,FALSE),"") ->  | AM74: =IFERROR(VLOOKUP($AR74,School_View8[[NCSE_ID]:[Max_Unmet_Need]],4,FALSE),"") ->  | AO74: =--ISNUMBER(IFERROR(SEARCH('Wish List and Search'!$H$12,$AS74,1),"")) -> 1 | AP74: =IF(AO74=1,COUNTIF($AO$4:AO74,1),"") -> 71 | AQ74: =IFERROR(INDEX($AS$4:$AS$3000,MATCH(ROWS($AP$4:AP74),$AP$4:$AP$3000,0)),"") -> Harvey Mudd College | AR74: 115409 | AS74: Harvey Mudd College | AT74: Claremont | AU74: CA | AV74: Private 4 yr | AW74: Most Competitive+ | AX74: 35460 | AY74: 15762 | AZ74: 16726 | BA74: 25102 | BB74: 54 | BC74: 96.6 | BD74: 85.7 | BE74: 98 | BF74: 32 | BG74: https://www.hmc.edu | BJ74: Suburb: Large | BK74: 842 | BN74: 7 | BO74: 4.2009 | BP74: 0.2751 | BQ74: -17.92 | BR74: 0 | BS74: -117.711 | BT74: 34.1061
A75: 164988 | B75: Boston University | C75: =IF(ISERROR(Y75),"No Data",IF(Y75<15,"Far Reach",IF(Y75<50,"Reach",IF(Y75<80,"Target",IF(Y75>=80,IF(BD75="NULL","Likely",IF(StudentTargets!$AC$11<=AllColleges!BD75/100,"Likely+","Likely")),""))))) -> Far Reach | F75: 0 | G75: 0 | H75: 72 | J75: =IF(ISERROR(Y75),0,IF(AND(I75=1,Y75>=80),1,IF(OR(ISERROR(Y75),BD75="NULL"),0,IF(AND(Y75>=80,BN75>=(StudentTargets!$W$15-1),StudentTargets!$AC$11<=AllColleges!BD75/100),1,0)*AE75))) ->  | K75: =IF(ISERROR(Y75),0,IF(AND(I75=1,Y75>=80),0,IF(ISERROR(Y75),0,IF(AND(Y75>=80,BN75>=(StudentTargets!$W$15-1)),IF(ISERROR(StudentTargets!$AC$11>(BD75/100)),1,IF(StudentTargets!$AC$11>(BD75/100),1,0)),0))*AE75)) ->  | L75: 0 | M75: 0 | N75: 1 | R75: 0 | S75: 0 | T75: 2.8488 | U75: 0.32 | V75: -9.05 | W75: -18.01 | X75: -18.01 | Y75: 1.507843869e-06 | Z75: 1 | AA75: 1 | AB75: 1 | AC75: =IF(FilterSchoolType="Any",1,IF(AND(FilterSchoolType=Lookups!$S$5,FilterState=AU75),1,IF(AND(FilterSchoolType=Lookups!$S$3,FilterState=AU75,LEFT(AV75,3)="Pub"),1,IF(AND(FilterSchoolType=Lookups!$S$4,LEFT(AV75,3)="Pub"),1,0)))) -> 1 | AD75: 1 | AE75: 1 | AF75: 193.8463173 | AG75: 0 | AH75: 21773 | AI75: =IFERROR(VLOOKUP(AR75, 'KIPP$$'!A:G, 7, 0), "") ->  | AJ75: 2.8488 | AK75: 28 | AL75: =IFERROR(VLOOKUP($AR75,School_View8[[NCSE_ID]:[Max_Unmet_Need]],3,FALSE),"") ->  | AM75: =IFERROR(VLOOKUP($AR75,School_View8[[NCSE_ID]:[Max_Unmet_Need]],4,FALSE),"") ->  | AO75: =--ISNUMBER(IFERROR(SEARCH('Wish List and Search'!$H$12,$AS75,1),"")) -> 1 | AP75: =IF(AO75=1,COUNTIF($AO$4:AO75,1),"") -> 72 | AQ75: =IFERROR(INDEX($AS$4:$AS$3000,MATCH(ROWS($AP$4:AP75),$AP$4:$AP$3000,0)),"") -> Boston University | AR75: 164988 | AS75: Boston University | AT75: Boston | AU75: MA | AV75: Private 4 yr | AW75: Most Competitive | AX75: 31539 | AY75: 21773 | AZ75: 22618 | BA75: 26232 | BB75: 39 | BC75: 86.5 | BD75: 85.5 | BE75: 93 | BF75: 28 | BG75: www.bu.edu | BJ75: City: Large | BK75: 17944 | BN75: 6 | BO75: 2.8488 | BP75: 0.32 | BQ75: -9.05 | BR75: 0 | BS75: -71.0998 | BT75: 42.3496
A76: 199120 | B76: University of North Carolina at Chapel Hill | C76: =IF(ISERROR(Y76),"No Data",IF(Y76<15,"Far Reach",IF(Y76<50,"Reach",IF(Y76<80,"Target",IF(Y76>=80,IF(BD76="NULL","Likely",IF(StudentTargets!$AC$11<=AllColleges!BD76/100,"Likely+","Likely")),""))))) -> Far Reach | F76: 0 | G76: 0 | H76: 73 | J76: =IF(ISERROR(Y76),0,IF(AND(I76=1,Y76>=80),1,IF(OR(ISERROR(Y76),BD76="NULL"),0,IF(AND(Y76>=80,BN76>=(StudentTargets!$W$15-1),StudentTargets!$AC$11<=AllColleges!BD76/100),1,0)*AE76))) ->  | K76: =IF(ISERROR(Y76),0,IF(AND(I76=1,Y76>=80),0,IF(ISERROR(Y76),0,IF(AND(Y76>=80,BN76>=(StudentTargets!$W$15-1)),IF(ISERROR(StudentTargets!$AC$11>(BD76/100)),1,IF(StudentTargets!$AC$11>(BD76/100),1,0)),0))*AE76)) ->  | L76: 0 | M76: 0 | N76: 1 | R76: 0 | S76: 0 | T76: 4.7749 | U76: 0.322 | V76: -17.95 | W76: -26.966 | X76: -26.966 | Y76: 1.944531581e-10 | Z76: 1 | AA76: 1 | AB76: 1 | AC76: =IF(FilterSchoolType="Any",1,IF(AND(FilterSchoolType=Lookups!$S$5,FilterState=AU76),1,IF(AND(FilterSchoolType=Lookups!$S$3,FilterState=AU76,LEFT(AV76,3)="Pub"),1,IF(AND(FilterSchoolType=Lookups!$S$4,LEFT(AV76,3)="Pub"),1,0)))) -> 1 | AD76: 1 | AE76: 1 | AF76: 425.5596295 | AG76: 1 | AH76: 3889 | AI76: =IFERROR(VLOOKUP(AR76, 'KIPP$$'!A:G, 7, 0), "") ->  | AJ76: 4.7749 | AK76: 28 | AL76: =IFERROR(VLOOKUP($AR76,School_View8[[NCSE_ID]:[Max_Unmet_Need]],3,FALSE),"") ->  | AM76: =IFERROR(VLOOKUP($AR76,School_View8[[NCSE_ID]:[Max_Unmet_Need]],4,FALSE),"") ->  | AO76: =--ISNUMBER(IFERROR(SEARCH('Wish List and Search'!$H$12,$AS76,1),"")) -> 1 | AP76: =IF(AO76=1,COUNTIF($AO$4:AO76,1),"") -> 73 | AQ76: =IFERROR(INDEX($AS$4:$AS$3000,MATCH(ROWS($AP$4:AP76),$AP$4:$AP$3000,0)),"") -> University of North Carolina at Chapel Hill | AR76: 199120 | AS76: University of North Carolina at Chapel Hill | AT76: Chapel Hill | AU76: NC | AV76: Public 4 yr | AW76: Most Competitive | AX76: 10077 | AY76: 3889 | AZ76: 6306 | BA76: 12074 | BB76: 42 | BC76: 91.1 | BD76: 85.3 | BE76: 96 | BF76: 28 | BG76: www.unc.edu | BJ76: City: Small | BK76: 18522 | BN76: 6 | BO76: 4.7749 | BP76: 0.322 | BQ76: -17.95 | BR76: 0 | BS76: -79.051 | BT76: 35.9118
A77: 164739 | B77: Bentley University | C77: =IF(ISERROR(Y77),"No Data",IF(Y77<15,"Far Reach",IF(Y77<50,"Reach",IF(Y77<80,"Target",IF(Y77>=80,IF(BD77="NULL","Likely",IF(StudentTargets!$AC$11<=AllColleges!BD77/100,"Likely+","Likely")),""))))) -> Far Reach | F77: 0 | G77: 0 | H77: 74 | J77: =IF(ISERROR(Y77),0,IF(AND(I77=1,Y77>=80),1,IF(OR(ISERROR(Y77),BD77="NULL"),0,IF(AND(Y77>=80,BN77>=(StudentTargets!$W$15-1),StudentTargets!$AC$11<=AllColleges!BD77/100),1,0)*AE77))) ->  | K77: =IF(ISERROR(Y77),0,IF(AND(I77=1,Y77>=80),0,IF(ISERROR(Y77),0,IF(AND(Y77>=80,BN77>=(StudentTargets!$W$15-1)),IF(ISERROR(StudentTargets!$AC$11>(BD77/100)),1,IF(StudentTargets!$AC$11>(BD77/100),1,0)),0))*AE77)) ->  | L77: 0 | M77: 0 | N77: 1 | R77: 0 | S77: 0 | T77: 4.7749 | U77: 0.322 | V77: -17.95 | W77: -26 | X77: -26 | Y77: 5.109089028e-10 | Z77: 1 | AA77: 1 | AB77: 1 | AC77: =IF(FilterSchoolType="Any",1,IF(AND(FilterSchoolType=Lookups!$S$5,FilterState=AU77),1,IF(AND(FilterSchoolType=Lookups!$S$3,FilterState=AU77,LEFT(AV77,3)="Pub"),1,IF(AND(FilterSchoolType=Lookups!$S$4,LEFT(AV77,3)="Pub"),1,0)))) -> 1 | AD77: 1 | AE77: 1 | AF77: 190.3606609 | AG77: 0 | AH77: 20208 | AI77: =IFERROR(VLOOKUP(AR77, 'KIPP$$'!A:G, 7, 0), "") ->  | AJ77: 4.7749 | AK77: 25 | AL77: =IFERROR(VLOOKUP($AR77,School_View8[[NCSE_ID]:[Max_Unmet_Need]],3,FALSE),"") ->  | AM77: =IFERROR(VLOOKUP($AR77,School_View8[[NCSE_ID]:[Max_Unmet_Need]],4,FALSE),"") ->  | AO77: =--ISNUMBER(IFERROR(SEARCH('Wish List and Search'!$H$12,$AS77,1),"")) -> 1 | AP77: =IF(AO77=1,COUNTIF($AO$4:AO77,1),"") -> 74 | AQ77: =IFERROR(INDEX($AS$4:$AS$3000,MATCH(ROWS($AP$4:AP77),$AP$4:$AP$3000,0)),"") -> Bentley University | AR77: 164739 | AS77: Bentley University | AT77: Waltham | AU77: MA | AV77: Private 4 yr | AW77: Most Competitive | AX77: 35579 | AY77: 20208 | AZ77: 20423 | BA77: 27805 | BB77: 59 | BC77: 88.7 | BD77: 85 | BE77: 94 | BF77: 25 | BG77: www.bentley.edu | BJ77: City: Small | BK77: 4222 | BN77: 6 | BO77: 4.7749 | BP77: 0.322 | BQ77: -17.95 | BR77: 0 | BS77: -71.2201 | BT77: 42.3888
A78: 165015 | B78: Brandeis University | C78: =IF(ISERROR(Y78),"No Data",IF(Y78<15,"Far Reach",IF(Y78<50,"Reach",IF(Y78<80,"Target",IF(Y78>=80,IF(BD78="NULL","Likely",IF(StudentTargets!$AC$11<=AllColleges!BD78/100,"Likely+","Likely")),""))))) -> Far Reach | F78: 0 | G78: 0 | H78: 75 | J78: =IF(ISERROR(Y78),0,IF(AND(I78=1,Y78>=80),1,IF(OR(ISERROR(Y78),BD78="NULL"),0,IF(AND(Y78>=80,BN78>=(StudentTargets!$W$15-1),StudentTargets!$AC$11<=AllColleges!BD78/100),1,0)*AE78))) ->  | K78: =IF(ISERROR(Y78),0,IF(AND(I78=1,Y78>=80),0,IF(ISERROR(Y78),0,IF(AND(Y78>=80,BN78>=(StudentTargets!$W$15-1)),IF(ISERROR(StudentTargets!$AC$11>(BD78/100)),1,IF(StudentTargets!$AC$11>(BD78/100),1,0)),0))*AE78)) ->  | L78: 0 | M78: 0 | N78: 1 | R78: 0 | S78: 0 | T78: 4.7749 | U78: 0.322 | V78: -17.95 | W78: -27.288 | X78: -27.288 | Y78: 1.409198518e-10 | Z78: 1 | AA78: 1 | AB78: 1 | AC78: =IF(FilterSchoolType="Any",1,IF(AND(FilterSchoolType=Lookups!$S$5,FilterState=AU78),1,IF(AND(FilterSchoolType=Lookups!$S$3,FilterState=AU78,LEFT(AV78,3)="Pub"),1,IF(AND(FilterSchoolType=Lookups!$S$4,LEFT(AV78,3)="Pub"),1,0)))) -> 1 | AD78: 1 | AE78: 1 | AF78: 187.962467 | AG78: 0 | AH78: 13395 | AI78: =IFERROR(VLOOKUP(AR78, 'KIPP$$'!A:G, 7, 0), "") ->  | AJ78: 4.7749 | AK78: 29 | AL78: =IFERROR(VLOOKUP($AR78,School_View8[[NCSE_ID]:[Max_Unmet_Need]],3,FALSE),"") ->  | AM78: =IFERROR(VLOOKUP($AR78,School_View8[[NCSE_ID]:[Max_Unmet_Need]],4,FALSE),"") ->  | AO78: =--ISNUMBER(IFERROR(SEARCH('Wish List and Search'!$H$12,$AS78,1),"")) -> 1 | AP78: =IF(AO78=1,COUNTIF($AO$4:AO78,1),"") -> 75 | AQ78: =IFERROR(INDEX($AS$4:$AS$3000,MATCH(ROWS($AP$4:AP78),$AP$4:$AP$3000,0)),"") -> Brandeis University | AR78: 165015 | AS78: Brandeis University | AT78: Waltham | AU78: MA | AV78: Private 4 yr | AW78: Most Competitive | AX78: 32148 | AY78: 13395 | AZ78: 14673 | BA78: 26730 | BB78: 42 | BC78: 89.9 | BD78: 85 | BE78: 94 | BF78: 29 | BG78: www.brandeis.edu/ | BJ78: City: Small | BK78: 3608 | BN78: 6 | BO78: 4.7749 | BP78: 0.322 | BQ78: -17.95 | BR78: 0 | BS78: -71.2547 | BT78: 42.3649
A79: 170976 | B79: University of Michigan-Ann Arbor | C79: =IF(ISERROR(Y79),"No Data",IF(Y79<15,"Far Reach",IF(Y79<50,"Reach",IF(Y79<80,"Target",IF(Y79>=80,IF(BD79="NULL","Likely",IF(StudentTargets!$AC$11<=AllColleges!BD79/100,"Likely+","Likely")),""))))) -> Far Reach | F79: 0 | G79: 0 | H79: 76 | J79: =IF(ISERROR(Y79),0,IF(AND(I79=1,Y79>=80),1,IF(OR(ISERROR(Y79),BD79="NULL"),0,IF(AND(Y79>=80,BN79>=(StudentTargets!$W$15-1),StudentTargets!$AC$11<=AllColleges!BD79/100),1,0)*AE79))) ->  | K79: =IF(ISERROR(Y79),0,IF(AND(I79=1,Y79>=80),0,IF(ISERROR(Y79),0,IF(AND(Y79>=80,BN79>=(StudentTargets!$W$15-1)),IF(ISERROR(StudentTargets!$AC$11>(BD79/100)),1,IF(StudentTargets!$AC$11>(BD79/100),1,0)),0))*AE79)) ->  | L79: 0 | M79: 0 | N79: 1 | R79: 0 | S79: 0 | T79: 4.7749 | U79: 0.322 | V79: -17.95 | W79: -27.288 | X79: -27.288 | Y79: 1.409198518e-10 | Z79: 1 | AA79: 1 | AB79: 1 | AC79: =IF(FilterSchoolType="Any",1,IF(AND(FilterSchoolType=Lookups!$S$5,FilterState=AU79),1,IF(AND(FilterSchoolType=Lookups!$S$3,FilterState=AU79,LEFT(AV79,3)="Pub"),1,IF(AND(FilterSchoolType=Lookups!$S$4,LEFT(AV79,3)="Pub"),1,0)))) -> 1 | AD79: 1 | AE79: 1 | AF79: 506.3356621 | AG79: 1 | AH79: 2660 | AI79: =IFERROR(VLOOKUP(AR79, 'KIPP$$'!A:G, 7, 0), "") ->  | AJ79: 4.7749 | AK79: 29 | AL79: =IFERROR(VLOOKUP($AR79,School_View8[[NCSE_ID]:[Max_Unmet_Need]],3,FALSE),"") ->  | AM79: =IFERROR(VLOOKUP($AR79,School_View8[[NCSE_ID]:[Max_Unmet_Need]],4,FALSE),"") ->  | AO79: =--ISNUMBER(IFERROR(SEARCH('Wish List and Search'!$H$12,$AS79,1),"")) -> 1 | AP79: =IF(AO79=1,COUNTIF($AO$4:AO79,1),"") -> 76 | AQ79: =IFERROR(INDEX($AS$4:$AS$3000,MATCH(ROWS($AP$4:AP79),$AP$4:$AP$3000,0)),"") -> University of Michigan-Ann Arbor | AR79: 170976 | AS79: University of Michigan-Ann Arbor | AT79: Ann Arbor | AU79: MI | AV79: Public 4 yr | AW79: Most Competitive | AX79: 16107 | AY79: 2660 | AZ79: 5878 | BA79: 10106 | BB79: 50 | BC79: 91.2 | BD79: 84.7 | BE79: 97 | BF79: 29 | BG79: www.umich.edu | BJ79: City: Midsize | BK79: 28983 | BN79: 6 | BO79: 4.7749 | BP79: 0.322 | BQ79: -17.95 | BR79: 0 | BS79: -83.7428 | BT79: 42.2759
A80: 134130 | B80: University of Florida | C80: =IF(ISERROR(Y80),"No Data",IF(Y80<15,"Far Reach",IF(Y80<50,"Reach",IF(Y80<80,"Target",IF(Y80>=80,IF(BD80="NULL","Likely",IF(StudentTargets!$AC$11<=AllColleges!BD80/100,"Likely+","Likely")),""))))) -> Far Reach | F80: 0 | G80: 0 | H80: 77 | J80: =IF(ISERROR(Y80),0,IF(AND(I80=1,Y80>=80),1,IF(OR(ISERROR(Y80),BD80="NULL"),0,IF(AND(Y80>=80,BN80>=(StudentTargets!$W$15-1),StudentTargets!$AC$11<=AllColleges!BD80/100),1,0)*AE80))) ->  | K80: =IF(ISERROR(Y80),0,IF(AND(I80=1,Y80>=80),0,IF(ISERROR(Y80),0,IF(AND(Y80>=80,BN80>=(StudentTargets!$W$15-1)),IF(ISERROR(StudentTargets!$AC$11>(BD80/100)),1,IF(StudentTargets!$AC$11>(BD80/100),1,0)),0))*AE80)) ->  | L80: 0 | M80: 0 | N80: 1 | R80: 0 | S80: 0 | T80: =BO80 -> 2.8488 | U80: 0.32 | V80: -9.05 | W80: -17.69 | X80: -17.69 | Y80: 2.076493644e-06 | Z80: 1 | AA80: 1 | AB80: 1 | AC80: =IF(FilterSchoolType="Any",1,IF(AND(FilterSchoolType=Lookups!$S$5,FilterState=AU80),1,IF(AND(FilterSchoolType=Lookups!$S$3,FilterState=AU80,LEFT(AV80,3)="Pub"),1,IF(AND(FilterSchoolType=Lookups!$S$4,LEFT(AV80,3)="Pub"),1,0)))) -> 1 | AD80: 1 | AE80: 1 | AF80: 893.778559 | AG80: 1 | AH80: 6768 | AI80: =IFERROR(VLOOKUP(AR80, 'KIPP$$'!A:G, 7, 0), "") ->  | AJ80: 2.8488 | AK80: 27 | AL80: =IFERROR(VLOOKUP($AR80,School_View8[[NCSE_ID]:[Max_Unmet_Need]],3,FALSE),"") ->  | AM80: =IFERROR(VLOOKUP($AR80,School_View8[[NCSE_ID]:[Max_Unmet_Need]],4,FALSE),"") ->  | AO80: =--ISNUMBER(IFERROR(SEARCH('Wish List and Search'!$H$12,$AS80,1),"")) -> 1 | AP80: =IF(AO80=1,COUNTIF($AO$4:AO80,1),"") -> 77 | AQ80: =IFERROR(INDEX($AS$4:$AS$3000,MATCH(ROWS($AP$4:AP80),$AP$4:$AP$3000,0)),"") -> University of Florida | AR80: 134130 | AS80: University of Florida | AT80: Gainesville | AU80: FL | AV80: Public 4 yr | AW80: Highly Competitive | AX80: 14761 | AY80: 6768 | AZ80: 7227 | BA80: 8732 | BB80: 45 | BC80: 87.2 | BD80: 84.6 | BE80: 97 | BF80: 27 | BG80: www.ufl.edu/ | BJ80: City: Midsize | BK80: 34554 | BN80: 5 | BO80: 2.8488 | BP80: 0.32 | BQ80: -9.05 | BR80: 0 | BS80: -82.3479 | BT80: 29.6463
A81: 204501 | B81: Oberlin College | C81: =IF(ISERROR(Y81),"No Data",IF(Y81<15,"Far Reach",IF(Y81<50,"Reach",IF(Y81<80,"Target",IF(Y81>=80,IF(BD81="NULL","Likely",IF(StudentTargets!$AC$11<=AllColleges!BD81/100,"Likely+","Likely")),""))))) -> Far Reach | F81: 0 | G81: 0 | H81: 78 | J81: =IF(ISERROR(Y81),0,IF(AND(I81=1,Y81>=80),1,IF(OR(ISERROR(Y81),BD81="NULL"),0,IF(AND(Y81>=80,BN81>=(StudentTargets!$W$15-1),StudentTargets!$AC$11<=AllColleges!BD81/100),1,0)*AE81))) ->  | K81: =IF(ISERROR(Y81),0,IF(AND(I81=1,Y81>=80),0,IF(ISERROR(Y81),0,IF(AND(Y81>=80,BN81>=(StudentTargets!$W$15-1)),IF(ISERROR(StudentTargets!$AC$11>(BD81/100)),1,IF(StudentTargets!$AC$11>(BD81/100),1,0)),0))*AE81)) ->  | L81: 0 | M81: 0 | N81: 1 | R81: 0 | S81: 0 | T81: 4.7749 | U81: 0.322 | V81: -17.95 | W81: -27.288 | X81: -27.288 | Y81: 1.409198518e-10 | Z81: 1 | AA81: 1 | AB81: 1 | AC81: =IF(FilterSchoolType="Any",1,IF(AND(FilterSchoolType=Lookups!$S$5,FilterState=AU81),1,IF(AND(FilterSchoolType=Lookups!$S$3,FilterState=AU81,LEFT(AV81,3)="Pub"),1,IF(AND(FilterSchoolType=Lookups!$S$4,LEFT(AV81,3)="Pub"),1,0)))) -> 1 | AD81: 1 | AE81: 1 | AF81: 421.4136024 | AG81: 0 | AH81: 14146 | AI81: =IFERROR(VLOOKUP(AR81, 'KIPP$$'!A:G, 7, 0), "") ->  | AJ81: 4.7749 | AK81: 29 | AL81: =IFERROR(VLOOKUP($AR81,School_View8[[NCSE_ID]:[Max_Unmet_Need]],3,FALSE),"") ->  | AM81: =IFERROR(VLOOKUP($AR81,School_View8[[NCSE_ID]:[Max_Unmet_Need]],4,FALSE),"") ->  | AO81: =--ISNUMBER(IFERROR(SEARCH('Wish List and Search'!$H$12,$AS81,1),"")) -> 1 | AP81: =IF(AO81=1,COUNTIF($AO$4:AO81,1),"") -> 78 | AQ81: =IFERROR(INDEX($AS$4:$AS$3000,MATCH(ROWS($AP$4:AP81),$AP$4:$AP$3000,0)),"") -> Oberlin College | AR81: 204501 | AS81: Oberlin College | AT81: Oberlin | AU81: OH | AV81: Private 4 yr | AW81: Most Competitive | AX81: 42105 | AY81: 14146 | AZ81: 14731 | BA81: 24134 | BB81: 43 | BC81: 85.2 | BD81: 84.6 | BE81: 89 | BF81: 29 | BG81: www.oberlin.edu | BJ81: Town: Fringe | BK81: 2895 | BN81: 6 | BO81: 4.7749 | BP81: 0.322 | BQ81: -17.95 | BR81: 0 | BS81: -82.2218 | BT81: 41.2947
A82: 195216 | B82: St Lawrence University | C82: =IF(ISERROR(Y82),"No Data",IF(Y82<15,"Far Reach",IF(Y82<50,"Reach",IF(Y82<80,"Target",IF(Y82>=80,IF(BD82="NULL","Likely",IF(StudentTargets!$AC$11<=AllColleges!BD82/100,"Likely+","Likely")),""))))) -> Far Reach | F82: 0 | G82: 0 | H82: 79 | J82: =IF(ISERROR(Y82),0,IF(AND(I82=1,Y82>=80),1,IF(OR(ISERROR(Y82),BD82="NULL"),0,IF(AND(Y82>=80,BN82>=(StudentTargets!$W$15-1),StudentTargets!$AC$11<=AllColleges!BD82/100),1,0)*AE82))) ->  | K82: =IF(ISERROR(Y82),0,IF(AND(I82=1,Y82>=80),0,IF(ISERROR(Y82),0,IF(AND(Y82>=80,BN82>=(StudentTargets!$W$15-1)),IF(ISERROR(StudentTargets!$AC$11>(BD82/100)),1,IF(StudentTargets!$AC$11>(BD82/100),1,0)),0))*AE82)) ->  | L82: 0 | M82: 0 | N82: 1 | R82: 0 | S82: 0 | T82: 2.8488 | U82: 0.32 | V82: -9.05 | W82: -17.05 | X82: -17.05 | Y82: 3.938030419e-06 | Z82: 1 | AA82: 1 | AB82: 1 | AC82: =IF(FilterSchoolType="Any",1,IF(AND(FilterSchoolType=Lookups!$S$5,FilterState=AU82),1,IF(AND(FilterSchoolType=Lookups!$S$3,FilterState=AU82,LEFT(AV82,3)="Pub"),1,IF(AND(FilterSchoolType=Lookups!$S$4,LEFT(AV82,3)="Pub"),1,0)))) -> 1 | AD82: 1 | AE82: 1 | AF82: 270.843741 | AG82: 0 | AH82: 12384 | AI82: =IFERROR(VLOOKUP(AR82, 'KIPP$$'!A:G, 7, 0), "") ->  | AJ82: 2.8488 | AK82: 25 | AL82: =IFERROR(VLOOKUP($AR82,School_View8[[NCSE_ID]:[Max_Unmet_Need]],3,FALSE),"") ->  | AM82: =IFERROR(VLOOKUP($AR82,School_View8[[NCSE_ID]:[Max_Unmet_Need]],4,FALSE),"") ->  | AO82: =--ISNUMBER(IFERROR(SEARCH('Wish List and Search'!$H$12,$AS82,1),"")) -> 1 | AP82: =IF(AO82=1,COUNTIF($AO$4:AO82,1),"") -> 79 | AQ82: =IFERROR(INDEX($AS$4:$AS$3000,MATCH(ROWS($AP$4:AP82),$AP$4:$AP$3000,0)),"") -> St Lawrence University | AR82: 195216 | AS82: St Lawrence University | AT82: Canton | AU82: NY | AV82: Private 4 yr | AW82: Highly Competitive | AX82: 31590 | AY82: 12384 | AZ82: 13132 | BA82: 21695 | BB82: 45 | BC82: 83.6 | BD82: 84.3 | BE82: 90 | BF82: 25 | BG82: www.stlawu.edu | BJ82: Town: Remote | BK82: 2377 | BN82: 5 | BO82: 2.8488 | BP82: 0.32 | BQ82: -9.05 | BR82: 0 | BS82: -75.1613 | BT82: 44.5899
A83: 211273 | B83: Bryn Mawr College | C83: =IF(ISERROR(Y83),"No Data",IF(Y83<15,"Far Reach",IF(Y83<50,"Reach",IF(Y83<80,"Target",IF(Y83>=80,IF(BD83="NULL","Likely",IF(StudentTargets!$AC$11<=AllColleges!BD83/100,"Likely+","Likely")),""))))) -> Far Reach | F83: 0 | G83: 0 | H83: 80 | J83: =IF(ISERROR(Y83),0,IF(AND(I83=1,Y83>=80),1,IF(OR(ISERROR(Y83),BD83="NULL"),0,IF(AND(Y83>=80,BN83>=(StudentTargets!$W$15-1),StudentTargets!$AC$11<=AllColleges!BD83/100),1,0)*AE83))) ->  | K83: =IF(ISERROR(Y83),0,IF(AND(I83=1,Y83>=80),0,IF(ISERROR(Y83),0,IF(AND(Y83>=80,BN83>=(StudentTargets!$W$15-1)),IF(ISERROR(StudentTargets!$AC$11>(BD83/100)),1,IF(StudentTargets!$AC$11>(BD83/100),1,0)),0))*AE83)) ->  | L83: 0 | M83: 0 | N83: 1 | R83: 0 | S83: 0 | T83: 4.7749 | U83: 0.322 | V83: -17.95 | W83: -26.966 | X83: -26.966 | Y83: 1.944531581e-10 | Z83: 1 | AA83: 1 | AB83: 1 | AC83: =IF(FilterSchoolType="Any",1,IF(AND(FilterSchoolType=Lookups!$S$5,FilterState=AU83),1,IF(AND(FilterSchoolType=Lookups!$S$3,FilterState=AU83,LEFT(AV83,3)="Pub"),1,IF(AND(FilterSchoolType=Lookups!$S$4,LEFT(AV83,3)="Pub"),1,0)))) -> 1 | AD83: 1 | AE83: 1 | AF83: 77.73726568 | AG83: 0 | AH83: 10688 | AI83: =IFERROR(VLOOKUP(AR83, 'KIPP$$'!A:G, 7, 0), "") ->  | AJ83: 4.7749 | AK83: 28 | AL83: =IFERROR(VLOOKUP($AR83,School_View8[[NCSE_ID]:[Max_Unmet_Need]],3,FALSE),"") ->  | AM83: =IFERROR(VLOOKUP($AR83,School_View8[[NCSE_ID]:[Max_Unmet_Need]],4,FALSE),"") ->  | AO83: =--ISNUMBER(IFERROR(SEARCH('Wish List and Search'!$H$12,$AS83,1),"")) -> 1 | AP83: =IF(AO83=1,COUNTIF($AO$4:AO83,1),"") -> 80 | AQ83: =IFERROR(INDEX($AS$4:$AS$3000,MATCH(ROWS($AP$4:AP83),$AP$4:$AP$3000,0)),"") -> Bryn Mawr College | AR83: 211273 | AS83: Bryn Mawr College | AT83: Bryn Mawr | AU83: PA | AV83: Private 4 yr | AW83: Most Competitive | AX83: 31900 | AY83: 10688 | AZ83: 13658 | BA83: 17319 | BB83: 0 | BC83: 84.1 | BD83: 84.1 | BE83: 94 | BF83: 28 | BG83: www.brynmawr.edu | BJ83: Suburb: Large | BK83: 1381 | BN83: 6 | BO83: 4.7749 | BP83: 0.322 | BQ83: -17.95 | BR83: 0 | BS83: -75.315 | BT83: 40.0285
A84: 212674 | B84: Gettysburg College | C84: =IF(ISERROR(Y84),"No Data",IF(Y84<15,"Far Reach",IF(Y84<50,"Reach",IF(Y84<80,"Target",IF(Y84>=80,IF(BD84="NULL","Likely",IF(StudentTargets!$AC$11<=AllColleges!BD84/100,"Likely+","Likely")),""))))) -> Far Reach | F84: 0 | G84: 0 | H84: 81 | J84: =IF(ISERROR(Y84),0,IF(AND(I84=1,Y84>=80),1,IF(OR(ISERROR(Y84),BD84="NULL"),0,IF(AND(Y84>=80,BN84>=(StudentTargets!$W$15-1),StudentTargets!$AC$11<=AllColleges!BD84/100),1,0)*AE84))) ->  | K84: =IF(ISERROR(Y84),0,IF(AND(I84=1,Y84>=80),0,IF(ISERROR(Y84),0,IF(AND(Y84>=80,BN84>=(StudentTargets!$W$15-1)),IF(ISERROR(StudentTargets!$AC$11>(BD84/100)),1,IF(StudentTargets!$AC$11>(BD84/100),1,0)),0))*AE84)) ->  | L84: 0 | M84: 0 | N84: 1 | R84: 0 | S84: 0 | T84: 2.8488 | U84: 0.32 | V84: -9.05 | W84: -17.69 | X84: -17.69 | Y84: 2.076493644e-06 | Z84: 1 | AA84: 1 | AB84: 1 | AC84: =IF(FilterSchoolType="Any",1,IF(AND(FilterSchoolType=Lookups!$S$5,FilterState=AU84),1,IF(AND(FilterSchoolType=Lookups!$S$3,FilterState=AU84,LEFT(AV84,3)="Pub"),1,IF(AND(FilterSchoolType=Lookups!$S$4,LEFT(AV84,3)="Pub"),1,0)))) -> 1 | AD84: 1 | AE84: 1 | AF84: 173.1894607 | AG84: 0 | AH84: 9956 | AI84: =IFERROR(VLOOKUP(AR84, 'KIPP$$'!A:G, 7, 0), "") ->  | AJ84: 2.8488 | AK84: 27 | AL84: =IFERROR(VLOOKUP($AR84,School_View8[[NCSE_ID]:[Max_Unmet_Need]],3,FALSE),"") ->  | AM84: =IFERROR(VLOOKUP($AR84,School_View8[[NCSE_ID]:[Max_Unmet_Need]],4,FALSE),"") ->  | AO84: =--ISNUMBER(IFERROR(SEARCH('Wish List and Search'!$H$12,$AS84,1),"")) -> 1 | AP84: =IF(AO84=1,COUNTIF($AO$4:AO84,1),"") -> 81 | AQ84: =IFERROR(INDEX($AS$4:$AS$3000,MATCH(ROWS($AP$4:AP84),$AP$4:$AP$3000,0)),"") -> Gettysburg College | AR84: 212674 | AS84: Gettysburg College | AT84: Gettysburg | AU84: PA | AV84: Private 4 yr | AW84: Most Competitive | AX84: 34636 | AY84: 9956 | AZ84: 19243 | BA84: 17683 | BB84: 47 | BC84: 86.8 | BD84: 84.1 | BE84: 90 | BF84: 27 | BG84: WWW.GETTYSBURG.EDU | BJ84: City: Small | BK84: 2394 | BN84: 6 | BO84: 2.8488 | BP84: 0.32 | BQ84: -9.05 | BR84: 0 | BS84: -77.235 | BT84: 39.8361
A85: 110404 | B85: California Institute of Technology | C85: =IF(ISERROR(Y85),"No Data",IF(Y85<15,"Far Reach",IF(Y85<50,"Reach",IF(Y85<80,"Target",IF(Y85>=80,IF(BD85="NULL","Likely",IF(StudentTargets!$AC$11<=AllColleges!BD85/100,"Likely+","Likely")),""))))) -> Far Reach | F85: 0 | G85: 0 | H85: 82 | J85: =IF(ISERROR(Y85),0,IF(AND(I85=1,Y85>=80),1,IF(OR(ISERROR(Y85),BD85="NULL"),0,IF(AND(Y85>=80,BN85>=(StudentTargets!$W$15-1),StudentTargets!$AC$11<=AllColleges!BD85/100),1,0)*AE85))) ->  | K85: =IF(ISERROR(Y85),0,IF(AND(I85=1,Y85>=80),0,IF(ISERROR(Y85),0,IF(AND(Y85>=80,BN85>=(StudentTargets!$W$15-1)),IF(ISERROR(StudentTargets!$AC$11>(BD85/100)),1,IF(StudentTargets!$AC$11>(BD85/100),1,0)),0))*AE85)) ->  | L85: 0 | M85: 0 | N85: 1 | R85: 0 | S85: 0 | T85: 4.2009 | U85: 0.2751 | V85: -17.92 | W85: -27.2734 | X85: -27.2734 | Y85: 1.429923743e-10 | Z85: 1 | AA85: 1 | AB85: 1 | AC85: =IF(FilterSchoolType="Any",1,IF(AND(FilterSchoolType=Lookups!$S$5,FilterState=AU85),1,IF(AND(FilterSchoolType=Lookups!$S$3,FilterState=AU85,LEFT(AV85,3)="Pub"),1,IF(AND(FilterSchoolType=Lookups!$S$4,LEFT(AV85,3)="Pub"),1,0)))) -> 1 | AD85: 1 | AE85: 1 | AF85: 2428.327605 | AG85: 0 | AH85: 3544 | AI85: =IFERROR(VLOOKUP(AR85, 'KIPP$$'!A:G, 7, 0), "") ->  | AJ85: 4.2009 | AK85: 34 | AL85: =IFERROR(VLOOKUP($AR85,School_View8[[NCSE_ID]:[Max_Unmet_Need]],3,FALSE),"") ->  | AM85: =IFERROR(VLOOKUP($AR85,School_View8[[NCSE_ID]:[Max_Unmet_Need]],4,FALSE),"") ->  | AO85: =--ISNUMBER(IFERROR(SEARCH('Wish List and Search'!$H$12,$AS85,1),"")) -> 1 | AP85: =IF(AO85=1,COUNTIF($AO$4:AO85,1),"") -> 82 | AQ85: =IFERROR(INDEX($AS$4:$AS$3000,MATCH(ROWS($AP$4:AP85),$AP$4:$AP$3000,0)),"") -> California Institute of Technology | AR85: 110404 | AS85: California Institute of Technology | AT85: Pasadena | AU85: CA | AV85: Private 4 yr | AW85: Most Competitive+ | AX85: 26839 | AY85: 3544 | AZ85: 5652 | BA85: 6781 | BB85: 59 | BC85: 93.6 | BD85: 84 | BE85: 98 | BF85: 34 | BG85: www.caltech.edu | BJ85: City: Midsize | BK85: 979 | BN85: 7 | BO85: 4.2009 | BP85: 0.2751 | BQ85: -17.92 | BR85: 0 | BS85: -118.126 | BT85: 34.1393
A86: 193900 | B86: New York University | C86: =IF(ISERROR(Y86),"No Data",IF(Y86<15,"Far Reach",IF(Y86<50,"Reach",IF(Y86<80,"Target",IF(Y86>=80,IF(BD86="NULL","Likely",IF(StudentTargets!$AC$11<=AllColleges!BD86/100,"Likely+","Likely")),""))))) -> Far Reach | F86: 0 | G86: 0 | H86: 83 | J86: =IF(ISERROR(Y86),0,IF(AND(I86=1,Y86>=80),1,IF(OR(ISERROR(Y86),BD86="NULL"),0,IF(AND(Y86>=80,BN86>=(StudentTargets!$W$15-1),StudentTargets!$AC$11<=AllColleges!BD86/100),1,0)*AE86))) ->  | K86: =IF(ISERROR(Y86),0,IF(AND(I86=1,Y86>=80),0,IF(ISERROR(Y86),0,IF(AND(Y86>=80,BN86>=(StudentTargets!$W$15-1)),IF(ISERROR(StudentTargets!$AC$11>(BD86/100)),1,IF(StudentTargets!$AC$11>(BD86/100),1,0)),0))*AE86)) ->  | L86: 0 | M86: 0 | N86: 1 | R86: 0 | S86: 0 | T86: 4.7749 | U86: 0.322 | V86: -17.95 | W86: -27.288 | X86: -27.288 | Y86: 1.409198518e-10 | Z86: 1 | AA86: 1 | AB86: 1 | AC86: =IF(FilterSchoolType="Any",1,IF(AND(FilterSchoolType=Lookups!$S$5,FilterState=AU86),1,IF(AND(FilterSchoolType=Lookups!$S$3,FilterState=AU86,LEFT(AV86,3)="Pub"),1,IF(AND(FilterSchoolType=Lookups!$S$4,LEFT(AV86,3)="Pub"),1,0)))) -> 1 | AD86: 1 | AE86: 1 | AF86: 9.010220887 | AG86: 0 | AH86: 22731 | AI86: =IFERROR(VLOOKUP(AR86, 'KIPP$$'!A:G, 7, 0), "") ->  | AJ86: 4.7749 | AK86: 29 | AL86: =IFERROR(VLOOKUP($AR86,School_View8[[NCSE_ID]:[Max_Unmet_Need]],3,FALSE),"") ->  | AM86: =IFERROR(VLOOKUP($AR86,School_View8[[NCSE_ID]:[Max_Unmet_Need]],4,FALSE),"") ->  | AO86: =--ISNUMBER(IFERROR(SEARCH('Wish List and Search'!$H$12,$AS86,1),"")) -> 1 | AP86: =IF(AO86=1,COUNTIF($AO$4:AO86,1),"") -> 83 | AQ86: =IFERROR(INDEX($AS$4:$AS$3000,MATCH(ROWS($AP$4:AP86),$AP$4:$AP$3000,0)),"") -> New York University | AR86: 193900 | AS86: New York University | AT86: New York | AU86: NY | AV86: Private 4 yr | AW86: Most Competitive | AX86: 35147 | AY86: 22731 | AZ86: 24621 | BA86: 33617 | BB86: 43 | BC86: 84.7 | BD86: 83 | BE86: 93 | BF86: 29 | BG86: www.nyu.edu | BJ86: City: Large | BK86: 26135 | BN86: 6 | BO86: 4.7749 | BP86: 0.322 | BQ86: -17.95 | BR86: 0 | BS86: -73.9973 | BT86: 40.7295
A87: 235316 | B87: Gonzaga University | C87: =IF(ISERROR(Y87),"No Data",IF(Y87<15,"Far Reach",IF(Y87<50,"Reach",IF(Y87<80,"Target",IF(Y87>=80,IF(BD87="NULL","Likely",IF(StudentTargets!$AC$11<=AllColleges!BD87/100,"Likely+","Likely")),""))))) -> Far Reach | F87: 0 | G87: 0 | H87: 84 | J87: =IF(ISERROR(Y87),0,IF(AND(I87=1,Y87>=80),1,IF(OR(ISERROR(Y87),BD87="NULL"),0,IF(AND(Y87>=80,BN87>=(StudentTargets!$W$15-1),StudentTargets!$AC$11<=AllColleges!BD87/100),1,0)*AE87))) ->  | K87: =IF(ISERROR(Y87),0,IF(AND(I87=1,Y87>=80),0,IF(ISERROR(Y87),0,IF(AND(Y87>=80,BN87>=(StudentTargets!$W$15-1)),IF(ISERROR(StudentTargets!$AC$11>(BD87/100)),1,IF(StudentTargets!$AC$11>(BD87/100),1,0)),0))*AE87)) ->  | L87: 0 | M87: 0 | N87: 1 | R87: 0 | S87: 0 | T87: 2.8488 | U87: 0.32 | V87: -9.05 | W87: -17.05 | X87: -17.05 | Y87: 3.938030419e-06 | Z87: 1 | AA87: 1 | AB87: 1 | AC87: =IF(FilterSchoolType="Any",1,IF(AND(FilterSchoolType=Lookups!$S$5,FilterState=AU87),1,IF(AND(FilterSchoolType=Lookups!$S$3,FilterState=AU87,LEFT(AV87,3)="Pub"),1,IF(AND(FilterSchoolType=Lookups!$S$4,LEFT(AV87,3)="Pub"),1,0)))) -> 1 | AD87: 1 | AE87: 1 | AF87: 2164.644414 | AG87: 0 | AH87: 23527 | AI87: =IFERROR(VLOOKUP(AR87, 'KIPP$$'!A:G, 7, 0), "") ->  | AJ87: 2.8488 | AK87: 25 | AL87: =IFERROR(VLOOKUP($AR87,School_View8[[NCSE_ID]:[Max_Unmet_Need]],3,FALSE),"") ->  | AM87: =IFERROR(VLOOKUP($AR87,School_View8[[NCSE_ID]:[Max_Unmet_Need]],4,FALSE),"") ->  | AO87: =--ISNUMBER(IFERROR(SEARCH('Wish List and Search'!$H$12,$AS87,1),"")) -> 1 | AP87: =IF(AO87=1,COUNTIF($AO$4:AO87,1),"") -> 84 | AQ87: =IFERROR(INDEX($AS$4:$AS$3000,MATCH(ROWS($AP$4:AP87),$AP$4:$AP$3000,0)),"") -> Gonzaga University | AR87: 235316 | AS87: Gonzaga University | AT87: Spokane | AU87: WA | AV87: Private 4 yr | AW87: Highly Competitive | AX87: 33586 | AY87: 23527 | AZ87: 24668 | BA87: 30468 | BB87: 47 | BC87: 83.9 | BD87: 82.8 | BE87: 92 | BF87: 25 | BG87: www.gonzaga.edu | BJ87: City: Midsize | BK87: 5183 | BN87: 5 | BO87: 2.8488 | BP87: 0.32 | BQ87: -9.05 | BR87: 0 | BS87: -117.403 | BT87: 47.6681
A88: 117946 | B88: Loyola Marymount University | C88: =IF(ISERROR(Y88),"No Data",IF(Y88<15,"Far Reach",IF(Y88<50,"Reach",IF(Y88<80,"Target",IF(Y88>=80,IF(BD88="NULL","Likely",IF(StudentTargets!$AC$11<=AllColleges!BD88/100,"Likely+","Likely")),""))))) -> Far Reach | F88: 0 | G88: 0 | H88: 85 | J88: =IF(ISERROR(Y88),0,IF(AND(I88=1,Y88>=80),1,IF(OR(ISERROR(Y88),BD88="NULL"),0,IF(AND(Y88>=80,BN88>=(StudentTargets!$W$15-1),StudentTargets!$AC$11<=AllColleges!BD88/100),1,0)*AE88))) ->  | K88: =IF(ISERROR(Y88),0,IF(AND(I88=1,Y88>=80),0,IF(ISERROR(Y88),0,IF(AND(Y88>=80,BN88>=(StudentTargets!$W$15-1)),IF(ISERROR(StudentTargets!$AC$11>(BD88/100)),1,IF(StudentTargets!$AC$11>(BD88/100),1,0)),0))*AE88)) ->  | L88: 0 | M88: 0 | N88: 1 | R88: 0 | S88: 0 | T88: 3.3385 | U88: 0.3992 | V88: -8.252064273 | W88: -18.63126427 | X88: -18.63126427 | Y88: 8.101113779e-07 | Z88: 1 | AA88: 1 | AB88: 1 | AC88: =IF(FilterSchoolType="Any",1,IF(AND(FilterSchoolType=Lookups!$S$5,FilterState=AU88),1,IF(AND(FilterSchoolType=Lookups!$S$3,FilterState=AU88,LEFT(AV88,3)="Pub"),1,IF(AND(FilterSchoolType=Lookups!$S$4,LEFT(AV88,3)="Pub"),1,0)))) -> 1 | AD88: 1 | AE88: 1 | AF88: 2448.23583 | AG88: 0 | AH88: 28279 | AI88: =IFERROR(VLOOKUP(AR88, 'KIPP$$'!A:G, 7, 0), "") ->  | AJ88: 3.3385 | AK88: 26 | AL88: =IFERROR(VLOOKUP($AR88,School_View8[[NCSE_ID]:[Max_Unmet_Need]],3,FALSE),"") ->  | AM88: =IFERROR(VLOOKUP($AR88,School_View8[[NCSE_ID]:[Max_Unmet_Need]],4,FALSE),"") ->  | AO88: =--ISNUMBER(IFERROR(SEARCH('Wish List and Search'!$H$12,$AS88,1),"")) -> 1 | AP88: =IF(AO88=1,COUNTIF($AO$4:AO88,1),"") -> 85 | AQ88: =IFERROR(INDEX($AS$4:$AS$3000,MATCH(ROWS($AP$4:AP88),$AP$4:$AP$3000,0)),"") -> Loyola Marymount University | AR88: 117946 | AS88: Loyola Marymount University | AT88: Los Angeles | AU88: CA | AV88: Private 4 yr | AW88: Very Competitive | AX88: 40946 | AY88: 28279 | AZ88: 28373 | BA88: 34848 | BB88: 44 | BC88: 83.2 | BD88: 82.4 | BE88: 88 | BF88: 26 | BG88: www.lmu.edu | BJ88: City: Large | BK88: 6261 | BN88: 4 | BO88: 3.3385 | BP88: 0.3992 | BQ88: -8.252064273 | BR88: 0 | BS88: -118.416 | BT88: 33.9708
A89: 129242 | B89: Fairfield University | C89: =IF(ISERROR(Y89),"No Data",IF(Y89<15,"Far Reach",IF(Y89<50,"Reach",IF(Y89<80,"Target",IF(Y89>=80,IF(BD89="NULL","Likely",IF(StudentTargets!$AC$11<=AllColleges!BD89/100,"Likely+","Likely")),""))))) -> Far Reach | F89: 0 | G89: 0 | H89: 86 | J89: =IF(ISERROR(Y89),0,IF(AND(I89=1,Y89>=80),1,IF(OR(ISERROR(Y89),BD89="NULL"),0,IF(AND(Y89>=80,BN89>=(StudentTargets!$W$15-1),StudentTargets!$AC$11<=AllColleges!BD89/100),1,0)*AE89))) ->  | K89: =IF(ISERROR(Y89),0,IF(AND(I89=1,Y89>=80),0,IF(ISERROR(Y89),0,IF(AND(Y89>=80,BN89>=(StudentTargets!$W$15-1)),IF(ISERROR(StudentTargets!$AC$11>(BD89/100)),1,IF(StudentTargets!$AC$11>(BD89/100),1,0)),0))*AE89)) ->  | L89: 0 | M89: 0 | N89: 1 | R89: 0 | S89: 0 | T89: 2.8488 | U89: 0.32 | V89: -9.05 | W89: -16.73 | X89: -16.73 | Y89: 5.423170946e-06 | Z89: 1 | AA89: 1 | AB89: 1 | AC89: =IF(FilterSchoolType="Any",1,IF(AND(FilterSchoolType=Lookups!$S$5,FilterState=AU89),1,IF(AND(FilterSchoolType=Lookups!$S$3,FilterState=AU89,LEFT(AV89,3)="Pub"),1,IF(AND(FilterSchoolType=Lookups!$S$4,LEFT(AV89,3)="Pub"),1,0)))) -> 1 | AD89: 1 | AE89: 1 | AF89: 55.791073 | AG89: 0 | AH89: 25444 | AI89: =IFERROR(VLOOKUP(AR89, 'KIPP$$'!A:G, 7, 0), "") ->  | AJ89: 2.8488 | AK89: 24 | AL89: =IFERROR(VLOOKUP($AR89,School_View8[[NCSE_ID]:[Max_Unmet_Need]],3,FALSE),"") ->  | AM89: =IFERROR(VLOOKUP($AR89,School_View8[[NCSE_ID]:[Max_Unmet_Need]],4,FALSE),"") ->  | AO89: =--ISNUMBER(IFERROR(SEARCH('Wish List and Search'!$H$12,$AS89,1),"")) -> 1 | AP89: =IF(AO89=1,COUNTIF($AO$4:AO89,1),"") -> 86 | AQ89: =IFERROR(INDEX($AS$4:$AS$3000,MATCH(ROWS($AP$4:AP89),$AP$4:$AP$3000,0)),"") -> Fairfield University | AR89: 129242 | AS89: Fairfield University | AT89: Fairfield | AU89: CT | AV89: Private 4 yr | AW89: Highly Competitive | AX89: 38527 | AY89: 25444 | AZ89: 26620 | BA89: 34414 | BB89: 39 | BC89: 82.2 | BD89: 82.4 | BE89: 89 | BF89: 24 | BG89: fairfield.edu | BJ89: Suburb: Large | BK89: 4032 | BN89: 5 | BO89: 2.8488 | BP89: 0.32 | BQ89: -9.05 | BR89: 0 | BS89: -73.2578 | BT89: 41.1607
A90: 139959 | B90: University of Georgia | C90: =IF(ISERROR(Y90),"No Data",IF(Y90<15,"Far Reach",IF(Y90<50,"Reach",IF(Y90<80,"Target",IF(Y90>=80,IF(BD90="NULL","Likely",IF(StudentTargets!$AC$11<=AllColleges!BD90/100,"Likely+","Likely")),""))))) -> Far Reach | F90: 0 | G90: 0 | H90: 87 | J90: =IF(ISERROR(Y90),0,IF(AND(I90=1,Y90>=80),1,IF(OR(ISERROR(Y90),BD90="NULL"),0,IF(AND(Y90>=80,BN90>=(StudentTargets!$W$15-1),StudentTargets!$AC$11<=AllColleges!BD90/100),1,0)*AE90))) ->  | K90: =IF(ISERROR(Y90),0,IF(AND(I90=1,Y90>=80),0,IF(ISERROR(Y90),0,IF(AND(Y90>=80,BN90>=(StudentTargets!$W$15-1)),IF(ISERROR(StudentTargets!$AC$11>(BD90/100)),1,IF(StudentTargets!$AC$11>(BD90/100),1,0)),0))*AE90)) ->  | L90: 0 | M90: 0 | N90: 1 | R90: 0 | S90: 0 | T90: 2.8488 | U90: 0.32 | V90: -9.05 | W90: -17.37 | X90: -17.37 | Y90: 2.859597027e-06 | Z90: 1 | AA90: 1 | AB90: 1 | AC90: =IF(FilterSchoolType="Any",1,IF(AND(FilterSchoolType=Lookups!$S$5,FilterState=AU90),1,IF(AND(FilterSchoolType=Lookups!$S$3,FilterState=AU90,LEFT(AV90,3)="Pub"),1,IF(AND(FilterSchoolType=Lookups!$S$4,LEFT(AV90,3)="Pub"),1,0)))) -> 1 | AD90: 1 | AE90: 1 | AF90: 688.6177898 | AG90: 1 | AH90: 9168 | AI90: =IFERROR(VLOOKUP(AR90, 'KIPP$$'!A:G, 7, 0), "") ->  | AJ90: 2.8488 | AK90: 26 | AL90: =IFERROR(VLOOKUP($AR90,School_View8[[NCSE_ID]:[Max_Unmet_Need]],3,FALSE),"") ->  | AM90: =IFERROR(VLOOKUP($AR90,School_View8[[NCSE_ID]:[Max_Unmet_Need]],4,FALSE),"") ->  | AO90: =--ISNUMBER(IFERROR(SEARCH('Wish List and Search'!$H$12,$AS90,1),"")) -> 1 | AP90: =IF(AO90=1,COUNTIF($AO$4:AO90,1),"") -> 87 | AQ90: =IFERROR(INDEX($AS$4:$AS$3000,MATCH(ROWS($AP$4:AP90),$AP$4:$AP$3000,0)),"") -> University of Georgia | AR90: 139959 | AS90: University of Georgia | AT90: Athens | AU90: GA | AV90: Public 4 yr | AW90: Highly Competitive | AX90: 14956 | AY90: 9168 | AZ90: 11562 | BA90: 14556 | BB90: 43 | BC90: 84.8 | BD90: 82.4 | BE90: 95 | BF90: 26 | BG90: www.uga.edu | BJ90: City: Midsize | BK90: 27951 | BN90: 5 | BO90: 2.8488 | BP90: 0.32 | BQ90: -9.05 | BR90: 0 | BS90: -83.374 | BT90: 33.9563
A91: 211440 | B91: Carnegie Mellon University | C91: =IF(ISERROR(Y91),"No Data",IF(Y91<15,"Far Reach",IF(Y91<50,"Reach",IF(Y91<80,"Target",IF(Y91>=80,IF(BD91="NULL","Likely",IF(StudentTargets!$AC$11<=AllColleges!BD91/100,"Likely+","Likely")),""))))) -> Far Reach | F91: 0 | G91: 0 | H91: 88 | J91: =IF(ISERROR(Y91),0,IF(AND(I91=1,Y91>=80),1,IF(OR(ISERROR(Y91),BD91="NULL"),0,IF(AND(Y91>=80,BN91>=(StudentTargets!$W$15-1),StudentTargets!$AC$11<=AllColleges!BD91/100),1,0)*AE91))) ->  | K91: =IF(ISERROR(Y91),0,IF(AND(I91=1,Y91>=80),0,IF(ISERROR(Y91),0,IF(AND(Y91>=80,BN91>=(StudentTargets!$W$15-1)),IF(ISERROR(StudentTargets!$AC$11>(BD91/100)),1,IF(StudentTargets!$AC$11>(BD91/100),1,0)),0))*AE91)) ->  | L91: 0 | M91: 0 | N91: 1 | R91: 0 | S91: 0 | T91: 4.7749 | U91: 0.322 | V91: -17.95 | W91: -27.932 | X91: -27.932 | Y91: 7.400934003e-11 | Z91: 1 | AA91: 1 | AB91: 1 | AC91: =IF(FilterSchoolType="Any",1,IF(AND(FilterSchoolType=Lookups!$S$5,FilterState=AU91),1,IF(AND(FilterSchoolType=Lookups!$S$3,FilterState=AU91,LEFT(AV91,3)="Pub"),1,IF(AND(FilterSchoolType=Lookups!$S$4,LEFT(AV91,3)="Pub"),1,0)))) -> 1 | AD91: 1 | AE91: 1 | AF91: 303.564613 | AG91: 0 | AH91: 17855 | AI91: =IFERROR(VLOOKUP(AR91, 'KIPP$$'!A:G, 7, 0), "") ->  | AJ91: 4.7749 | AK91: 31 | AL91: =IFERROR(VLOOKUP($AR91,School_View8[[NCSE_ID]:[Max_Unmet_Need]],3,FALSE),"") ->  | AM91: =IFERROR(VLOOKUP($AR91,School_View8[[NCSE_ID]:[Max_Unmet_Need]],4,FALSE),"") ->  | AO91: =--ISNUMBER(IFERROR(SEARCH('Wish List and Search'!$H$12,$AS91,1),"")) -> 1 | AP91: =IF(AO91=1,COUNTIF($AO$4:AO91,1),"") -> 88 | AQ91: =IFERROR(INDEX($AS$4:$AS$3000,MATCH(ROWS($AP$4:AP91),$AP$4:$AP$3000,0)),"") -> Carnegie Mellon University | AR91: 211440 | AS91: Carnegie Mellon University | AT91: Pittsburgh | AU91: PA | AV91: Private 4 yr | AW91: Most Competitive | AX91: 35250 | AY91: 17855 | AZ91: 18849 | BA91: 23449 | BB91: 54 | BC91: 89.8 | BD91: 82.4 | BE91: 96 | BF91: 31 | BG91: www.cmu.edu/ | BJ91: City: Large | BK91: 6283 | BN91: 6 | BO91: 4.7749 | BP91: 0.322 | BQ91: -17.95 | BR91: 0 | BS91: -79.9429 | BT91: 40.4446
A92: 110653 | B92: University of California-Irvine | C92: =IF(ISERROR(Y92),"No Data",IF(Y92<15,"Far Reach",IF(Y92<50,"Reach",IF(Y92<80,"Target",IF(Y92>=80,IF(BD92="NULL","Likely",IF(StudentTargets!$AC$11<=AllColleges!BD92/100,"Likely+","Likely")),""))))) -> Far Reach | F92: 0 | G92: 0 | H92: 89 | J92: =IF(ISERROR(Y92),0,IF(AND(I92=1,Y92>=80),1,IF(OR(ISERROR(Y92),BD92="NULL"),0,IF(AND(Y92>=80,BN92>=(StudentTargets!$W$15-1),StudentTargets!$AC$11<=AllColleges!BD92/100),1,0)*AE92))) ->  | K92: =IF(ISERROR(Y92),0,IF(AND(I92=1,Y92>=80),0,IF(ISERROR(Y92),0,IF(AND(Y92>=80,BN92>=(StudentTargets!$W$15-1)),IF(ISERROR(StudentTargets!$AC$11>(BD92/100)),1,IF(StudentTargets!$AC$11>(BD92/100),1,0)),0))*AE92)) ->  | L92: 0 | M92: 0 | N92: 1 | R92: 0 | S92: 0 | T92: 2.8488 | U92: 0.32 | V92: -9.05 | W92: -17.69 | X92: -17.69 | Y92: 2.076493644e-06 | Z92: 1 | AA92: 1 | AB92: 1 | AC92: =IF(FilterSchoolType="Any",1,IF(AND(FilterSchoolType=Lookups!$S$5,FilterState=AU92),1,IF(AND(FilterSchoolType=Lookups!$S$3,FilterState=AU92,LEFT(AV92,3)="Pub"),1,IF(AND(FilterSchoolType=Lookups!$S$4,LEFT(AV92,3)="Pub"),1,0)))) -> 1 | AD92: 1 | AE92: 1 | AF92: 2427.385872 | AG92: 1 | AH92: 9280 | AI92: =IFERROR(VLOOKUP(AR92, 'KIPP$$'!A:G, 7, 0), "") ->  | AJ92: 2.8488 | AK92: 27 | AL92: =IFERROR(VLOOKUP($AR92,School_View8[[NCSE_ID]:[Max_Unmet_Need]],3,FALSE),"") ->  | AM92: =IFERROR(VLOOKUP($AR92,School_View8[[NCSE_ID]:[Max_Unmet_Need]],4,FALSE),"") ->  | AO92: =--ISNUMBER(IFERROR(SEARCH('Wish List and Search'!$H$12,$AS92,1),"")) -> 1 | AP92: =IF(AO92=1,COUNTIF($AO$4:AO92,1),"") -> 89 | AQ92: =IFERROR(INDEX($AS$4:$AS$3000,MATCH(ROWS($AP$4:AP92),$AP$4:$AP$3000,0)),"") -> University of California-Irvine | AR92: 110653 | AS92: University of California-Irvine | AT92: Irvine | AU92: CA | AV92: Public 4 yr | AW92: Very Competitive | AX92: 13780 | AY92: 9280 | AZ92: 10338 | BA92: 13820 | BB92: 47 | BC92: 87.2 | BD92: 82.3 | BE92: 92 | BF92: 27 | BG92: www.uci.edu/ | BJ92: City: Large | BK92: 27331 | BN92: 5 | BO92: 2.8488 | BP92: 0.32 | BQ92: -9.05 | BR92: 0 | BS92: -117.841 | BT92: 33.6484
A93: 110680 | B93: University of California-San Diego | C93: =IF(ISERROR(Y93),"No Data",IF(Y93<15,"Far Reach",IF(Y93<50,"Reach",IF(Y93<80,"Target",IF(Y93>=80,IF(BD93="NULL","Likely",IF(StudentTargets!$AC$11<=AllColleges!BD93/100,"Likely+","Likely")),""))))) -> Far Reach | F93: 0 | G93: 0 | H93: 90 | J93: =IF(ISERROR(Y93),0,IF(AND(I93=1,Y93>=80),1,IF(OR(ISERROR(Y93),BD93="NULL"),0,IF(AND(Y93>=80,BN93>=(StudentTargets!$W$15-1),StudentTargets!$AC$11<=AllColleges!BD93/100),1,0)*AE93))) ->  | K93: =IF(ISERROR(Y93),0,IF(AND(I93=1,Y93>=80),0,IF(ISERROR(Y93),0,IF(AND(Y93>=80,BN93>=(StudentTargets!$W$15-1)),IF(ISERROR(StudentTargets!$AC$11>(BD93/100)),1,IF(StudentTargets!$AC$11>(BD93/100),1,0)),0))*AE93)) ->  | L93: 0 | M93: 0 | N93: 1 | R93: 0 | S93: 0 | T93: 2.8488 | U93: 0.32 | V93: -9.05 | W93: -18.65 | X93: -18.65 | Y93: 7.950746543e-07 | Z93: 1 | AA93: 1 | AB93: 1 | AC93: =IF(FilterSchoolType="Any",1,IF(AND(FilterSchoolType=Lookups!$S$5,FilterState=AU93),1,IF(AND(FilterSchoolType=Lookups!$S$3,FilterState=AU93,LEFT(AV93,3)="Pub"),1,IF(AND(FilterSchoolType=Lookups!$S$4,LEFT(AV93,3)="Pub"),1,0)))) -> 1 | AD93: 1 | AE93: 1 | AF93: 2418.446094 | AG93: 1 | AH93: 8585 | AI93: =IFERROR(VLOOKUP(AR93, 'KIPP$$'!A:G, 7, 0), "") ->  | AJ93: 2.8488 | AK93: 30 | AL93: =IFERROR(VLOOKUP($AR93,School_View8[[NCSE_ID]:[Max_Unmet_Need]],3,FALSE),"") ->  | AM93: =IFERROR(VLOOKUP($AR93,School_View8[[NCSE_ID]:[Max_Unmet_Need]],4,FALSE),"") ->  | AO93: =--ISNUMBER(IFERROR(SEARCH('Wish List and Search'!$H$12,$AS93,1),"")) -> 1 | AP93: =IF(AO93=1,COUNTIF($AO$4:AO93,1),"") -> 90 | AQ93: =IFERROR(INDEX($AS$4:$AS$3000,MATCH(ROWS($AP$4:AP93),$AP$4:$AP$3000,0)),"") -> University of California-San Diego | AR93: 110680 | AS93: University of California-San Diego | AT93: La Jolla | AU93: CA | AV93: Public 4 yr | AW93: Most Competitive | AX93: 14770 | AY93: 8585 | AZ93: 9541 | BA93: 13367 | BB93: 52 | BC93: 87.2 | BD93: 82.3 | BE93: 95 | BF93: 30 | BG93: www.ucsd.edu | BJ93: City: Large | BK93: 28127 | BN93: 7 | BO93: 2.8488 | BP93: 0.32 | BQ93: -9.05 | BR93: 0 | BS93: -117.238 | BT93: 32.8766
A94: 212577 | B94: Franklin and Marshall College | C94: =IF(ISERROR(Y94),"No Data",IF(Y94<15,"Far Reach",IF(Y94<50,"Reach",IF(Y94<80,"Target",IF(Y94>=80,IF(BD94="NULL","Likely",IF(StudentTargets!$AC$11<=AllColleges!BD94/100,"Likely+","Likely")),""))))) -> No Data | F94: 0 | G94: 0 | H94: 90 | J94: =IF(ISERROR(Y94),0,IF(AND(I94=1,Y94>=80),1,IF(OR(ISERROR(Y94),BD94="NULL"),0,IF(AND(Y94>=80,BN94>=(StudentTargets!$W$15-1),StudentTargets!$AC$11<=AllColleges!BD94/100),1,0)*AE94))) -> 0 | K94: =IF(ISERROR(Y94),0,IF(AND(I94=1,Y94>=80),0,IF(ISERROR(Y94),0,IF(AND(Y94>=80,BN94>=(StudentTargets!$W$15-1)),IF(ISERROR(StudentTargets!$AC$11>(BD94/100)),1,IF(StudentTargets!$AC$11>(BD94/100),1,0)),0))*AE94)) -> 0 | L94: 0 | M94: 0 | N94: 0 | R94: 0 | S94: 0 | T94: 4.7749 | U94: 0.322 | V94: -17.95 | Z94: 1 | AA94: 1 | AB94: 1 | AC94: =IF(FilterSchoolType="Any",1,IF(AND(FilterSchoolType=Lookups!$S$5,FilterState=AU94),1,IF(AND(FilterSchoolType=Lookups!$S$3,FilterState=AU94,LEFT(AV94,3)="Pub"),1,IF(AND(FilterSchoolType=Lookups!$S$4,LEFT(AV94,3)="Pub"),1,0)))) -> 1 | AD94: 1 | AE94: 1 | AF94: 122.7775431 | AG94: 0 | AH94: 11849 | AI94: =IFERROR(VLOOKUP(AR94, 'KIPP$$'!A:G, 7, 0), "") ->  | AL94: =IFERROR(VLOOKUP($AR94,School_View8[[NCSE_ID]:[Max_Unmet_Need]],3,FALSE),"") ->  | AM94: =IFERROR(VLOOKUP($AR94,School_View8[[NCSE_ID]:[Max_Unmet_Need]],4,FALSE),"") ->  | AO94: =--ISNUMBER(IFERROR(SEARCH('Wish List and Search'!$H$12,$AS94,1),"")) -> 1 | AP94: =IF(AO94=1,COUNTIF($AO$4:AO94,1),"") -> 91 | AQ94: =IFERROR(INDEX($AS$4:$AS$3000,MATCH(ROWS($AP$4:AP94),$AP$4:$AP$3000,0)),"") -> Franklin and Marshall College | AR94: 212577 | AS94: Franklin and Marshall College | AT94: Lancaster | AU94: PA | AV94: Private 4 yr | AW94: Most Competitive | AX94: 23182 | AY94: 11849 | AZ94: 14147 | BA94: 16408 | BB94: 47 | BC94: 86.8 | BD94: 82.1 | BE94: 91 | BF94: NULL | BG94: WWW.FANDM.EDU | BJ94: City: Small | BK94: 2255 | BN94: 6 | BO94: 4.7749 | BP94: 0.322 | BQ94: -17.95 | BR94: 0 | BS94: -76.319 | BT94: 40.048
A95: 163286 | B95: University of Maryland-College Park | C95: =IF(ISERROR(Y95),"No Data",IF(Y95<15,"Far Reach",IF(Y95<50,"Reach",IF(Y95<80,"Target",IF(Y95>=80,IF(BD95="NULL","Likely",IF(StudentTargets!$AC$11<=AllColleges!BD95/100,"Likely+","Likely")),""))))) -> Far Reach | F95: 0 | G95: 0 | H95: 91 | J95: =IF(ISERROR(Y95),0,IF(AND(I95=1,Y95>=80),1,IF(OR(ISERROR(Y95),BD95="NULL"),0,IF(AND(Y95>=80,BN95>=(StudentTargets!$W$15-1),StudentTargets!$AC$11<=AllColleges!BD95/100),1,0)*AE95))) ->  | K95: =IF(ISERROR(Y95),0,IF(AND(I95=1,Y95>=80),0,IF(ISERROR(Y95),0,IF(AND(Y95>=80,BN95>=(StudentTargets!$W$15-1)),IF(ISERROR(StudentTargets!$AC$11>(BD95/100)),1,IF(StudentTargets!$AC$11>(BD95/100),1,0)),0))*AE95)) ->  | L95: 0 | M95: 0 | N95: 1 | R95: 0 | S95: 0 | T95: 2.8488 | U95: 0.32 | V95: -9.05 | W95: -18.33 | X95: -18.33 | Y95: 1.094919378e-06 | Z95: 1 | AA95: 1 | AB95: 1 | AC95: =IF(FilterSchoolType="Any",1,IF(AND(FilterSchoolType=Lookups!$S$5,FilterState=AU95),1,IF(AND(FilterSchoolType=Lookups!$S$3,FilterState=AU95,LEFT(AV95,3)="Pub"),1,IF(AND(FilterSchoolType=Lookups!$S$4,LEFT(AV95,3)="Pub"),1,0)))) -> 1 | AD95: 1 | AE95: 1 | AF95: 190.4878085 | AG95: 1 | AH95: 7645 | AI95: =IFERROR(VLOOKUP(AR95, 'KIPP$$'!A:G, 7, 0), "") ->  | AJ95: 2.8488 | AK95: 29 | AL95: =IFERROR(VLOOKUP($AR95,School_View8[[NCSE_ID]:[Max_Unmet_Need]],3,FALSE),"") ->  | AM95: =IFERROR(VLOOKUP($AR95,School_View8[[NCSE_ID]:[Max_Unmet_Need]],4,FALSE),"") ->  | AO95: =--ISNUMBER(IFERROR(SEARCH('Wish List and Search'!$H$12,$AS95,1),"")) -> 1 | AP95: =IF(AO95=1,COUNTIF($AO$4:AO95,1),"") -> 92 | AQ95: =IFERROR(INDEX($AS$4:$AS$3000,MATCH(ROWS($AP$4:AP95),$AP$4:$AP$3000,0)),"") -> University of Maryland-College Park | AR95: 163286 | AS95: University of Maryland-College Park | AT95: College Park | AU95: MD | AV95: Public 4 yr | AW95: Highly Competitive | AX95: 15757 | AY95: 7645 | AZ95: 10573 | BA95: 16013 | BB95: 53 | BC95: 86.4 | BD95: 82 | BE95: 95 | BF95: 29 | BG95: www.umd.edu | BJ95: Suburb: Large | BK95: 28472 | BN95: 5 | BO95: 2.8488 | BP95: 0.32 | BQ95: -9.05 | BR95: 0 | BS95: -76.9447 | BT95: 38.9882
A96: 214175 | B96: Muhlenberg College | C96: =IF(ISERROR(Y96),"No Data",IF(Y96<15,"Far Reach",IF(Y96<50,"Reach",IF(Y96<80,"Target",IF(Y96>=80,IF(BD96="NULL","Likely",IF(StudentTargets!$AC$11<=AllColleges!BD96/100,"Likely+","Likely")),""))))) -> Far Reach | F96: 0 | G96: 0 | H96: 92 | J96: =IF(ISERROR(Y96),0,IF(AND(I96=1,Y96>=80),1,IF(OR(ISERROR(Y96),BD96="NULL"),0,IF(AND(Y96>=80,BN96>=(StudentTargets!$W$15-1),StudentTargets!$AC$11<=AllColleges!BD96/100),1,0)*AE96))) ->  | K96: =IF(ISERROR(Y96),0,IF(AND(I96=1,Y96>=80),0,IF(ISERROR(Y96),0,IF(AND(Y96>=80,BN96>=(StudentTargets!$W$15-1)),IF(ISERROR(StudentTargets!$AC$11>(BD96/100)),1,IF(StudentTargets!$AC$11>(BD96/100),1,0)),0))*AE96)) ->  | L96: 0 | M96: 0 | N96: 1 | R96: 0 | S96: 0 | T96: 2.8488 | U96: 0.32 | V96: -9.05 | W96: -17.37 | X96: -17.37 | Y96: 2.859597027e-06 | Z96: 1 | AA96: 1 | AB96: 1 | AC96: =IF(FilterSchoolType="Any",1,IF(AND(FilterSchoolType=Lookups!$S$5,FilterState=AU96),1,IF(AND(FilterSchoolType=Lookups!$S$3,FilterState=AU96,LEFT(AV96,3)="Pub"),1,IF(AND(FilterSchoolType=Lookups!$S$4,LEFT(AV96,3)="Pub"),1,0)))) -> 1 | AD96: 1 | AE96: 1 | AF96: 70.88110328 | AG96: 0 | AH96: 12422 | AI96: =IFERROR(VLOOKUP(AR96, 'KIPP$$'!A:G, 7, 0), "") ->  | AJ96: 2.8488 | AK96: 26 | AL96: =IFERROR(VLOOKUP($AR96,School_View8[[NCSE_ID]:[Max_Unmet_Need]],3,FALSE),"") ->  | AM96: =IFERROR(VLOOKUP($AR96,School_View8[[NCSE_ID]:[Max_Unmet_Need]],4,FALSE),"") ->  | AO96: =--ISNUMBER(IFERROR(SEARCH('Wish List and Search'!$H$12,$AS96,1),"")) -> 1 | AP96: =IF(AO96=1,COUNTIF($AO$4:AO96,1),"") -> 93 | AQ96: =IFERROR(INDEX($AS$4:$AS$3000,MATCH(ROWS($AP$4:AP96),$AP$4:$AP$3000,0)),"") -> Muhlenberg College | AR96: 214175 | AS96: Muhlenberg College | AT96: Allentown | AU96: PA | AV96: Private 4 yr | AW96: Highly Competitive | AX96: 36679 | AY96: 12422 | AZ96: 19704 | BA96: 23223 | BB96: 40 | BC96: 83.3 | BD96: 81.9 | BE96: 90 | BF96: 26 | BG96: www.muhlenberg.edu | BJ96: City: Midsize | BK96: 2408 | BN96: 5 | BO96: 2.8488 | BP96: 0.32 | BQ96: -9.05 | BR96: 0 | BS96: -75.5085 | BT96: 40.5964
A97: 135726 | B97: University of Miami | C97: =IF(ISERROR(Y97),"No Data",IF(Y97<15,"Far Reach",IF(Y97<50,"Reach",IF(Y97<80,"Target",IF(Y97>=80,IF(BD97="NULL","Likely",IF(StudentTargets!$AC$11<=AllColleges!BD97/100,"Likely+","Likely")),""))))) -> Far Reach | F97: 0 | G97: 0 | H97: 93 | J97: =IF(ISERROR(Y97),0,IF(AND(I97=1,Y97>=80),1,IF(OR(ISERROR(Y97),BD97="NULL"),0,IF(AND(Y97>=80,BN97>=(StudentTargets!$W$15-1),StudentTargets!$AC$11<=AllColleges!BD97/100),1,0)*AE97))) ->  | K97: =IF(ISERROR(Y97),0,IF(AND(I97=1,Y97>=80),0,IF(ISERROR(Y97),0,IF(AND(Y97>=80,BN97>=(StudentTargets!$W$15-1)),IF(ISERROR(StudentTargets!$AC$11>(BD97/100)),1,IF(StudentTargets!$AC$11>(BD97/100),1,0)),0))*AE97)) ->  | L97: 0 | M97: 0 | N97: 1 | R97: 0 | S97: 0 | T97: 4.7749 | U97: 0.322 | V97: -17.95 | W97: -26.966 | X97: -26.966 | Y97: 1.944531581e-10 | Z97: 1 | AA97: 1 | AB97: 1 | AC97: =IF(FilterSchoolType="Any",1,IF(AND(FilterSchoolType=Lookups!$S$5,FilterState=AU97),1,IF(AND(FilterSchoolType=Lookups!$S$3,FilterState=AU97,LEFT(AV97,3)="Pub"),1,IF(AND(FilterSchoolType=Lookups!$S$4,LEFT(AV97,3)="Pub"),1,0)))) -> 1 | AD97: 1 | AE97: 1 | AF97: 1095.253532 | AG97: 0 | AH97: 26911 | AI97: =IFERROR(VLOOKUP(AR97, 'KIPP$$'!A:G, 7, 0), "") ->  | AJ97: 4.7749 | AK97: 28 | AL97: =IFERROR(VLOOKUP($AR97,School_View8[[NCSE_ID]:[Max_Unmet_Need]],3,FALSE),"") ->  | AM97: =IFERROR(VLOOKUP($AR97,School_View8[[NCSE_ID]:[Max_Unmet_Need]],4,FALSE),"") ->  | AO97: =--ISNUMBER(IFERROR(SEARCH('Wish List and Search'!$H$12,$AS97,1),"")) -> 1 | AP97: =IF(AO97=1,COUNTIF($AO$4:AO97,1),"") -> 94 | AQ97: =IFERROR(INDEX($AS$4:$AS$3000,MATCH(ROWS($AP$4:AP97),$AP$4:$AP$3000,0)),"") -> University of Miami | AR97: 135726 | AS97: University of Miami | AT97: Coral Gables | AU97: FL | AV97: Private 4 yr | AW97: Most Competitive | AX97: 37424 | AY97: 26911 | AZ97: 18903 | BA97: 23046 | BB97: 48 | BC97: 81.7 | BD97: 81.5 | BE97: 91 | BF97: 28 | BG97: www.miami.edu/ | BJ97: Suburb: Large | BK97: 10792 | BN97: 6 | BO97: 4.7749 | BP97: 0.322 | BQ97: -17.95 | BR97: 0 | BS97: -80.2787 | BT97: 25.7213
A98: 203535 | B98: Kenyon College | C98: =IF(ISERROR(Y98),"No Data",IF(Y98<15,"Far Reach",IF(Y98<50,"Reach",IF(Y98<80,"Target",IF(Y98>=80,IF(BD98="NULL","Likely",IF(StudentTargets!$AC$11<=AllColleges!BD98/100,"Likely+","Likely")),""))))) -> Far Reach | F98: 0 | G98: 0 | H98: 94 | J98: =IF(ISERROR(Y98),0,IF(AND(I98=1,Y98>=80),1,IF(OR(ISERROR(Y98),BD98="NULL"),0,IF(AND(Y98>=80,BN98>=(StudentTargets!$W$15-1),StudentTargets!$AC$11<=AllColleges!BD98/100),1,0)*AE98))) ->  | K98: =IF(ISERROR(Y98),0,IF(AND(I98=1,Y98>=80),0,IF(ISERROR(Y98),0,IF(AND(Y98>=80,BN98>=(StudentTargets!$W$15-1)),IF(ISERROR(StudentTargets!$AC$11>(BD98/100)),1,IF(StudentTargets!$AC$11>(BD98/100),1,0)),0))*AE98)) ->  | L98: 0 | M98: 0 | N98: 1 | R98: 0 | S98: 0 | T98: 4.7749 | U98: 0.322 | V98: -17.95 | W98: -27.288 | X98: -27.288 | Y98: 1.409198518e-10 | Z98: 1 | AA98: 1 | AB98: 1 | AC98: =IF(FilterSchoolType="Any",1,IF(AND(FilterSchoolType=Lookups!$S$5,FilterState=AU98),1,IF(AND(FilterSchoolType=Lookups!$S$3,FilterState=AU98,LEFT(AV98,3)="Pub"),1,IF(AND(FilterSchoolType=Lookups!$S$4,LEFT(AV98,3)="Pub"),1,0)))) -> 1 | AD98: 1 | AE98: 1 | AF98: 432.5517828 | AG98: 0 | AH98: 11730 | AI98: =IFERROR(VLOOKUP(AR98, 'KIPP$$'!A:G, 7, 0), "") ->  | AJ98: 4.7749 | AK98: 29 | AL98: =IFERROR(VLOOKUP($AR98,School_View8[[NCSE_ID]:[Max_Unmet_Need]],3,FALSE),"") ->  | AM98: =IFERROR(VLOOKUP($AR98,School_View8[[NCSE_ID]:[Max_Unmet_Need]],4,FALSE),"") ->  | AO98: =--ISNUMBER(IFERROR(SEARCH('Wish List and Search'!$H$12,$AS98,1),"")) -> 1 | AP98: =IF(AO98=1,COUNTIF($AO$4:AO98,1),"") -> 95 | AQ98: =IFERROR(INDEX($AS$4:$AS$3000,MATCH(ROWS($AP$4:AP98),$AP$4:$AP$3000,0)),"") -> Kenyon College | AR98: 203535 | AS98: Kenyon College | AT98: Gambier | AU98: OH | AV98: Private 4 yr | AW98: Most Competitive | AX98: 28192 | AY98: 11730 | AZ98: 9896 | BA98: 15911 | BB98: 45 | BC98: 90.5 | BD98: 81.5 | BE98: 91 | BF98: 29 | BG98: www.kenyon.edu/ | BJ98: Town: Distant | BK98: 1708 | BN98: 6 | BO98: 4.7749 | BP98: 0.322 | BQ98: -17.95 | BR98: 0 | BS98: -82.398 | BT98: 40.3744
A99: 168281 | B99: Wheaton College-MA | C99: =IF(ISERROR(Y99),"No Data",IF(Y99<15,"Far Reach",IF(Y99<50,"Reach",IF(Y99<80,"Target",IF(Y99>=80,IF(BD99="NULL","Likely",IF(StudentTargets!$AC$11<=AllColleges!BD99/100,"Likely+","Likely")),""))))) -> Far Reach | F99: 0 | G99: 0 | H99: 95 | J99: =IF(ISERROR(Y99),0,IF(AND(I99=1,Y99>=80),1,IF(OR(ISERROR(Y99),BD99="NULL"),0,IF(AND(Y99>=80,BN99>=(StudentTargets!$W$15-1),StudentTargets!$AC$11<=AllColleges!BD99/100),1,0)*AE99))) ->  | K99: =IF(ISERROR(Y99),0,IF(AND(I99=1,Y99>=80),0,IF(ISERROR(Y99),0,IF(AND(Y99>=80,BN99>=(StudentTargets!$W$15-1)),IF(ISERROR(StudentTargets!$AC$11>(BD99/100)),1,IF(StudentTargets!$AC$11>(BD99/100),1,0)),0))*AE99)) ->  | L99: 0 | M99: 0 | N99: 1 | R99: 0 | S99: 0 | T99: 3.3385 | U99: 0.3992 | V99: -8.252064273 | W99: -18.23206427 | X99: -18.23206427 | Y99: 1.207577708e-06 | Z99: 1 | AA99: 1 | AB99: 1 | AC99: =IF(FilterSchoolType="Any",1,IF(AND(FilterSchoolType=Lookups!$S$5,FilterState=AU99),1,IF(AND(FilterSchoolType=Lookups!$S$3,FilterState=AU99,LEFT(AV99,3)="Pub"),1,IF(AND(FilterSchoolType=Lookups!$S$4,LEFT(AV99,3)="Pub"),1,0)))) -> 1 | AD99: 1 | AE99: 1 | AF99: 176.534355 | AG99: 0 | AH99: 15331 | AI99: =IFERROR(VLOOKUP(AR99, 'KIPP$$'!A:G, 7, 0), "") ->  | AJ99: 3.3385 | AK99: 25 | AL99: =IFERROR(VLOOKUP($AR99,School_View8[[NCSE_ID]:[Max_Unmet_Need]],3,FALSE),"") ->  | AM99: =IFERROR(VLOOKUP($AR99,School_View8[[NCSE_ID]:[Max_Unmet_Need]],4,FALSE),"") ->  | AO99: =--ISNUMBER(IFERROR(SEARCH('Wish List and Search'!$H$12,$AS99,1),"")) -> 1 | AP99: =IF(AO99=1,COUNTIF($AO$4:AO99,1),"") -> 96 | AQ99: =IFERROR(INDEX($AS$4:$AS$3000,MATCH(ROWS($AP$4:AP99),$AP$4:$AP$3000,0)),"") -> Wheaton College-MA | AR99: 168281 | AS99: Wheaton College-MA | AT99: Norton | AU99: MA | AV99: Private 4 yr | AW99: Very Competitive | AX99: 32821 | AY99: 15331 | AZ99: 18886 | BA99: 27031 | BB99: 38 | BC99: 81.3 | BD99: 81.3 | BE99: 86 | BF99: 25 | BG99: www.wheatoncollege.edu | BJ99: Suburb: Large | BK99: 1651 | BN99: 4 | BO99: 3.3385 | BP99: 0.3992 | BQ99: -8.252064273 | BR99: 0 | BS99: -71.1842 | BT99: 41.9668
A100: 212009 | B100: Dickinson College | C100: =IF(ISERROR(Y100),"No Data",IF(Y100<15,"Far Reach",IF(Y100<50,"Reach",IF(Y100<80,"Target",IF(Y100>=80,IF(BD100="NULL","Likely",IF(StudentTargets!$AC$11<=AllColleges!BD100/100,"Likely+","Likely")),""))))) -> Far Reach | F100: 0 | G100: 0 | H100: 96 | J100: =IF(ISERROR(Y100),0,IF(AND(I100=1,Y100>=80),1,IF(OR(ISERROR(Y100),BD100="NULL"),0,IF(AND(Y100>=80,BN100>=(StudentTargets!$W$15-1),StudentTargets!$AC$11<=AllColleges!BD100/100),1,0)*AE100))) ->  | K100: =IF(ISERROR(Y100),0,IF(AND(I100=1,Y100>=80),0,IF(ISERROR(Y100),0,IF(AND(Y100>=80,BN100>=(StudentTargets!$W$15-1)),IF(ISERROR(StudentTargets!$AC$11>(BD100/100)),1,IF(StudentTargets!$AC$11>(BD100/100),1,0)),0))*AE100)) ->  | L100: 0 | M100: 0 | N100: 1 | R100: 0 | S100: 0 | T100: 4.7749 | U100: 0.322 | V100: -17.95 | W100: -26.644 | X100: -26.644 | Y100: 2.683229526e-10 | Z100: 1 | AA100: 1 | AB100: 1 | AC100: =IF(FilterSchoolType="Any",1,IF(AND(FilterSchoolType=Lookups!$S$5,FilterState=AU100),1,IF(AND(FilterSchoolType=Lookups!$S$3,FilterState=AU100,LEFT(AV100,3)="Pub"),1,IF(AND(FilterSchoolType=Lookups!$S$4,LEFT(AV100,3)="Pub"),1,0)))) -> 1 | AD100: 1 | AE100: 1 | AF100: 163.4392201 | AG100: 0 | AH100: 11974 | AI100: =IFERROR(VLOOKUP(AR100, 'KIPP$$'!A:G, 7, 0), "") ->  | AJ100: 4.7749 | AK100: 27 | AL100: =IFERROR(VLOOKUP($AR100,School_View8[[NCSE_ID]:[Max_Unmet_Need]],3,FALSE),"") ->  | AM100: =IFERROR(VLOOKUP($AR100,School_View8[[NCSE_ID]:[Max_Unmet_Need]],4,FALSE),"") ->  | AO100: =--ISNUMBER(IFERROR(SEARCH('Wish List and Search'!$H$12,$AS100,1),"")) -> 1 | AP100: =IF(AO100=1,COUNTIF($AO$4:AO100,1),"") -> 97 | AQ100: =IFERROR(INDEX($AS$4:$AS$3000,MATCH(ROWS($AP$4:AP100),$AP$4:$AP$3000,0)),"") -> Dickinson College | AR100: 212009 | AS100: Dickinson College | AT100: Carlisle | AU100: PA | AV100: Private 4 yr | AW100: Most Competitive | AX100: 34409 | AY100: 11974 | AZ100: 10217 | BA100: 17286 | BB100: 41 | BC100: 84.2 | BD100: 81.2 | BE100: 90 | BF100: 27 | BG100: www.dickinson.edu | BJ100: City: Small | BK100: 2420 | BN100: 6 | BO100: 4.7749 | BP100: 0.322 | BQ100: -17.95 | BR100: 0 | BS100: -77.1979 | BT100: 40.2028
A101: 196079 | B101: SUNY at Binghamton | C101: =IF(ISERROR(Y101),"No Data",IF(Y101<15,"Far Reach",IF(Y101<50,"Reach",IF(Y101<80,"Target",IF(Y101>=80,IF(BD101="NULL","Likely",IF(StudentTargets!$AC$11<=AllColleges!BD101/100,"Likely+","Likely")),""))))) -> Far Reach | F101: 0 | G101: 0 | H101: 97 | J101: =IF(ISERROR(Y101),0,IF(AND(I101=1,Y101>=80),1,IF(OR(ISERROR(Y101),BD101="NULL"),0,IF(AND(Y101>=80,BN101>=(StudentTargets!$W$15-1),StudentTargets!$AC$11<=AllColleges!BD101/100),1,0)*AE101))) ->  | K101: =IF(ISERROR(Y101),0,IF(AND(I101=1,Y101>=80),0,IF(ISERROR(Y101),0,IF(AND(Y101>=80,BN101>=(StudentTargets!$W$15-1)),IF(ISERROR(StudentTargets!$AC$11>(BD101/100)),1,IF(StudentTargets!$AC$11>(BD101/100),1,0)),0))*AE101)) ->  | L101: 0 | M101: 0 | N101: 1 | R101: 0 | S101: 0 | T101: 2.8488 | U101: 0.32 | V101: -9.05 | W101: -18.01 | X101: -18.01 | Y101: 1.507843869e-06 | Z101: 1 | AA101: 1 | AB101: 1 | AC101: =IF(FilterSchoolType="Any",1,IF(AND(FilterSchoolType=Lookups!$S$5,FilterState=AU101),1,IF(AND(FilterSchoolType=Lookups!$S$3,FilterState=AU101,LEFT(AV101,3)="Pub"),1,IF(AND(FilterSchoolType=Lookups!$S$4,LEFT(AV101,3)="Pub"),1,0)))) -> 1 | AD101: 1 | AE101: 1 | AF101: 131.9622155 | AG101: 1 | AH101: 11086 | AI101: =IFERROR(VLOOKUP(AR101, 'KIPP$$'!A:G, 7, 0), "") ->  | AJ101: 2.8488 | AK101: 28 | AL101: =IFERROR(VLOOKUP($AR101,School_View8[[NCSE_ID]:[Max_Unmet_Need]],3,FALSE),"") ->  | AM101: =IFERROR(VLOOKUP($AR101,School_View8[[NCSE_ID]:[Max_Unmet_Need]],4,FALSE),"") ->  | AO101: =--ISNUMBER(IFERROR(SEARCH('Wish List and Search'!$H$12,$AS101,1),"")) -> 1 | AP101: =IF(AO101=1,COUNTIF($AO$4:AO101,1),"") -> 98 | AQ101: =IFERROR(INDEX($AS$4:$AS$3000,MATCH(ROWS($AP$4:AP101),$AP$4:$AP$3000,0)),"") -> SUNY at Binghamton | AR101: 196079 | AS101: SUNY at Binghamton | AT101: Vestal | AU101: NY | AV101: Public 4 yr | AW101: Most Competitive | AX101: 16540 | AY101: 11086 | AZ101: 13608 | BA101: 18547 | BB101: 51 | BC101: 83 | BD101: 81.2 | BE101: 92 | BF101: 28 | BG101: www.binghamton.edu | BJ101: Suburb: Midsize | BK101: 13632 | BN101: 6 | BO101: 2.8488 | BP101: 0.32 | BQ101: -9.05 | BR101: 0 | BS101: -75.9711 | BT101: 42.088
A102: 170532 | B102: Kalamazoo College | C102: =IF(ISERROR(Y102),"No Data",IF(Y102<15,"Far Reach",IF(Y102<50,"Reach",IF(Y102<80,"Target",IF(Y102>=80,IF(BD102="NULL","Likely",IF(StudentTargets!$AC$11<=AllColleges!BD102/100,"Likely+","Likely")),""))))) -> Far Reach | F102: 0 | G102: 0 | H102: 98 | J102: =IF(ISERROR(Y102),0,IF(AND(I102=1,Y102>=80),1,IF(OR(ISERROR(Y102),BD102="NULL"),0,IF(AND(Y102>=80,BN102>=(StudentTargets!$W$15-1),StudentTargets!$AC$11<=AllColleges!BD102/100),1,0)*AE102))) ->  | K102: =IF(ISERROR(Y102),0,IF(AND(I102=1,Y102>=80),0,IF(ISERROR(Y102),0,IF(AND(Y102>=80,BN102>=(StudentTargets!$W$15-1)),IF(ISERROR(StudentTargets!$AC$11>(BD102/100)),1,IF(StudentTargets!$AC$11>(BD102/100),1,0)),0))*AE102)) ->  | L102: 0 | M102: 0 | N102: 1 | R102: 0 | S102: 0 | T102: 2.8488 | U102: 0.32 | V102: -9.05 | W102: -17.05 | X102: -17.05 | Y102: 3.938030419e-06 | Z102: 1 | AA102: 1 | AB102: 1 | AC102: =IF(FilterSchoolType="Any",1,IF(AND(FilterSchoolType=Lookups!$S$5,FilterState=AU102),1,IF(AND(FilterSchoolType=Lookups!$S$3,FilterState=AU102,LEFT(AV102,3)="Pub"),1,IF(AND(FilterSchoolType=Lookups!$S$4,LEFT(AV102,3)="Pub"),1,0)))) -> 1 | AD102: 1 | AE102: 1 | AF102: 600.623563 | AG102: 0 | AH102: 10932 | AI102: =IFERROR(VLOOKUP(AR102, 'KIPP$$'!A:G, 7, 0), "") ->  | AJ102: 2.8488 | AK102: 25 | AL102: =IFERROR(VLOOKUP($AR102,School_View8[[NCSE_ID]:[Max_Unmet_Need]],3,FALSE),"") ->  | AM102: =IFERROR(VLOOKUP($AR102,School_View8[[NCSE_ID]:[Max_Unmet_Need]],4,FALSE),"") ->  | AO102: =--ISNUMBER(IFERROR(SEARCH('Wish List and Search'!$H$12,$AS102,1),"")) -> 1 | AP102: =IF(AO102=1,COUNTIF($AO$4:AO102,1),"") -> 99 | AQ102: =IFERROR(INDEX($AS$4:$AS$3000,MATCH(ROWS($AP$4:AP102),$AP$4:$AP$3000,0)),"") -> Kalamazoo College | AR102: 170532 | AS102: Kalamazoo College | AT102: Kalamazoo | AU102: MI | AV102: Private 4 yr | AW102: Highly Competitive | AX102: 27958 | AY102: 10932 | AZ102: 13726 | BA102: 17916 | BB102: 44 | BC102: 81.1 | BD102: 81.1 | BE102: 88 | BF102: 25 | BG102: www.kzoo.edu | BJ102: City: Small | BK102: 1443 | BN102: 5 | BO102: 2.8488 | BP102: 0.32 | BQ102: -9.05 | BR102: 0 | BS102: -85.6013 | BT102: 42.2904
A103: 145637 | B103: University of Illinois at Urbana-Champaign | C103: =IF(ISERROR(Y103),"No Data",IF(Y103<15,"Far Reach",IF(Y103<50,"Reach",IF(Y103<80,"Target",IF(Y103>=80,IF(BD103="NULL","Likely",IF(StudentTargets!$AC$11<=AllColleges!BD103/100,"Likely+","Likely")),""))))) -> Far Reach | F103: 0 | G103: 0 | H103: 99 | J103: =IF(ISERROR(Y103),0,IF(AND(I103=1,Y103>=80),1,IF(OR(ISERROR(Y103),BD103="NULL"),0,IF(AND(Y103>=80,BN103>=(StudentTargets!$W$15-1),StudentTargets!$AC$11<=AllColleges!BD103/100),1,0)*AE103))) ->  | K103: =IF(ISERROR(Y103),0,IF(AND(I103=1,Y103>=80),0,IF(ISERROR(Y103),0,IF(AND(Y103>=80,BN103>=(StudentTargets!$W$15-1)),IF(ISERROR(StudentTargets!$AC$11>(BD103/100)),1,IF(StudentTargets!$AC$11>(BD103/100),1,0)),0))*AE103)) ->  | L103: 0 | M103: 0 | N103: 1 | R103: 0 | S103: 0 | T103: 2.8488 | U103: 0.32 | V103: -9.05 | W103: -17.37 | X103: -17.37 | Y103: 2.859597027e-06 | Z103: 1 | AA103: 1 | AB103: 1 | AC103: =IF(FilterSchoolType="Any",1,IF(AND(FilterSchoolType=Lookups!$S$5,FilterState=AU103),1,IF(AND(FilterSchoolType=Lookups!$S$3,FilterState=AU103,LEFT(AV103,3)="Pub"),1,IF(AND(FilterSchoolType=Lookups!$S$4,LEFT(AV103,3)="Pub"),1,0)))) -> 1 | AD103: 1 | AE103: 1 | AF103: 740.0909271 | AG103: 1 | AH103: 7554 | AI103: =IFERROR(VLOOKUP(AR103, 'KIPP$$'!A:G, 7, 0), "") ->  | AJ103: 2.8488 | AK103: 26 | AL103: =IFERROR(VLOOKUP($AR103,School_View8[[NCSE_ID]:[Max_Unmet_Need]],3,FALSE),"") ->  | AM103: =IFERROR(VLOOKUP($AR103,School_View8[[NCSE_ID]:[Max_Unmet_Need]],4,FALSE),"") ->  | AO103: =--ISNUMBER(IFERROR(SEARCH('Wish List and Search'!$H$12,$AS103,1),"")) -> 1 | AP103: =IF(AO103=1,COUNTIF($AO$4:AO103,1),"") -> 100 | AQ103: =IFERROR(INDEX($AS$4:$AS$3000,MATCH(ROWS($AP$4:AP103),$AP$4:$AP$3000,0)),"") -> University of Illinois at Urbana-Champaign | AR103: 145637 | AS103: University of Illinois at Urbana-Champaign | AT103: Champaign | AU103: IL | AV103: Public 4 yr | AW103: Highly Competitive | AX103: 16683 | AY103: 7554 | AZ103: 11108 | BA103: 16782 | BB103: 55 | BC103: 85.2 | BD103: 81 | BE103: 94 | BF103: 26 | BG103: www.illinois.edu/ | BJ103: City: Small | BK103: 33932 | BN103: 5 | BO103: 2.8488 | BP103: 0.32 | BQ103: -9.05 | BR103: 0 | BS103: -88.2303 | BT103: 40.1089
A104: 166939 | B104: Mount Holyoke College | C104: =IF(ISERROR(Y104),"No Data",IF(Y104<15,"Far Reach",IF(Y104<50,"Reach",IF(Y104<80,"Target",IF(Y104>=80,IF(BD104="NULL","Likely",IF(StudentTargets!$AC$11<=AllColleges!BD104/100,"Likely+","Likely")),""))))) -> Far Reach | F104: 0 | G104: 0 | H104: 100 | J104: =IF(ISERROR(Y104),0,IF(AND(I104=1,Y104>=80),1,IF(OR(ISERROR(Y104),BD104="NULL"),0,IF(AND(Y104>=80,BN104>=(StudentTargets!$W$15-1),StudentTargets!$AC$11<=AllColleges!BD104/100),1,0)*AE104))) ->  | K104: =IF(ISERROR(Y104),0,IF(AND(I104=1,Y104>=80),0,IF(ISERROR(Y104),0,IF(AND(Y104>=80,BN104>=(StudentTargets!$W$15-1)),IF(ISERROR(StudentTargets!$AC$11>(BD104/100)),1,IF(StudentTargets!$AC$11>(BD104/100),1,0)),0))*AE104)) ->  | L104: 0 | M104: 0 | N104: 1 | R104: 0 | S104: 0 | T104: 4.7749 | U104: 0.322 | V104: -17.95 | W104: -26.966 | X104: -26.966 | Y104: 1.944531581e-10 | Z104: 1 | AA104: 1 | AB104: 1 | AC104: =IF(FilterSchoolType="Any",1,IF(AND(FilterSchoolType=Lookups!$S$5,FilterState=AU104),1,IF(AND(FilterSchoolType=Lookups!$S$3,FilterState=AU104,LEFT(AV104,3)="Pub"),1,IF(AND(FilterSchoolType=Lookups!$S$4,LEFT(AV104,3)="Pub"),1,0)))) -> 1 | AD104: 1 | AE104: 1 | AF104: 133.5423036 | AG104: 0 | AH104: 11694 | AI104: =IFERROR(VLOOKUP(AR104, 'KIPP$$'!A:G, 7, 0), "") ->  | AJ104: 4.7749 | AK104: 28 | AL104: =IFERROR(VLOOKUP($AR104,School_View8[[NCSE_ID]:[Max_Unmet_Need]],3,FALSE),"") ->  | AM104: =IFERROR(VLOOKUP($AR104,School_View8[[NCSE_ID]:[Max_Unmet_Need]],4,FALSE),"") ->  | AO104: =--ISNUMBER(IFERROR(SEARCH('Wish List and Search'!$H$12,$AS104,1),"")) -> 1 | AP104: =IF(AO104=1,COUNTIF($AO$4:AO104,1),"") -> 101 | AQ104: =IFERROR(INDEX($AS$4:$AS$3000,MATCH(ROWS($AP$4:AP104),$AP$4:$AP$3000,0)),"") -> Mount Holyoke College | AR104: 166939 | AS104: Mount Holyoke College | AT104: South Hadley | AU104: MA | AV104: Private 4 yr | AW104: Most Competitive | AX104: 27234 | AY104: 11694 | AZ104: 10827 | BA104: 17552 | BB104: 0 | BC104: 83.9 | BD104: 81 | BE104: 91 | BF104: 28 | BG104: www.mtholyoke.edu | BJ104: Suburb: Large | BK104: 2199 | BN104: 6 | BO104: 4.7749 | BP104: 0.322 | BQ104: -17.95 | BR104: 0 | BS104: -72.5736 | BT104: 42.2576
A105: 195030 | B105: University of Rochester | C105: =IF(ISERROR(Y105),"No Data",IF(Y105<15,"Far Reach",IF(Y105<50,"Reach",IF(Y105<80,"Target",IF(Y105>=80,IF(BD105="NULL","Likely",IF(StudentTargets!$AC$11<=AllColleges!BD105/100,"Likely+","Likely")),""))))) -> Far Reach | F105: 0 | G105: 0 | H105: 101 | J105: =IF(ISERROR(Y105),0,IF(AND(I105=1,Y105>=80),1,IF(OR(ISERROR(Y105),BD105="NULL"),0,IF(AND(Y105>=80,BN105>=(StudentTargets!$W$15-1),StudentTargets!$AC$11<=AllColleges!BD105/100),1,0)*AE105))) ->  | K105: =IF(ISERROR(Y105),0,IF(AND(I105=1,Y105>=80),0,IF(ISERROR(Y105),0,IF(AND(Y105>=80,BN105>=(StudentTargets!$W$15-1)),IF(ISERROR(StudentTargets!$AC$11>(BD105/100)),1,IF(StudentTargets!$AC$11>(BD105/100),1,0)),0))*AE105)) ->  | L105: 0 | M105: 0 | N105: 1 | R105: 0 | S105: 0 | T105: 4.7749 | U105: 0.322 | V105: -17.95 | W105: -27.288 | X105: -27.288 | Y105: 1.409198518e-10 | Z105: 1 | AA105: 1 | AB105: 1 | AC105: =IF(FilterSchoolType="Any",1,IF(AND(FilterSchoolType=Lookups!$S$5,FilterState=AU105),1,IF(AND(FilterSchoolType=Lookups!$S$3,FilterState=AU105,LEFT(AV105,3)="Pub"),1,IF(AND(FilterSchoolType=Lookups!$S$4,LEFT(AV105,3)="Pub"),1,0)))) -> 1 | AD105: 1 | AE105: 1 | AF105: 242.6402497 | AG105: 0 | AH105: 12725 | AI105: =IFERROR(VLOOKUP(AR105, 'KIPP$$'!A:G, 7, 0), "") ->  | AJ105: 4.7749 | AK105: 29 | AL105: =IFERROR(VLOOKUP($AR105,School_View8[[NCSE_ID]:[Max_Unmet_Need]],3,FALSE),"") ->  | AM105: =IFERROR(VLOOKUP($AR105,School_View8[[NCSE_ID]:[Max_Unmet_Need]],4,FALSE),"") ->  | AO105: =--ISNUMBER(IFERROR(SEARCH('Wish List and Search'!$H$12,$AS105,1),"")) -> 1 | AP105: =IF(AO105=1,COUNTIF($AO$4:AO105,1),"") -> 102 | AQ105: =IFERROR(INDEX($AS$4:$AS$3000,MATCH(ROWS($AP$4:AP105),$AP$4:$AP$3000,0)),"") -> University of Rochester | AR105: 195030 | AS105: University of Rochester | AT105: Rochester | AU105: NY | AV105: Private 4 yr | AW105: Most Competitive | AX105: 34170 | AY105: 12725 | AZ105: 16035 | BA105: 21943 | BB105: 50 | BC105: 85.4 | BD105: 81 | BE105: 96 | BF105: 29 | BG105: www.rochester.edu | BJ105: City: Midsize | BK105: 6386 | BN105: 6 | BO105: 4.7749 | BP105: 0.322 | BQ105: -17.95 | BR105: 0 | BS105: -77.6312 | BT105: 43.1264
A106: 191630 | B106: Hobart William Smith Colleges | C106: =IF(ISERROR(Y106),"No Data",IF(Y106<15,"Far Reach",IF(Y106<50,"Reach",IF(Y106<80,"Target",IF(Y106>=80,IF(BD106="NULL","Likely",IF(StudentTargets!$AC$11<=AllColleges!BD106/100,"Likely+","Likely")),""))))) -> Far Reach | F106: 0 | G106: 0 | H106: 102 | J106: =IF(ISERROR(Y106),0,IF(AND(I106=1,Y106>=80),1,IF(OR(ISERROR(Y106),BD106="NULL"),0,IF(AND(Y106>=80,BN106>=(StudentTargets!$W$15-1),StudentTargets!$AC$11<=AllColleges!BD106/100),1,0)*AE106))) ->  | K106: =IF(ISERROR(Y106),0,IF(AND(I106=1,Y106>=80),0,IF(ISERROR(Y106),0,IF(AND(Y106>=80,BN106>=(StudentTargets!$W$15-1)),IF(ISERROR(StudentTargets!$AC$11>(BD106/100)),1,IF(StudentTargets!$AC$11>(BD106/100),1,0)),0))*AE106)) ->  | L106: 0 | M106: 0 | N106: 1 | R106: 0 | S106: 0 | T106: 2.8488 | U106: 0.32 | V106: -9.05 | W106: -17.37 | X106: -17.37 | Y106: 2.859597027e-06 | Z106: 1 | AA106: 1 | AB106: 1 | AC106: =IF(FilterSchoolType="Any",1,IF(AND(FilterSchoolType=Lookups!$S$5,FilterState=AU106),1,IF(AND(FilterSchoolType=Lookups!$S$3,FilterState=AU106,LEFT(AV106,3)="Pub"),1,IF(AND(FilterSchoolType=Lookups!$S$4,LEFT(AV106,3)="Pub"),1,0)))) -> 1 | AD106: 1 | AE106: 1 | AF106: 206.124579 | AG106: 0 | AH106: 15660 | AI106: =IFERROR(VLOOKUP(AR106, 'KIPP$$'!A:G, 7, 0), "") ->  | AJ106: 2.8488 | AK106: 26 | AL106: =IFERROR(VLOOKUP($AR106,School_View8[[NCSE_ID]:[Max_Unmet_Need]],3,FALSE),"") ->  | AM106: =IFERROR(VLOOKUP($AR106,School_View8[[NCSE_ID]:[Max_Unmet_Need]],4,FALSE),"") ->  | AO106: =--ISNUMBER(IFERROR(SEARCH('Wish List and Search'!$H$12,$AS106,1),"")) -> 1 | AP106: =IF(AO106=1,COUNTIF($AO$4:AO106,1),"") -> 103 | AQ106: =IFERROR(INDEX($AS$4:$AS$3000,MATCH(ROWS($AP$4:AP106),$AP$4:$AP$3000,0)),"") -> Hobart William Smith Colleges | AR106: 191630 | AS106: Hobart William Smith Colleges | AT106: Geneva | AU106: NY | AV106: Private 4 yr | AW106: Highly Competitive | AX106: 38805 | AY106: 15660 | AZ106: 18504 | BA106: 23818 | BB106: 50 | BC106: 80.8 | BD106: 80.9 | BE106: 85 | BF106: 26 | BG106: WWW.HWS.EDU | BJ106: Town: Distant | BK106: 2262 | BN106: 5 | BO106: 2.8488 | BP106: 0.32 | BQ106: -9.05 | BR106: 0 | BS106: -76.9855 | BT106: 42.8581
A107: 213543 | B107: Lehigh University | C107: =IF(ISERROR(Y107),"No Data",IF(Y107<15,"Far Reach",IF(Y107<50,"Reach",IF(Y107<80,"Target",IF(Y107>=80,IF(BD107="NULL","Likely",IF(StudentTargets!$AC$11<=AllColleges!BD107/100,"Likely+","Likely")),""))))) -> Far Reach | F107: 0 | G107: 0 | H107: 103 | J107: =IF(ISERROR(Y107),0,IF(AND(I107=1,Y107>=80),1,IF(OR(ISERROR(Y107),BD107="NULL"),0,IF(AND(Y107>=80,BN107>=(StudentTargets!$W$15-1),StudentTargets!$AC$11<=AllColleges!BD107/100),1,0)*AE107))) ->  | K107: =IF(ISERROR(Y107),0,IF(AND(I107=1,Y107>=80),0,IF(ISERROR(Y107),0,IF(AND(Y107>=80,BN107>=(StudentTargets!$W$15-1)),IF(ISERROR(StudentTargets!$AC$11>(BD107/100)),1,IF(StudentTargets!$AC$11>(BD107/100),1,0)),0))*AE107)) ->  | L107: 0 | M107: 0 | N107: 1 | R107: 0 | S107: 0 | T107: 4.7749 | U107: 0.322 | V107: -17.95 | W107: -27.288 | X107: -27.288 | Y107: 1.409198518e-10 | Z107: 1 | AA107: 1 | AB107: 1 | AC107: =IF(FilterSchoolType="Any",1,IF(AND(FilterSchoolType=Lookups!$S$5,FilterState=AU107),1,IF(AND(FilterSchoolType=Lookups!$S$3,FilterState=AU107,LEFT(AV107,3)="Pub"),1,IF(AND(FilterSchoolType=Lookups!$S$4,LEFT(AV107,3)="Pub"),1,0)))) -> 1 | AD107: 1 | AE107: 1 | AF107: 64.04657272 | AG107: 0 | AH107: 20231 | AI107: =IFERROR(VLOOKUP(AR107, 'KIPP$$'!A:G, 7, 0), "") ->  | AJ107: 4.7749 | AK107: 29 | AL107: =IFERROR(VLOOKUP($AR107,School_View8[[NCSE_ID]:[Max_Unmet_Need]],3,FALSE),"") ->  | AM107: =IFERROR(VLOOKUP($AR107,School_View8[[NCSE_ID]:[Max_Unmet_Need]],4,FALSE),"") ->  | AO107: =--ISNUMBER(IFERROR(SEARCH('Wish List and Search'!$H$12,$AS107,1),"")) -> 1 | AP107: =IF(AO107=1,COUNTIF($AO$4:AO107,1),"") -> 104 | AQ107: =IFERROR(INDEX($AS$4:$AS$3000,MATCH(ROWS($AP$4:AP107),$AP$4:$AP$3000,0)),"") -> Lehigh University | AR107: 213543 | AS107: Lehigh University | AT107: Bethlehem | AU107: PA | AV107: Private 4 yr | AW107: Most Competitive | AX107: 27478 | AY107: 20231 | AZ107: 14106 | BA107: 18432 | BB107: 56 | BC107: 88.8 | BD107: 80.9 | BE107: 95 | BF107: 29 | BG107: www.lehigh.edu | BJ107: City: Small | BK107: 5080 | BN107: 6 | BO107: 4.7749 | BP107: 0.322 | BQ107: -17.95 | BR107: 0 | BS107: -75.3789 | BT107: 40.6072
A108: 209825 | B108: University of Portland | C108: =IF(ISERROR(Y108),"No Data",IF(Y108<15,"Far Reach",IF(Y108<50,"Reach",IF(Y108<80,"Target",IF(Y108>=80,IF(BD108="NULL","Likely",IF(StudentTargets!$AC$11<=AllColleges!BD108/100,"Likely+","Likely")),""))))) -> Far Reach | F108: 0 | G108: 0 | H108: 104 | J108: =IF(ISERROR(Y108),0,IF(AND(I108=1,Y108>=80),1,IF(OR(ISERROR(Y108),BD108="NULL"),0,IF(AND(Y108>=80,BN108>=(StudentTargets!$W$15-1),StudentTargets!$AC$11<=AllColleges!BD108/100),1,0)*AE108))) ->  | K108: =IF(ISERROR(Y108),0,IF(AND(I108=1,Y108>=80),0,IF(ISERROR(Y108),0,IF(AND(Y108>=80,BN108>=(StudentTargets!$W$15-1)),IF(ISERROR(StudentTargets!$AC$11>(BD108/100)),1,IF(StudentTargets!$AC$11>(BD108/100),1,0)),0))*AE108)) ->  | L108: 0 | M108: 0 | N108: 1 | R108: 0 | S108: 0 | T108: 3.3385 | U108: 0.3992 | V108: -8.252064273 | W108: -17.43366427 | X108: -17.43366427 | Y108: 2.68321699e-06 | Z108: 1 | AA108: 1 | AB108: 1 | AC108: =IF(FilterSchoolType="Any",1,IF(AND(FilterSchoolType=Lookups!$S$5,FilterState=AU108),1,IF(AND(FilterSchoolType=Lookups!$S$3,FilterState=AU108,LEFT(AV108,3)="Pub"),1,IF(AND(FilterSchoolType=Lookups!$S$4,LEFT(AV108,3)="Pub"),1,0)))) -> 1 | AD108: 1 | AE108: 1 | AF108: 2432.425641 | AG108: 0 | AH108: 21682 | AI108: =IFERROR(VLOOKUP(AR108, 'KIPP$$'!A:G, 7, 0), "") ->  | AJ108: 3.3385 | AK108: 23 | AL108: =IFERROR(VLOOKUP($AR108,School_View8[[NCSE_ID]:[Max_Unmet_Need]],3,FALSE),"") ->  | AM108: =IFERROR(VLOOKUP($AR108,School_View8[[NCSE_ID]:[Max_Unmet_Need]],4,FALSE),"") ->  | AO108: =--ISNUMBER(IFERROR(SEARCH('Wish List and Search'!$H$12,$AS108,1),"")) -> 1 | AP108: =IF(AO108=1,COUNTIF($AO$4:AO108,1),"") -> 105 | AQ108: =IFERROR(INDEX($AS$4:$AS$3000,MATCH(ROWS($AP$4:AP108),$AP$4:$AP$3000,0)),"") -> University of Portland | AR108: 209825 | AS108: University of Portland | AT108: Portland | AU108: OR | AV108: Private 4 yr | AW108: Very Competitive | AX108: 31736 | AY108: 21682 | AZ108: 26038 | BA108: 28681 | BB108: 41 | BC108: 81.8 | BD108: 80.9 | BE108: 91 | BF108: 23 | BG108: https://www1.up.edu | BJ108: City: Large | BK108: 3798 | BN108: 4 | BO108: 3.3385 | BP108: 0.3992 | BQ108: -8.252064273 | BR108: 0 | BS108: -122.727 | BT108: 45.5718
A109: 198516 | B109: Elon University | C109: =IF(ISERROR(Y109),"No Data",IF(Y109<15,"Far Reach",IF(Y109<50,"Reach",IF(Y109<80,"Target",IF(Y109>=80,IF(BD109="NULL","Likely",IF(StudentTargets!$AC$11<=AllColleges!BD109/100,"Likely+","Likely")),""))))) -> Far Reach | F109: 0 | G109: 0 | H109: 105 | J109: =IF(ISERROR(Y109),0,IF(AND(I109=1,Y109>=80),1,IF(OR(ISERROR(Y109),BD109="NULL"),0,IF(AND(Y109>=80,BN109>=(StudentTargets!$W$15-1),StudentTargets!$AC$11<=AllColleges!BD109/100),1,0)*AE109))) ->  | K109: =IF(ISERROR(Y109),0,IF(AND(I109=1,Y109>=80),0,IF(ISERROR(Y109),0,IF(AND(Y109>=80,BN109>=(StudentTargets!$W$15-1)),IF(ISERROR(StudentTargets!$AC$11>(BD109/100)),1,IF(StudentTargets!$AC$11>(BD109/100),1,0)),0))*AE109)) ->  | L109: 0 | M109: 0 | N109: 1 | R109: 0 | S109: 0 | T109: 2.8488 | U109: 0.32 | V109: -9.05 | W109: -17.05 | X109: -17.05 | Y109: 3.938030419e-06 | Z109: 1 | AA109: 1 | AB109: 1 | AC109: =IF(FilterSchoolType="Any",1,IF(AND(FilterSchoolType=Lookups!$S$5,FilterState=AU109),1,IF(AND(FilterSchoolType=Lookups!$S$3,FilterState=AU109,LEFT(AV109,3)="Pub"),1,IF(AND(FilterSchoolType=Lookups!$S$4,LEFT(AV109,3)="Pub"),1,0)))) -> 1 | AD109: 1 | AE109: 1 | AF109: 431.0717719 | AG109: 0 | AH109: 22121 | AI109: =IFERROR(VLOOKUP(AR109, 'KIPP$$'!A:G, 7, 0), "") ->  | AJ109: 2.8488 | AK109: 25 | AL109: =IFERROR(VLOOKUP($AR109,School_View8[[NCSE_ID]:[Max_Unmet_Need]],3,FALSE),"") ->  | AM109: =IFERROR(VLOOKUP($AR109,School_View8[[NCSE_ID]:[Max_Unmet_Need]],4,FALSE),"") ->  | AO109: =--ISNUMBER(IFERROR(SEARCH('Wish List and Search'!$H$12,$AS109,1),"")) -> 1 | AP109: =IF(AO109=1,COUNTIF($AO$4:AO109,1),"") -> 106 | AQ109: =IFERROR(INDEX($AS$4:$AS$3000,MATCH(ROWS($AP$4:AP109),$AP$4:$AP$3000,0)),"") -> Elon University | AR109: 198516 | AS109: Elon University | AT109: Elon | AU109: NC | AV109: Private 4 yr | AW109: Highly Competitive | AX109: 34168 | AY109: 22121 | AZ109: 24182 | BA109: 25784 | BB109: 41 | BC109: 82 | BD109: 80.8 | BE109: 91 | BF109: 25 | BG109: www.elon.edu | BJ109: Suburb: Midsize | BK109: 6008 | BN109: 5 | BO109: 2.8488 | BP109: 0.32 | BQ109: -9.05 | BR109: 0 | BS109: -79.5056 | BT109: 36.1041
A110: 127060 | B110: University of Denver | C110: =IF(ISERROR(Y110),"No Data",IF(Y110<15,"Far Reach",IF(Y110<50,"Reach",IF(Y110<80,"Target",IF(Y110>=80,IF(BD110="NULL","Likely",IF(StudentTargets!$AC$11<=AllColleges!BD110/100,"Likely+","Likely")),""))))) -> Far Reach | F110: 0 | G110: 0 | H110: 106 | J110: =IF(ISERROR(Y110),0,IF(AND(I110=1,Y110>=80),1,IF(OR(ISERROR(Y110),BD110="NULL"),0,IF(AND(Y110>=80,BN110>=(StudentTargets!$W$15-1),StudentTargets!$AC$11<=AllColleges!BD110/100),1,0)*AE110))) ->  | K110: =IF(ISERROR(Y110),0,IF(AND(I110=1,Y110>=80),0,IF(ISERROR(Y110),0,IF(AND(Y110>=80,BN110>=(StudentTargets!$W$15-1)),IF(ISERROR(StudentTargets!$AC$11>(BD110/100)),1,IF(StudentTargets!$AC$11>(BD110/100),1,0)),0))*AE110)) ->  | L110: 0 | M110: 0 | N110: 1 | R110: 0 | S110: 0 | T110: 3.3385 | U110: 0.3992 | V110: -8.252064273 | W110: -18.63126427 | X110: -18.63126427 | Y110: 8.101113779e-07 | Z110: 1 | AA110: 1 | AB110: 1 | AC110: =IF(FilterSchoolType="Any",1,IF(AND(FilterSchoolType=Lookups!$S$5,FilterState=AU110),1,IF(AND(FilterSchoolType=Lookups!$S$3,FilterState=AU110,LEFT(AV110,3)="Pub"),1,IF(AND(FilterSchoolType=Lookups!$S$4,LEFT(AV110,3)="Pub"),1,0)))) -> 1 | AD110: 1 | AE110: 1 | AF110: 1618.211375 | AG110: 0 | AH110: 19552 | AI110: =IFERROR(VLOOKUP(AR110, 'KIPP$$'!A:G, 7, 0), "") ->  | AJ110: 3.3385 | AK110: 26 | AL110: =IFERROR(VLOOKUP($AR110,School_View8[[NCSE_ID]:[Max_Unmet_Need]],3,FALSE),"") ->  | AM110: =IFERROR(VLOOKUP($AR110,School_View8[[NCSE_ID]:[Max_Unmet_Need]],4,FALSE),"") ->  | AO110: =--ISNUMBER(IFERROR(SEARCH('Wish List and Search'!$H$12,$AS110,1),"")) -> 1 | AP110: =IF(AO110=1,COUNTIF($AO$4:AO110,1),"") -> 107 | AQ110: =IFERROR(INDEX($AS$4:$AS$3000,MATCH(ROWS($AP$4:AP110),$AP$4:$AP$3000,0)),"") -> University of Denver | AR110: 127060 | AS110: University of Denver | AT110: Denver | AU110: CO | AV110: Private 4 yr | AW110: Very Competitive | AX110: 32940 | AY110: 19552 | AZ110: 20464 | BA110: 23762 | BB110: 46 | BC110: 80.7 | BD110: 80.7 | BE110: 87 | BF110: 26 | BG110: www.du.edu | BJ110: City: Large | BK110: 5754 | BN110: 4 | BO110: 3.3385 | BP110: 0.3992 | BQ110: -8.252064273 | BR110: 0 | BS110: -104.963 | BT110: 39.678
A111: 153384 | B111: Grinnell College | C111: =IF(ISERROR(Y111),"No Data",IF(Y111<15,"Far Reach",IF(Y111<50,"Reach",IF(Y111<80,"Target",IF(Y111>=80,IF(BD111="NULL","Likely",IF(StudentTargets!$AC$11<=AllColleges!BD111/100,"Likely+","Likely")),""))))) -> Far Reach | F111: 0 | G111: 0 | H111: 107 | J111: =IF(ISERROR(Y111),0,IF(AND(I111=1,Y111>=80),1,IF(OR(ISERROR(Y111),BD111="NULL"),0,IF(AND(Y111>=80,BN111>=(StudentTargets!$W$15-1),StudentTargets!$AC$11<=AllColleges!BD111/100),1,0)*AE111))) ->  | K111: =IF(ISERROR(Y111),0,IF(AND(I111=1,Y111>=80),0,IF(ISERROR(Y111),0,IF(AND(Y111>=80,BN111>=(StudentTargets!$W$15-1)),IF(ISERROR(StudentTargets!$AC$11>(BD111/100)),1,IF(StudentTargets!$AC$11>(BD111/100),1,0)),0))*AE111)) ->  | L111: 0 | M111: 0 | N111: 1 | R111: 0 | S111: 0 | T111: 4.7749 | U111: 0.322 | V111: -17.95 | W111: -27.61 | X111: -27.61 | Y111: 1.021243616e-10 | Z111: 1 | AA111: 1 | AB111: 1 | AC111: =IF(FilterSchoolType="Any",1,IF(AND(FilterSchoolType=Lookups!$S$5,FilterState=AU111),1,IF(AND(FilterSchoolType=Lookups!$S$3,FilterState=AU111,LEFT(AV111,3)="Pub"),1,IF(AND(FilterSchoolType=Lookups!$S$4,LEFT(AV111,3)="Pub"),1,0)))) -> 1 | AD111: 1 | AE111: 1 | AF111: 964.4813826 | AG111: 0 | AH111: 13774 | AI111: =IFERROR(VLOOKUP(AR111, 'KIPP$$'!A:G, 7, 0), "") ->  | AJ111: 4.7749 | AK111: 30 | AL111: =IFERROR(VLOOKUP($AR111,School_View8[[NCSE_ID]:[Max_Unmet_Need]],3,FALSE),"") ->  | AM111: =IFERROR(VLOOKUP($AR111,School_View8[[NCSE_ID]:[Max_Unmet_Need]],4,FALSE),"") ->  | AO111: =--ISNUMBER(IFERROR(SEARCH('Wish List and Search'!$H$12,$AS111,1),"")) -> 1 | AP111: =IF(AO111=1,COUNTIF($AO$4:AO111,1),"") -> 108 | AQ111: =IFERROR(INDEX($AS$4:$AS$3000,MATCH(ROWS($AP$4:AP111),$AP$4:$AP$3000,0)),"") -> Grinnell College | AR111: 153384 | AS111: Grinnell College | AT111: Grinnell | AU111: IA | AV111: Private 4 yr | AW111: Most Competitive | AX111: 30010 | AY111: 13774 | AZ111: 10160 | BA111: 17563 | BB111: 45 | BC111: 85.8 | BD111: 80.7 | BE111: 93 | BF111: 30 | BG111: www.grinnell.edu | BJ111: Town: Remote | BK111: 1699 | BN111: 6 | BO111: 4.7749 | BP111: 0.322 | BQ111: -17.95 | BR111: 0 | BS111: -92.7212 | BT111: 41.747
A112: 110705 | B112: University of California-Santa Barbara | C112: =IF(ISERROR(Y112),"No Data",IF(Y112<15,"Far Reach",IF(Y112<50,"Reach",IF(Y112<80,"Target",IF(Y112>=80,IF(BD112="NULL","Likely",IF(StudentTargets!$AC$11<=AllColleges!BD112/100,"Likely+","Likely")),""))))) -> Far Reach | F112: 0 | G112: 0 | H112: 108 | J112: =IF(ISERROR(Y112),0,IF(AND(I112=1,Y112>=80),1,IF(OR(ISERROR(Y112),BD112="NULL"),0,IF(AND(Y112>=80,BN112>=(StudentTargets!$W$15-1),StudentTargets!$AC$11<=AllColleges!BD112/100),1,0)*AE112))) ->  | K112: =IF(ISERROR(Y112),0,IF(AND(I112=1,Y112>=80),0,IF(ISERROR(Y112),0,IF(AND(Y112>=80,BN112>=(StudentTargets!$W$15-1)),IF(ISERROR(StudentTargets!$AC$11>(BD112/100)),1,IF(StudentTargets!$AC$11>(BD112/100),1,0)),0))*AE112)) ->  | L112: 0 | M112: 0 | N112: 1 | R112: 0 | S112: 0 | T112: 4.7749 | U112: 0.322 | V112: -17.95 | W112: -27.288 | X112: -27.288 | Y112: 1.409198518e-10 | Z112: 1 | AA112: 1 | AB112: 1 | AC112: =IF(FilterSchoolType="Any",1,IF(AND(FilterSchoolType=Lookups!$S$5,FilterState=AU112),1,IF(AND(FilterSchoolType=Lookups!$S$3,FilterState=AU112,LEFT(AV112,3)="Pub"),1,IF(AND(FilterSchoolType=Lookups!$S$4,LEFT(AV112,3)="Pub"),1,0)))) -> 1 | AD112: 1 | AE112: 1 | AF112: 2510.360871 | AG112: 1 | AH112: 9954 | AI112: =IFERROR(VLOOKUP(AR112, 'KIPP$$'!A:G, 7, 0), "") ->  | AJ112: 4.7749 | AK112: 29 | AL112: =IFERROR(VLOOKUP($AR112,School_View8[[NCSE_ID]:[Max_Unmet_Need]],3,FALSE),"") ->  | AM112: =IFERROR(VLOOKUP($AR112,School_View8[[NCSE_ID]:[Max_Unmet_Need]],4,FALSE),"") ->  | AO112: =--ISNUMBER(IFERROR(SEARCH('Wish List and Search'!$H$12,$AS112,1),"")) -> 1 | AP112: =IF(AO112=1,COUNTIF($AO$4:AO112,1),"") -> 109 | AQ112: =IFERROR(INDEX($AS$4:$AS$3000,MATCH(ROWS($AP$4:AP112),$AP$4:$AP$3000,0)),"") -> University of California-Santa Barbara | AR112: 110705 | AS112: University of California-Santa Barbara | AT112: Santa Barbara | AU112: CA | AV112: Public 4 yr | AW112: Highly Competitive | AX112: 15149 | AY112: 9954 | AZ112: 11076 | BA112: 14176 | BB112: 47 | BC112: 82.3 | BD112: 80.5 | BE112: 93 | BF112: 29 | BG112: www.ucsb.edu | BJ112: Suburb: Midsize | BK112: 21574 | BN112: 6 | BO112: 4.7749 | BP112: 0.322 | BQ112: -17.95 | BR112: 0 | BS112: -119.846 | BT112: 34.4163
A113: 139755 | B113: Georgia Institute of Technology-Main Campus | C113: =IF(ISERROR(Y113),"No Data",IF(Y113<15,"Far Reach",IF(Y113<50,"Reach",IF(Y113<80,"Target",IF(Y113>=80,IF(BD113="NULL","Likely",IF(StudentTargets!$AC$11<=AllColleges!BD113/100,"Likely+","Likely")),""))))) -> Far Reach | F113: 0 | G113: 0 | H113: 109 | J113: =IF(ISERROR(Y113),0,IF(AND(I113=1,Y113>=80),1,IF(OR(ISERROR(Y113),BD113="NULL"),0,IF(AND(Y113>=80,BN113>=(StudentTargets!$W$15-1),StudentTargets!$AC$11<=AllColleges!BD113/100),1,0)*AE113))) ->  | K113: =IF(ISERROR(Y113),0,IF(AND(I113=1,Y113>=80),0,IF(ISERROR(Y113),0,IF(AND(Y113>=80,BN113>=(StudentTargets!$W$15-1)),IF(ISERROR(StudentTargets!$AC$11>(BD113/100)),1,IF(StudentTargets!$AC$11>(BD113/100),1,0)),0))*AE113)) ->  | L113: 0 | M113: 0 | N113: 1 | R113: 0 | S113: 0 | T113: 4.7749 | U113: 0.322 | V113: -17.95 | W113: -27.61 | X113: -27.61 | Y113: 1.021243616e-10 | Z113: 1 | AA113: 1 | AB113: 1 | AC113: =IF(FilterSchoolType="Any",1,IF(AND(FilterSchoolType=Lookups!$S$5,FilterState=AU113),1,IF(AND(FilterSchoolType=Lookups!$S$3,FilterState=AU113,LEFT(AV113,3)="Pub"),1,IF(AND(FilterSchoolType=Lookups!$S$4,LEFT(AV113,3)="Pub"),1,0)))) -> 1 | AD113: 1 | AE113: 1 | AF113: 739.2747642 | AG113: 1 | AH113: 6293 | AI113: =IFERROR(VLOOKUP(AR113, 'KIPP$$'!A:G, 7, 0), "") ->  | AJ113: 4.7749 | AK113: 30 | AL113: =IFERROR(VLOOKUP($AR113,School_View8[[NCSE_ID]:[Max_Unmet_Need]],3,FALSE),"") ->  | AM113: =IFERROR(VLOOKUP($AR113,School_View8[[NCSE_ID]:[Max_Unmet_Need]],4,FALSE),"") ->  | AO113: =--ISNUMBER(IFERROR(SEARCH('Wish List and Search'!$H$12,$AS113,1),"")) -> 1 | AP113: =IF(AO113=1,COUNTIF($AO$4:AO113,1),"") -> 110 | AQ113: =IFERROR(INDEX($AS$4:$AS$3000,MATCH(ROWS($AP$4:AP113),$AP$4:$AP$3000,0)),"") -> Georgia Institute of Technology-Main Campus | AR113: 139755 | AS113: Georgia Institute of Technology-Main Campus | AT113: Atlanta | AU113: GA | AV113: Public 4 yr | AW113: Most Competitive | AX113: 13340 | AY113: 6293 | AZ113: 8943 | BA113: 12284 | BB113: 63 | BC113: 86.3 | BD113: 80.3 | BE113: 97 | BF113: 30 | BG113: www.gatech.edu | BJ113: City: Large | BK113: 15489 | BN113: 6 | BO113: 4.7749 | BP113: 0.322 | BQ113: -17.95 | BR113: 0 | BS113: -84.3948 | BT113: 33.7724
A114: 168421 | B114: Worcester Polytechnic Institute | C114: =IF(ISERROR(Y114),"No Data",IF(Y114<15,"Far Reach",IF(Y114<50,"Reach",IF(Y114<80,"Target",IF(Y114>=80,IF(BD114="NULL","Likely",IF(StudentTargets!$AC$11<=AllColleges!BD114/100,"Likely+","Likely")),""))))) -> Far Reach | F114: 0 | G114: 0 | H114: 110 | J114: =IF(ISERROR(Y114),0,IF(AND(I114=1,Y114>=80),1,IF(OR(ISERROR(Y114),BD114="NULL"),0,IF(AND(Y114>=80,BN114>=(StudentTargets!$W$15-1),StudentTargets!$AC$11<=AllColleges!BD114/100),1,0)*AE114))) ->  | K114: =IF(ISERROR(Y114),0,IF(AND(I114=1,Y114>=80),0,IF(ISERROR(Y114),0,IF(AND(Y114>=80,BN114>=(StudentTargets!$W$15-1)),IF(ISERROR(StudentTargets!$AC$11>(BD114/100)),1,IF(StudentTargets!$AC$11>(BD114/100),1,0)),0))*AE114)) ->  | L114: 0 | M114: 0 | N114: 1 | R114: 0 | S114: 0 | T114: 4.7749 | U114: 0.322 | V114: -17.95 | W114: -26.966 | X114: -26.966 | Y114: 1.944531581e-10 | Z114: 1 | AA114: 1 | AB114: 1 | AC114: =IF(FilterSchoolType="Any",1,IF(AND(FilterSchoolType=Lookups!$S$5,FilterState=AU114),1,IF(AND(FilterSchoolType=Lookups!$S$3,FilterState=AU114,LEFT(AV114,3)="Pub"),1,IF(AND(FilterSchoolType=Lookups!$S$4,LEFT(AV114,3)="Pub"),1,0)))) -> 1 | AD114: 1 | AE114: 1 | AF114: 161.814887 | AG114: 0 | AH114: 27379 | AI114: =IFERROR(VLOOKUP(AR114, 'KIPP$$'!A:G, 7, 0), "") ->  | AJ114: 4.7749 | AK114: 28 | AL114: =IFERROR(VLOOKUP($AR114,School_View8[[NCSE_ID]:[Max_Unmet_Need]],3,FALSE),"") ->  | AM114: =IFERROR(VLOOKUP($AR114,School_View8[[NCSE_ID]:[Max_Unmet_Need]],4,FALSE),"") ->  | AO114: =--ISNUMBER(IFERROR(SEARCH('Wish List and Search'!$H$12,$AS114,1),"")) -> 1 | AP114: =IF(AO114=1,COUNTIF($AO$4:AO114,1),"") -> 111 | AQ114: =IFERROR(INDEX($AS$4:$AS$3000,MATCH(ROWS($AP$4:AP114),$AP$4:$AP$3000,0)),"") -> Worcester Polytechnic Institute | AR114: 168421 | AS114: Worcester Polytechnic Institute | AT114: Worcester | AU114: MA | AV114: Private 4 yr | AW114: Most Competitive | AX114: 40666 | AY114: 27379 | AZ114: 29298 | BA114: 32307 | BB114: 66 | BC114: 86.2 | BD114: 80.1 | BE114: 95 | BF114: 28 | BG114: www.wpi.edu | BJ114: City: Midsize | BK114: 4432 | BN114: 6 | BO114: 4.7749 | BP114: 0.322 | BQ114: -17.95 | BR114: 0 | BS114: -71.8088 | BT114: 42.2751
A115: 146481 | B115: Lake Forest College | C115: =IF(ISERROR(Y115),"No Data",IF(Y115<15,"Far Reach",IF(Y115<50,"Reach",IF(Y115<80,"Target",IF(Y115>=80,IF(BD115="NULL","Likely",IF(StudentTargets!$AC$11<=AllColleges!BD115/100,"Likely+","Likely")),""))))) -> Far Reach | F115: 0 | G115: 0 | H115: 111 | J115: =IF(ISERROR(Y115),0,IF(AND(I115=1,Y115>=80),1,IF(OR(ISERROR(Y115),BD115="NULL"),0,IF(AND(Y115>=80,BN115>=(StudentTargets!$W$15-1),StudentTargets!$AC$11<=AllColleges!BD115/100),1,0)*AE115))) ->  | K115: =IF(ISERROR(Y115),0,IF(AND(I115=1,Y115>=80),0,IF(ISERROR(Y115),0,IF(AND(Y115>=80,BN115>=(StudentTargets!$W$15-1)),IF(ISERROR(StudentTargets!$AC$11>(BD115/100)),1,IF(StudentTargets!$AC$11>(BD115/100),1,0)),0))*AE115)) ->  | L115: 0 | M115: 0 | N115: 1 | R115: 0 | S115: 0 | T115: 2.8488 | U115: 0.32 | V115: -9.05 | W115: -16.41 | X115: -16.41 | Y115: 7.468399127e-06 | Z115: 1 | AA115: 1 | AB115: 1 | AC115: =IF(FilterSchoolType="Any",1,IF(AND(FilterSchoolType=Lookups!$S$5,FilterState=AU115),1,IF(AND(FilterSchoolType=Lookups!$S$3,FilterState=AU115,LEFT(AV115,3)="Pub"),1,IF(AND(FilterSchoolType=Lookups!$S$4,LEFT(AV115,3)="Pub"),1,0)))) -> 1 | AD115: 1 | AE115: 1 | AF115: 713.9099626 | AG115: 0 | AH115: 16318 | AI115: =IFERROR(VLOOKUP(AR115, 'KIPP$$'!A:G, 7, 0), "") ->  | AJ115: 2.8488 | AK115: 23 | AL115: =IFERROR(VLOOKUP($AR115,School_View8[[NCSE_ID]:[Max_Unmet_Need]],3,FALSE),"") ->  | AM115: =IFERROR(VLOOKUP($AR115,School_View8[[NCSE_ID]:[Max_Unmet_Need]],4,FALSE),"") ->  | AO115: =--ISNUMBER(IFERROR(SEARCH('Wish List and Search'!$H$12,$AS115,1),"")) -> 1 | AP115: =IF(AO115=1,COUNTIF($AO$4:AO115,1),"") -> 112 | AQ115: =IFERROR(INDEX($AS$4:$AS$3000,MATCH(ROWS($AP$4:AP115),$AP$4:$AP$3000,0)),"") -> Lake Forest College | AR115: 146481 | AS115: Lake Forest College | AT115: Lake Forest | AU115: IL | AV115: Private 4 yr | AW115: Very Competitive | AX115: 24478 | AY115: 16318 | AZ115: 17478 | BA115: 22265 | BB115: 43 | BC115: 72.316 | BD115: 80 | BE115: 83 | BF115: 23 | BG115: www.lakeforest.edu | BJ115: Suburb: Large | BK115: 1540 | BN115: 4 | BO115: 2.8488 | BP115: 0.32 | BQ115: -9.05 | BR115: 0 | BS115: -87.8308 | BT115: 42.2505
A116: 156408 | B116: Centre College | C116: =IF(ISERROR(Y116),"No Data",IF(Y116<15,"Far Reach",IF(Y116<50,"Reach",IF(Y116<80,"Target",IF(Y116>=80,IF(BD116="NULL","Likely",IF(StudentTargets!$AC$11<=AllColleges!BD116/100,"Likely+","Likely")),""))))) -> Far Reach | F116: 0 | G116: 0 | H116: 112 | J116: =IF(ISERROR(Y116),0,IF(AND(I116=1,Y116>=80),1,IF(OR(ISERROR(Y116),BD116="NULL"),0,IF(AND(Y116>=80,BN116>=(StudentTargets!$W$15-1),StudentTargets!$AC$11<=AllColleges!BD116/100),1,0)*AE116))) ->  | K116: =IF(ISERROR(Y116),0,IF(AND(I116=1,Y116>=80),0,IF(ISERROR(Y116),0,IF(AND(Y116>=80,BN116>=(StudentTargets!$W$15-1)),IF(ISERROR(StudentTargets!$AC$11>(BD116/100)),1,IF(StudentTargets!$AC$11>(BD116/100),1,0)),0))*AE116)) ->  | L116: 0 | M116: 0 | N116: 1 | R116: 0 | S116: 0 | T116: 4.7749 | U116: 0.322 | V116: -17.95 | W116: -26.322 | X116: -26.322 | Y116: 3.702547573e-10 | Z116: 1 | AA116: 1 | AB116: 1 | AC116: =IF(FilterSchoolType="Any",1,IF(AND(FilterSchoolType=Lookups!$S$5,FilterState=AU116),1,IF(AND(FilterSchoolType=Lookups!$S$3,FilterState=AU116,LEFT(AV116,3)="Pub"),1,IF(AND(FilterSchoolType=Lookups!$S$4,LEFT(AV116,3)="Pub"),1,0)))) -> 1 | AD116: 1 | AE116: 1 | AF116: 606.5437675 | AG116: 0 | AH116: 16359 | AI116: =IFERROR(VLOOKUP(AR116, 'KIPP$$'!A:G, 7, 0), "") ->  | AJ116: 4.7749 | AK116: 26 | AL116: =IFERROR(VLOOKUP($AR116,School_View8[[NCSE_ID]:[Max_Unmet_Need]],3,FALSE),"") ->  | AM116: =IFERROR(VLOOKUP($AR116,School_View8[[NCSE_ID]:[Max_Unmet_Need]],4,FALSE),"") ->  | AO116: =--ISNUMBER(IFERROR(SEARCH('Wish List and Search'!$H$12,$AS116,1),"")) -> 1 | AP116: =IF(AO116=1,COUNTIF($AO$4:AO116,1),"") -> 113 | AQ116: =IFERROR(INDEX($AS$4:$AS$3000,MATCH(ROWS($AP$4:AP116),$AP$4:$AP$3000,0)),"") -> Centre College | AR116: 156408 | AS116: Centre College | AT116: Danville | AU116: KY | AV116: Private 4 yr | AW116: Most Competitive | AX116: 25519 | AY116: 16359 | AZ116: 17629 | BA116: 18807 | BB116: 49 | BC116: 86.2 | BD116: 80 | BE116: 93 | BF116: 26 | BG116: www.centre.edu | BJ116: Town: Distant | BK116: 1430 | BN116: 6 | BO116: 4.7749 | BP116: 0.322 | BQ116: -17.95 | BR116: 0 | BS116: -84.7792 | BT116: 37.6451
A117: 192819 | B117: Marist College | C117: =IF(ISERROR(Y117),"No Data",IF(Y117<15,"Far Reach",IF(Y117<50,"Reach",IF(Y117<80,"Target",IF(Y117>=80,IF(BD117="NULL","Likely",IF(StudentTargets!$AC$11<=AllColleges!BD117/100,"Likely+","Likely")),""))))) -> Far Reach | F117: 0 | G117: 0 | H117: 113 | J117: =IF(ISERROR(Y117),0,IF(AND(I117=1,Y117>=80),1,IF(OR(ISERROR(Y117),BD117="NULL"),0,IF(AND(Y117>=80,BN117>=(StudentTargets!$W$15-1),StudentTargets!$AC$11<=AllColleges!BD117/100),1,0)*AE117))) ->  | K117: =IF(ISERROR(Y117),0,IF(AND(I117=1,Y117>=80),0,IF(ISERROR(Y117),0,IF(AND(Y117>=80,BN117>=(StudentTargets!$W$15-1)),IF(ISERROR(StudentTargets!$AC$11>(BD117/100)),1,IF(StudentTargets!$AC$11>(BD117/100),1,0)),0))*AE117)) ->  | L117: 0 | M117: 0 | N117: 1 | R117: 0 | S117: 0 | T117: 3.3385 | U117: 0.3992 | V117: -8.252064273 | W117: -18.23206427 | X117: -18.23206427 | Y117: 1.207577708e-06 | Z117: 1 | AA117: 1 | AB117: 1 | AC117: =IF(FilterSchoolType="Any",1,IF(AND(FilterSchoolType=Lookups!$S$5,FilterState=AU117),1,IF(AND(FilterSchoolType=Lookups!$S$3,FilterState=AU117,LEFT(AV117,3)="Pub"),1,IF(AND(FilterSchoolType=Lookups!$S$4,LEFT(AV117,3)="Pub"),1,0)))) -> 1 | AD117: 1 | AE117: 1 | AF117: 69.04925341 | AG117: 0 | AH117: 22458 | AI117: =IFERROR(VLOOKUP(AR117, 'KIPP$$'!A:G, 7, 0), "") ->  | AJ117: 3.3385 | AK117: 25 | AL117: =IFERROR(VLOOKUP($AR117,School_View8[[NCSE_ID]:[Max_Unmet_Need]],3,FALSE),"") ->  | AM117: =IFERROR(VLOOKUP($AR117,School_View8[[NCSE_ID]:[Max_Unmet_Need]],4,FALSE),"") ->  | AO117: =--ISNUMBER(IFERROR(SEARCH('Wish List and Search'!$H$12,$AS117,1),"")) -> 1 | AP117: =IF(AO117=1,COUNTIF($AO$4:AO117,1),"") -> 114 | AQ117: =IFERROR(INDEX($AS$4:$AS$3000,MATCH(ROWS($AP$4:AP117),$AP$4:$AP$3000,0)),"") -> Marist College | AR117: 192819 | AS117: Marist College | AT117: Poughkeepsie | AU117: NY | AV117: Private 4 yr | AW117: Very Competitive | AX117: 35817 | AY117: 22458 | AZ117: 25508 | BA117: 30096 | BB117: 42 | BC117: 83.4 | BD117: 80 | BE117: 90 | BF117: 25 | BG117: www.Marist.edu | BJ117: Suburb: Large | BK117: 5616 | BN117: 4 | BO117: 3.3385 | BP117: 0.3992 | BQ117: -8.252064273 | BR117: 0 | BS117: -73.9343 | BT117: 41.722
A118: 217961 | B118: Converse College | C118: =IF(ISERROR(Y118),"No Data",IF(Y118<15,"Far Reach",IF(Y118<50,"Reach",IF(Y118<80,"Target",IF(Y118>=80,IF(BD118="NULL","Likely",IF(StudentTargets!$AC$11<=AllColleges!BD118/100,"Likely+","Likely")),""))))) -> Far Reach | F118: 0 | G118: 0 | H118: 114 | J118: =IF(ISERROR(Y118),0,IF(AND(I118=1,Y118>=80),1,IF(OR(ISERROR(Y118),BD118="NULL"),0,IF(AND(Y118>=80,BN118>=(StudentTargets!$W$15-1),StudentTargets!$AC$11<=AllColleges!BD118/100),1,0)*AE118))) ->  | K118: =IF(ISERROR(Y118),0,IF(AND(I118=1,Y118>=80),0,IF(ISERROR(Y118),0,IF(AND(Y118>=80,BN118>=(StudentTargets!$W$15-1)),IF(ISERROR(StudentTargets!$AC$11>(BD118/100)),1,IF(StudentTargets!$AC$11>(BD118/100),1,0)),0))*AE118)) ->  | L118: 0 | M118: 0 | N118: 1 | R118: 0 | S118: 0 | T118: 3.7965 | U118: 0.5073 | V118: -8.09091 | W118: -18.23691 | X118: -18.23691 | Y118: 1.201740271e-06 | Z118: 1 | AA118: 1 | AB118: 1 | AC118: =IF(FilterSchoolType="Any",1,IF(AND(FilterSchoolType=Lookups!$S$5,FilterState=AU118),1,IF(AND(FilterSchoolType=Lookups!$S$3,FilterState=AU118,LEFT(AV118,3)="Pub"),1,IF(AND(FilterSchoolType=Lookups!$S$4,LEFT(AV118,3)="Pub"),1,0)))) -> 1 | AD118: 1 | AE118: 1 | AF118: 581.2554943 | AG118: 0 | AH118: 14891 | AI118: =IFERROR(VLOOKUP(AR118, 'KIPP$$'!A:G, 7, 0), "") ->  | AJ118: 3.7965 | AK118: 20 | AL118: =IFERROR(VLOOKUP($AR118,School_View8[[NCSE_ID]:[Max_Unmet_Need]],3,FALSE),"") ->  | AM118: =IFERROR(VLOOKUP($AR118,School_View8[[NCSE_ID]:[Max_Unmet_Need]],4,FALSE),"") ->  | AO118: =--ISNUMBER(IFERROR(SEARCH('Wish List and Search'!$H$12,$AS118,1),"")) -> 1 | AP118: =IF(AO118=1,COUNTIF($AO$4:AO118,1),"") -> 115 | AQ118: =IFERROR(INDEX($AS$4:$AS$3000,MATCH(ROWS($AP$4:AP118),$AP$4:$AP$3000,0)),"") -> Converse College | AR118: 217961 | AS118: Converse College | AT118: Spartanburg | AU118: SC | AV118: Private 4 yr | AW118: Competitive | AX118: 19683 | AY118: 14891 | AZ118: 16410 | BA118: 19506 | BB118: 0 | BC118: 58.72 | BD118: 80 | BE118: 70 | BF118: 20 | BG118: NULL | BJ118: City: Small | BK118: 870 | BN118: 3 | BO118: 3.7965 | BP118: 0.5073 | BQ118: -8.09091 | BR118: 0 | BS118: -81.9188 | BT118: 34.9562
A119: 221351 | B119: Rhodes College | C119: =IF(ISERROR(Y119),"No Data",IF(Y119<15,"Far Reach",IF(Y119<50,"Reach",IF(Y119<80,"Target",IF(Y119>=80,IF(BD119="NULL","Likely",IF(StudentTargets!$AC$11<=AllColleges!BD119/100,"Likely+","Likely")),""))))) -> Far Reach | F119: 0 | G119: 0 | H119: 115 | J119: =IF(ISERROR(Y119),0,IF(AND(I119=1,Y119>=80),1,IF(OR(ISERROR(Y119),BD119="NULL"),0,IF(AND(Y119>=80,BN119>=(StudentTargets!$W$15-1),StudentTargets!$AC$11<=AllColleges!BD119/100),1,0)*AE119))) ->  | K119: =IF(ISERROR(Y119),0,IF(AND(I119=1,Y119>=80),0,IF(ISERROR(Y119),0,IF(AND(Y119>=80,BN119>=(StudentTargets!$W$15-1)),IF(ISERROR(StudentTargets!$AC$11>(BD119/100)),1,IF(StudentTargets!$AC$11>(BD119/100),1,0)),0))*AE119)) ->  | L119: 0 | M119: 0 | N119: 1 | R119: 0 | S119: 0 | T119: 2.8488 | U119: 0.32 | V119: -9.05 | W119: -17.69 | X119: -17.69 | Y119: 2.076493644e-06 | Z119: 1 | AA119: 1 | AB119: 1 | AC119: =IF(FilterSchoolType="Any",1,IF(AND(FilterSchoolType=Lookups!$S$5,FilterState=AU119),1,IF(AND(FilterSchoolType=Lookups!$S$3,FilterState=AU119,LEFT(AV119,3)="Pub"),1,IF(AND(FilterSchoolType=Lookups!$S$4,LEFT(AV119,3)="Pub"),1,0)))) -> 1 | AD119: 1 | AE119: 1 | AF119: 942.5541195 | AG119: 0 | AH119: 16979 | AI119: =IFERROR(VLOOKUP(AR119, 'KIPP$$'!A:G, 7, 0), "") ->  | AJ119: 2.8488 | AK119: 27 | AL119: =IFERROR(VLOOKUP($AR119,School_View8[[NCSE_ID]:[Max_Unmet_Need]],3,FALSE),"") ->  | AM119: =IFERROR(VLOOKUP($AR119,School_View8[[NCSE_ID]:[Max_Unmet_Need]],4,FALSE),"") ->  | AO119: =--ISNUMBER(IFERROR(SEARCH('Wish List and Search'!$H$12,$AS119,1),"")) -> 1 | AP119: =IF(AO119=1,COUNTIF($AO$4:AO119,1),"") -> 116 | AQ119: =IFERROR(INDEX($AS$4:$AS$3000,MATCH(ROWS($AP$4:AP119),$AP$4:$AP$3000,0)),"") -> Rhodes College | AR119: 221351 | AS119: Rhodes College | AT119: Memphis | AU119: TN | AV119: Private 4 yr | AW119: Highly Competitive | AX119: 29839 | AY119: 16979 | AZ119: 15466 | BA119: 24675 | BB119: 44 | BC119: 79.7 | BD119: 79.7 | BE119: 93 | BF119: 27 | BG119: www.rhodes.edu | BJ119: City: Large | BK119: 1999 | BN119: 5 | BO119: 2.8488 | BP119: 0.32 | BQ119: -9.05 | BR119: 0 | BS119: -89.9892 | BT119: 35.1544
A120: 228246 | B120: Southern Methodist University | C120: =IF(ISERROR(Y120),"No Data",IF(Y120<15,"Far Reach",IF(Y120<50,"Reach",IF(Y120<80,"Target",IF(Y120>=80,IF(BD120="NULL","Likely",IF(StudentTargets!$AC$11<=AllColleges!BD120/100,"Likely+","Likely")),""))))) -> Far Reach | F120: 0 | G120: 0 | H120: 116 | J120: =IF(ISERROR(Y120),0,IF(AND(I120=1,Y120>=80),1,IF(OR(ISERROR(Y120),BD120="NULL"),0,IF(AND(Y120>=80,BN120>=(StudentTargets!$W$15-1),StudentTargets!$AC$11<=AllColleges!BD120/100),1,0)*AE120))) ->  | K120: =IF(ISERROR(Y120),0,IF(AND(I120=1,Y120>=80),0,IF(ISERROR(Y120),0,IF(AND(Y120>=80,BN120>=(StudentTargets!$W$15-1)),IF(ISERROR(StudentTargets!$AC$11>(BD120/100)),1,IF(StudentTargets!$AC$11>(BD120/100),1,0)),0))*AE120)) ->  | L120: 0 | M120: 0 | N120: 1 | R120: 0 | S120: 0 | T120: 2.8488 | U120: 0.32 | V120: -9.05 | W120: -18.01 | X120: -18.01 | Y120: 1.507843869e-06 | Z120: 1 | AA120: 1 | AB120: 1 | AC120: =IF(FilterSchoolType="Any",1,IF(AND(FilterSchoolType=Lookups!$S$5,FilterState=AU120),1,IF(AND(FilterSchoolType=Lookups!$S$3,FilterState=AU120,LEFT(AV120,3)="Pub"),1,IF(AND(FilterSchoolType=Lookups!$S$4,LEFT(AV120,3)="Pub"),1,0)))) -> 1 | AD120: 1 | AE120: 1 | AF120: 1359.898348 | AG120: 0 | AH120: 16072 | AI120: =IFERROR(VLOOKUP(AR120, 'KIPP$$'!A:G, 7, 0), "") ->  | AJ120: 2.8488 | AK120: 28 | AL120: =IFERROR(VLOOKUP($AR120,School_View8[[NCSE_ID]:[Max_Unmet_Need]],3,FALSE),"") ->  | AM120: =IFERROR(VLOOKUP($AR120,School_View8[[NCSE_ID]:[Max_Unmet_Need]],4,FALSE),"") ->  | AO120: =--ISNUMBER(IFERROR(SEARCH('Wish List and Search'!$H$12,$AS120,1),"")) -> 1 | AP120: =IF(AO120=1,COUNTIF($AO$4:AO120,1),"") -> 117 | AQ120: =IFERROR(INDEX($AS$4:$AS$3000,MATCH(ROWS($AP$4:AP120),$AP$4:$AP$3000,0)),"") -> Southern Methodist University | AR120: 228246 | AS120: Southern Methodist University | AT120: Dallas | AU120: TX | AV120: Private 4 yr | AW120: Most Competitive | AX120: 37499 | AY120: 16072 | AZ120: 20784 | BA120: 25405 | BB120: 50 | BC120: 79.4 | BD120: 79.4 | BE120: 91 | BF120: 28 | BG120: www.smu.edu | BJ120: Suburb: Large | BK120: 6521 | BN120: 6 | BO120: 2.8488 | BP120: 0.32 | BQ120: -9.05 | BR120: 0 | BS120: -96.7849 | BT120: 32.8453
A121: 157818 | B121: Transylvania University | C121: =IF(ISERROR(Y121),"No Data",IF(Y121<15,"Far Reach",IF(Y121<50,"Reach",IF(Y121<80,"Target",IF(Y121>=80,IF(BD121="NULL","Likely",IF(StudentTargets!$AC$11<=AllColleges!BD121/100,"Likely+","Likely")),""))))) -> Far Reach | F121: 0 | G121: 0 | H121: 117 | J121: =IF(ISERROR(Y121),0,IF(AND(I121=1,Y121>=80),1,IF(OR(ISERROR(Y121),BD121="NULL"),0,IF(AND(Y121>=80,BN121>=(StudentTargets!$W$15-1),StudentTargets!$AC$11<=AllColleges!BD121/100),1,0)*AE121))) ->  | K121: =IF(ISERROR(Y121),0,IF(AND(I121=1,Y121>=80),0,IF(ISERROR(Y121),0,IF(AND(Y121>=80,BN121>=(StudentTargets!$W$15-1)),IF(ISERROR(StudentTargets!$AC$11>(BD121/100)),1,IF(StudentTargets!$AC$11>(BD121/100),1,0)),0))*AE121)) ->  | L121: 0 | M121: 0 | N121: 1 | R121: 0 | S121: 0 | T121: 2.8488 | U121: 0.32 | V121: -9.05 | W121: -17.05 | X121: -17.05 | Y121: 3.938030419e-06 | Z121: 1 | AA121: 1 | AB121: 1 | AC121: =IF(FilterSchoolType="Any",1,IF(AND(FilterSchoolType=Lookups!$S$5,FilterState=AU121),1,IF(AND(FilterSchoolType=Lookups!$S$3,FilterState=AU121,LEFT(AV121,3)="Pub"),1,IF(AND(FilterSchoolType=Lookups!$S$4,LEFT(AV121,3)="Pub"),1,0)))) -> 1 | AD121: 1 | AE121: 1 | AF121: 581.2379384 | AG121: 0 | AH121: 15242 | AI121: =IFERROR(VLOOKUP(AR121, 'KIPP$$'!A:G, 7, 0), "") ->  | AJ121: 2.8488 | AK121: 25 | AL121: =IFERROR(VLOOKUP($AR121,School_View8[[NCSE_ID]:[Max_Unmet_Need]],3,FALSE),"") ->  | AM121: =IFERROR(VLOOKUP($AR121,School_View8[[NCSE_ID]:[Max_Unmet_Need]],4,FALSE),"") ->  | AO121: =--ISNUMBER(IFERROR(SEARCH('Wish List and Search'!$H$12,$AS121,1),"")) -> 1 | AP121: =IF(AO121=1,COUNTIF($AO$4:AO121,1),"") -> 118 | AQ121: =IFERROR(INDEX($AS$4:$AS$3000,MATCH(ROWS($AP$4:AP121),$AP$4:$AP$3000,0)),"") -> Transylvania University | AR121: 157818 | AS121: Transylvania University | AT121: Lexington | AU121: KY | AV121: Private 4 yr | AW121: Highly Competitive | AX121: 23685 | AY121: 15242 | AZ121: 16844 | BA121: 19447 | BB121: 42 | BC121: 72.695 | BD121: 79.31 | BE121: 86 | BF121: 25 | BG121: www.transy.edu | BJ121: City: Large | BK121: 963 | BN121: 5 | BO121: 2.8488 | BP121: 0.32 | BQ121: -9.05 | BR121: 0 | BS121: -84.4939 | BT121: 38.0532
A122: 136950 | B122: Rollins College | C122: =IF(ISERROR(Y122),"No Data",IF(Y122<15,"Far Reach",IF(Y122<50,"Reach",IF(Y122<80,"Target",IF(Y122>=80,IF(BD122="NULL","Likely",IF(StudentTargets!$AC$11<=AllColleges!BD122/100,"Likely+","Likely")),""))))) -> Far Reach | F122: 0 | G122: 0 | H122: 118 | J122: =IF(ISERROR(Y122),0,IF(AND(I122=1,Y122>=80),1,IF(OR(ISERROR(Y122),BD122="NULL"),0,IF(AND(Y122>=80,BN122>=(StudentTargets!$W$15-1),StudentTargets!$AC$11<=AllColleges!BD122/100),1,0)*AE122))) ->  | K122: =IF(ISERROR(Y122),0,IF(AND(I122=1,Y122>=80),0,IF(ISERROR(Y122),0,IF(AND(Y122>=80,BN122>=(StudentTargets!$W$15-1)),IF(ISERROR(StudentTargets!$AC$11>(BD122/100)),1,IF(StudentTargets!$AC$11>(BD122/100),1,0)),0))*AE122)) ->  | L122: 0 | M122: 0 | N122: 1 | R122: 0 | S122: 0 | T122: 2.8488 | U122: 0.32 | V122: -9.05 | W122: -16.73 | X122: -16.73 | Y122: 5.423170946e-06 | Z122: 1 | AA122: 1 | AB122: 1 | AC122: =IF(FilterSchoolType="Any",1,IF(AND(FilterSchoolType=Lookups!$S$5,FilterState=AU122),1,IF(AND(FilterSchoolType=Lookups!$S$3,FilterState=AU122,LEFT(AV122,3)="Pub"),1,IF(AND(FilterSchoolType=Lookups!$S$4,LEFT(AV122,3)="Pub"),1,0)))) -> 1 | AD122: 1 | AE122: 1 | AF122: 932.3040878 | AG122: 0 | AH122: 26697 | AI122: =IFERROR(VLOOKUP(AR122, 'KIPP$$'!A:G, 7, 0), "") ->  | AJ122: 2.8488 | AK122: 24 | AL122: =IFERROR(VLOOKUP($AR122,School_View8[[NCSE_ID]:[Max_Unmet_Need]],3,FALSE),"") ->  | AM122: =IFERROR(VLOOKUP($AR122,School_View8[[NCSE_ID]:[Max_Unmet_Need]],4,FALSE),"") ->  | AO122: =--ISNUMBER(IFERROR(SEARCH('Wish List and Search'!$H$12,$AS122,1),"")) -> 1 | AP122: =IF(AO122=1,COUNTIF($AO$4:AO122,1),"") -> 119 | AQ122: =IFERROR(INDEX($AS$4:$AS$3000,MATCH(ROWS($AP$4:AP122),$AP$4:$AP$3000,0)),"") -> Rollins College | AR122: 136950 | AS122: Rollins College | AT122: Winter Park | AU122: FL | AV122: Private 4 yr | AW122: Highly Competitive | AX122: 35726 | AY122: 26697 | AZ122: 27952 | BA122: 27837 | BB122: 41 | BC122: 79.3 | BD122: 79.3 | BE122: 83 | BF122: 24 | BG122: www.rollins.edu | BJ122: Suburb: Large | BK122: 2642 | BN122: 5 | BO122: 2.8488 | BP122: 0.32 | BQ122: -9.05 | BR122: 0 | BS122: -81.3487 | BT122: 28.592
A123: 196413 | B123: Syracuse University | C123: =IF(ISERROR(Y123),"No Data",IF(Y123<15,"Far Reach",IF(Y123<50,"Reach",IF(Y123<80,"Target",IF(Y123>=80,IF(BD123="NULL","Likely",IF(StudentTargets!$AC$11<=AllColleges!BD123/100,"Likely+","Likely")),""))))) -> Far Reach | F123: 0 | G123: 0 | H123: 119 | J123: =IF(ISERROR(Y123),0,IF(AND(I123=1,Y123>=80),1,IF(OR(ISERROR(Y123),BD123="NULL"),0,IF(AND(Y123>=80,BN123>=(StudentTargets!$W$15-1),StudentTargets!$AC$11<=AllColleges!BD123/100),1,0)*AE123))) ->  | K123: =IF(ISERROR(Y123),0,IF(AND(I123=1,Y123>=80),0,IF(ISERROR(Y123),0,IF(AND(Y123>=80,BN123>=(StudentTargets!$W$15-1)),IF(ISERROR(StudentTargets!$AC$11>(BD123/100)),1,IF(StudentTargets!$AC$11>(BD123/100),1,0)),0))*AE123)) ->  | L123: 0 | M123: 0 | N123: 1 | R123: 0 | S123: 0 | T123: 2.8488 | U123: 0.32 | V123: -9.05 | W123: -17.05 | X123: -17.05 | Y123: 3.938030419e-06 | Z123: 1 | AA123: 1 | AB123: 1 | AC123: =IF(FilterSchoolType="Any",1,IF(AND(FilterSchoolType=Lookups!$S$5,FilterState=AU123),1,IF(AND(FilterSchoolType=Lookups!$S$3,FilterState=AU123,LEFT(AV123,3)="Pub"),1,IF(AND(FilterSchoolType=Lookups!$S$4,LEFT(AV123,3)="Pub"),1,0)))) -> 1 | AD123: 1 | AE123: 1 | AF123: 188.5097863 | AG123: 0 | AH123: 17662 | AI123: =IFERROR(VLOOKUP(AR123, 'KIPP$$'!A:G, 7, 0), "") ->  | AJ123: 2.8488 | AK123: 25 | AL123: =IFERROR(VLOOKUP($AR123,School_View8[[NCSE_ID]:[Max_Unmet_Need]],3,FALSE),"") ->  | AM123: =IFERROR(VLOOKUP($AR123,School_View8[[NCSE_ID]:[Max_Unmet_Need]],4,FALSE),"") ->  | AO123: =--ISNUMBER(IFERROR(SEARCH('Wish List and Search'!$H$12,$AS123,1),"")) -> 1 | AP123: =IF(AO123=1,COUNTIF($AO$4:AO123,1),"") -> 120 | AQ123: =IFERROR(INDEX($AS$4:$AS$3000,MATCH(ROWS($AP$4:AP123),$AP$4:$AP$3000,0)),"") -> Syracuse University | AR123: 196413 | AS123: Syracuse University | AT123: Syracuse | AU123: NY | AV123: Private 4 yr | AW123: Highly Competitive | AX123: 31823 | AY123: 17662 | AZ123: 19670 | BA123: 25109 | BB123: 46 | BC123: 82.2 | BD123: 79.1 | BE123: 91 | BF123: 25 | BG123: syr.edu/ | BJ123: City: Midsize | BK123: 15218 | BN123: 5 | BO123: 2.8488 | BP123: 0.32 | BQ123: -9.05 | BR123: 0 | BS123: -76.137 | BT123: 43.0402
A124: 165662 | B124: Emerson College | C124: =IF(ISERROR(Y124),"No Data",IF(Y124<15,"Far Reach",IF(Y124<50,"Reach",IF(Y124<80,"Target",IF(Y124>=80,IF(BD124="NULL","Likely",IF(StudentTargets!$AC$11<=AllColleges!BD124/100,"Likely+","Likely")),""))))) -> Far Reach | F124: 0 | G124: 0 | H124: 120 | J124: =IF(ISERROR(Y124),0,IF(AND(I124=1,Y124>=80),1,IF(OR(ISERROR(Y124),BD124="NULL"),0,IF(AND(Y124>=80,BN124>=(StudentTargets!$W$15-1),StudentTargets!$AC$11<=AllColleges!BD124/100),1,0)*AE124))) ->  | K124: =IF(ISERROR(Y124),0,IF(AND(I124=1,Y124>=80),0,IF(ISERROR(Y124),0,IF(AND(Y124>=80,BN124>=(StudentTargets!$W$15-1)),IF(ISERROR(StudentTargets!$AC$11>(BD124/100)),1,IF(StudentTargets!$AC$11>(BD124/100),1,0)),0))*AE124)) ->  | L124: 0 | M124: 0 | N124: 1 | R124: 0 | S124: 0 | T124: 2.8488 | U124: 0.32 | V124: -9.05 | W124: -17.05 | X124: -17.05 | Y124: 3.938030419e-06 | Z124: 1 | AA124: 1 | AB124: 1 | AC124: =IF(FilterSchoolType="Any",1,IF(AND(FilterSchoolType=Lookups!$S$5,FilterState=AU124),1,IF(AND(FilterSchoolType=Lookups!$S$3,FilterState=AU124,LEFT(AV124,3)="Pub"),1,IF(AND(FilterSchoolType=Lookups!$S$4,LEFT(AV124,3)="Pub"),1,0)))) -> 1 | AD124: 1 | AE124: 1 | AF124: 195.4046473 | AG124: 0 | AH124: 33717 | AI124: =IFERROR(VLOOKUP(AR124, 'KIPP$$'!A:G, 7, 0), "") ->  | AJ124: 2.8488 | AK124: 25 | AL124: =IFERROR(VLOOKUP($AR124,School_View8[[NCSE_ID]:[Max_Unmet_Need]],3,FALSE),"") ->  | AM124: =IFERROR(VLOOKUP($AR124,School_View8[[NCSE_ID]:[Max_Unmet_Need]],4,FALSE),"") ->  | AO124: =--ISNUMBER(IFERROR(SEARCH('Wish List and Search'!$H$12,$AS124,1),"")) -> 1 | AP124: =IF(AO124=1,COUNTIF($AO$4:AO124,1),"") -> 121 | AQ124: =IFERROR(INDEX($AS$4:$AS$3000,MATCH(ROWS($AP$4:AP124),$AP$4:$AP$3000,0)),"") -> Emerson College | AR124: 165662 | AS124: Emerson College | AT124: Boston | AU124: MA | AV124: Private 4 yr | AW124: Highly Competitive | AX124: 39263 | AY124: 33717 | AZ124: 36793 | BA124: 37345 | BB124: 40 | BC124: 80.5 | BD124: 78.7 | BE124: 87 | BF124: 25 | BG124: www.emerson.edu | BJ124: City: Large | BK124: 3801 | BN124: 5 | BO124: 2.8488 | BP124: 0.32 | BQ124: -9.05 | BR124: 0 | BS124: -71.0654 | BT124: 42.3522
A125: 150400 | B125: DePauw University | C125: =IF(ISERROR(Y125),"No Data",IF(Y125<15,"Far Reach",IF(Y125<50,"Reach",IF(Y125<80,"Target",IF(Y125>=80,IF(BD125="NULL","Likely",IF(StudentTargets!$AC$11<=AllColleges!BD125/100,"Likely+","Likely")),""))))) -> Far Reach | F125: 0 | G125: 0 | H125: 121 | J125: =IF(ISERROR(Y125),0,IF(AND(I125=1,Y125>=80),1,IF(OR(ISERROR(Y125),BD125="NULL"),0,IF(AND(Y125>=80,BN125>=(StudentTargets!$W$15-1),StudentTargets!$AC$11<=AllColleges!BD125/100),1,0)*AE125))) ->  | K125: =IF(ISERROR(Y125),0,IF(AND(I125=1,Y125>=80),0,IF(ISERROR(Y125),0,IF(AND(Y125>=80,BN125>=(StudentTargets!$W$15-1)),IF(ISERROR(StudentTargets!$AC$11>(BD125/100)),1,IF(StudentTargets!$AC$11>(BD125/100),1,0)),0))*AE125)) ->  | L125: 0 | M125: 0 | N125: 1 | R125: 0 | S125: 0 | T125: 3.3385 | U125: 0.3992 | V125: -8.252064273 | W125: -17.83286427 | X125: -17.83286427 | Y125: 1.800053619e-06 | Z125: 1 | AA125: 1 | AB125: 1 | AC125: =IF(FilterSchoolType="Any",1,IF(AND(FilterSchoolType=Lookups!$S$5,FilterState=AU125),1,IF(AND(FilterSchoolType=Lookups!$S$3,FilterState=AU125,LEFT(AV125,3)="Pub"),1,IF(AND(FilterSchoolType=Lookups!$S$4,LEFT(AV125,3)="Pub"),1,0)))) -> 1 | AD125: 1 | AE125: 1 | AF125: 673.7312299 | AG125: 0 | AH125: 12916 | AI125: =IFERROR(VLOOKUP(AR125, 'KIPP$$'!A:G, 7, 0), "") ->  | AJ125: 3.3385 | AK125: 24 | AL125: =IFERROR(VLOOKUP($AR125,School_View8[[NCSE_ID]:[Max_Unmet_Need]],3,FALSE),"") ->  | AM125: =IFERROR(VLOOKUP($AR125,School_View8[[NCSE_ID]:[Max_Unmet_Need]],4,FALSE),"") ->  | AO125: =--ISNUMBER(IFERROR(SEARCH('Wish List and Search'!$H$12,$AS125,1),"")) -> 1 | AP125: =IF(AO125=1,COUNTIF($AO$4:AO125,1),"") -> 122 | AQ125: =IFERROR(INDEX($AS$4:$AS$3000,MATCH(ROWS($AP$4:AP125),$AP$4:$AP$3000,0)),"") -> DePauw University | AR125: 150400 | AS125: DePauw University | AT125: Greencastle | AU125: IN | AV125: Private 4 yr | AW125: Very Competitive | AX125: 30863 | AY125: 12916 | AZ125: 13830 | BA125: 18006 | BB125: 47 | BC125: 84.7 | BD125: 78.6 | BE125: 92 | BF125: 24 | BG125: www.depauw.edu | BJ125: Town: Distant | BK125: 2225 | BN125: 4 | BO125: 3.3385 | BP125: 0.3992 | BQ125: -8.252064273 | BR125: 0 | BS125: -86.8636 | BT125: 39.6395
A126: 134097 | B126: Florida State University | C126: =IF(ISERROR(Y126),"No Data",IF(Y126<15,"Far Reach",IF(Y126<50,"Reach",IF(Y126<80,"Target",IF(Y126>=80,IF(BD126="NULL","Likely",IF(StudentTargets!$AC$11<=AllColleges!BD126/100,"Likely+","Likely")),""))))) -> Far Reach | F126: 0 | G126: 0 | H126: 122 | J126: =IF(ISERROR(Y126),0,IF(AND(I126=1,Y126>=80),1,IF(OR(ISERROR(Y126),BD126="NULL"),0,IF(AND(Y126>=80,BN126>=(StudentTargets!$W$15-1),StudentTargets!$AC$11<=AllColleges!BD126/100),1,0)*AE126))) ->  | K126: =IF(ISERROR(Y126),0,IF(AND(I126=1,Y126>=80),0,IF(ISERROR(Y126),0,IF(AND(Y126>=80,BN126>=(StudentTargets!$W$15-1)),IF(ISERROR(StudentTargets!$AC$11>(BD126/100)),1,IF(StudentTargets!$AC$11>(BD126/100),1,0)),0))*AE126)) ->  | L126: 0 | M126: 0 | N126: 1 | R126: 0 | S126: 0 | T126: 2.8488 | U126: 0.32 | V126: -9.05 | W126: -17.05 | X126: -17.05 | Y126: 3.938030419e-06 | Z126: 1 | AA126: 1 | AB126: 1 | AC126: =IF(FilterSchoolType="Any",1,IF(AND(FilterSchoolType=Lookups!$S$5,FilterState=AU126),1,IF(AND(FilterSchoolType=Lookups!$S$3,FilterState=AU126,LEFT(AV126,3)="Pub"),1,IF(AND(FilterSchoolType=Lookups!$S$4,LEFT(AV126,3)="Pub"),1,0)))) -> 1 | AD126: 1 | AE126: 1 | AF126: 909.5211783 | AG126: 1 | AH126: 10220 | AI126: =IFERROR(VLOOKUP(AR126, 'KIPP$$'!A:G, 7, 0), "") ->  | AJ126: 2.8488 | AK126: 25 | AL126: =IFERROR(VLOOKUP($AR126,School_View8[[NCSE_ID]:[Max_Unmet_Need]],3,FALSE),"") ->  | AM126: =IFERROR(VLOOKUP($AR126,School_View8[[NCSE_ID]:[Max_Unmet_Need]],4,FALSE),"") ->  | AO126: =--ISNUMBER(IFERROR(SEARCH('Wish List and Search'!$H$12,$AS126,1),"")) -> 1 | AP126: =IF(AO126=1,COUNTIF($AO$4:AO126,1),"") -> 123 | AQ126: =IFERROR(INDEX($AS$4:$AS$3000,MATCH(ROWS($AP$4:AP126),$AP$4:$AP$3000,0)),"") -> Florida State University | AR126: 134097 | AS126: Florida State University | AT126: Tallahassee | AU126: FL | AV126: Public 4 yr | AW126: Highly Competitive | AX126: 16506 | AY126: 10220 | AZ126: 12150 | BA126: 16097 | BB126: 45 | BC126: 80.1 | BD126: 78.4 | BE126: 93 | BF126: 25 | BG126: www.fsu.edu | BJ126: City: Midsize | BK126: 32933 | BN126: 5 | BO126: 2.8488 | BP126: 0.32 | BQ126: -9.05 | BR126: 0 | BS126: -84.2919 | BT126: 30.4408
A127: 233921 | B127: Virginia Polytechnic Institute | C127: =IF(ISERROR(Y127),"No Data",IF(Y127<15,"Far Reach",IF(Y127<50,"Reach",IF(Y127<80,"Target",IF(Y127>=80,IF(BD127="NULL","Likely",IF(StudentTargets!$AC$11<=AllColleges!BD127/100,"Likely+","Likely")),""))))) -> Far Reach | F127: 0 | G127: 0 | H127: 123 | J127: =IF(ISERROR(Y127),0,IF(AND(I127=1,Y127>=80),1,IF(OR(ISERROR(Y127),BD127="NULL"),0,IF(AND(Y127>=80,BN127>=(StudentTargets!$W$15-1),StudentTargets!$AC$11<=AllColleges!BD127/100),1,0)*AE127))) ->  | K127: =IF(ISERROR(Y127),0,IF(AND(I127=1,Y127>=80),0,IF(ISERROR(Y127),0,IF(AND(Y127>=80,BN127>=(StudentTargets!$W$15-1)),IF(ISERROR(StudentTargets!$AC$11>(BD127/100)),1,IF(StudentTargets!$AC$11>(BD127/100),1,0)),0))*AE127)) ->  | L127: 0 | M127: 0 | N127: 1 | R127: 0 | S127: 0 | T127: 2.8488 | U127: 0.32 | V127: -9.05 | W127: -16.73 | X127: -16.73 | Y127: 5.423170946e-06 | Z127: 1 | AA127: 1 | AB127: 1 | AC127: =IF(FilterSchoolType="Any",1,IF(AND(FilterSchoolType=Lookups!$S$5,FilterState=AU127),1,IF(AND(FilterSchoolType=Lookups!$S$3,FilterState=AU127,LEFT(AV127,3)="Pub"),1,IF(AND(FilterSchoolType=Lookups!$S$4,LEFT(AV127,3)="Pub"),1,0)))) -> 1 | AD127: 1 | AE127: 1 | AF127: 414.1148073 | AG127: 1 | AH127: 11998 | AI127: =IFERROR(VLOOKUP(AR127, 'KIPP$$'!A:G, 7, 0), "") ->  | AJ127: 2.8488 | AK127: 24 | AL127: =IFERROR(VLOOKUP($AR127,School_View8[[NCSE_ID]:[Max_Unmet_Need]],3,FALSE),"") ->  | AM127: =IFERROR(VLOOKUP($AR127,School_View8[[NCSE_ID]:[Max_Unmet_Need]],4,FALSE),"") ->  | AO127: =--ISNUMBER(IFERROR(SEARCH('Wish List and Search'!$H$12,$AS127,1),"")) -> 1 | AP127: =IF(AO127=1,COUNTIF($AO$4:AO127,1),"") -> 124 | AQ127: =IFERROR(INDEX($AS$4:$AS$3000,MATCH(ROWS($AP$4:AP127),$AP$4:$AP$3000,0)),"") -> Virginia Polytechnic Institute | AR127: 233921 | AS127: Virginia Polytechnic Institute | AT127: Blacksburg | AU127: VA | AV127: Public 4 yr | AW127: Very Competitive | AX127: 17190 | AY127: 11998 | AZ127: 14022 | BA127: 17684 | BB127: 57 | BC127: 83.8 | BD127: 78.4 | BE127: 93 | BF127: 24 | BG127: WWW.VT.EDU | BJ127: City: Small | BK127: 25791 | BN127: 4 | BO127: 2.8488 | BP127: 0.32 | BQ127: -9.05 | BR127: 0 | BS127: -80.4237 | BT127: 37.229
A128: 122436 | B128: University of San Diego | C128: =IF(ISERROR(Y128),"No Data",IF(Y128<15,"Far Reach",IF(Y128<50,"Reach",IF(Y128<80,"Target",IF(Y128>=80,IF(BD128="NULL","Likely",IF(StudentTargets!$AC$11<=AllColleges!BD128/100,"Likely+","Likely")),""))))) -> Far Reach | F128: 0 | G128: 0 | H128: 124 | J128: =IF(ISERROR(Y128),0,IF(AND(I128=1,Y128>=80),1,IF(OR(ISERROR(Y128),BD128="NULL"),0,IF(AND(Y128>=80,BN128>=(StudentTargets!$W$15-1),StudentTargets!$AC$11<=AllColleges!BD128/100),1,0)*AE128))) ->  | K128: =IF(ISERROR(Y128),0,IF(AND(I128=1,Y128>=80),0,IF(ISERROR(Y128),0,IF(AND(Y128>=80,BN128>=(StudentTargets!$W$15-1)),IF(ISERROR(StudentTargets!$AC$11>(BD128/100)),1,IF(StudentTargets!$AC$11>(BD128/100),1,0)),0))*AE128)) ->  | L128: 0 | M128: 0 | N128: 1 | R128: 0 | S128: 0 | T128: 2.8488 | U128: 0.32 | V128: -9.05 | W128: -17.37 | X128: -17.37 | Y128: 2.859597027e-06 | Z128: 1 | AA128: 1 | AB128: 1 | AC128: =IF(FilterSchoolType="Any",1,IF(AND(FilterSchoolType=Lookups!$S$5,FilterState=AU128),1,IF(AND(FilterSchoolType=Lookups!$S$3,FilterState=AU128,LEFT(AV128,3)="Pub"),1,IF(AND(FilterSchoolType=Lookups!$S$4,LEFT(AV128,3)="Pub"),1,0)))) -> 1 | AD128: 1 | AE128: 1 | AF128: 2419.026617 | AG128: 0 | AH128: 23449 | AI128: =IFERROR(VLOOKUP(AR128, 'KIPP$$'!A:G, 7, 0), "") ->  | AJ128: 2.8488 | AK128: 26 | AL128: =IFERROR(VLOOKUP($AR128,School_View8[[NCSE_ID]:[Max_Unmet_Need]],3,FALSE),"") ->  | AM128: =IFERROR(VLOOKUP($AR128,School_View8[[NCSE_ID]:[Max_Unmet_Need]],4,FALSE),"") ->  | AO128: =--ISNUMBER(IFERROR(SEARCH('Wish List and Search'!$H$12,$AS128,1),"")) -> 1 | AP128: =IF(AO128=1,COUNTIF($AO$4:AO128,1),"") -> 125 | AQ128: =IFERROR(INDEX($AS$4:$AS$3000,MATCH(ROWS($AP$4:AP128),$AP$4:$AP$3000,0)),"") -> University of San Diego | AR128: 122436 | AS128: University of San Diego | AT128: San Diego | AU128: CA | AV128: Private 4 yr | AW128: Highly Competitive | AX128: 38596 | AY128: 23449 | AZ128: 24637 | BA128: 28248 | BB128: 46 | BC128: 78.2 | BD128: 78.2 | BE128: 87 | BF128: 26 | BG128: www.sandiego.edu | BJ128: City: Large | BK128: 5711 | BN128: 5 | BO128: 2.8488 | BP128: 0.32 | BQ128: -9.05 | BR128: 0 | BS128: -117.189 | BT128: 32.7714
A129: 165334 | B129: Clark University | C129: =IF(ISERROR(Y129),"No Data",IF(Y129<15,"Far Reach",IF(Y129<50,"Reach",IF(Y129<80,"Target",IF(Y129>=80,IF(BD129="NULL","Likely",IF(StudentTargets!$AC$11<=AllColleges!BD129/100,"Likely+","Likely")),""))))) -> Far Reach | F129: 0 | G129: 0 | H129: 125 | J129: =IF(ISERROR(Y129),0,IF(AND(I129=1,Y129>=80),1,IF(OR(ISERROR(Y129),BD129="NULL"),0,IF(AND(Y129>=80,BN129>=(StudentTargets!$W$15-1),StudentTargets!$AC$11<=AllColleges!BD129/100),1,0)*AE129))) ->  | K129: =IF(ISERROR(Y129),0,IF(AND(I129=1,Y129>=80),0,IF(ISERROR(Y129),0,IF(AND(Y129>=80,BN129>=(StudentTargets!$W$15-1)),IF(ISERROR(StudentTargets!$AC$11>(BD129/100)),1,IF(StudentTargets!$AC$11>(BD129/100),1,0)),0))*AE129)) ->  | L129: 0 | M129: 0 | N129: 1 | R129: 0 | S129: 0 | T129: 2.8488 | U129: 0.32 | V129: -9.05 | W129: -17.05 | X129: -17.05 | Y129: 3.938030419e-06 | Z129: 1 | AA129: 1 | AB129: 1 | AC129: =IF(FilterSchoolType="Any",1,IF(AND(FilterSchoolType=Lookups!$S$5,FilterState=AU129),1,IF(AND(FilterSchoolType=Lookups!$S$3,FilterState=AU129,LEFT(AV129,3)="Pub"),1,IF(AND(FilterSchoolType=Lookups!$S$4,LEFT(AV129,3)="Pub"),1,0)))) -> 1 | AD129: 1 | AE129: 1 | AF129: 160.1720325 | AG129: 0 | AH129: 18162 | AI129: =IFERROR(VLOOKUP(AR129, 'KIPP$$'!A:G, 7, 0), "") ->  | AJ129: 2.8488 | AK129: 25 | AL129: =IFERROR(VLOOKUP($AR129,School_View8[[NCSE_ID]:[Max_Unmet_Need]],3,FALSE),"") ->  | AM129: =IFERROR(VLOOKUP($AR129,School_View8[[NCSE_ID]:[Max_Unmet_Need]],4,FALSE),"") ->  | AO129: =--ISNUMBER(IFERROR(SEARCH('Wish List and Search'!$H$12,$AS129,1),"")) -> 1 | AP129: =IF(AO129=1,COUNTIF($AO$4:AO129,1),"") -> 126 | AQ129: =IFERROR(INDEX($AS$4:$AS$3000,MATCH(ROWS($AP$4:AP129),$AP$4:$AP$3000,0)),"") -> Clark University | AR129: 165334 | AS129: Clark University | AT129: Worcester | AU129: MA | AV129: Private 4 yr | AW129: Highly Competitive | AX129: 26350 | AY129: 18162 | AZ129: 17425 | BA129: 20467 | BB129: 39 | BC129: 78.2 | BD129: 78.2 | BE129: 88 | BF129: 25 | BG129: www.clarku.edu | BJ129: City: Midsize | BK129: 2289 | BN129: 5 | BO129: 2.8488 | BP129: 0.32 | BQ129: -9.05 | BR129: 0 | BS129: -71.8235 | BT129: 42.2511
A130: 240444 | B130: University of Wisconsin-Madison | C130: =IF(ISERROR(Y130),"No Data",IF(Y130<15,"Far Reach",IF(Y130<50,"Reach",IF(Y130<80,"Target",IF(Y130>=80,IF(BD130="NULL","Likely",IF(StudentTargets!$AC$11<=AllColleges!BD130/100,"Likely+","Likely")),""))))) -> Far Reach | F130: 0 | G130: 0 | H130: 126 | J130: =IF(ISERROR(Y130),0,IF(AND(I130=1,Y130>=80),1,IF(OR(ISERROR(Y130),BD130="NULL"),0,IF(AND(Y130>=80,BN130>=(StudentTargets!$W$15-1),StudentTargets!$AC$11<=AllColleges!BD130/100),1,0)*AE130))) ->  | K130: =IF(ISERROR(Y130),0,IF(AND(I130=1,Y130>=80),0,IF(ISERROR(Y130),0,IF(AND(Y130>=80,BN130>=(StudentTargets!$W$15-1)),IF(ISERROR(StudentTargets!$AC$11>(BD130/100)),1,IF(StudentTargets!$AC$11>(BD130/100),1,0)),0))*AE130)) ->  | L130: 0 | M130: 0 | N130: 1 | R130: 0 | S130: 0 | T130: 4.7749 | U130: 0.322 | V130: -17.95 | W130: -26.644 | X130: -26.644 | Y130: 2.683229526e-10 | Z130: 1 | AA130: 1 | AB130: 1 | AC130: =IF(FilterSchoolType="Any",1,IF(AND(FilterSchoolType=Lookups!$S$5,FilterState=AU130),1,IF(AND(FilterSchoolType=Lookups!$S$3,FilterState=AU130,LEFT(AV130,3)="Pub"),1,IF(AND(FilterSchoolType=Lookups!$S$4,LEFT(AV130,3)="Pub"),1,0)))) -> 1 | AD130: 1 | AE130: 1 | AF130: 798.7383982 | AG130: 1 | AH130: 7667 | AI130: =IFERROR(VLOOKUP(AR130, 'KIPP$$'!A:G, 7, 0), "") ->  | AJ130: 4.7749 | AK130: 27 | AL130: =IFERROR(VLOOKUP($AR130,School_View8[[NCSE_ID]:[Max_Unmet_Need]],3,FALSE),"") ->  | AM130: =IFERROR(VLOOKUP($AR130,School_View8[[NCSE_ID]:[Max_Unmet_Need]],4,FALSE),"") ->  | AO130: =--ISNUMBER(IFERROR(SEARCH('Wish List and Search'!$H$12,$AS130,1),"")) -> 1 | AP130: =IF(AO130=1,COUNTIF($AO$4:AO130,1),"") -> 127 | AQ130: =IFERROR(INDEX($AS$4:$AS$3000,MATCH(ROWS($AP$4:AP130),$AP$4:$AP$3000,0)),"") -> University of Wisconsin-Madison | AR130: 240444 | AS130: University of Wisconsin-Madison | AT130: Madison | AU130: WI | AV130: Public 4 yr | AW130: Most Competitive | AX130: 15874 | AY130: 7667 | AZ130: 10700 | BA130: 16445 | BB130: 49 | BC130: 84.9 | BD130: 78.1 | BE130: 95 | BF130: 27 | BG130: www.wisc.edu | BJ130: City: Midsize | BK130: 30958 | BN130: 6 | BO130: 4.7749 | BP130: 0.322 | BQ130: -17.95 | BR130: 0 | BS130: -89.4054 | BT130: 43.0739
